Workbook

Sheet 1400 Im.
A1: Name | B1: Hex | D1: Pt | E1: Si | F1: At | G1: Hy | H1: Po | I1: Go | J1: La | L1: TL | N1: Ba | O1: Remarks | U1: Z | W1: P | X1: B | Y1: G | AA1: Al | AB1: Subsector
A7: Between 1400 and 1500:
B8: Dune shifted her atmos from 5 to 6. | S8: Hex 1425: mainworld shift.
B9: Hub shifted her atmos from 9 to 8. | S9: Hex 1135: as predicted, system drops off local jumpspace
B10: Diaoran, Acroupa & Leoin shifted their atmos from 3 to 5. | S10: Note: The homeworld for hex 1425
B11: Wsi shifted her hydro from 2 to 3. | S11: was changed, as the population shifted
S12: from a world to a ring system
AB14: Worlds with breathable air (Atmos 5,6,8,D,F) | AM14: Mod B PCI = Modified Base | AO14: GF - Mega = Ground Army, Megatraveller
A15: Var Kirat Campaign - Starbreak Sector, 1400 Imperial | AB15: As above, plus lots of water (Hydro 6+) | AM15: Per-Capita Income
A16: I1 = Imperial Cianji • I3 = Ziru Sirkaa • I4 = Holy Imperium | AB16: As above, plus decent gravity (Size 6+)
A17: Ar = Athenian Republic • Na = Non-aligned • Ba = Barren
BJ18: Modified MegaT Troop Unit Table: No. of Regiments
A19: Name | B19: Hex | D19: Pt | E19: Si | F19: At | G19: Hy | H19: Po | I19: Go | J19: La | L19: TL | N19: Ba | O19: Remarks | U19: Z | W19: P | X19: B | Y19: G | AA19: Al | AB19: Subsector | AC19: TL-Mod | AD19: P-Mod | AE19: UWTN | AF19: WTN | AG19: Rich | AH19: Ind | AI19: Agr | AJ19: Poor | AK19: Ext | AL19: Non-Ind | AM19: Mod B PCI | AN19: GWP | AO19: GF - Mega | AP19: GF x PopM | AS19: Tables for Far Trader
A20: Acroupa | B20: 401 | D20: B | E20: 5 | F20: 3 | G20: 3 | H20: 6 | I20: 5 | J20: 5 | K20: - | L20: 9 | N20: A | O20: Na | P20: Ni | Q20: Po | U20: B | W20: 1 | X20: 2 | Y20: 0 | AA20: I1 | AB20: Subsector A - Nosso Nosso | AC20: =VLOOKUP(L20,$AS$23:$AU$40,3) -> 1 | AD20: =VLOOKUP(H20,$AW$23:$AX$36,2) -> 3 | AE20: =AC20+AD20 -> 4 | AF20: =INDEX($BA$26:BF$44,MATCH(AE20,$AZ$26:$AZ$44,-1),MATCH(D20,$BA$25:$BF$25)) -> 0 | AG20: 1 | AH20: 1 | AI20: 1 | AJ20: 1 | AK20: 1 | AL20: 0.8 | AM20: =(VLOOKUP(L20,$AS$23:$AV$40,4))*AG20*AH20*AI20*AJ20*AK20*AL20 -> 2928 | AN20: =AM20*((10^H20)*W20) -> 2928000000 | AO20: =INDEX($BK$23:$BU$36,MATCH(L20,$BJ$23:$BJ$36),MATCH(H20,$BK$22:$BU$22)) -> 12 | AP20: =AO20*W20 -> 12
A21: Ad Astra | B21: 2234 | D21: X | E21: 4 | F21: 4 | G21: 2 | H21: 0 | I21: 0 | J21: 0 | K21: - | L21: 0 | O21: Ba | P21: Lo | Q21: Ni | R21: Po | W21: 0 | X21: 0 | Y21: 3 | AA21: Ba | AB21: Subsector O - Painted | AC21: -0.5 | AD21: 0 | AE21: -0.5 | AF21: =INDEX($BA$26:BF$44,MATCH(AE21,$AZ$26:$AZ$44,-1),MATCH(D21,$BA$25:$BF$25)) -> 0 | AG21: 1 | AH21: 1 | AI21: 1 | AJ21: 1 | AK21: 0.8 | AL21: 0.8 | AM21: 35.2 | AN21: 0 | AO21: 0 | AP21: 0 | AS21: Unmodified World Trade Number = TL Modifier + Population Modifier | BK21: Population
A22: Adoria | B22: 2633 | D22: X | E22: 6 | F22: 5 | G22: 7 | H22: 0 | I22: 0 | J22: 0 | K22: - | L22: 0 | O22: Ba | P22: Lo | Q22: Ni | W22: 0 | X22: 1 | Y22: 0 | AA22: Ba | AB22: Subsector P - Chamber | AC22: -0.5 | AD22: 0 | AE22: -0.5 | AF22: =INDEX($BA$26:BF$44,MATCH(AE22,$AZ$26:$AZ$44,-1),MATCH(D22,$BA$25:$BF$25)) -> 0 | AG22: 1 | AH22: 1 | AI22: 1 | AJ22: 1 | AK22: 1 | AL22: 0.8 | AM22: 44 | AN22: 0 | AO22: 0 | AP22: 0 | AS22: TL Modifier Table | AZ22: Port Mod. Table | BJ22: GTL | BK22: 0 | BL22: 1 | BM22: 2 | BN22: 3 | BO22: 4 | BP22: 5 | BQ22: 6 | BR22: 7 | BS22: 8 | BT22: 9 | BU22: A
A23: Akcja | B23: 2635 | D23: X | E23: 4 | F23: 0 | G23: 1 | H23: 0 | I23: 0 | J23: 0 | K23: - | L23: 0 | O23: Ba | P23: Ic | Q23: Lo | R23: Ni | S23: Va | W23: 0 | X23: 0 | Y23: 3 | AA23: Ba | AB23: Subsector P - Chamber | AC23: -0.5 | AD23: 0 | AE23: -0.5 | AF23: =INDEX($BA$26:BF$44,MATCH(AE23,$AZ$26:$AZ$44,-1),MATCH(D23,$BA$25:$BF$25)) -> 0 | AG23: 1 | AH23: 1 | AI23: 1 | AJ23: 1 | AK23: 1 | AL23: 0.8 | AM23: 44 | AN23: 0 | AO23: 0 | AP23: 0 | AS23: UWP | AT23: GTL | AU23: TL Mod | AV23: Base Income | AW23: Pop | AX23: Pop Mod | BJ23: 0 | BK23: 0 | BL23: 0 | BM23: 0 | BN23: 0 | BO23: 0 | BP23: 0 | BQ23: 0 | BR23: 1 | BS23: 10 | BT23: 100 | BU23: 1000
A24: Alkhalikoi | B24: 2407 | D24: X | E24: 2 | F24: 0 | G24: 0 | H24: 0 | I24: 1 | J24: 0 | K24: - | L24: 3 | O24: Lo | P24: Ni | Q24: Va | W24: 3 | X24: 0 | Y24: 2 | AA24: I1 | AB24: Subsector C - Wsi | AC24: 0 | AD24: 0 | AE24: 0 | AF24: =INDEX($BA$26:BF$44,MATCH(AE24,$AZ$26:$AZ$44,-1),MATCH(D24,$BA$25:$BF$25)) -> 0 | AG24: 1 | AH24: 1 | AI24: 1 | AJ24: 1 | AK24: 1 | AL24: 0.8 | AM24: 176 | AN24: 528 | AO24: 0 | AP24: 0 | AS24: 0 | AT24: 0 | AU24: -0.5 | AV24: 55 | AW24: 0 | AX24: 0 | BC24: Ports | BJ24: 1 | BK24: 0 | BL24: 0 | BM24: 0 | BN24: 0 | BO24: 0 | BP24: 0 | BQ24: 1 | BR24: 5 | BS24: 50 | BT24: 500 | BU24: 5000
A25: Alluvia | B25: 532 | D25: X | E25: 6 | F25: 7 | G25: 4 | H25: 0 | I25: 0 | J25: 0 | K25: - | L25: 0 | O25: Ba | P25: Lo | Q25: Ni | W25: 0 | X25: 1 | Y25: 3 | AA25: Ba | AB25: Subsector M - Glossalalia | AC25: -0.5 | AD25: 0 | AE25: -0.5 | AF25: =INDEX($BA$26:BF$44,MATCH(AE25,$AZ$26:$AZ$44,-1),MATCH(D25,$BA$25:$BF$25)) -> 0 | AG25: 1 | AH25: 1 | AI25: 1 | AJ25: 1 | AK25: 1 | AL25: 0.8 | AM25: 44 | AN25: 0 | AO25: 0 | AP25: 0 | AS25: 1 | AT25: 1 | AU25: -0.5 | AV25: 85 | AW25: 1 | AX25: 0.5 | AZ25: UWTN | BA25: A | BB25: B | BC25: C | BD25: D | BE25: E | BF25: X | BJ25: 2 | BK25: 0 | BL25: 0 | BM25: 0 | BN25: 0 | BO25: 0 | BP25: 1 | BQ25: 5 | BR25: 50 | BS25: 500 | BT25: 5000 | BU25: 50000
A26: Amber | B26: 2735 | D26: X | E26: 7 | F26: 6 | G26: 7 | H26: 0 | I26: 0 | J26: 0 | K26: - | L26: 0 | O26: Ba | P26: Lo | Q26: Ni | W26: 0 | X26: 1 | Y26: 4 | AA26: Ba | AB26: Subsector P - Chamber | AC26: -0.5 | AD26: 0 | AE26: -0.5 | AF26: =INDEX($BA$26:BF$44,MATCH(AE26,$AZ$26:$AZ$44,-1),MATCH(D26,$BA$25:$BF$25)) -> 0 | AG26: 1 | AH26: 1 | AI26: 1 | AJ26: 1 | AK26: 1 | AL26: 0.8 | AM26: 44 | AN26: 0 | AO26: 0 | AP26: 0 | AS26: 2 | AT26: 2 | AU26: -0.5 | AV26: 135 | AW26: 2 | AX26: 1 | AZ26: 8 | BA26: 0 | BB26: -1 | BC26: -1.5 | BD26: -2 | BE26: -2.5 | BF26: -5 | BJ26: 3 | BK26: 0 | BL26: 0 | BM26: 0 | BN26: 0 | BO26: 1 | BP26: 10 | BQ26: 100 | BR26: 1000 | BS26: 10000 | BT26: 50000 | BU26: 100000
A27: Anasazi | B27: 506 | D27: D | E27: 5 | F27: 3 | G27: 1 | H27: 4 | I27: 5 | J27: 6 | K27: - | L27: 9 | O27: Ni | P27: Po | W27: 7 | X27: 0 | Y27: 0 | AA27: I1 | AB27: Subsector A - Nosso Nosso | AC27: 1 | AD27: 2 | AE27: 3 | AF27: =INDEX($BA$26:BF$44,MATCH(AE27,$AZ$26:$AZ$44,-1),MATCH(D27,$BA$25:$BF$25)) -> 0 | AG27: 1 | AH27: 1 | AI27: 1 | AJ27: 1 | AK27: 0.8 | AL27: 0.8 | AM27: 2342.4 | AN27: 163968000 | AO27: 0 | AP27: 0 | AS27: 3 | AT27: 3 | AU27: 0 | AV27: 220 | AW27: 3 | AX27: 1.5 | AZ27: 7.5 | BA27: 0 | BB27: -1 | BC27: -1.5 | BD27: -2 | BE27: -2.5 | BF27: -5 | BJ27: 4 | BK27: 0 | BL27: 0 | BM27: 0 | BN27: 0 | BO27: 1 | BP27: 10 | BQ27: 100 | BR27: 1000 | BS27: 2000 | BT27: 20000 | BU27: 200000
A28: Andecy | B28: 138 | D28: X | E28: 7 | F28: 4 | G28: A | H28: 0 | I28: 0 | J28: 0 | K28: - | L28: 0 | O28: Ba | P28: Lo | Q28: Ni | R28: Wa | W28: 0 | X28: 2 | Y28: 4 | AA28: Ba | AB28: Subsector M - Glossalalia | AC28: -0.5 | AD28: 0 | AE28: -0.5 | AF28: =INDEX($BA$26:BF$44,MATCH(AE28,$AZ$26:$AZ$44,-1),MATCH(D28,$BA$25:$BF$25)) -> 0 | AG28: 1 | AH28: 1 | AI28: 1 | AJ28: 1 | AK28: 0.8 | AL28: 0.8 | AM28: 35.2 | AN28: 0 | AO28: 0 | AP28: 0 | AS28: 4 | AT28: 4 | AU28: 0 | AV28: 350 | AW28: 4 | AX28: 2 | AZ28: 7 | BA28: 0 | BB28: -1 | BC28: -1.5 | BD28: -2 | BE28: -2.5 | BF28: -5 | BJ28: 5 | BK28: 0 | BL28: 0 | BM28: 0 | BN28: 1 | BO28: 2 | BP28: 3 | BQ28: 30 | BR28: 300 | BS28: 3000 | BT28: 30000 | BU28: 300000
A29: Angelicus | B29: 1502 | D29: X | E29: 4 | F29: 0 | G29: 4 | H29: 0 | I29: 0 | J29: 0 | K29: - | L29: 0 | N29: S | O29: Ba | P29: Ic | Q29: Lo | R29: Ni | S29: Va | W29: 0 | X29: 0 | Y29: 5 | AA29: I1 | AB29: Subsector B - Mu | AC29: -0.5 | AD29: 0 | AE29: -0.5 | AF29: =INDEX($BA$26:BF$44,MATCH(AE29,$AZ$26:$AZ$44,-1),MATCH(D29,$BA$25:$BF$25)) -> 0 | AG29: 1 | AH29: 1 | AI29: 1 | AJ29: 0.8 | AK29: 1 | AL29: 0.8 | AM29: 35.2 | AN29: 0 | AO29: 0 | AP29: 0 | AS29: 5 | AT29: 5 | AU29: 0 | AV29: 560 | AW29: 5 | AX29: 2.5 | AZ29: 6.5 | BA29: 0 | BB29: -0.5 | BC29: -1 | BD29: -1.5 | BE29: -2 | BF29: -4.5 | BJ29: 6 | BK29: 0 | BL29: 0 | BM29: 0 | BN29: 1 | BO29: 2 | BP29: 3 | BQ29: 30 | BR29: 300 | BS29: 3000 | BT29: 30000 | BU29: 300000
A30: Anton | B30: 1717 | D30: E | E30: 6 | F30: 4 | G30: 8 | H30: 1 | I30: 1 | J30: 3 | K30: - | L30: 0 | O30: Lo | P30: Ni | W30: 3 | X30: 0 | Y30: 4 | AA30: I4 | AB30: Subsector G - LightWaves | AC30: -0.5 | AD30: 0.5 | AE30: 0 | AF30: =INDEX($BA$26:BF$44,MATCH(AE30,$AZ$26:$AZ$44,-1),MATCH(D30,$BA$25:$BF$25)) -> 0.5 | AG30: 1 | AH30: 1 | AI30: 1 | AJ30: 1 | AK30: 0.8 | AL30: 0.8 | AM30: 35.2 | AN30: 1056 | AO30: 0 | AP30: 0 | AS30: 6 | AT30: 6 | AU30: 0.5 | AV30: 895 | AW30: 6 | AX30: 3 | AZ30: 6 | BA30: 0 | BB30: -0.5 | BC30: -1 | BD30: -1.5 | BE30: -2 | BF30: -4.5 | BJ30: 7 | BK30: 0 | BL30: 0 | BM30: 0 | BN30: 0 | BO30: 1 | BP30: 2 | BQ30: 20 | BR30: 200 | BS30: 2000 | BT30: 20000 | BU30: 200000
A31: Aphelion | B31: 2138 | D31: X | E31: 2 | F31: 4 | G31: 0 | H31: 0 | I31: 0 | J31: 0 | K31: - | L31: 0 | O31: Ba | P31: De | Q31: Lo | R31: Ni | S31: Po | W31: 0 | X31: 2 | Y31: 1 | AA31: Ba | AB31: Subsector O - Painted | AC31: -0.5 | AD31: 0 | AE31: -0.5 | AF31: =INDEX($BA$26:BF$44,MATCH(AE31,$AZ$26:$AZ$44,-1),MATCH(D31,$BA$25:$BF$25)) -> 0 | AG31: 1 | AH31: 1 | AI31: 1.2 | AJ31: 1 | AK31: 1 | AL31: 0.8 | AM31: 52.8 | AN31: 0 | AO31: 0 | AP31: 0 | AS31: 7 | AT31: 7 | AU31: 0.5 | AV31: 1430 | AW31: 7 | AX31: 3.5 | AZ31: 5.5 | BA31: 0 | BB31: 0 | BC31: -0.5 | BD31: -1 | BE31: -1.5 | BF31: -4 | BJ31: 8 | BK31: 0 | BL31: 0 | BM31: 0 | BN31: 0 | BO31: 0 | BP31: 1 | BQ31: 15 | BR31: 150 | BS31: 1500 | BT31: 15000 | BU31: 150000
A32: Aqualine | B32: 1004 | D32: E | E32: 9 | F32: A | G32: 6 | H32: 0 | I32: 1 | J32: 1 | K32: - | L32: 7 | O32: Fl | P32: Lo | Q32: Ni | W32: 7 | X32: 2 | Y32: 4 | AA32: I1 | AB32: Subsector B - Mu | AC32: 0.5 | AD32: 0 | AE32: 0.5 | AF32: =INDEX($BA$26:BF$44,MATCH(AE32,$AZ$26:$AZ$44,-1),MATCH(D32,$BA$25:$BF$25)) -> 0.5 | AG32: 1 | AH32: 1 | AI32: 1 | AJ32: 1 | AK32: 1 | AL32: 0.8 | AM32: 1144 | AN32: 8008 | AO32: 0 | AP32: 0 | AS32: 8 | AT32: 8 | AU32: 0.5 | AV32: 2290 | AW32: 8 | AX32: 4 | AZ32: 5 | BA32: 0 | BB32: 0 | BC32: -0.5 | BD32: -1 | BE32: -1.5 | BF32: -4 | BJ32: 9 | BK32: 0 | BL32: 0 | BM32: 0 | BN32: 0 | BO32: 0 | BP32: 1 | BQ32: 12 | BR32: 120 | BS32: 1200 | BT32: 12000 | BU32: 120000
A33: Arcane | B33: 1731 | D33: X | E33: 9 | F33: 6 | G33: 6 | H33: 0 | I33: 0 | J33: 0 | K33: - | L33: 0 | O33: Ba | P33: Lo | Q33: Ni | W33: 0 | X33: 0 | Y33: 3 | AA33: Ba | AB33: Subsector O - Painted | AC33: -0.5 | AD33: 0 | AE33: -0.5 | AF33: =INDEX($BA$26:BF$44,MATCH(AE33,$AZ$26:$AZ$44,-1),MATCH(D33,$BA$25:$BF$25)) -> 0 | AG33: 1 | AH33: 1 | AI33: 1 | AJ33: 0.8 | AK33: 1 | AL33: 0.8 | AM33: 35.2 | AN33: 0 | AO33: 0 | AP33: 0 | AS33: 9 | AT33: 9 | AU33: 1 | AV33: 3660 | AW33: 9 | AX33: 4.5 | AZ33: 4.5 | BA33: 0.5 | BB33: 0 | BC33: 0 | BD33: -0.5 | BE33: -1 | BF33: -3.5 | BJ33: A | BK33: 0 | BL33: 0 | BM33: 0 | BN33: 0 | BO33: 0 | BP33: 1 | BQ33: 10 | BR33: 100 | BS33: 1000 | BT33: 10000 | BU33: 100000
A34: Arcoyali | B34: 938 | D34: X | E34: 5 | F34: 4 | G34: 8 | H34: 0 | I34: 0 | J34: 0 | K34: - | L34: 0 | O34: Ba | P34: Lo | Q34: Ni | W34: 0 | X34: 1 | Y34: 4 | AA34: Ba | AB34: Subsector N - Sorrow | AC34: -0.5 | AD34: 0 | AE34: -0.5 | AF34: =INDEX($BA$26:BF$44,MATCH(AE34,$AZ$26:$AZ$44,-1),MATCH(D34,$BA$25:$BF$25)) -> 0 | AG34: 1 | AH34: 1 | AI34: 1 | AJ34: 1 | AK34: 0.8 | AL34: 0.8 | AM34: 35.2 | AN34: 0 | AO34: 0 | AP34: 0 | AS34: A | AT34: 10 | AU34: 1 | AV34: 5860 | AW34: A | AX34: 5 | AZ34: 4 | BA34: 0.5 | BB34: 0 | BC34: 0 | BD34: -0.5 | BE34: -1 | BF34: -3.5 | BJ34: B | BK34: 0 | BL34: 0 | BM34: 0 | BN34: 0 | BO34: 0 | BP34: 0 | BQ34: 7 | BR34: 70 | BS34: 700 | BT34: 7000 | BU34: 70000
A35: Arikeshmundin | B35: 918 | D35: E | E35: 5 | F35: A | G35: 4 | H35: 1 | I35: 6 | J35: 2 | K35: - | L35: 4 | O35: Fl | P35: Lo | Q35: Ni | W35: 1 | X35: 0 | Y35: 3 | AA35: I3 | AB35: Subsector F - NightVision | AC35: 0 | AD35: 0.5 | AE35: 0.5 | AF35: =INDEX($BA$26:BF$44,MATCH(AE35,$AZ$26:$AZ$44,-1),MATCH(D35,$BA$25:$BF$25)) -> 0.5 | AG35: 1.6 | AH35: 1 | AI35: 1 | AJ35: 1 | AK35: 1 | AL35: 1 | AM35: 560 | AN35: 5600 | AO35: 0 | AP35: 0 | AS35: B | AT35: 11 | AU35: 1 | AV35: 9375 | AW35: B | AX35: 5.5 | AZ35: 3.5 | BA35: 0.5 | BB35: 0.5 | BC35: 0 | BD35: 0 | BE35: -0.5 | BF35: -3 | BJ35: C | BK35: 0 | BL35: 0 | BM35: 0 | BN35: 0 | BO35: 0 | BP35: 0 | BQ35: 5 | BR35: 50 | BS35: 500 | BT35: 5000 | BU35: 50000
A36: Ascension | B36: 1033 | D36: X | E36: 4 | F36: 2 | G36: 2 | H36: 0 | I36: 0 | J36: 0 | K36: - | L36: 0 | O36: Ba | P36: Lo | Q36: Ni | R36: Po | W36: 2 | X36: 2 | Y36: 3 | AA36: Ba | AB36: Subsector N - Sorrow | AC36: -0.5 | AD36: 0 | AE36: -0.5 | AF36: =INDEX($BA$26:BF$44,MATCH(AE36,$AZ$26:$AZ$44,-1),MATCH(D36,$BA$25:$BF$25)) -> 0 | AG36: 1 | AH36: 1 | AI36: 1 | AJ36: 1 | AK36: 1 | AL36: 0.8 | AM36: 44 | AN36: 88 | AO36: 0 | AP36: 0 | AS36: C | AT36: 12 | AU36: 1.5 | AV36: 15000 | AW36: C | AX36: 6 | AZ36: 3 | BA36: 0.5 | BB36: 0.5 | BC36: 0 | BD36: 0 | BE36: -0.5 | BF36: -3 | BJ36: D | BK36: 0 | BL36: 0 | BM36: 0 | BN36: 0 | BO36: 0 | BP36: 0 | BQ36: 5 | BR36: 50 | BS36: 500 | BT36: 5000 | BU36: 50000
A37: Ashkige | B37: 1018 | D37: E | E37: 4 | F37: 3 | G37: 3 | H37: 1 | I37: 6 | J37: 9 | K37: - | L37: 8 | N37: S | O37: Lo | P37: Ni | Q37: Po | W37: 5 | X37: 1 | Y37: 3 | AA37: I3 | AB37: Subsector F - NightVision | AC37: 0.5 | AD37: 0.5 | AE37: 1 | AF37: =INDEX($BA$26:BF$44,MATCH(AE37,$AZ$26:$AZ$44,-1),MATCH(D37,$BA$25:$BF$25)) -> 0 | AG37: 1 | AH37: 1 | AI37: 1 | AJ37: 1 | AK37: 1 | AL37: 0.8 | AM37: 1832 | AN37: 91600 | AO37: 0 | AP37: 0 | AS37: D | AT37: 13 | AU37: 1.5 | AV37: 24400 | AZ37: 2.5 | BA37: 1 | BB37: 0.5 | BC37: 0.5 | BD37: 0 | BE37: 0 | BF37: -2.5 | BJ37: E | BK37: 0 | BL37: 0 | BM37: 0 | BN37: 0 | BO37: 0 | BP37: 0 | BQ37: 7 | BR37: 70 | BS37: 700 | BT37: 7000 | BU37: 70000
A38: Athens | B38: 2724 | D38: A | E38: 5 | F38: 8 | G38: 4 | H38: 8 | I38: 4 | J38: 9 | K38: - | L38: D | N38: A | O38: Ri | P38: Cp | U38: A | W38: 4 | X38: 0 | Y38: 0 | AA38: Ar | AB38: Subsector L - Athenia | AC38: 1.5 | AD38: 4 | AE38: 5.5 | AF38: =INDEX($BA$26:BF$44,MATCH(AE38,$AZ$26:$AZ$44,-1),MATCH(D38,$BA$25:$BF$25)) -> 0 | AG38: 1 | AH38: 1 | AI38: 1 | AJ38: 1 | AK38: 1 | AL38: 0.8 | AM38: 19520 | AN38: 7808000000000 | AO38: 500 | AP38: 2000 | AZ38: 2 | BA38: 1 | BB38: 0.5 | BC38: 0.5 | BD38: 0 | BE38: 0 | BF38: -2.5 | BJ38: F | BK38: 0 | BL38: 0 | BM38: 0 | BN38: 0 | BO38: 0 | BP38: 0 | BQ38: 5 | BR38: 50 | BS38: 500 | BT38: 5000 | BU38: 50000
A39: Atlanta | B39: 235 | D39: X | E39: 6 | F39: 4 | G39: A | H39: 0 | I39: 0 | J39: 0 | K39: - | L39: 0 | O39: Ba | P39: Lo | Q39: Ni | R39: Wa | W39: 0 | X39: 2 | Y39: 4 | AA39: Ba | AB39: Subsector M - Glossalalia | AC39: -0.5 | AD39: 0 | AE39: -0.5 | AF39: =INDEX($BA$26:BF$44,MATCH(AE39,$AZ$26:$AZ$44,-1),MATCH(D39,$BA$25:$BF$25)) -> 0 | AG39: 1 | AH39: 1 | AI39: 1 | AJ39: 1 | AK39: 1 | AL39: 0.8 | AM39: 44 | AN39: 0 | AO39: 0 | AP39: 0 | AZ39: 1.5 | BA39: 1 | BB39: 1 | BC39: 0.5 | BD39: 0.5 | BE39: 0 | BF39: 0 | BJ39: G | BK39: 0 | BL39: 0 | BM39: 0 | BN39: 0 | BO39: 0 | BP39: 0 | BQ39: 5 | BR39: 50 | BS39: 500 | BT39: 5000 | BU39: 50000
A40: Auxil | B40: 3208 | D40: X | E40: 2 | F40: 2 | G40: 0 | H40: 0 | I40: 0 | J40: 0 | K40: - | L40: 0 | O40: Ba | P40: De | Q40: Lo | R40: Ni | S40: Po | W40: 0 | X40: 1 | Y40: 4 | AA40: Ba | AB40: Subsector D - Yelloworld | AC40: -0.5 | AD40: 0 | AE40: -0.5 | AF40: =INDEX($BA$26:BF$44,MATCH(AE40,$AZ$26:$AZ$44,-1),MATCH(D40,$BA$25:$BF$25)) -> 0 | AG40: 1 | AH40: 1 | AI40: 1 | AJ40: 1 | AK40: 0.8 | AL40: 0.8 | AM40: 35.2 | AN40: 0 | AO40: 0 | AP40: 0 | AZ40: 1 | BA40: 1 | BB40: 1 | BC40: 0.5 | BD40: 0.5 | BE40: 0 | BF40: 0
A41: Bakedcrust | B41: 2731 | D41: X | E41: 5 | F41: 5 | G41: 8 | H41: 0 | I41: 0 | J41: 0 | K41: - | L41: 0 | O41: Ba | P41: Lo | Q41: Ni | W41: 0 | X41: 0 | Y41: 4 | AA41: Ba | AB41: Subsector P - Chamber | AC41: -0.5 | AD41: 0 | AE41: -0.5 | AF41: =INDEX($BA$26:BF$44,MATCH(AE41,$AZ$26:$AZ$44,-1),MATCH(D41,$BA$25:$BF$25)) -> 0 | AG41: 1 | AH41: 1 | AI41: 1 | AJ41: 1 | AK41: 0.8 | AL41: 0.8 | AM41: 35.2 | AN41: 0 | AO41: 0 | AP41: 0 | AZ41: 0.5 | BA41: 1.5 | BB41: 1 | BC41: 1 | BD41: 0.5 | BE41: 0.5 | BF41: 0
A42: Bantal | B42: 933 | D42: X | E42: 8 | F42: 8 | G42: 6 | H42: 0 | I42: 0 | J42: 0 | K42: - | L42: 0 | O42: Ba | P42: Lo | Q42: Ni | W42: 0 | X42: 0 | Y42: 2 | AA42: Ba | AB42: Subsector N - Sorrow | AC42: -0.5 | AD42: 0 | AE42: -0.5 | AF42: =INDEX($BA$26:BF$44,MATCH(AE42,$AZ$26:$AZ$44,-1),MATCH(D42,$BA$25:$BF$25)) -> 0 | AG42: 1 | AH42: 1 | AI42: 1 | AJ42: 1 | AK42: 1 | AL42: 0.8 | AM42: 44 | AN42: 0 | AO42: 0 | AP42: 0 | AZ42: 0 | BA42: 1.5 | BB42: 1 | BC42: 1 | BD42: 0.5 | BE42: 0.5 | BF42: 0
A43: Basia | B43: 2733 | D43: X | E43: 6 | F43: 4 | G43: 2 | H43: 0 | I43: 0 | J43: 0 | K43: - | L43: 0 | O43: Ba | P43: Lo | Q43: Ni | R43: Po | W43: 0 | X43: 1 | Y43: 4 | AA43: Ba | AB43: Subsector P - Chamber | AC43: -0.5 | AD43: 0 | AE43: -0.5 | AF43: =INDEX($BA$26:BF$44,MATCH(AE43,$AZ$26:$AZ$44,-1),MATCH(D43,$BA$25:$BF$25)) -> 0 | AG43: 1 | AH43: 1 | AI43: 1 | AJ43: 1 | AK43: 0.8 | AL43: 0.8 | AM43: 35.2 | AN43: 0 | AO43: 0 | AP43: 0 | AZ43: -0.5 | BA43: 1.5 | BB43: 1 | BC43: 1 | BD43: 0.5 | BE43: 0.5 | BF43: 0
A44: Bensusan | B44: 333 | D44: X | E44: 3 | F44: 2 | G44: 3 | H44: 0 | I44: 0 | J44: 0 | K44: - | L44: 0 | O44: Ba | P44: Lo | Q44: Ni | R44: Po | W44: 0 | X44: 1 | Y44: 2 | AA44: Ba | AB44: Subsector M - Glossalalia | AC44: -0.5 | AD44: 0 | AE44: -0.5 | AF44: =INDEX($BA$26:BF$44,MATCH(AE44,$AZ$26:$AZ$44,-1),MATCH(D44,$BA$25:$BF$25)) -> 0 | AG44: 1 | AH44: 1 | AI44: 1 | AJ44: 1 | AK44: 0.8 | AL44: 0.8 | AM44: 35.2 | AN44: 0 | AO44: 0 | AP44: 0 | AZ44: -1 | BA44: 1.5 | BB44: 1 | BC44: 1 | BD44: 0.5 | BE44: 0.5 | BF44: 0
A45: Berceuse | B45: 2438 | D45: X | E45: 6 | F45: 6 | G45: 8 | H45: 0 | I45: 0 | J45: 0 | K45: - | L45: 0 | O45: Ba | P45: Lo | Q45: Ni | W45: 0 | X45: 1 | Y45: 2 | AA45: Ba | AB45: Subsector O - Painted | AC45: -0.5 | AD45: 0 | AE45: -0.5 | AF45: =INDEX($BA$26:BF$44,MATCH(AE45,$AZ$26:$AZ$44,-1),MATCH(D45,$BA$25:$BF$25)) -> 0 | AG45: 1 | AH45: 1 | AI45: 1 | AJ45: 1 | AK45: 1 | AL45: 0.8 | AM45: 44 | AN45: 0 | AO45: 0 | AP45: 0
A46: Blackball | B46: 2031 | D46: X | E46: 2 | F46: 4 | G46: 1 | H46: 0 | I46: 0 | J46: 0 | K46: - | L46: 0 | O46: Ba | P46: Lo | Q46: Ni | R46: Po | W46: 0 | X46: 1 | Y46: 3 | AA46: Ba | AB46: Subsector O - Painted | AC46: -0.5 | AD46: 0 | AE46: -0.5 | AF46: =INDEX($BA$26:BF$44,MATCH(AE46,$AZ$26:$AZ$44,-1),MATCH(D46,$BA$25:$BF$25)) -> 0 | AG46: 1 | AH46: 1 | AI46: 1 | AJ46: 1 | AK46: 1 | AL46: 0.8 | AM46: 44 | AN46: 0 | AO46: 0 | AP46: 0
A47: Blackbone | B47: 2601 | D47: X | E47: 9 | F47: A | G47: 6 | H47: 0 | I47: 0 | J47: 0 | K47: - | L47: 0 | O47: Ba | P47: Fl | Q47: Lo | R47: Ni | W47: 0 | X47: 2 | Y47: 0 | AA47: Ba | AB47: Subsector D - Yelloworld | AC47: -0.5 | AD47: 0 | AE47: -0.5 | AF47: =INDEX($BA$26:BF$44,MATCH(AE47,$AZ$26:$AZ$44,-1),MATCH(D47,$BA$25:$BF$25)) -> 0 | AG47: 1 | AH47: 1 | AI47: 1 | AJ47: 1 | AK47: 0.8 | AL47: 0.8 | AM47: 35.2 | AN47: 0 | AO47: 0 | AP47: 0
A48: Blight | B48: 2608 | D48: X | E48: 1 | F48: 1 | G48: 0 | H48: 0 | I48: 1 | J48: 0 | K48: - | L48: 1 | O48: Lo | P48: Ni | W48: 1 | X48: 1 | Y48: 4 | AA48: I1 | AB48: Subsector D - Yelloworld | AC48: -0.5 | AD48: 0 | AE48: -0.5 | AF48: =INDEX($BA$26:BF$44,MATCH(AE48,$AZ$26:$AZ$44,-1),MATCH(D48,$BA$25:$BF$25)) -> 0 | AG48: 1 | AH48: 1 | AI48: 1 | AJ48: 1 | AK48: 0.8 | AL48: 0.8 | AM48: 54.4 | AN48: 54.4 | AO48: 0 | AP48: 0
A49: Bluemarble | B49: 3205 | D49: E | E49: 7 | F49: 5 | G49: A | H49: 5 | I49: 5 | J49: 5 | K49: - | L49: 6 | O49: Ni | P49: Wa | W49: 4 | X49: 0 | Y49: 2 | AA49: I1 | AB49: Subsector D - Yelloworld | AC49: 0.5 | AD49: 2.5 | AE49: 3 | AF49: =INDEX($BA$26:BF$44,MATCH(AE49,$AZ$26:$AZ$44,-1),MATCH(D49,$BA$25:$BF$25)) -> -0.5 | AG49: 1 | AH49: 1 | AI49: 1 | AJ49: 1 | AK49: 0.8 | AL49: 0.8 | AM49: 572.8 | AN49: 229120000 | AO49: 3 | AP49: 12
A50: Bluenote | B50: 3235 | D50: X | E50: 4 | F50: 2 | G50: 8 | H50: 0 | I50: 0 | J50: 0 | K50: - | L50: 0 | O50: Ba | P50: Lo | Q50: Ni | W50: 0 | X50: 1 | Y50: 3 | AA50: Ba | AB50: Subsector P - Chamber | AC50: -0.5 | AD50: 0 | AE50: -0.5 | AF50: =INDEX($BA$26:BF$44,MATCH(AE50,$AZ$26:$AZ$44,-1),MATCH(D50,$BA$25:$BF$25)) -> 0 | AG50: 1 | AH50: 1 | AI50: 1 | AJ50: 1 | AK50: 0.8 | AL50: 0.8 | AM50: 35.2 | AN50: 0 | AO50: 0 | AP50: 0
A51: Bombay | B51: 1602 | D51: X | E51: 7 | F51: B | G51: 0 | H51: 0 | I51: 0 | J51: 0 | K51: - | L51: 0 | O51: Ba | P51: De | Q51: Lo | R51: Ni | W51: 0 | X51: 1 | Y51: 3 | AA51: Ba | AB51: Subsector B - Mu | AC51: -0.5 | AD51: 0 | AE51: -0.5 | AF51: =INDEX($BA$26:BF$44,MATCH(AE51,$AZ$26:$AZ$44,-1),MATCH(D51,$BA$25:$BF$25)) -> 0 | AG51: 1 | AH51: 1 | AI51: 1 | AJ51: 1 | AK51: 1 | AL51: 0.8 | AM51: 44 | AN51: 0 | AO51: 0 | AP51: 0
A52: Bond | B52: 1824 | D52: D | E52: 3 | F52: 2 | G52: 5 | H52: 4 | I52: 9 | J52: B | K52: - | L52: A | O52: Ni | W52: 4 | X52: 0 | Y52: 3 | AA52: Ar | AB52: Subsector K - Floe | AC52: 1 | AD52: 2 | AE52: 3 | AF52: =INDEX($BA$26:BF$44,MATCH(AE52,$AZ$26:$AZ$44,-1),MATCH(D52,$BA$25:$BF$25)) -> 0 | AG52: 1 | AH52: 1 | AI52: 1 | AJ52: 1 | AK52: 0.8 | AL52: 0.8 | AM52: 3750.4 | AN52: 150016000 | AO52: 0 | AP52: 0
A53: Botrytis | B53: 1425 | D53: E | E53: 4 | F53: 2 | G53: 1 | H53: 3 | I53: 6 | J53: 3 | K53: - | L53: A | O53: Lo | P53: Ni | Q53: Po | W53: 2 | X53: 1 | Y53: 3 | AA53: Ar | AB53: Subsector J - Spirare | AC53: 1 | AD53: 1.5 | AE53: 2.5 | AF53: =INDEX($BA$26:BF$44,MATCH(AE53,$AZ$26:$AZ$44,-1),MATCH(D53,$BA$25:$BF$25)) -> 0 | AG53: 1 | AH53: 1 | AI53: 1 | AJ53: 1 | AK53: 0.8 | AL53: 0.8 | AM53: 3750.4 | AN53: 7500800 | AO53: 0 | AP53: 0
A54: Brownfield | B54: 3209 | D54: X | E54: 6 | F54: 4 | G54: 6 | H54: 0 | I54: 0 | J54: 0 | K54: - | L54: 0 | O54: Ba | P54: Lo | Q54: Ni | W54: 0 | X54: 1 | Y54: 0 | AA54: Ba | AB54: Subsector D - Yelloworld | AC54: -0.5 | AD54: 0 | AE54: -0.5 | AF54: =INDEX($BA$26:BF$44,MATCH(AE54,$AZ$26:$AZ$44,-1),MATCH(D54,$BA$25:$BF$25)) -> 0 | AG54: 1 | AH54: 1 | AI54: 1 | AJ54: 1 | AK54: 0.8 | AL54: 0.8 | AM54: 35.2 | AN54: 0 | AO54: 0 | AP54: 0
A55: Bubbles | B55: 3032 | D55: X | E55: A | F55: 7 | G55: A | H55: 0 | I55: 0 | J55: 0 | K55: - | L55: 0 | O55: Ba | P55: Lo | Q55: Ni | R55: Wa | W55: 0 | X55: 0 | Y55: 0 | AA55: Ba | AB55: Subsector P - Chamber | AC55: -0.5 | AD55: 0 | AE55: -0.5 | AF55: =INDEX($BA$26:BF$44,MATCH(AE55,$AZ$26:$AZ$44,-1),MATCH(D55,$BA$25:$BF$25)) -> 0 | AG55: 1 | AH55: 1 | AI55: 1 | AJ55: 1 | AK55: 0.8 | AL55: 0.8 | AM55: 35.2 | AN55: 0 | AO55: 0 | AP55: 0
A56: Caccia | B56: 2540 | D56: X | E56: 4 | F56: 0 | G56: 0 | H56: 0 | I56: 0 | J56: 0 | K56: - | L56: 0 | O56: Ba | P56: Lo | Q56: Ni | R56: Va | W56: 0 | X56: 0 | Y56: 4 | AA56: Ba | AB56: Subsector P - Chamber | AC56: -0.5 | AD56: 0 | AE56: -0.5 | AF56: =INDEX($BA$26:BF$44,MATCH(AE56,$AZ$26:$AZ$44,-1),MATCH(D56,$BA$25:$BF$25)) -> 0 | AG56: 1 | AH56: 1 | AI56: 1 | AJ56: 1 | AK56: 1 | AL56: 0.8 | AM56: 44 | AN56: 0 | AO56: 0 | AP56: 0
A57: Calantha | B57: 538 | D57: X | E57: 2 | F57: 5 | G57: 2 | H57: 0 | I57: 0 | J57: 0 | K57: - | L57: 0 | O57: Ba | P57: Lo | Q57: Ni | R57: Po | W57: 0 | X57: 0 | Y57: 2 | AA57: Ba | AB57: Subsector M - Glossalalia | AC57: -0.5 | AD57: 0 | AE57: -0.5 | AF57: =INDEX($BA$26:BF$44,MATCH(AE57,$AZ$26:$AZ$44,-1),MATCH(D57,$BA$25:$BF$25)) -> 0 | AG57: 1 | AH57: 1 | AI57: 1 | AJ57: 1 | AK57: 0.8 | AL57: 0.8 | AM57: 35.2 | AN57: 0 | AO57: 0 | AP57: 0
A58: Calantha | B58: 1433 | D58: X | E58: 7 | F58: A | G58: 1 | H58: 0 | I58: 0 | J58: 0 | K58: - | L58: 0 | O58: Ba | P58: Fl | Q58: Lo | R58: Ni | W58: 0 | X58: 2 | Y58: 4 | AA58: Ba | AB58: Subsector N - Sorrow | AC58: -0.5 | AD58: 0 | AE58: -0.5 | AF58: =INDEX($BA$26:BF$44,MATCH(AE58,$AZ$26:$AZ$44,-1),MATCH(D58,$BA$25:$BF$25)) -> 0 | AG58: 1 | AH58: 1 | AI58: 1 | AJ58: 0.8 | AK58: 1 | AL58: 0.8 | AM58: 35.2 | AN58: 0 | AO58: 0 | AP58: 0
A59: Captivity | B59: 2210 | D59: X | E59: 7 | F59: 6 | G59: 7 | H59: 3 | I59: 4 | J59: 3 | K59: - | L59: 0 | O59: Lo | P59: Ni | W59: 5 | X59: 0 | Y59: 3 | AA59: I1 | AB59: Subsector C - Wsi | AC59: -0.5 | AD59: 1.5 | AE59: 1 | AF59: =INDEX($BA$26:BF$44,MATCH(AE59,$AZ$26:$AZ$44,-1),MATCH(D59,$BA$25:$BF$25)) -> 0 | AG59: 1 | AH59: 1 | AI59: 1 | AJ59: 0.8 | AK59: 1 | AL59: 0.8 | AM59: 35.2 | AN59: 176000 | AO59: 0 | AP59: 0
A60: Castor | B60: 1237 | D60: X | E60: 5 | F60: 9 | G60: 5 | H60: 0 | I60: 0 | J60: 0 | K60: - | L60: 0 | O60: Ba | P60: Lo | Q60: Ni | W60: 0 | X60: 0 | Y60: 3 | AA60: Ba | AB60: Subsector N - Sorrow | AC60: -0.5 | AD60: 0 | AE60: -0.5 | AF60: =INDEX($BA$26:BF$44,MATCH(AE60,$AZ$26:$AZ$44,-1),MATCH(D60,$BA$25:$BF$25)) -> 0 | AG60: 1 | AH60: 1 | AI60: 1 | AJ60: 1 | AK60: 0.8 | AL60: 0.8 | AM60: 35.2 | AN60: 0 | AO60: 0 | AP60: 0
A61: Ceskyi | B61: 706 | D61: D | E61: A | F61: 8 | G61: A | H61: 5 | I61: 7 | J61: 5 | K61: - | L61: 8 | O61: Ni | P61: Wa | W61: 4 | X61: 1 | Y61: 3 | AA61: I1 | AB61: Subsector A - Nosso Nosso | AC61: 0.5 | AD61: 2.5 | AE61: 3 | AF61: =INDEX($BA$26:BF$44,MATCH(AE61,$AZ$26:$AZ$44,-1),MATCH(D61,$BA$25:$BF$25)) -> 0 | AG61: 1 | AH61: 1 | AI61: 1.2 | AJ61: 1 | AK61: 1 | AL61: 0.8 | AM61: 2198.4 | AN61: 879360000 | AO61: 1 | AP61: 4
A62: Channelight | B62: 836 | D62: X | E62: 6 | F62: 3 | G62: 7 | H62: 0 | I62: 0 | J62: 0 | K62: - | L62: 0 | O62: Ba | P62: Lo | Q62: Ni | W62: 0 | X62: 2 | Y62: 4 | AA62: Ba | AB62: Subsector M - Glossalalia | AC62: -0.5 | AD62: 0 | AE62: -0.5 | AF62: =INDEX($BA$26:BF$44,MATCH(AE62,$AZ$26:$AZ$44,-1),MATCH(D62,$BA$25:$BF$25)) -> 0 | AG62: 1 | AH62: 1 | AI62: 1 | AJ62: 1 | AK62: 1 | AL62: 0.8 | AM62: 44 | AN62: 0 | AO62: 0 | AP62: 0
A63: Chime | B63: 304 | D63: X | E63: 5 | F63: 6 | G63: 5 | H63: 0 | I63: 0 | J63: 0 | K63: - | L63: 0 | O63: Ba | P63: Lo | Q63: Ni | W63: 0 | X63: 0 | Y63: 3 | AA63: Ba | AB63: Subsector A - Nosso Nosso | AC63: -0.5 | AD63: 0 | AE63: -0.5 | AF63: =INDEX($BA$26:BF$44,MATCH(AE63,$AZ$26:$AZ$44,-1),MATCH(D63,$BA$25:$BF$25)) -> 0 | AG63: 1 | AH63: 1 | AI63: 1 | AJ63: 1 | AK63: 0.8 | AL63: 1 | AM63: 44 | AN63: 0 | AO63: 0 | AP63: 0
A64: Chin | B64: 533 | D64: X | E64: 2 | F64: 0 | G64: 0 | H64: 0 | I64: 0 | J64: 0 | K64: - | L64: 0 | O64: Ba | P64: Lo | Q64: Ni | R64: Va | W64: 0 | X64: 1 | Y64: 4 | AA64: Ba | AB64: Subsector M - Glossalalia | AC64: -0.5 | AD64: 0 | AE64: -0.5 | AF64: =INDEX($BA$26:BF$44,MATCH(AE64,$AZ$26:$AZ$44,-1),MATCH(D64,$BA$25:$BF$25)) -> 0 | AG64: 1 | AH64: 1 | AI64: 1 | AJ64: 0.8 | AK64: 0.8 | AL64: 0.8 | AM64: 28.16 | AN64: 0 | AO64: 0 | AP64: 0
A65: Chubu | B65: 438 | D65: X | E65: 3 | F65: 4 | G65: 1 | H65: 0 | I65: 0 | J65: 0 | K65: - | L65: 0 | O65: Ba | P65: Lo | Q65: Ni | R65: Po | W65: 0 | X65: 0 | Y65: 2 | AA65: Ba | AB65: Subsector M - Glossalalia | AC65: -0.5 | AD65: 0 | AE65: -0.5 | AF65: =INDEX($BA$26:BF$44,MATCH(AE65,$AZ$26:$AZ$44,-1),MATCH(D65,$BA$25:$BF$25)) -> 0 | AG65: 1 | AH65: 1 | AI65: 1 | AJ65: 1 | AK65: 1 | AL65: 0.8 | AM65: 44 | AN65: 0 | AO65: 0 | AP65: 0
A66: Cianji | B66: 1005 | D66: A | E66: 6 | F66: 6 | G66: 6 | H66: 8 | I66: 7 | J66: 8 | K66: - | L66: A | N66: A | O66: Ri | P66: Cp | U66: A | W66: 3 | X66: 0 | Y66: 3 | AA66: I1 | AB66: Subsector B - Mu | AC66: 1 | AD66: 4 | AE66: 5 | AF66: =INDEX($BA$26:BF$44,MATCH(AE66,$AZ$26:$AZ$44,-1),MATCH(D66,$BA$25:$BF$25)) -> 0 | AG66: 1 | AH66: 1 | AI66: 1 | AJ66: 1 | AK66: 0.8 | AL66: 0.8 | AM66: 3750.4 | AN66: 1125120000000 | AO66: 1000 | AP66: 3000
A67: Cinerea | B67: 1637 | D67: X | E67: 5 | F67: 1 | G67: 0 | H67: 0 | I67: 0 | J67: 0 | K67: - | L67: 0 | O67: Ba | P67: Lo | Q67: Ni | W67: 0 | X67: 2 | Y67: 0 | AA67: Ba | AB67: Subsector N - Sorrow | AC67: -0.5 | AD67: 0 | AE67: -0.5 | AF67: =INDEX($BA$26:BF$44,MATCH(AE67,$AZ$26:$AZ$44,-1),MATCH(D67,$BA$25:$BF$25)) -> 0 | AG67: 1 | AH67: 1 | AI67: 1.2 | AJ67: 1 | AK67: 1 | AL67: 0.8 | AM67: 52.8 | AN67: 0 | AO67: 0 | AP67: 0
A68: Ciothta | B68: 2514 | D68: D | E68: 4 | F68: 4 | G68: 9 | H68: 0 | I68: 1 | J68: 2 | K68: - | L68: 3 | O68: Lo | P68: Ni | W68: 5 | X68: 0 | Y68: 3 | AA68: I4 | AB68: Subsector H - Chanter | AC68: 0 | AD68: 0 | AE68: 0 | AF68: =INDEX($BA$26:BF$44,MATCH(AE68,$AZ$26:$AZ$44,-1),MATCH(D68,$BA$25:$BF$25)) -> 0.5 | AG68: 1 | AH68: 1 | AI68: 1 | AJ68: 1 | AK68: 1 | AL68: 0.8 | AM68: 176 | AN68: 880 | AO68: 0 | AP68: 0
A69: Clarintine | B69: 1430 | D69: X | E69: 2 | F69: 5 | G69: 1 | H69: 0 | I69: 0 | J69: 0 | K69: - | L69: 0 | O69: Ba | P69: Lo | Q69: Ni | R69: Po | W69: 0 | X69: 1 | Y69: 4 | AA69: Ba | AB69: Subsector J - Spirare | AC69: -0.5 | AD69: 0 | AE69: -0.5 | AF69: =INDEX($BA$26:BF$44,MATCH(AE69,$AZ$26:$AZ$44,-1),MATCH(D69,$BA$25:$BF$25)) -> 0 | AG69: 1 | AH69: 1 | AI69: 1 | AJ69: 1 | AK69: 0.8 | AL69: 0.8 | AM69: 35.2 | AN69: 0 | AO69: 0 | AP69: 0
A70: Clemens | B70: 2734 | D70: X | E70: 3 | F70: 2 | G70: 4 | H70: 0 | I70: 0 | J70: 0 | K70: - | L70: 0 | O70: Ba | P70: Lo | Q70: Ni | W70: 0 | X70: 2 | Y70: 3 | AA70: Ba | AB70: Subsector P - Chamber | AC70: -0.5 | AD70: 0 | AE70: -0.5 | AF70: =INDEX($BA$26:BF$44,MATCH(AE70,$AZ$26:$AZ$44,-1),MATCH(D70,$BA$25:$BF$25)) -> 0 | AG70: 1 | AH70: 1 | AI70: 1 | AJ70: 1 | AK70: 1 | AL70: 0.8 | AM70: 44 | AN70: 0 | AO70: 0 | AP70: 0
A71: Cloudscape | B71: 2325 | D71: E | E71: 8 | F71: 8 | G71: 8 | H71: 4 | I71: 4 | J71: 0 | K71: - | L71: 5 | O71: Ni | W71: 3 | X71: 0 | Y71: 2 | AA71: Ar | AB71: Subsector K - Floe | AC71: 0 | AD71: 2 | AE71: 2 | AF71: =INDEX($BA$26:BF$44,MATCH(AE71,$AZ$26:$AZ$44,-1),MATCH(D71,$BA$25:$BF$25)) -> 0 | AG71: 1 | AH71: 1 | AI71: 1 | AJ71: 1 | AK71: 1 | AL71: 0.8 | AM71: 448 | AN71: 13440000 | AO71: 2 | AP71: 6
A72: Comerwake | B72: 1904 | D72: C | E72: 2 | F72: 6 | G72: 5 | H72: 5 | I72: 5 | J72: 7 | K72: - | L72: 9 | O72: Ag | P72: Ni | W72: 3 | X72: 0 | Y72: 3 | AA72: I1 | AB72: Subsector C - Wsi | AC72: 1 | AD72: 2.5 | AE72: 3.5 | AF72: =INDEX($BA$26:BF$44,MATCH(AE72,$AZ$26:$AZ$44,-1),MATCH(D72,$BA$25:$BF$25)) -> 0 | AG72: 1 | AH72: 1 | AI72: 1 | AJ72: 1 | AK72: 1 | AL72: 0.8 | AM72: 2928 | AN72: 878400000 | AO72: 1 | AP72: 3
A73: Cortana | B73: 839 | D73: X | E73: 2 | F73: 2 | G73: 2 | H73: 0 | I73: 0 | J73: 0 | K73: - | L73: 0 | O73: Ba | P73: Lo | Q73: Ni | R73: Po | W73: 0 | X73: 1 | Y73: 5 | AA73: Ba | AB73: Subsector M - Glossalalia | AC73: -0.5 | AD73: 0 | AE73: -0.5 | AF73: =INDEX($BA$26:BF$44,MATCH(AE73,$AZ$26:$AZ$44,-1),MATCH(D73,$BA$25:$BF$25)) -> 0 | AG73: 1 | AH73: 1 | AI73: 1 | AJ73: 1 | AK73: 0.8 | AL73: 0.8 | AM73: 35.2 | AN73: 0 | AO73: 0 | AP73: 0
A74: Crash | B74: 3238 | D74: X | E74: 7 | F74: 9 | G74: 4 | H74: 0 | I74: 0 | J74: 0 | K74: - | L74: 0 | O74: Ba | P74: Lo | Q74: Ni | W74: 0 | X74: 2 | Y74: 4 | AA74: Ba | AB74: Subsector P - Chamber | AC74: -0.5 | AD74: 0 | AE74: -0.5 | AF74: =INDEX($BA$26:BF$44,MATCH(AE74,$AZ$26:$AZ$44,-1),MATCH(D74,$BA$25:$BF$25)) -> 0 | AG74: 1 | AH74: 1 | AI74: 1 | AJ74: 1 | AK74: 0.8 | AL74: 0.8 | AM74: 35.2 | AN74: 0 | AO74: 0 | AP74: 0
A75: Crent | B75: 2809 | D75: C | E75: 4 | F75: 4 | G75: 2 | H75: 5 | I75: 2 | J75: 0 | K75: - | L75: 9 | N75: N | O75: Ni | P75: Po | W75: 3 | X75: 0 | Y75: 2 | AA75: I1 | AB75: Subsector D - Yelloworld | AC75: 1 | AD75: 2.5 | AE75: 3.5 | AF75: =INDEX($BA$26:BF$44,MATCH(AE75,$AZ$26:$AZ$44,-1),MATCH(D75,$BA$25:$BF$25)) -> 0 | AG75: 1 | AH75: 1 | AI75: 1 | AJ75: 1 | AK75: 0.8 | AL75: 0.8 | AM75: 2342.4 | AN75: 702720000 | AO75: 1 | AP75: 3
A76: Crova | B76: 3003 | D76: X | E76: 6 | F76: 4 | G76: 5 | H76: 0 | I76: 0 | J76: 0 | K76: - | L76: 0 | O76: Ba | P76: Lo | Q76: Ni | W76: 0 | X76: 1 | Y76: 4 | AA76: Ba | AB76: Subsector D - Yelloworld | AC76: -0.5 | AD76: 0 | AE76: -0.5 | AF76: =INDEX($BA$26:BF$44,MATCH(AE76,$AZ$26:$AZ$44,-1),MATCH(D76,$BA$25:$BF$25)) -> 0 | AG76: 1 | AH76: 1 | AI76: 1 | AJ76: 1 | AK76: 0.8 | AL76: 0.8 | AM76: 35.2 | AN76: 0 | AO76: 0 | AP76: 0
A77: Curiosity | B77: 1112 | D77: C | E77: 5 | F77: 7 | G77: 7 | H77: 3 | I77: 8 | J77: A | K77: - | L77: 5 | O77: Lo | P77: Ni | W77: 3 | X77: 2 | Y77: 3 | AA77: I1 | AB77: Subsector F - NightVision | AC77: 0 | AD77: 1.5 | AE77: 1.5 | AF77: =INDEX($BA$26:BF$44,MATCH(AE77,$AZ$26:$AZ$44,-1),MATCH(D77,$BA$25:$BF$25)) -> 0.5 | AG77: 1 | AH77: 1 | AI77: 1 | AJ77: 1 | AK77: 1 | AL77: 0.8 | AM77: 448 | AN77: 1344000 | AO77: 1 | AP77: 3
A78: Darren | B78: 2702 | D78: X | E78: 4 | F78: 7 | G78: 6 | H78: 0 | I78: 0 | J78: 0 | K78: - | L78: 0 | O78: Ba | P78: Lo | Q78: Ni | W78: 0 | X78: 0 | Y78: 2 | AA78: Ba | AB78: Subsector D - Yelloworld | AC78: -0.5 | AD78: 0 | AE78: -0.5 | AF78: =INDEX($BA$26:BF$44,MATCH(AE78,$AZ$26:$AZ$44,-1),MATCH(D78,$BA$25:$BF$25)) -> 0 | AG78: 1 | AH78: 1 | AI78: 1 | AJ78: 1 | AK78: 1 | AL78: 0.8 | AM78: 44 | AN78: 0 | AO78: 0 | AP78: 0
A79: Daskomo | B79: 2804 | D79: C | E79: 5 | F79: 3 | G79: 7 | H79: 4 | I79: 5 | J79: A | K79: - | L79: 9 | O79: Ni | W79: 5 | X79: 2 | Y79: 4 | AA79: I1 | AB79: Subsector D - Yelloworld | AC79: 1 | AD79: 2 | AE79: 3 | AF79: =INDEX($BA$26:BF$44,MATCH(AE79,$AZ$26:$AZ$44,-1),MATCH(D79,$BA$25:$BF$25)) -> 0 | AG79: 1 | AH79: 1 | AI79: 1 | AJ79: 1 | AK79: 1 | AL79: 0.8 | AM79: 2928 | AN79: 146400000 | AO79: 0 | AP79: 0
A80: Deadstar | B80: 1205 | D80: X | E80: 7 | F80: 9 | G80: 6 | H80: 0 | I80: 0 | J80: 0 | K80: - | L80: 6 | O80: Ba | P80: Lo | Q80: Ni | W80: 1 | X80: 0 | Y80: 0 | AA80: I1 | AB80: Subsector B - Mu | AC80: 0.5 | AD80: 0 | AE80: 0.5 | AF80: =INDEX($BA$26:BF$44,MATCH(AE80,$AZ$26:$AZ$44,-1),MATCH(D80,$BA$25:$BF$25)) -> 0 | AG80: 1 | AH80: 1 | AI80: 1 | AJ80: 1 | AK80: 1 | AL80: 0.8 | AM80: 716 | AN80: 716 | AO80: 0 | AP80: 0
A81: Deceit | B81: 2736 | D81: X | E81: 2 | F81: 0 | G81: 0 | H81: 0 | I81: 0 | J81: 0 | K81: - | L81: 0 | O81: Ba | P81: Lo | Q81: Ni | R81: Va | W81: 0 | X81: 3 | Y81: 3 | AA81: Ba | AB81: Subsector P - Chamber | AC81: -0.5 | AD81: 0 | AE81: -0.5 | AF81: =INDEX($BA$26:BF$44,MATCH(AE81,$AZ$26:$AZ$44,-1),MATCH(D81,$BA$25:$BF$25)) -> 0 | AG81: 1 | AH81: 1 | AI81: 1 | AJ81: 1 | AK81: 1 | AL81: 0.8 | AM81: 44 | AN81: 0 | AO81: 0 | AP81: 0
A82: Degar | B82: 920 | D82: C | E82: A | F82: F | G82: 3 | H82: 1 | I82: 3 | J82: 6 | K82: - | L82: B | N82: N | O82: Fl | P82: Lo | Q82: Ni | W82: 3 | X82: 1 | Y82: 4 | AA82: I3 | AB82: Subsector F - NightVision | AC82: 1 | AD82: 0.5 | AE82: 1.5 | AF82: =INDEX($BA$26:BF$44,MATCH(AE82,$AZ$26:$AZ$44,-1),MATCH(D82,$BA$25:$BF$25)) -> 0.5 | AG82: 1 | AH82: 1 | AI82: 1.2 | AJ82: 1 | AK82: 1 | AL82: 0.8 | AM82: 9000 | AN82: 270000 | AO82: 0 | AP82: 0
A83: Dejanews | B83: 2831 | D83: X | E83: 5 | F83: 5 | G83: 3 | H83: 0 | I83: 0 | J83: 0 | K83: - | L83: 0 | O83: Ba | P83: Lo | Q83: Ni | R83: Po | W83: 0 | X83: 0 | Y83: 4 | AA83: Ba | AB83: Subsector P - Chamber | AC83: -0.5 | AD83: 0 | AE83: -0.5 | AF83: =INDEX($BA$26:BF$44,MATCH(AE83,$AZ$26:$AZ$44,-1),MATCH(D83,$BA$25:$BF$25)) -> 0 | AG83: 1 | AH83: 1 | AI83: 1 | AJ83: 1 | AK83: 0.8 | AL83: 0.8 | AM83: 35.2 | AN83: 0 | AO83: 0 | AP83: 0
A84: Detesina | B84: 2014 | D84: E | E84: 5 | F84: A | G84: 0 | H84: 1 | I84: 1 | J84: 2 | K84: - | L84: 9 | O84: De | P84: Lo | Q84: Ni | W84: 2 | X84: 1 | Y84: 3 | AA84: I4 | AB84: Subsector G - LightWaves | AC84: =VLOOKUP(L84,$AS$23:$AU$40,3) -> 1 | AD84: =VLOOKUP(H84,$AW$23:$AX$36,2) -> 0.5 | AE84: =AC84+AD84 -> 1.5 | AF84: =INDEX($BA$26:BF$44,MATCH(AE84,$AZ$26:$AZ$44,-1),MATCH(D84,$BA$25:$BF$25)) -> 0 | AG84: 1 | AH84: 1 | AI84: 1 | AJ84: 1 | AK84: 0.8 | AL84: 0.8 | AM84: =(VLOOKUP(L84,$AS$23:$AV$40,4))*AG84*AH84*AI84*AJ84*AK84*AL84 -> 2342.4 | AN84: =AM84*((10^H84)*W84) -> 46848 | AO84: =INDEX($BK$23:$BU$36,MATCH(L84,$BJ$23:$BJ$36),MATCH(H84,$BK$22:$BU$22)) -> 0 | AP84: =AO84*W84 -> 0
A85: Detour | B85: 2202 | D85: X | E85: 2 | F85: 3 | G85: 5 | H85: 0 | I85: 0 | J85: 0 | K85: - | L85: 0 | O85: Ba | P85: Lo | Q85: Ni | W85: 0 | X85: 0 | Y85: 3 | AA85: Ba | AB85: Subsector C - Wsi | AC85: -0.5 | AD85: 0 | AE85: -0.5 | AF85: =INDEX($BA$26:BF$44,MATCH(AE85,$AZ$26:$AZ$44,-1),MATCH(D85,$BA$25:$BF$25)) -> 0 | AG85: 1 | AH85: 1 | AI85: 1 | AJ85: 1 | AK85: 0.8 | AL85: 0.8 | AM85: 35.2 | AN85: 0 | AO85: 0 | AP85: 0
A86: Diaoran | B86: 903 | D86: B | E86: 8 | F86: 3 | G86: 7 | H86: 6 | I86: B | J86: D | K86: - | L86: 9 | N86: N | O86: Ni | U86: B | W86: 3 | X86: 2 | Y86: 0 | AA86: I1 | AB86: Subsector B - Mu | AC86: 1 | AD86: 3 | AE86: 4 | AF86: =INDEX($BA$26:BF$44,MATCH(AE86,$AZ$26:$AZ$44,-1),MATCH(D86,$BA$25:$BF$25)) -> 0 | AG86: 1 | AH86: 1 | AI86: 1 | AJ86: 1 | AK86: 1 | AL86: 0.8 | AM86: 2928 | AN86: 8784000000 | AO86: 12 | AP86: 36
A87: Dieinplace | B87: 1114 | D87: D | E87: 4 | F87: 4 | G87: 5 | H87: 3 | I87: 4 | J87: 6 | K87: - | L87: 9 | O87: Lo | P87: Ni | W87: 1 | X87: 1 | Y87: 1 | AA87: I1 | AB87: Subsector F - NightVision | AC87: 1 | AD87: 1.5 | AE87: 2.5 | AF87: =INDEX($BA$26:BF$44,MATCH(AE87,$AZ$26:$AZ$44,-1),MATCH(D87,$BA$25:$BF$25)) -> 0 | AG87: 1 | AH87: 1 | AI87: 1 | AJ87: 1 | AK87: 1 | AL87: 0.8 | AM87: 2928 | AN87: 2928000 | AO87: 0 | AP87: 0
A88: Dikaai | B88: 1617 | D88: E | E88: 4 | F88: 4 | G88: 0 | H88: 0 | I88: 1 | J88: 1 | K88: - | L88: 1 | O88: De | P88: Lo | Q88: Ni | R88: Po | W88: 2 | X88: 1 | Y88: 0 | AA88: I4 | AB88: Subsector F - NightVision | AC88: -0.5 | AD88: 0 | AE88: -0.5 | AF88: =INDEX($BA$26:BF$44,MATCH(AE88,$AZ$26:$AZ$44,-1),MATCH(D88,$BA$25:$BF$25)) -> 0.5 | AG88: 1.6 | AH88: 1 | AI88: 1.2 | AJ88: 1 | AK88: 1 | AL88: 0.8 | AM88: 130.56 | AN88: 261.12 | AO88: 0 | AP88: 0
A89: Donovan | B89: 1302 | D89: E | E89: 6 | F89: 6 | G89: 3 | H89: 1 | I89: 1 | J89: 2 | K89: - | L89: 2 | O89: Lo | P89: Ni | W89: 1 | X89: 0 | Y89: 4 | AA89: I1 | AB89: Subsector B - Mu | AC89: -0.5 | AD89: 0.5 | AE89: 0 | AF89: =INDEX($BA$26:BF$44,MATCH(AE89,$AZ$26:$AZ$44,-1),MATCH(D89,$BA$25:$BF$25)) -> 0.5 | AG89: 1.6 | AH89: 1 | AI89: 1.2 | AJ89: 1 | AK89: 1 | AL89: 0.8 | AM89: 207.36 | AN89: 2073.6 | AO89: 0 | AP89: 0
A90: Doumbek | B90: 2622 | D90: D | E90: 7 | F90: 6 | G90: 9 | H90: 4 | I90: 2 | J90: 6 | K90: - | L90: 7 | O90: Ni | W90: 3 | X90: 2 | Y90: 2 | AA90: Ar | AB90: Subsector L - Athenia | AC90: 0.5 | AD90: 2 | AE90: 2.5 | AF90: =INDEX($BA$26:BF$44,MATCH(AE90,$AZ$26:$AZ$44,-1),MATCH(D90,$BA$25:$BF$25)) -> 0 | AG90: 1 | AH90: 1 | AI90: 1 | AJ90: 0.8 | AK90: 1 | AL90: 0.8 | AM90: 915.2 | AN90: 27456000 | AO90: 1 | AP90: 3
A91: Dowry | B91: 3004 | D91: X | E91: 4 | F91: 5 | G91: 3 | H91: 0 | I91: 0 | J91: 0 | K91: - | L91: 0 | O91: Ba | P91: Lo | Q91: Ni | R91: Po | W91: 0 | X91: 0 | Y91: 3 | AA91: Ba | AB91: Subsector D - Yelloworld | AC91: -0.5 | AD91: 0 | AE91: -0.5 | AF91: =INDEX($BA$26:BF$44,MATCH(AE91,$AZ$26:$AZ$44,-1),MATCH(D91,$BA$25:$BF$25)) -> 0 | AG91: 1 | AH91: 1 | AI91: 1 | AJ91: 1 | AK91: 1 | AL91: 0.8 | AM91: 44 | AN91: 0 | AO91: 0 | AP91: 0
A92: Dreamdance | B92: 1332 | D92: X | E92: 7 | F92: 6 | G92: A | H92: 0 | I92: 0 | J92: 0 | K92: - | L92: 0 | O92: Ba | P92: Lo | Q92: Ni | R92: Wa | W92: 0 | X92: 0 | Y92: 4 | AA92: Ba | AB92: Subsector N - Sorrow | AC92: -0.5 | AD92: 0 | AE92: -0.5 | AF92: =INDEX($BA$26:BF$44,MATCH(AE92,$AZ$26:$AZ$44,-1),MATCH(D92,$BA$25:$BF$25)) -> 0 | AG92: 1 | AH92: 1 | AI92: 1 | AJ92: 1 | AK92: 0.8 | AL92: 0.8 | AM92: 35.2 | AN92: 0 | AO92: 0 | AP92: 0
A93: Dreamworld | B93: 2105 | D93: C | E93: 6 | F93: 6 | G93: 5 | H93: 2 | I93: 3 | J93: 4 | K93: - | L93: 7 | O93: Lo | P93: Ni | W93: 3 | X93: 1 | Y93: 0 | AA93: I1 | AB93: Subsector C - Wsi | AC93: 0.5 | AD93: 1 | AE93: 1.5 | AF93: =INDEX($BA$26:BF$44,MATCH(AE93,$AZ$26:$AZ$44,-1),MATCH(D93,$BA$25:$BF$25)) -> 0.5 | AG93: 1 | AH93: 1 | AI93: 1 | AJ93: 1 | AK93: 1 | AL93: 0.8 | AM93: 1144 | AN93: 343200 | AO93: 0 | AP93: 0
A94: Duchy | B94: 609 | D94: B | E94: 7 | F94: 9 | G94: 9 | H94: 5 | I94: 4 | J94: 0 | K94: - | L94: 9 | O94: Ni | W94: 1 | X94: 2 | Y94: 4 | AA94: I1 | AB94: Subsector A - Nosso Nosso | AC94: 1 | AD94: 2.5 | AE94: 3.5 | AF94: =INDEX($BA$26:BF$44,MATCH(AE94,$AZ$26:$AZ$44,-1),MATCH(D94,$BA$25:$BF$25)) -> 0.5 | AG94: 1 | AH94: 1 | AI94: 1 | AJ94: 0.8 | AK94: 1 | AL94: 0.8 | AM94: 2342.4 | AN94: 234240000 | AO94: 1 | AP94: 1
A95: Dune | B95: 1713 | D95: A | E95: 2 | F95: 7 | G95: 0 | H95: 7 | I95: 7 | J95: 7 | K95: - | L95: A | N95: N | O95: De | P95: Ri | U95: B | W95: 2 | X95: 0 | Y95: 0 | AA95: Na | AB95: Subsector G - LightWaves | AC95: 1 | AD95: 3.5 | AE95: 4.5 | AF95: =INDEX($BA$26:BF$44,MATCH(AE95,$AZ$26:$AZ$44,-1),MATCH(D95,$BA$25:$BF$25)) -> 0.5 | AG95: 1 | AH95: 1 | AI95: 1 | AJ95: 1 | AK95: 1 | AL95: 0.8 | AM95: 4688 | AN95: 93760000000 | AO95: 100 | AP95: 200
A96: Dusk | B96: 1706 | D96: X | E96: 2 | F96: 1 | G96: 0 | H96: 0 | I96: 0 | J96: 0 | K96: - | L96: 0 | O96: Ba | P96: Lo | Q96: Ni | W96: 0 | X96: 0 | Y96: 4 | AA96: Ba | AB96: Subsector C - Wsi | AC96: -0.5 | AD96: 0 | AE96: -0.5 | AF96: =INDEX($BA$26:BF$44,MATCH(AE96,$AZ$26:$AZ$44,-1),MATCH(D96,$BA$25:$BF$25)) -> 0 | AG96: 1 | AH96: 1 | AI96: 1 | AJ96: 1 | AK96: 1 | AL96: 0.8 | AM96: 44 | AN96: 0 | AO96: 0 | AP96: 0
A97: Dusty | B97: 610 | D97: X | E97: 5 | F97: 7 | G97: 6 | H97: 0 | I97: 0 | J97: 0 | K97: - | L97: 0 | O97: Ba | P97: Lo | Q97: Ni | W97: 0 | X97: 0 | Y97: 4 | AA97: Ba | AB97: Subsector A - Nosso Nosso | AC97: -0.5 | AD97: 0 | AE97: -0.5 | AF97: =INDEX($BA$26:BF$44,MATCH(AE97,$AZ$26:$AZ$44,-1),MATCH(D97,$BA$25:$BF$25)) -> 0 | AG97: 1 | AH97: 1 | AI97: 1 | AJ97: 1 | AK97: 1 | AL97: 0.8 | AM97: 44 | AN97: 0 | AO97: 0 | AP97: 0
A98: Earthsea | B98: 2939 | D98: X | E98: 5 | F98: 4 | G98: A | H98: 0 | I98: 0 | J98: 0 | K98: - | L98: 0 | O98: Ba | P98: Lo | Q98: Ni | R98: Wa | W98: 0 | X98: 0 | Y98: 0 | AA98: Ba | AB98: Subsector P - Chamber | AC98: -0.5 | AD98: 0 | AE98: -0.5 | AF98: =INDEX($BA$26:BF$44,MATCH(AE98,$AZ$26:$AZ$44,-1),MATCH(D98,$BA$25:$BF$25)) -> 0 | AG98: 1 | AH98: 1 | AI98: 1 | AJ98: 1 | AK98: 0.8 | AL98: 0.8 | AM98: 35.2 | AN98: 0 | AO98: 0 | AP98: 0
A99: Edamar | B99: 717 | D99: X | E99: 6 | F99: 6 | G99: A | H99: 3 | I99: 9 | J99: 9 | K99: - | L99: A | O99: Lo | P99: Ni | Q99: Wa | W99: 3 | X99: 1 | Y99: 4 | AA99: I3 | AB99: Subsector E - Silent Shore | AC99: 1 | AD99: 1.5 | AE99: 2.5 | AF99: =INDEX($BA$26:BF$44,MATCH(AE99,$AZ$26:$AZ$44,-1),MATCH(D99,$BA$25:$BF$25)) -> -2.5 | AG99: 1 | AH99: 1 | AI99: 1 | AJ99: 1 | AK99: 1 | AL99: 0.8 | AM99: 4688 | AN99: 14064000 | AO99: 0 | AP99: 0
A100: Eessith | B100: 2121 | D100: D | E100: 7 | F100: C | G100: 4 | H100: 1 | I100: 1 | J100: 0 | K100: - | L100: 2 | O100: Fl | P100: Lo | Q100: Ni | W100: 1 | X100: 1 | Y100: 4 | AA100: I4 | AB100: Subsector K - Floe | AC100: -0.5 | AD100: 0.5 | AE100: 0 | AF100: =INDEX($BA$26:BF$44,MATCH(AE100,$AZ$26:$AZ$44,-1),MATCH(D100,$BA$25:$BF$25)) -> 0.5 | AG100: 1 | AH100: 1 | AI100: 1 | AJ100: 1 | AK100: 1 | AL100: 0.8 | AM100: 108 | AN100: 1080 | AO100: 0 | AP100: 0
A101: Enchanter | B101: 1932 | D101: X | E101: 5 | F101: 9 | G101: 3 | H101: 0 | I101: 0 | J101: 0 | K101: - | L101: 0 | O101: Ba | P101: Lo | Q101: Ni | W101: 0 | X101: 0 | Y101: 3 | AA101: Ba | AB101: Subsector O - Painted | AC101: -0.5 | AD101: 0 | AE101: -0.5 | AF101: =INDEX($BA$26:BF$44,MATCH(AE101,$AZ$26:$AZ$44,-1),MATCH(D101,$BA$25:$BF$25)) -> 0 | AG101: 1 | AH101: 1 | AI101: 1 | AJ101: 1 | AK101: 0.8 | AL101: 0.8 | AM101: 35.2 | AN101: 0 | AO101: 0 | AP101: 0
A102: Enigma | B102: 2510 | D102: C | E102: 3 | F102: 1 | G102: 0 | H102: 4 | I102: 6 | J102: 9 | K102: - | L102: 9 | O102: Ni | W102: 7 | X102: 0 | Y102: 3 | AA102: I1 | AB102: Subsector D - Yelloworld | AC102: 1 | AD102: 2 | AE102: 3 | AF102: =INDEX($BA$26:BF$44,MATCH(AE102,$AZ$26:$AZ$44,-1),MATCH(D102,$BA$25:$BF$25)) -> 0 | AG102: 1 | AH102: 1 | AI102: 1 | AJ102: 1 | AK102: 0.8 | AL102: 0.8 | AM102: 2342.4 | AN102: 163968000 | AO102: 0 | AP102: 0
A103: Enlugal | B103: 1118 | D103: B | E103: 4 | F103: 8 | G103: 6 | H103: 8 | I103: 7 | J103: C | K103: - | L103: B | N103: N | O103: Ri | P103: Cp | U103: A | W103: 2 | X103: 0 | Y103: 2 | AA103: I3 | AB103: Subsector F - NightVision | AC103: 1 | AD103: 4 | AE103: 5 | AF103: =INDEX($BA$26:BF$44,MATCH(AE103,$AZ$26:$AZ$44,-1),MATCH(D103,$BA$25:$BF$25)) -> 0 | AG103: 1 | AH103: 1 | AI103: 1 | AJ103: 1 | AK103: 0.8 | AL103: 0.8 | AM103: 6000 | AN103: 1200000000000 | AO103: 700 | AP103: 1400
A104: Evermind | B104: 1937 | D104: X | E104: 2 | F104: 5 | G104: 4 | H104: 0 | I104: 0 | J104: 0 | K104: - | L104: 0 | O104: Ba | P104: Lo | Q104: Ni | W104: 0 | X104: 0 | Y104: 3 | AA104: Ba | AB104: Subsector O - Painted | AC104: -0.5 | AD104: 0 | AE104: -0.5 | AF104: =INDEX($BA$26:BF$44,MATCH(AE104,$AZ$26:$AZ$44,-1),MATCH(D104,$BA$25:$BF$25)) -> 0 | AG104: 1 | AH104: 1 | AI104: 1 | AJ104: 1 | AK104: 0.8 | AL104: 0.8 | AM104: 35.2 | AN104: 0 | AO104: 0 | AP104: 0
A105: Exulation | B105: 2132 | D105: X | E105: 6 | F105: 5 | G105: 4 | H105: 0 | I105: 0 | J105: 0 | K105: - | L105: 0 | O105: Ba | P105: Lo | Q105: Ni | W105: 0 | X105: 0 | Y105: 3 | AA105: Ba | AB105: Subsector O - Painted | AC105: -0.5 | AD105: 0 | AE105: -0.5 | AF105: =INDEX($BA$26:BF$44,MATCH(AE105,$AZ$26:$AZ$44,-1),MATCH(D105,$BA$25:$BF$25)) -> 0 | AG105: 1 | AH105: 1 | AI105: 1 | AJ105: 1 | AK105: 1 | AL105: 0.8 | AM105: 44 | AN105: 0 | AO105: 0 | AP105: 0
A106: Fairyland | B106: 1535 | D106: X | E106: 2 | F106: 2 | G106: 4 | H106: 0 | I106: 0 | J106: 0 | K106: - | L106: 0 | O106: Ba | P106: Lo | Q106: Ni | W106: 0 | X106: 0 | Y106: 0 | AA106: Ba | AB106: Subsector N - Sorrow | AC106: -0.5 | AD106: 0 | AE106: -0.5 | AF106: =INDEX($BA$26:BF$44,MATCH(AE106,$AZ$26:$AZ$44,-1),MATCH(D106,$BA$25:$BF$25)) -> 0 | AG106: 1 | AH106: 1 | AI106: 1 | AJ106: 1 | AK106: 1 | AL106: 0.8 | AM106: 44 | AN106: 0 | AO106: 0 | AP106: 0
A107: Fastball | B107: 804 | D107: E | E107: 2 | F107: 0 | G107: 0 | H107: 2 | I107: 1 | J107: 1 | K107: - | L107: 9 | O107: Lo | P107: Ni | Q107: Va | W107: 1 | X107: 2 | Y107: 1 | AA107: I1 | AB107: Subsector A - Nosso Nosso | AC107: 1 | AD107: 1 | AE107: 2 | AF107: =INDEX($BA$26:BF$44,MATCH(AE107,$AZ$26:$AZ$44,-1),MATCH(D107,$BA$25:$BF$25)) -> 0 | AG107: 1 | AH107: 1 | AI107: 1 | AJ107: 1 | AK107: 0.8 | AL107: 0.8 | AM107: 2342.4 | AN107: 234240 | AO107: 0 | AP107: 0
A108: Faunia | B108: 3026 | D108: D | E108: 6 | F108: 3 | G108: 9 | H108: 3 | I108: 4 | J108: 3 | K108: - | L108: 8 | O108: Lo | P108: Ni | W108: 5 | X108: 0 | Y108: 3 | AA108: Ar | AB108: Subsector L - Athenia | AC108: 0.5 | AD108: 1.5 | AE108: 2 | AF108: =INDEX($BA$26:BF$44,MATCH(AE108,$AZ$26:$AZ$44,-1),MATCH(D108,$BA$25:$BF$25)) -> 0 | AG108: 1 | AH108: 1 | AI108: 1 | AJ108: 1 | AK108: 0.8 | AL108: 0.8 | AM108: 1465.6 | AN108: 7328000 | AO108: 0 | AP108: 0
A109: Fenmou | B109: 1918 | D109: D | E109: 5 | F109: 6 | G109: 5 | H109: 3 | I109: 2 | J109: 1 | K109: - | L109: 8 | O109: Lo | P109: Ni | W109: 3 | X109: 2 | Y109: 3 | AA109: I4 | AB109: Subsector G - LightWaves | AC109: 0.5 | AD109: 1.5 | AE109: 2 | AF109: =INDEX($BA$26:BF$44,MATCH(AE109,$AZ$26:$AZ$44,-1),MATCH(D109,$BA$25:$BF$25)) -> 0 | AG109: 1 | AH109: 1 | AI109: 1 | AJ109: 1 | AK109: 1 | AL109: 0.8 | AM109: 1832 | AN109: 5496000 | AO109: 0 | AP109: 0
A110: Firefly | B110: 2840 | D110: X | E110: 7 | F110: 5 | G110: 7 | H110: 0 | I110: 0 | J110: 0 | K110: - | L110: 0 | O110: Ba | P110: Lo | Q110: Ni | W110: 0 | X110: 0 | Y110: 2 | AA110: Ba | AB110: Subsector P - Chamber | AC110: -0.5 | AD110: 0 | AE110: -0.5 | AF110: =INDEX($BA$26:BF$44,MATCH(AE110,$AZ$26:$AZ$44,-1),MATCH(D110,$BA$25:$BF$25)) -> 0 | AG110: 1 | AH110: 1 | AI110: 1 | AJ110: 0.8 | AK110: 0.8 | AL110: 0.8 | AM110: 28.16 | AN110: 0 | AO110: 0 | AP110: 0
A111: Flame | B111: 1631 | D111: X | E111: 4 | F111: 4 | G111: 2 | H111: 0 | I111: 0 | J111: 0 | K111: - | L111: 0 | O111: Ba | P111: Lo | Q111: Ni | R111: Po | W111: 0 | X111: 1 | Y111: 3 | AA111: Ba | AB111: Subsector N - Sorrow | AC111: -0.5 | AD111: 0 | AE111: -0.5 | AF111: =INDEX($BA$26:BF$44,MATCH(AE111,$AZ$26:$AZ$44,-1),MATCH(D111,$BA$25:$BF$25)) -> 0 | AG111: 1 | AH111: 1 | AI111: 1 | AJ111: 0.8 | AK111: 1 | AL111: 0.8 | AM111: 35.2 | AN111: 0 | AO111: 0 | AP111: 0
A112: Flandry | B112: 2602 | D112: B | E112: 6 | F112: 9 | G112: A | H112: 6 | I112: 9 | J112: 6 | K112: - | L112: 8 | N112: S | O112: Ni | P112: Wa | U112: B | W112: 7 | X112: 2 | Y112: 0 | AA112: I1 | AB112: Subsector D - Yelloworld | AC112: 0.5 | AD112: 3 | AE112: 3.5 | AF112: =INDEX($BA$26:BF$44,MATCH(AE112,$AZ$26:$AZ$44,-1),MATCH(D112,$BA$25:$BF$25)) -> 0.5 | AG112: 1 | AH112: 1 | AI112: 1 | AJ112: 1 | AK112: 1 | AL112: 0.8 | AM112: 1832 | AN112: 12824000000 | AO112: 15 | AP112: 105
A113: Fleethome | B113: 3029 | D113: C | E113: 5 | F113: 3 | G113: 5 | H113: 4 | I113: 6 | J113: 6 | K113: - | L113: A | N113: N | O113: Ni | W113: 1 | X113: 0 | Y113: 4 | AA113: Ar | AB113: Subsector L - Athenia | AC113: 1 | AD113: 2 | AE113: 3 | AF113: =INDEX($BA$26:BF$44,MATCH(AE113,$AZ$26:$AZ$44,-1),MATCH(D113,$BA$25:$BF$25)) -> 0 | AG113: 1 | AH113: 1 | AI113: 1 | AJ113: 1 | AK113: 0.8 | AL113: 0.8 | AM113: 3750.4 | AN113: 37504000 | AO113: 0 | AP113: 0
A114: Flies | B114: 1705 | D114: C | E114: 3 | F114: 6 | G114: 1 | H114: 5 | I114: 8 | J114: A | K114: - | L114: 9 | O114: Ni | W114: 1 | X114: 0 | Y114: 5 | AA114: I1 | AB114: Subsector C - Wsi | AC114: 1 | AD114: 2.5 | AE114: 3.5 | AF114: =INDEX($BA$26:BF$44,MATCH(AE114,$AZ$26:$AZ$44,-1),MATCH(D114,$BA$25:$BF$25)) -> 0 | AG114: 1.6 | AH114: 1 | AI114: 1 | AJ114: 1 | AK114: 1 | AL114: 0.8 | AM114: 4684.8 | AN114: 468480000 | AO114: 1 | AP114: 1
A115: Floaters | B115: 1404 | D115: C | E115: 2 | F115: 4 | G115: 0 | H115: 3 | I115: 3 | J115: 4 | K115: - | L115: 9 | O115: De | P115: Lo | Q115: Ni | R115: Po | W115: 1 | X115: 0 | Y115: 5 | AA115: I1 | AB115: Subsector B - Mu | AC115: 1 | AD115: 1.5 | AE115: 2.5 | AF115: =INDEX($BA$26:BF$44,MATCH(AE115,$AZ$26:$AZ$44,-1),MATCH(D115,$BA$25:$BF$25)) -> 0.5 | AG115: 1 | AH115: 1 | AI115: 1 | AJ115: 1 | AK115: 0.8 | AL115: 0.8 | AM115: 2342.4 | AN115: 2342400 | AO115: 0 | AP115: 0
A116: Fontaine | B116: 306 | D116: X | E116: 3 | F116: 6 | G116: 3 | H116: 0 | I116: 0 | J116: 0 | K116: - | L116: 0 | O116: Ba | P116: Lo | Q116: Ni | W116: 0 | X116: 0 | Y116: 3 | AA116: Ba | AB116: Subsector A - Nosso Nosso | AC116: -0.5 | AD116: 0 | AE116: -0.5 | AF116: =INDEX($BA$26:BF$44,MATCH(AE116,$AZ$26:$AZ$44,-1),MATCH(D116,$BA$25:$BF$25)) -> 0 | AG116: 1 | AH116: 1 | AI116: 1 | AJ116: 1 | AK116: 1 | AL116: 0.8 | AM116: 44 | AN116: 0 | AO116: 0 | AP116: 0
A117: Forest | B117: 2704 | D117: X | E117: 6 | F117: 4 | G117: 6 | H117: 0 | I117: 0 | J117: 0 | K117: - | L117: 0 | O117: Ba | P117: Lo | Q117: Ni | W117: 0 | X117: 0 | Y117: 3 | AA117: Ba | AB117: Subsector D - Yelloworld | AC117: -0.5 | AD117: 0 | AE117: -0.5 | AF117: =INDEX($BA$26:BF$44,MATCH(AE117,$AZ$26:$AZ$44,-1),MATCH(D117,$BA$25:$BF$25)) -> 0 | AG117: 1 | AH117: 1 | AI117: 1 | AJ117: 0.8 | AK117: 0.8 | AL117: 0.8 | AM117: 28.16 | AN117: 0 | AO117: 0 | AP117: 0
A118: Garden | B118: 402 | D118: D | E118: 7 | F118: 7 | G118: 5 | H118: 2 | I118: 3 | J118: 1 | K118: - | L118: 9 | O118: Lo | P118: Ni | W118: 3 | X118: 0 | Y118: 3 | AA118: I1 | AB118: Subsector A - Nosso Nosso | AC118: 1 | AD118: 1 | AE118: 2 | AF118: =INDEX($BA$26:BF$44,MATCH(AE118,$AZ$26:$AZ$44,-1),MATCH(D118,$BA$25:$BF$25)) -> 0 | AG118: 1 | AH118: 1 | AI118: 1 | AJ118: 1 | AK118: 1 | AL118: 0.8 | AM118: 2928 | AN118: 878400 | AO118: 0 | AP118: 0
A119: Geronimo | B119: 2508 | D119: X | E119: 5 | F119: 2 | G119: A | H119: 0 | I119: 0 | J119: 0 | K119: - | L119: 0 | O119: Ba | P119: Lo | Q119: Ni | R119: Wa | W119: 0 | X119: 0 | Y119: 2 | AA119: Ba | AB119: Subsector D - Yelloworld | AC119: -0.5 | AD119: 0 | AE119: -0.5 | AF119: =INDEX($BA$26:BF$44,MATCH(AE119,$AZ$26:$AZ$44,-1),MATCH(D119,$BA$25:$BF$25)) -> 0 | AG119: 1 | AH119: 1 | AI119: 1 | AJ119: 1 | AK119: 1 | AL119: 0.8 | AM119: 44 | AN119: 0 | AO119: 0 | AP119: 0
A120: Giygiri | B120: 2517 | D120: D | E120: 8 | F120: C | G120: 3 | H120: 3 | I120: 1 | J120: 0 | K120: - | L120: A | O120: Fl | P120: Lo | Q120: Ni | W120: 3 | X120: 0 | Y120: 0 | AA120: I4 | AB120: Subsector H - Chanter | AC120: 1 | AD120: 1.5 | AE120: 2.5 | AF120: =INDEX($BA$26:BF$44,MATCH(AE120,$AZ$26:$AZ$44,-1),MATCH(D120,$BA$25:$BF$25)) -> 0 | AG120: 1 | AH120: 1 | AI120: 1 | AJ120: 1 | AK120: 1 | AL120: 0.8 | AM120: 4688 | AN120: 14064000 | AO120: 0 | AP120: 0
A121: Gloria | B121: 2802 | D121: X | E121: 5 | F121: 3 | G121: 7 | H121: 0 | I121: 0 | J121: 0 | K121: - | L121: 0 | O121: Ba | P121: Lo | Q121: Ni | W121: 0 | X121: 0 | Y121: 2 | AA121: Ba | AB121: Subsector D - Yelloworld | AC121: -0.5 | AD121: 0 | AE121: -0.5 | AF121: =INDEX($BA$26:BF$44,MATCH(AE121,$AZ$26:$AZ$44,-1),MATCH(D121,$BA$25:$BF$25)) -> 0 | AG121: 1 | AH121: 1 | AI121: 1 | AJ121: 1 | AK121: 1 | AL121: 0.8 | AM121: 44 | AN121: 0 | AO121: 0 | AP121: 0
A122: Gluirge | B122: 3111 | D122: X | E122: 4 | F122: 0 | G122: 0 | H122: 0 | I122: 0 | J122: 0 | K122: - | L122: 0 | O122: Ba | P122: Lo | Q122: Ni | R122: Va | W122: 0 | X122: 0 | Y122: 3 | AA122: Ba | AB122: Subsector H - Chanter | AC122: -0.5 | AD122: 0 | AE122: -0.5 | AF122: =INDEX($BA$26:BF$44,MATCH(AE122,$AZ$26:$AZ$44,-1),MATCH(D122,$BA$25:$BF$25)) -> 0 | AG122: 1 | AH122: 1 | AI122: 1 | AJ122: 1 | AK122: 0.8 | AL122: 0.8 | AM122: 35.2 | AN122: 0 | AO122: 0 | AP122: 0
A123: Gold | B123: 1634 | D123: X | E123: 4 | F123: 2 | G123: 7 | H123: 0 | I123: 0 | J123: 0 | K123: - | L123: 0 | O123: Ba | P123: Lo | Q123: Ni | W123: 0 | X123: 0 | Y123: 3 | AA123: Ba | AB123: Subsector N - Sorrow | AC123: -0.5 | AD123: 0 | AE123: -0.5 | AF123: =INDEX($BA$26:BF$44,MATCH(AE123,$AZ$26:$AZ$44,-1),MATCH(D123,$BA$25:$BF$25)) -> 0 | AG123: 1 | AH123: 1 | AI123: 1 | AJ123: 1 | AK123: 1 | AL123: 0.8 | AM123: 44 | AN123: 0 | AO123: 0 | AP123: 0
A124: Grace | B124: 1707 | D124: E | E124: 0 | F124: 0 | G124: 0 | H124: 4 | I124: 1 | J124: 6 | K124: - | L124: 9 | O124: As | P124: Ni | W124: 2 | X124: 2 | Y124: 4 | AA124: I1 | AB124: Subsector C - Wsi | AC124: 1 | AD124: 2 | AE124: 3 | AF124: =INDEX($BA$26:BF$44,MATCH(AE124,$AZ$26:$AZ$44,-1),MATCH(D124,$BA$25:$BF$25)) -> -0.5 | AG124: 1 | AH124: 1 | AI124: 1 | AJ124: 1 | AK124: 1 | AL124: 0.8 | AM124: 2928 | AN124: 58560000 | AO124: 0 | AP124: 0
A125: Greenfield | B125: 2605 | D125: D | E125: 7 | F125: 7 | G125: 7 | H125: 4 | I125: 3 | J125: 5 | K125: - | L125: 6 | O125: Ni | W125: 4 | X125: 0 | Y125: 4 | AA125: I1 | AB125: Subsector D - Yelloworld | AC125: 0.5 | AD125: 2 | AE125: 2.5 | AF125: =INDEX($BA$26:BF$44,MATCH(AE125,$AZ$26:$AZ$44,-1),MATCH(D125,$BA$25:$BF$25)) -> 0 | AG125: 1 | AH125: 1 | AI125: 1 | AJ125: 1 | AK125: 1 | AL125: 0.8 | AM125: 716 | AN125: 28640000 | AO125: 2 | AP125: 8
A126: Hearok | B126: 701 | D126: X | E126: 5 | F126: 6 | G126: 3 | H126: 0 | I126: 0 | J126: 0 | K126: - | L126: 0 | O126: Ba | P126: Lo | Q126: Ni | W126: 0 | X126: 2 | Y126: 2 | AA126: Ba | AB126: Subsector A - Nosso Nosso | AC126: -0.5 | AD126: 0 | AE126: -0.5 | AF126: =INDEX($BA$26:BF$44,MATCH(AE126,$AZ$26:$AZ$44,-1),MATCH(D126,$BA$25:$BF$25)) -> 0 | AG126: 1 | AH126: 1 | AI126: 1 | AJ126: 1 | AK126: 1 | AL126: 0.8 | AM126: 44 | AN126: 0 | AO126: 0 | AP126: 0
A127: Hermit | B127: 1006 | D127: B | E127: 0 | F127: 0 | G127: 0 | H127: 4 | I127: 5 | J127: 8 | K127: - | L127: 9 | N127: N | O127: As | P127: Ni | W127: 6 | X127: 0 | Y127: 0 | AA127: I1 | AB127: Subsector B - Mu | AC127: 1 | AD127: 2 | AE127: 3 | AF127: =INDEX($BA$26:BF$44,MATCH(AE127,$AZ$26:$AZ$44,-1),MATCH(D127,$BA$25:$BF$25)) -> 0.5 | AG127: 1 | AH127: 1 | AI127: 1 | AJ127: 1 | AK127: 1 | AL127: 0.8 | AM127: 2928 | AN127: 175680000 | AO127: 0 | AP127: 0
A128: Hobbit | B128: 3119 | D128: E | E128: 2 | F128: 1 | G128: 0 | H128: 1 | I128: 1 | J128: 2 | K128: - | L128: 4 | O128: Lo | P128: Ni | W128: 5 | X128: 1 | Y128: 4 | AA128: Ar | AB128: Subsector H - Chanter | AC128: 0 | AD128: 0.5 | AE128: 0.5 | AF128: =INDEX($BA$26:BF$44,MATCH(AE128,$AZ$26:$AZ$44,-1),MATCH(D128,$BA$25:$BF$25)) -> 0.5 | AG128: 1 | AH128: 1 | AI128: 1 | AJ128: 1 | AK128: 1 | AL128: 0.8 | AM128: 280 | AN128: 14000 | AO128: 0 | AP128: 0
A129: Hoi Profa | B129: 2026 | D129: X | E129: 8 | F129: B | G129: 5 | H129: 0 | I129: 0 | J129: 0 | K129: - | L129: 0 | O129: Ba | P129: Fl | Q129: Lo | R129: Ni | W129: 6 | X129: 0 | Y129: 4 | AA129: Ar | AB129: Subsector K - Floe | AC129: -0.5 | AD129: 0 | AE129: -0.5 | AF129: =INDEX($BA$26:BF$44,MATCH(AE129,$AZ$26:$AZ$44,-1),MATCH(D129,$BA$25:$BF$25)) -> 0 | AG129: 1 | AH129: 1 | AI129: 1 | AJ129: 1 | AK129: 1 | AL129: 0.8 | AM129: 44 | AN129: 264 | AO129: 0 | AP129: 0
A130: Hub | B130: 2719 | D130: C | E130: 8 | F130: 9 | G130: 4 | H130: 7 | I130: B | J130: 6 | K130: - | L130: A | N130: N | O130: Ag | U130: B | W130: 1 | X130: 0 | Y130: 3 | AA130: Ar | AB130: Subsector H - Chanter | AC130: 1 | AD130: 3.5 | AE130: 4.5 | AF130: =INDEX($BA$26:BF$44,MATCH(AE130,$AZ$26:$AZ$44,-1),MATCH(D130,$BA$25:$BF$25)) -> 0 | AG130: 1 | AH130: 1 | AI130: 1 | AJ130: 1 | AK130: 0.8 | AL130: 0.8 | AM130: 3750.4 | AN130: 37504000000 | AO130: 100 | AP130: 100
A131: Icecap | B131: 1912 | D131: X | E131: 2 | F131: 0 | G131: 1 | H131: 2 | I131: 3 | J131: 4 | K131: - | L131: 1 | O131: Ic | P131: Ni | Q131: Va | W131: 1 | X131: 0 | Y131: 4 | AA131: I1 | AB131: Subsector G - LightWaves | AC131: -0.5 | AD131: 1 | AE131: 0.5 | AF131: =INDEX($BA$26:BF$44,MATCH(AE131,$AZ$26:$AZ$44,-1),MATCH(D131,$BA$25:$BF$25)) -> 0 | AG131: 1 | AH131: 1 | AI131: 1 | AJ131: 0.8 | AK131: 1 | AL131: 0.8 | AM131: 54.4 | AN131: 5440 | AO131: 0 | AP131: 0
A132: Ifield | B132: 1002 | D132: X | E132: 0 | F132: 0 | G132: 0 | H132: 0 | I132: 0 | J132: 0 | K132: - | L132: 0 | O132: As | P132: Ba | Q132: Lo | R132: Ni | W132: 6 | X132: 0 | Y132: 1 | AA132: I1 | AB132: Subsector B - Mu | AC132: -0.5 | AD132: 0 | AE132: -0.5 | AF132: =INDEX($BA$26:BF$44,MATCH(AE132,$AZ$26:$AZ$44,-1),MATCH(D132,$BA$25:$BF$25)) -> 0 | AG132: 1 | AH132: 1 | AI132: 1 | AJ132: 1 | AK132: 1 | AL132: 0.8 | AM132: 44 | AN132: 264 | AO132: 0 | AP132: 0
A133: Ilona | B133: 1836 | D133: X | E133: 0 | F133: 0 | G133: 0 | H133: 0 | I133: 0 | J133: 0 | K133: - | L133: 0 | O133: As | P133: Ba | Q133: Lo | R133: Ni | W133: 0 | X133: 1 | Y133: 2 | AA133: Ba | AB133: Subsector O - Painted | AC133: -0.5 | AD133: 0 | AE133: -0.5 | AF133: =INDEX($BA$26:BF$44,MATCH(AE133,$AZ$26:$AZ$44,-1),MATCH(D133,$BA$25:$BF$25)) -> 0 | AG133: 1 | AH133: 1 | AI133: 1 | AJ133: 1 | AK133: 1 | AL133: 0.8 | AM133: 44 | AN133: 0 | AO133: 0 | AP133: 0
A134: Imaginatio | B134: 2037 | D134: X | E134: 6 | F134: 5 | G134: 6 | H134: 0 | I134: 0 | J134: 0 | K134: - | L134: 0 | O134: Ba | P134: Lo | Q134: Ni | W134: 0 | X134: 1 | Y134: 3 | AA134: Ba | AB134: Subsector O - Painted | AC134: -0.5 | AD134: 0 | AE134: -0.5 | AF134: =INDEX($BA$26:BF$44,MATCH(AE134,$AZ$26:$AZ$44,-1),MATCH(D134,$BA$25:$BF$25)) -> 0 | AG134: 1 | AH134: 1 | AI134: 1 | AJ134: 1 | AK134: 1 | AL134: 0.8 | AM134: 44 | AN134: 0 | AO134: 0 | AP134: 0
A135: Immanuel | B135: 534 | D135: X | E135: 3 | F135: 5 | G135: 3 | H135: 0 | I135: 0 | J135: 0 | K135: - | L135: 0 | O135: Ba | P135: Lo | Q135: Ni | R135: Po | W135: 0 | X135: 0 | Y135: 2 | AA135: Ba | AB135: Subsector M - Glossalalia | AC135: -0.5 | AD135: 0 | AE135: -0.5 | AF135: =INDEX($BA$26:BF$44,MATCH(AE135,$AZ$26:$AZ$44,-1),MATCH(D135,$BA$25:$BF$25)) -> 0 | AG135: 1 | AH135: 1 | AI135: 1 | AJ135: 1 | AK135: 1 | AL135: 0.8 | AM135: 44 | AN135: 0 | AO135: 0 | AP135: 0
A136: Imperator | B136: 3105 | D136: C | E136: 6 | F136: 5 | G136: 9 | H136: 3 | I136: 3 | J136: 0 | K136: - | L136: 5 | O136: Lo | P136: Ni | W136: 4 | X136: 1 | Y136: 2 | AA136: I1 | AB136: Subsector D - Yelloworld | AC136: 0 | AD136: 1.5 | AE136: 1.5 | AF136: =INDEX($BA$26:BF$44,MATCH(AE136,$AZ$26:$AZ$44,-1),MATCH(D136,$BA$25:$BF$25)) -> 0.5 | AG136: 1 | AH136: 1 | AI136: 1 | AJ136: 1 | AK136: 1 | AL136: 0.8 | AM136: 448 | AN136: 1792000 | AO136: 1 | AP136: 4
A137: Inaosat | B137: 1401 | D137: X | E137: S | F137: 0 | G137: 0 | H137: 0 | I137: 0 | J137: 0 | K137: - | L137: 0 | O137: Ba | P137: Lo | Q137: Ni | R137: Va | W137: 6 | X137: 0 | Y137: 4 | AA137: Ba | AB137: Subsector B - Mu | AC137: -0.5 | AD137: 0 | AE137: -0.5 | AF137: =INDEX($BA$26:BF$44,MATCH(AE137,$AZ$26:$AZ$44,-1),MATCH(D137,$BA$25:$BF$25)) -> 0 | AG137: 1 | AH137: 1 | AI137: 1 | AJ137: 1 | AK137: 0.8 | AL137: 0.8 | AM137: 35.2 | AN137: 211.2 | AO137: 0 | AP137: 0
A138: Infected | B138: 1102 | D138: D | E138: 7 | F138: 2 | G138: 9 | H138: 3 | I138: 0 | J138: 2 | K138: - | L138: 4 | N138: S | O138: Lo | P138: Ni | W138: 8 | X138: 0 | Y138: 2 | AA138: I1 | AB138: Subsector B - Mu | AC138: 0 | AD138: 1.5 | AE138: 1.5 | AF138: =INDEX($BA$26:BF$44,MATCH(AE138,$AZ$26:$AZ$44,-1),MATCH(D138,$BA$25:$BF$25)) -> 0.5 | AG138: 1 | AH138: 1 | AI138: 1 | AJ138: 1 | AK138: 1 | AL138: 0.8 | AM138: 280 | AN138: 2240000 | AO138: 0 | AP138: 0
A139: Innocentia | B139: 3036 | D139: X | E139: 7 | F139: 7 | G139: 9 | H139: 0 | I139: 0 | J139: 0 | K139: - | L139: 0 | O139: Ba | P139: Lo | Q139: Ni | W139: 0 | X139: 2 | Y139: 3 | AA139: Ba | AB139: Subsector P - Chamber | AC139: -0.5 | AD139: 0 | AE139: -0.5 | AF139: =INDEX($BA$26:BF$44,MATCH(AE139,$AZ$26:$AZ$44,-1),MATCH(D139,$BA$25:$BF$25)) -> 0 | AG139: 1 | AH139: 1 | AI139: 1 | AJ139: 1 | AK139: 1 | AL139: 0.8 | AM139: 44 | AN139: 0 | AO139: 0 | AP139: 0
A140: Interlude | B140: 2336 | D140: X | E140: 8 | F140: 3 | G140: 8 | H140: 0 | I140: 0 | J140: 0 | K140: - | L140: 0 | O140: Ba | P140: Lo | Q140: Ni | W140: 0 | X140: 0 | Y140: 3 | AA140: Ba | AB140: Subsector O - Painted | AC140: -0.5 | AD140: 0 | AE140: -0.5 | AF140: =INDEX($BA$26:BF$44,MATCH(AE140,$AZ$26:$AZ$44,-1),MATCH(D140,$BA$25:$BF$25)) -> 0 | AG140: 1 | AH140: 1 | AI140: 1 | AJ140: 1 | AK140: 1 | AL140: 0.8 | AM140: 44 | AN140: 0 | AO140: 0 | AP140: 0
A141: Ipinnae | B141: 1704 | D141: A | E141: 7 | F141: 3 | G141: A | H141: 4 | I141: 8 | J141: 7 | K141: - | L141: 9 | O141: Ni | P141: Wa | W141: 5 | X141: 0 | Y141: 4 | AA141: I1 | AB141: Subsector C - Wsi | AC141: 1 | AD141: 2 | AE141: 3 | AF141: =INDEX($BA$26:BF$44,MATCH(AE141,$AZ$26:$AZ$44,-1),MATCH(D141,$BA$25:$BF$25)) -> 0.5 | AG141: 1 | AH141: 1 | AI141: 1 | AJ141: 1 | AK141: 1 | AL141: 0.8 | AM141: 2928 | AN141: 146400000 | AO141: 0 | AP141: 0
A142: Irka Ir | B142: 1218 | D142: E | E142: 5 | F142: 7 | G142: 3 | H142: 2 | I142: 5 | J142: 4 | K142: - | L142: 6 | O142: Lo | P142: Ni | W142: 2 | X142: 0 | Y142: 3 | AA142: I3 | AB142: Subsector F - NightVision | AC142: 0.5 | AD142: 1 | AE142: 1.5 | AF142: =INDEX($BA$26:BF$44,MATCH(AE142,$AZ$26:$AZ$44,-1),MATCH(D142,$BA$25:$BF$25)) -> 0 | AG142: 1 | AH142: 1 | AI142: 1 | AJ142: 1 | AK142: 0.8 | AL142: 0.8 | AM142: 572.8 | AN142: 114560 | AO142: 0 | AP142: 0
A143: Ishimaga | B143: 1320 | D143: E | E143: 7 | F143: A | G143: 7 | H143: 0 | I143: 0 | J143: 0 | K143: - | L143: 2 | O143: Ba | P143: Fl | Q143: Lo | R143: Ni | W143: 3 | X143: 0 | Y143: 3 | AA143: I3 | AB143: Subsector F - NightVision | AC143: -0.5 | AD143: 0 | AE143: -0.5 | AF143: =INDEX($BA$26:BF$44,MATCH(AE143,$AZ$26:$AZ$44,-1),MATCH(D143,$BA$25:$BF$25)) -> 0.5 | AG143: 1 | AH143: 1 | AI143: 1 | AJ143: 1 | AK143: 1 | AL143: 0.8 | AM143: 108 | AN143: 324 | AO143: 0 | AP143: 0
A144: Itchy | B144: 1231 | D144: X | E144: 3 | F144: 5 | G144: 0 | H144: 0 | I144: 0 | J144: 0 | K144: - | L144: 0 | O144: Ba | P144: De | Q144: Lo | R144: Ni | S144: Po | W144: 0 | X144: 1 | Y144: 4 | AA144: Ba | AB144: Subsector N - Sorrow | AC144: -0.5 | AD144: 0 | AE144: -0.5 | AF144: =INDEX($BA$26:BF$44,MATCH(AE144,$AZ$26:$AZ$44,-1),MATCH(D144,$BA$25:$BF$25)) -> 0 | AG144: 1 | AH144: 1 | AI144: 1 | AJ144: 1 | AK144: 0.8 | AL144: 0.8 | AM144: 35.2 | AN144: 0 | AO144: 0 | AP144: 0
A145: Jericho | B145: 1840 | D145: X | E145: 5 | F145: 2 | G145: 5 | H145: 0 | I145: 0 | J145: 0 | K145: - | L145: 0 | O145: Ba | P145: Lo | Q145: Ni | W145: 0 | X145: 0 | Y145: 3 | AA145: Ba | AB145: Subsector O - Painted | AC145: -0.5 | AD145: 0 | AE145: -0.5 | AF145: =INDEX($BA$26:BF$44,MATCH(AE145,$AZ$26:$AZ$44,-1),MATCH(D145,$BA$25:$BF$25)) -> 0 | AG145: 1 | AH145: 1 | AI145: 1 | AJ145: 1 | AK145: 1 | AL145: 0.8 | AM145: 44 | AN145: 0 | AO145: 0 | AP145: 0
A146: Justince | B146: 2211 | D146: A | E146: 9 | F146: 9 | G146: A | H146: 6 | I146: 5 | J146: 8 | K146: - | L146: B | N146: N | O146: Ni | P146: Wa | U146: B | W146: 8 | X146: 0 | Y146: 0 | AA146: Na | AB146: Subsector G - LightWaves | AC146: 1 | AD146: 3 | AE146: 4 | AF146: =INDEX($BA$26:BF$44,MATCH(AE146,$AZ$26:$AZ$44,-1),MATCH(D146,$BA$25:$BF$25)) -> 0.5 | AG146: 1 | AH146: 1 | AI146: 1 | AJ146: 1 | AK146: 1 | AL146: 0.8 | AM146: 7500 | AN146: 60000000000 | AO146: 7 | AP146: 56
A147: Kaakhiskiki | B147: 118 | D147: X | E147: 2 | F147: 3 | G147: 0 | H147: 0 | I147: 0 | J147: 0 | K147: - | L147: 0 | O147: Ba | P147: De | Q147: Lo | R147: Ni | S147: Po | W147: 0 | X147: 0 | Y147: 2 | AA147: Ba | AB147: Subsector E - Silent Shore | AC147: -0.5 | AD147: 0 | AE147: -0.5 | AF147: =INDEX($BA$26:BF$44,MATCH(AE147,$AZ$26:$AZ$44,-1),MATCH(D147,$BA$25:$BF$25)) -> 0 | AG147: 1 | AH147: 1 | AI147: 1 | AJ147: 1 | AK147: 0.8 | AL147: 0.8 | AM147: 35.2 | AN147: 0 | AO147: 0 | AP147: 0
A148: Kanno | B148: 2010 | D148: B | E148: 5 | F148: 5 | G148: 4 | H148: 4 | I148: 3 | J148: 4 | K148: - | L148: 9 | O148: Ni | W148: 1 | X148: 0 | Y148: 2 | AA148: I1 | AB148: Subsector C - Wsi | AC148: =VLOOKUP(L148,$AS$23:$AU$40,3) -> 1 | AD148: =VLOOKUP(H148,$AW$23:$AX$36,2) -> 2 | AE148: =AC148+AD148 -> 3 | AF148: =INDEX($BA$26:BF$44,MATCH(AE148,$AZ$26:$AZ$44,-1),MATCH(D148,$BA$25:$BF$25)) -> 0.5 | AG148: 1 | AH148: 1 | AI148: 1 | AJ148: 1 | AK148: 1 | AL148: 0.8 | AM148: =(VLOOKUP(L148,$AS$23:$AV$40,4))*AG148*AH148*AI148*AJ148*AK148*AL148 -> 2928 | AN148: =AM148*((10^H148)*W148) -> 29280000 | AO148: =INDEX($BK$23:$BU$36,MATCH(L148,$BJ$23:$BJ$36),MATCH(H148,$BK$22:$BU$22)) -> 0 | AP148: =AO148*W148 -> 0
A149: Kenya | B149: 1926 | D149: E | E149: 7 | F149: 7 | G149: 9 | H149: 2 | I149: 0 | J149: 0 | K149: - | L149: 5 | O149: Lo | P149: Ni | W149: 4 | X149: 0 | Y149: 3 | AA149: Ar | AB149: Subsector K - Floe | AC149: 0 | AD149: 1 | AE149: 1 | AF149: =INDEX($BA$26:BF$44,MATCH(AE149,$AZ$26:$AZ$44,-1),MATCH(D149,$BA$25:$BF$25)) -> 0 | AG149: 1 | AH149: 1 | AI149: 1 | AJ149: 0.8 | AK149: 1 | AL149: 0.8 | AM149: 358.4 | AN149: 143360 | AO149: 0 | AP149: 0
A150: Khigkigugi | B150: 722 | D150: X | E150: 5 | F150: 5 | G150: 3 | H150: 0 | I150: 0 | J150: 0 | K150: - | L150: 0 | O150: Ba | P150: Lo | Q150: Ni | R150: Po | W150: 0 | X150: 3 | Y150: 5 | AA150: Ba | AB150: Subsector I - Outback | AC150: -0.5 | AD150: 0 | AE150: -0.5 | AF150: =INDEX($BA$26:BF$44,MATCH(AE150,$AZ$26:$AZ$44,-1),MATCH(D150,$BA$25:$BF$25)) -> 0 | AG150: 1 | AH150: 1 | AI150: 1 | AJ150: 1 | AK150: 1 | AL150: 0.8 | AM150: 44 | AN150: 0 | AO150: 0 | AP150: 0
A151: Khii Eshkhima | B151: 1021 | D151: C | E151: 5 | F151: 2 | G151: 4 | H151: 3 | I151: 4 | J151: 5 | K151: - | L151: 5 | O151: Lo | P151: Ni | W151: 1 | X151: 2 | Y151: 4 | AA151: I3 | AB151: Subsector J - Spirare | AC151: 0 | AD151: 1.5 | AE151: 1.5 | AF151: =INDEX($BA$26:BF$44,MATCH(AE151,$AZ$26:$AZ$44,-1),MATCH(D151,$BA$25:$BF$25)) -> 0.5 | AG151: 1 | AH151: 1 | AI151: 1 | AJ151: 1 | AK151: 1 | AL151: 0.8 | AM151: 448 | AN151: 448000 | AO151: 1 | AP151: 1
A152: Kikujiro | B152: 1424 | D152: E | E152: 8 | F152: A | G152: 2 | H152: 2 | I152: 1 | J152: 0 | K152: - | L152: 8 | O152: Fl | P152: Lo | Q152: Ni | W152: 2 | X152: 2 | Y152: 4 | AA152: Ar | AB152: Subsector J - Spirare | AC152: 0.5 | AD152: 1 | AE152: 1.5 | AF152: =INDEX($BA$26:BF$44,MATCH(AE152,$AZ$26:$AZ$44,-1),MATCH(D152,$BA$25:$BF$25)) -> 0 | AG152: 1 | AH152: 1 | AI152: 1 | AJ152: 1 | AK152: 0.8 | AL152: 0.8 | AM152: 1465.6 | AN152: 293120 | AO152: 0 | AP152: 0
A153: Klendathu | B153: 2925 | D153: X | E153: 8 | F153: C | G153: 3 | H153: 1 | I153: 1 | J153: 0 | K153: - | L153: 2 | O153: Fl | P153: Lo | Q153: Ni | W153: 3 | X153: 0 | Y153: 3 | AA153: Ar | AB153: Subsector L - Athenia | AC153: -0.5 | AD153: 0.5 | AE153: 0 | AF153: =INDEX($BA$26:BF$44,MATCH(AE153,$AZ$26:$AZ$44,-1),MATCH(D153,$BA$25:$BF$25)) -> 0 | AG153: 1 | AH153: 1 | AI153: 1 | AJ153: 1 | AK153: 0.8 | AL153: 0.8 | AM153: 86.4 | AN153: 2592 | AO153: 0 | AP153: 0
A154: Kosh | B154: 2805 | D154: C | E154: 5 | F154: 3 | G154: 1 | H154: 5 | I154: 5 | J154: 3 | K154: - | L154: 8 | O154: Ni | P154: Po | W154: 8 | X154: 0 | Y154: 2 | AA154: I1 | AB154: Subsector D - Yelloworld | AC154: 0.5 | AD154: 2.5 | AE154: 3 | AF154: =INDEX($BA$26:BF$44,MATCH(AE154,$AZ$26:$AZ$44,-1),MATCH(D154,$BA$25:$BF$25)) -> 0 | AG154: 1 | AH154: 1 | AI154: 1 | AJ154: 1 | AK154: 1 | AL154: 0.8 | AM154: 1832 | AN154: 1465600000 | AO154: 1 | AP154: 8
A155: Koyaanisqatsi | B155: 3038 | D155: X | E155: 3 | F155: 3 | G155: 1 | H155: 0 | I155: 0 | J155: 0 | K155: - | L155: 0 | O155: Ba | P155: Lo | Q155: Ni | R155: Po | W155: 0 | X155: 2 | Y155: 3 | AA155: Ba | AB155: Subsector P - Chamber | AC155: -0.5 | AD155: 0 | AE155: -0.5 | AF155: =INDEX($BA$26:BF$44,MATCH(AE155,$AZ$26:$AZ$44,-1),MATCH(D155,$BA$25:$BF$25)) -> 0 | AG155: 1 | AH155: 1 | AI155: 1 | AJ155: 1 | AK155: 1 | AL155: 0.8 | AM155: 44 | AN155: 0 | AO155: 0 | AP155: 0
A156: Kryminalni | B156: 3022 | D156: X | E156: 1 | F156: 0 | G156: 0 | H156: 0 | I156: 0 | J156: 0 | K156: - | L156: 0 | O156: Ba | P156: Lo | Q156: Ni | R156: Va | W156: 3 | X156: 0 | Y156: 4 | AA156: Ar | AB156: Subsector L - Athenia | AC156: -0.5 | AD156: 0 | AE156: -0.5 | AF156: =INDEX($BA$26:BF$44,MATCH(AE156,$AZ$26:$AZ$44,-1),MATCH(D156,$BA$25:$BF$25)) -> 0 | AG156: 1 | AH156: 1 | AI156: 1 | AJ156: 1 | AK156: 0.8 | AL156: 0.8 | AM156: 35.2 | AN156: 105.6 | AO156: 0 | AP156: 0
A157: Kyu Sakamoto | B157: 907 | D157: E | E157: 7 | F157: A | G157: 1 | H157: 2 | I157: 5 | J157: 0 | K157: - | L157: 3 | O157: Fl | P157: Lo | Q157: Ni | W157: 3 | X157: 0 | Y157: 3 | AA157: I1 | AB157: Subsector B - Mu | AC157: 0 | AD157: 1 | AE157: 1 | AF157: =INDEX($BA$26:BF$44,MATCH(AE157,$AZ$26:$AZ$44,-1),MATCH(D157,$BA$25:$BF$25)) -> 0 | AG157: 1 | AH157: 1 | AI157: 1 | AJ157: 1 | AK157: 1 | AL157: 0.8 | AM157: 176 | AN157: 52800 | AO157: 0 | AP157: 0
A158: Laoyle | B158: 1821 | D158: E | E158: 6 | F158: 6 | G158: 5 | H158: 6 | I158: 3 | J158: 1 | K158: - | L158: 2 | O158: Ag | P158: Ni | U158: B | W158: 1 | X158: 0 | Y158: 3 | AA158: I4 | AB158: Subsector K - Floe | AC158: -0.5 | AD158: 3 | AE158: 2.5 | AF158: =INDEX($BA$26:BF$44,MATCH(AE158,$AZ$26:$AZ$44,-1),MATCH(D158,$BA$25:$BF$25)) -> 0 | AG158: 1 | AH158: 1 | AI158: 1 | AJ158: 1 | AK158: 1 | AL158: 0.8 | AM158: 108 | AN158: 108000000 | AO158: 5 | AP158: 5
A159: Leoin | B159: 806 | D159: E | E159: 7 | F159: 3 | G159: 8 | H159: 5 | I159: 7 | J159: 8 | K159: - | L159: 9 | O159: Ni | W159: 7 | X159: 0 | Y159: 3 | AA159: I1 | AB159: Subsector A - Nosso Nosso | AC159: 1 | AD159: 2.5 | AE159: 3.5 | AF159: =INDEX($BA$26:BF$44,MATCH(AE159,$AZ$26:$AZ$44,-1),MATCH(D159,$BA$25:$BF$25)) -> -0.5 | AG159: 1 | AH159: 1 | AI159: 1 | AJ159: 1 | AK159: 0.8 | AL159: 0.8 | AM159: 2342.4 | AN159: 1639680000 | AO159: 1 | AP159: 7
A160: Lhasa | B160: 1936 | D160: X | E160: 8 | F160: A | G160: 3 | H160: 0 | I160: 0 | J160: 0 | K160: - | L160: 0 | O160: Ba | P160: Fl | Q160: Lo | R160: Ni | W160: 0 | X160: 0 | Y160: 4 | AA160: Ba | AB160: Subsector O - Painted | AC160: -0.5 | AD160: 0 | AE160: -0.5 | AF160: =INDEX($BA$26:BF$44,MATCH(AE160,$AZ$26:$AZ$44,-1),MATCH(D160,$BA$25:$BF$25)) -> 0 | AG160: 1 | AH160: 1 | AI160: 1 | AJ160: 0.8 | AK160: 1 | AL160: 0.8 | AM160: 35.2 | AN160: 0 | AO160: 0 | AP160: 0
A161: Liquid | B161: 3037 | D161: X | E161: A | F161: E | G161: 8 | H161: 0 | I161: 0 | J161: 0 | K161: - | L161: 0 | O161: Ba | P161: Fl | Q161: Lo | R161: Ni | W161: 0 | X161: 1 | Y161: 0 | AA161: Ba | AB161: Subsector P - Chamber | AC161: -0.5 | AD161: 0 | AE161: -0.5 | AF161: =INDEX($BA$26:BF$44,MATCH(AE161,$AZ$26:$AZ$44,-1),MATCH(D161,$BA$25:$BF$25)) -> 0 | AG161: 1 | AH161: 1 | AI161: 1 | AJ161: 1 | AK161: 1 | AL161: 0.8 | AM161: 44 | AN161: 0 | AO161: 0 | AP161: 0
A162: Logan's Run | B162: 2610 | D162: D | E162: 7 | F162: 4 | G162: 4 | H162: 3 | I162: 2 | J162: 2 | K162: - | L162: 2 | O162: Lo | P162: Ni | W162: 1 | X162: 0 | Y162: 4 | AA162: I1 | AB162: Subsector D - Yelloworld | AC162: -0.5 | AD162: 1.5 | AE162: 1 | AF162: =INDEX($BA$26:BF$44,MATCH(AE162,$AZ$26:$AZ$44,-1),MATCH(D162,$BA$25:$BF$25)) -> 0.5 | AG162: 1 | AH162: 1 | AI162: 1 | AJ162: 1 | AK162: 1 | AL162: 0.8 | AM162: 108 | AN162: 108000 | AO162: 0 | AP162: 0
A163: Lonely | B163: 2639 | D163: X | E163: S | F163: 0 | G163: 1 | H163: 0 | I163: 0 | J163: 0 | K163: - | L163: 0 | O163: Ba | P163: Ic | Q163: Lo | R163: Ni | S163: Va | W163: 0 | X163: 2 | Y163: 4 | AA163: Ba | AB163: Subsector P - Chamber | AC163: -0.5 | AD163: 0 | AE163: -0.5 | AF163: =INDEX($BA$26:BF$44,MATCH(AE163,$AZ$26:$AZ$44,-1),MATCH(D163,$BA$25:$BF$25)) -> 0 | AG163: 1 | AH163: 1 | AI163: 1 | AJ163: 1 | AK163: 0.8 | AL163: 0.8 | AM163: 35.2 | AN163: 0 | AO163: 0 | AP163: 0
A164: March | B164: 831 | D164: X | E164: 2 | F164: 1 | G164: 0 | H164: 0 | I164: 0 | J164: 0 | K164: - | L164: 0 | O164: Ba | P164: Lo | Q164: Ni | W164: 0 | X164: 2 | Y164: 3 | AA164: Ba | AB164: Subsector M - Glossalalia | AC164: -0.5 | AD164: 0 | AE164: -0.5 | AF164: =INDEX($BA$26:BF$44,MATCH(AE164,$AZ$26:$AZ$44,-1),MATCH(D164,$BA$25:$BF$25)) -> 0 | AG164: 1 | AH164: 1 | AI164: 1 | AJ164: 1 | AK164: 0.8 | AL164: 0.8 | AM164: 35.2 | AN164: 0 | AO164: 0 | AP164: 0
A165: Melusina | B165: 3231 | D165: X | E165: 2 | F165: 4 | G165: 5 | H165: 0 | I165: 0 | J165: 0 | K165: - | L165: 0 | O165: Ba | P165: Lo | Q165: Ni | W165: 0 | X165: 0 | Y165: 0 | AA165: Ba | AB165: Subsector P - Chamber | AC165: -0.5 | AD165: 0 | AE165: -0.5 | AF165: =INDEX($BA$26:BF$44,MATCH(AE165,$AZ$26:$AZ$44,-1),MATCH(D165,$BA$25:$BF$25)) -> 0 | AG165: 1 | AH165: 1 | AI165: 1 | AJ165: 1 | AK165: 0.8 | AL165: 0.8 | AM165: 35.2 | AN165: 0 | AO165: 0 | AP165: 0
A166: Memento | B166: 3010 | D166: X | E166: 3 | F166: 4 | G166: 1 | H166: 0 | I166: 0 | J166: 0 | K166: - | L166: 0 | O166: Ba | P166: Lo | Q166: Ni | R166: Po | W166: 0 | X166: 1 | Y166: 5 | AA166: Ba | AB166: Subsector D - Yelloworld | AC166: -0.5 | AD166: 0 | AE166: -0.5 | AF166: =INDEX($BA$26:BF$44,MATCH(AE166,$AZ$26:$AZ$44,-1),MATCH(D166,$BA$25:$BF$25)) -> 0 | AG166: 1 | AH166: 1 | AI166: 1 | AJ166: 1 | AK166: 0.8 | AL166: 0.8 | AM166: 35.2 | AN166: 0 | AO166: 0 | AP166: 0
A167: Metheny | B167: 2538 | D167: X | E167: 3 | F167: 3 | G167: 3 | H167: 0 | I167: 0 | J167: 0 | K167: - | L167: 0 | O167: Ba | P167: Lo | Q167: Ni | R167: Po | W167: 0 | X167: 0 | Y167: 0 | AA167: Ba | AB167: Subsector P - Chamber | AC167: -0.5 | AD167: 0 | AE167: -0.5 | AF167: =INDEX($BA$26:BF$44,MATCH(AE167,$AZ$26:$AZ$44,-1),MATCH(D167,$BA$25:$BF$25)) -> 0 | AG167: 1 | AH167: 1 | AI167: 1 | AJ167: 1 | AK167: 1 | AL167: 0.8 | AM167: 44 | AN167: 0 | AO167: 0 | AP167: 0
A168: Mia | B168: 1810 | D168: X | E168: 7 | F168: 2 | G168: 8 | H168: 0 | I168: 0 | J168: 0 | K168: - | L168: 0 | O168: Ba | P168: Lo | Q168: Ni | W168: 0 | X168: 2 | Y168: 2 | AA168: Ba | AB168: Subsector C - Wsi | AC168: -0.5 | AD168: 0 | AE168: -0.5 | AF168: =INDEX($BA$26:BF$44,MATCH(AE168,$AZ$26:$AZ$44,-1),MATCH(D168,$BA$25:$BF$25)) -> 0 | AG168: 1 | AH168: 1 | AI168: 1 | AJ168: 1 | AK168: 1 | AL168: 0.8 | AM168: 44 | AN168: 0 | AO168: 0 | AP168: 0
A169: Mist | B169: 2005 | D169: D | E169: 7 | F169: 9 | G169: 5 | H169: 5 | I169: 5 | J169: 1 | K169: - | L169: 7 | N169: S | O169: Ag | P169: Ni | W169: 2 | X169: 0 | Y169: 4 | AA169: I1 | AB169: Subsector C - Wsi | AC169: 0.5 | AD169: 2.5 | AE169: 3 | AF169: =INDEX($BA$26:BF$44,MATCH(AE169,$AZ$26:$AZ$44,-1),MATCH(D169,$BA$25:$BF$25)) -> 0 | AG169: 1 | AH169: 1 | AI169: 1 | AJ169: 1 | AK169: 0.8 | AL169: 0.8 | AM169: 915.2 | AN169: 183040000 | AO169: 2 | AP169: 4
A170: Mondo | B170: 2826 | D170: C | E170: 5 | F170: 2 | G170: 5 | H170: 3 | I170: 1 | J170: 6 | K170: - | L170: A | N170: S | O170: Lo | P170: Ni | W170: 4 | X170: 1 | Y170: 1 | AA170: Ar | AB170: Subsector L - Athenia | AC170: 1 | AD170: 1.5 | AE170: 2.5 | AF170: =INDEX($BA$26:BF$44,MATCH(AE170,$AZ$26:$AZ$44,-1),MATCH(D170,$BA$25:$BF$25)) -> 0.5 | AG170: 1 | AH170: 1 | AI170: 1 | AJ170: 1 | AK170: 1 | AL170: 0.8 | AM170: 4688 | AN170: 18752000 | AO170: 0 | AP170: 0
A171: Mons Argent | B171: 2507 | D171: C | E171: 2 | F171: 5 | G171: 4 | H171: 4 | I171: 8 | J171: 6 | K171: - | L171: 9 | N171: S | O171: Ni | W171: 1 | X171: 2 | Y171: 0 | AA171: I1 | AB171: Subsector D - Yelloworld | AC171: 1 | AD171: 2 | AE171: 3 | AF171: =INDEX($BA$26:BF$44,MATCH(AE171,$AZ$26:$AZ$44,-1),MATCH(D171,$BA$25:$BF$25)) -> 0 | AG171: 1 | AH171: 1 | AI171: 1 | AJ171: 1 | AK171: 1 | AL171: 0.8 | AM171: 2928 | AN171: 29280000 | AO171: 0 | AP171: 0
A172: Montrose | B172: 505 | D172: C | E172: 1 | F172: 5 | G172: 0 | H172: 2 | I172: 0 | J172: 2 | K172: - | L172: 6 | O172: De | P172: Lo | Q172: Ni | R172: Po | W172: 4 | X172: 0 | Y172: 5 | AA172: I1 | AB172: Subsector A - Nosso Nosso | AC172: 0.5 | AD172: 1 | AE172: 1.5 | AF172: =INDEX($BA$26:BF$44,MATCH(AE172,$AZ$26:$AZ$44,-1),MATCH(D172,$BA$25:$BF$25)) -> 0.5 | AG172: 1 | AH172: 1 | AI172: 1 | AJ172: 1 | AK172: 1 | AL172: 0.8 | AM172: 716 | AN172: 286400 | AO172: 0 | AP172: 0
A173: Moonrise | B173: 435 | D173: X | E173: 5 | F173: 2 | G173: 7 | H173: 0 | I173: 0 | J173: 0 | K173: - | L173: 0 | O173: Ba | P173: Lo | Q173: Ni | W173: 0 | X173: 0 | Y173: 0 | AA173: Ba | AB173: Subsector M - Glossalalia | AC173: -0.5 | AD173: 0 | AE173: -0.5 | AF173: =INDEX($BA$26:BF$44,MATCH(AE173,$AZ$26:$AZ$44,-1),MATCH(D173,$BA$25:$BF$25)) -> 0 | AG173: 1 | AH173: 1 | AI173: 1 | AJ173: 1 | AK173: 1 | AL173: 0.8 | AM173: 44 | AN173: 0 | AO173: 0 | AP173: 0
A174: Moons | B174: 3006 | D174: E | E174: 4 | F174: 4 | G174: 5 | H174: 3 | I174: 6 | J174: 5 | K174: - | L174: 4 | O174: Lo | P174: Ni | W174: 1 | X174: 0 | Y174: 3 | AA174: I1 | AB174: Subsector D - Yelloworld | AC174: 0 | AD174: 1.5 | AE174: 1.5 | AF174: =INDEX($BA$26:BF$44,MATCH(AE174,$AZ$26:$AZ$44,-1),MATCH(D174,$BA$25:$BF$25)) -> 0 | AG174: 1 | AH174: 1 | AI174: 1 | AJ174: 0.8 | AK174: 0.8 | AL174: 0.8 | AM174: 179.2 | AN174: 179200 | AO174: 0 | AP174: 0
A175: Morpheous | B175: 2334 | D175: X | E175: A | F175: B | G175: 7 | H175: 0 | I175: 0 | J175: 0 | K175: - | L175: 0 | O175: Ba | P175: Fl | Q175: Lo | R175: Ni | W175: 0 | X175: 0 | Y175: 0 | AA175: Ba | AB175: Subsector O - Painted | AC175: -0.5 | AD175: 0 | AE175: -0.5 | AF175: =INDEX($BA$26:BF$44,MATCH(AE175,$AZ$26:$AZ$44,-1),MATCH(D175,$BA$25:$BF$25)) -> 0 | AG175: 1 | AH175: 1 | AI175: 1 | AJ175: 1 | AK175: 0.8 | AL175: 0.8 | AM175: 35.2 | AN175: 0 | AO175: 0 | AP175: 0
A176: Mu | B176: 905 | D176: E | E176: 8 | F176: 8 | G176: 6 | H176: 0 | I176: 0 | J176: 1 | K176: - | L176: 3 | O176: Lo | P176: Ni | W176: 5 | X176: 0 | Y176: 4 | AA176: I1 | AB176: Subsector B - Mu | AC176: 0 | AD176: 0 | AE176: 0 | AF176: =INDEX($BA$26:BF$44,MATCH(AE176,$AZ$26:$AZ$44,-1),MATCH(D176,$BA$25:$BF$25)) -> 0.5 | AG176: 1.6 | AH176: 1 | AI176: 1 | AJ176: 1 | AK176: 1 | AL176: 0.8 | AM176: 281.6 | AN176: 1408 | AO176: 0 | AP176: 0
A177: Multituber | B177: 1134 | D177: X | E177: S | F177: 0 | G177: 0 | H177: 0 | I177: 0 | J177: 0 | K177: - | L177: 0 | O177: Ba | P177: Lo | Q177: Ni | R177: Va | W177: 0 | X177: 0 | Y177: 5 | AA177: Ba | AB177: Subsector N - Sorrow | AC177: -0.5 | AD177: 0 | AE177: -0.5 | AF177: =INDEX($BA$26:BF$44,MATCH(AE177,$AZ$26:$AZ$44,-1),MATCH(D177,$BA$25:$BF$25)) -> 0 | AG177: 1 | AH177: 1 | AI177: 1 | AJ177: 1 | AK177: 1 | AL177: 0.8 | AM177: 44 | AN177: 0 | AO177: 0 | AP177: 0
A178: Musashiden | B178: 3136 | D178: X | E178: 7 | F178: 5 | G178: 9 | H178: 0 | I178: 0 | J178: 0 | K178: - | L178: 0 | O178: Ba | P178: Lo | Q178: Ni | W178: 0 | X178: 0 | Y178: 3 | AA178: Ba | AB178: Subsector P - Chamber | AC178: -0.5 | AD178: 0 | AE178: -0.5 | AF178: =INDEX($BA$26:BF$44,MATCH(AE178,$AZ$26:$AZ$44,-1),MATCH(D178,$BA$25:$BF$25)) -> 0 | AG178: 1 | AH178: 1 | AI178: 1 | AJ178: 1 | AK178: 0.8 | AL178: 0.8 | AM178: 35.2 | AN178: 0 | AO178: 0 | AP178: 0
A179: Nadia | B179: 2002 | D179: D | E179: 4 | F179: 6 | G179: 3 | H179: 2 | I179: 3 | J179: 1 | K179: - | L179: 9 | O179: Lo | P179: Ni | W179: 2 | X179: 0 | Y179: 3 | AA179: I1 | AB179: Subsector C - Wsi | AC179: 1 | AD179: 1 | AE179: 2 | AF179: =INDEX($BA$26:BF$44,MATCH(AE179,$AZ$26:$AZ$44,-1),MATCH(D179,$BA$25:$BF$25)) -> 0 | AG179: 1 | AH179: 1 | AI179: 1 | AJ179: 1 | AK179: 0.8 | AL179: 0.8 | AM179: 2342.4 | AN179: 468480 | AO179: 0 | AP179: 0
A180: Nara | B180: 2725 | D180: E | E180: 4 | F180: 7 | G180: 4 | H180: 3 | I180: 0 | J180: 0 | K180: - | L180: 0 | O180: Lo | P180: Ni | W180: 2 | X180: 2 | Y180: 4 | AA180: Ar | AB180: Subsector L - Athenia | AC180: -0.5 | AD180: 1.5 | AE180: 1 | AF180: =INDEX($BA$26:BF$44,MATCH(AE180,$AZ$26:$AZ$44,-1),MATCH(D180,$BA$25:$BF$25)) -> 0 | AG180: 1 | AH180: 1 | AI180: 1 | AJ180: 1 | AK180: 0.8 | AL180: 0.8 | AM180: 35.2 | AN180: 70400 | AO180: 0 | AP180: 0
A181: Naturalist | B181: 1802 | D181: B | E181: 4 | F181: 2 | G181: 3 | H181: 4 | I181: 3 | J181: 6 | K181: - | L181: 9 | O181: Ni | P181: Po | W181: 4 | X181: 1 | Y181: 4 | AA181: I1 | AB181: Subsector C - Wsi | AC181: 1 | AD181: 2 | AE181: 3 | AF181: =INDEX($BA$26:BF$44,MATCH(AE181,$AZ$26:$AZ$44,-1),MATCH(D181,$BA$25:$BF$25)) -> 0.5 | AG181: 1 | AH181: 1 | AI181: 1 | AJ181: 1 | AK181: 1 | AL181: 0.8 | AM181: 2928 | AN181: 117120000 | AO181: 0 | AP181: 0
A182: Nevicava | B182: 1601 | D182: X | E182: 8 | F182: B | G182: 5 | H182: 0 | I182: 0 | J182: 0 | K182: - | L182: 8 | O182: Ba | P182: Fl | Q182: Lo | R182: Ni | W182: 0 | X182: 0 | Y182: 0 | AA182: Ba | AB182: Subsector B - Mu | AC182: 0.5 | AD182: 0 | AE182: 0.5 | AF182: =INDEX($BA$26:BF$44,MATCH(AE182,$AZ$26:$AZ$44,-1),MATCH(D182,$BA$25:$BF$25)) -> 0 | AG182: 1 | AH182: 1 | AI182: 1 | AJ182: 1 | AK182: 1 | AL182: 0.8 | AM182: 1832 | AN182: 0 | AO182: 0 | AP182: 0
A183: Newsight | B183: 730 | D183: X | E183: 3 | F183: 4 | G183: 3 | H183: 0 | I183: 0 | J183: 0 | K183: - | L183: 0 | O183: Ba | P183: Lo | Q183: Ni | R183: Po | W183: 0 | X183: 0 | Y183: 3 | AA183: Ba | AB183: Subsector I - Outback | AC183: -0.5 | AD183: 0 | AE183: -0.5 | AF183: =INDEX($BA$26:BF$44,MATCH(AE183,$AZ$26:$AZ$44,-1),MATCH(D183,$BA$25:$BF$25)) -> 0 | AG183: 1 | AH183: 1 | AI183: 1 | AJ183: 1 | AK183: 0.8 | AL183: 0.8 | AM183: 35.2 | AN183: 0 | AO183: 0 | AP183: 0
A184: Nosso Nosso | B184: 807 | D184: A | E184: 6 | F184: 6 | G184: A | H184: 6 | I184: 7 | J184: 9 | K184: - | L184: A | O184: Ni | P184: Ri | Q184: Wa | U184: B | W184: 5 | X184: 1 | Y184: 4 | AA184: I1 | AB184: Subsector A - Nosso Nosso | AC184: 1 | AD184: 3 | AE184: 4 | AF184: =INDEX($BA$26:BF$44,MATCH(AE184,$AZ$26:$AZ$44,-1),MATCH(D184,$BA$25:$BF$25)) -> 0.5 | AG184: 1.6 | AH184: 1 | AI184: 1.2 | AJ184: 1 | AK184: 1 | AL184: 0.8 | AM184: 9000.96 | AN184: 4.50048e+10 | AO184: 10 | AP184: 50
A185: Nyman | B185: 2305 | D185: X | E185: 5 | F185: 3 | G185: 8 | H185: 2 | I185: 0 | J185: 2 | K185: - | L185: 3 | O185: Lo | P185: Ni | W185: 1 | X185: 1 | Y185: 2 | AA185: I1 | AB185: Subsector O - Painted | AC185: 0 | AD185: 1 | AE185: 1 | AF185: =INDEX($BA$26:BF$44,MATCH(AE185,$AZ$26:$AZ$44,-1),MATCH(D185,$BA$25:$BF$25)) -> 0 | AG185: 1 | AH185: 1 | AI185: 1 | AJ185: 1 | AK185: 1 | AL185: 0.8 | AM185: 176 | AN185: 17600 | AO185: 0 | AP185: 0
A186: Obelisk | B186: 2833 | D186: X | E186: 7 | F186: 6 | G186: 5 | H186: 0 | I186: 0 | J186: 0 | K186: - | L186: 0 | O186: Ba | P186: Lo | Q186: Ni | W186: 0 | X186: 1 | Y186: 3 | AA186: Ba | AB186: Subsector P - Chamber | AC186: -0.5 | AD186: 0 | AE186: -0.5 | AF186: =INDEX($BA$26:BF$44,MATCH(AE186,$AZ$26:$AZ$44,-1),MATCH(D186,$BA$25:$BF$25)) -> 0 | AG186: 1 | AH186: 1 | AI186: 1 | AJ186: 1 | AK186: 1 | AL186: 0.8 | AM186: 44 | AN186: 0 | AO186: 0 | AP186: 0
A187: Odonata | B187: 1331 | D187: X | E187: 5 | F187: 8 | G187: 3 | H187: 0 | I187: 0 | J187: 0 | K187: - | L187: 0 | O187: Ba | P187: Lo | Q187: Ni | W187: 0 | X187: 0 | Y187: 3 | AA187: Ba | AB187: Subsector N - Sorrow | AC187: -0.5 | AD187: 0 | AE187: -0.5 | AF187: =INDEX($BA$26:BF$44,MATCH(AE187,$AZ$26:$AZ$44,-1),MATCH(D187,$BA$25:$BF$25)) -> 0 | AG187: 1 | AH187: 1 | AI187: 1 | AJ187: 1 | AK187: 0.8 | AL187: 0.8 | AM187: 35.2 | AN187: 0 | AO187: 0 | AP187: 0
A188: Odyssey | B188: 1533 | D188: X | E188: 5 | F188: 4 | G188: 1 | H188: 0 | I188: 0 | J188: 0 | K188: - | L188: 0 | O188: Ba | P188: Lo | Q188: Ni | R188: Po | W188: 0 | X188: 1 | Y188: 5 | AA188: Ba | AB188: Subsector N - Sorrow | AC188: -0.5 | AD188: 0 | AE188: -0.5 | AF188: =INDEX($BA$26:BF$44,MATCH(AE188,$AZ$26:$AZ$44,-1),MATCH(D188,$BA$25:$BF$25)) -> 0 | AG188: 1 | AH188: 1 | AI188: 1 | AJ188: 1 | AK188: 1 | AL188: 0.8 | AM188: 44 | AN188: 0 | AO188: 0 | AP188: 0
A189: Oktane | B189: 1606 | D189: C | E189: 4 | F189: 3 | G189: 7 | H189: 5 | I189: 8 | J189: 6 | K189: - | L189: 9 | O189: Ni | W189: 3 | X189: 1 | Y189: 3 | AA189: I1 | AB189: Subsector B - Mu | AC189: 1 | AD189: 2.5 | AE189: 3.5 | AF189: =INDEX($BA$26:BF$44,MATCH(AE189,$AZ$26:$AZ$44,-1),MATCH(D189,$BA$25:$BF$25)) -> 0 | AG189: 1 | AH189: 1 | AI189: 1 | AJ189: 0.8 | AK189: 1 | AL189: 0.8 | AM189: 2342.4 | AN189: 702720000 | AO189: 1 | AP189: 3
A190: Olio | B190: 1310 | D190: E | E190: 5 | F190: 1 | G190: 1 | H190: 2 | I190: 4 | J190: 2 | K190: - | L190: 9 | N190: S | O190: Ic | P190: Lo | Q190: Ni | W190: 1 | X190: 0 | Y190: 3 | AA190: I1 | AB190: Subsector B - Mu | AC190: 1 | AD190: 1 | AE190: 2 | AF190: =INDEX($BA$26:BF$44,MATCH(AE190,$AZ$26:$AZ$44,-1),MATCH(D190,$BA$25:$BF$25)) -> 0 | AG190: 1 | AH190: 1 | AI190: 1 | AJ190: 1 | AK190: 0.8 | AL190: 0.8 | AM190: 2342.4 | AN190: 234240 | AO190: 0 | AP190: 0
A191: Olympic | B191: 2728 | D191: B | E191: 5 | F191: 2 | G191: 5 | H191: 4 | I191: 4 | J191: 5 | K191: - | L191: B | O191: Ni | W191: 4 | X191: 0 | Y191: 0 | AA191: Ar | AB191: Subsector L - Athenia | AC191: 1 | AD191: 2 | AE191: 3 | AF191: =INDEX($BA$26:BF$44,MATCH(AE191,$AZ$26:$AZ$44,-1),MATCH(D191,$BA$25:$BF$25)) -> 0.5 | AG191: 1 | AH191: 1 | AI191: 1 | AJ191: 1 | AK191: 0.8 | AL191: 0.8 | AM191: 6000 | AN191: 240000000 | AO191: 0 | AP191: 0
A192: Omni | B192: 630 | D192: X | E192: 8 | F192: A | G192: 4 | H192: 0 | I192: 0 | J192: 0 | K192: - | L192: 0 | O192: Ba | P192: Fl | Q192: Lo | R192: Ni | W192: 0 | X192: 0 | Y192: 5 | AA192: Ba | AB192: Subsector I - Outback | AC192: -0.5 | AD192: 0 | AE192: -0.5 | AF192: =INDEX($BA$26:BF$44,MATCH(AE192,$AZ$26:$AZ$44,-1),MATCH(D192,$BA$25:$BF$25)) -> 0 | AG192: 1 | AH192: 1 | AI192: 1 | AJ192: 1 | AK192: 1 | AL192: 0.8 | AM192: 44 | AN192: 0 | AO192: 0 | AP192: 0
A193: Opaque | B193: 840 | D193: X | E193: 7 | F193: C | G193: 1 | H193: 0 | I193: 0 | J193: 0 | K193: - | L193: 0 | O193: Ba | P193: Fl | Q193: Lo | R193: Ni | W193: 0 | X193: 0 | Y193: 3 | AA193: Ba | AB193: Subsector M - Glossalalia | AC193: -0.5 | AD193: 0 | AE193: -0.5 | AF193: =INDEX($BA$26:BF$44,MATCH(AE193,$AZ$26:$AZ$44,-1),MATCH(D193,$BA$25:$BF$25)) -> 0 | AG193: 1 | AH193: 1 | AI193: 1 | AJ193: 0.8 | AK193: 0.8 | AL193: 0.8 | AM193: 28.16 | AN193: 0 | AO193: 0 | AP193: 0
A194: Opaque | B194: 1738 | D194: X | E194: 4 | F194: 3 | G194: 7 | H194: 0 | I194: 0 | J194: 0 | K194: - | L194: 0 | O194: Ba | P194: Lo | Q194: Ni | W194: 0 | X194: 0 | Y194: 0 | AA194: Ba | AB194: Subsector O - Painted | AC194: -0.5 | AD194: 0 | AE194: -0.5 | AF194: =INDEX($BA$26:BF$44,MATCH(AE194,$AZ$26:$AZ$44,-1),MATCH(D194,$BA$25:$BF$25)) -> 0 | AG194: 1 | AH194: 1 | AI194: 1 | AJ194: 1 | AK194: 0.8 | AL194: 0.8 | AM194: 35.2 | AN194: 0 | AO194: 0 | AP194: 0
A195: Orcana | B195: 1303 | D195: X | E195: 6 | F195: 4 | G195: A | H195: 1 | I195: 0 | J195: 0 | K195: - | L195: 4 | O195: Lo | P195: Ni | Q195: Wa | W195: 6 | X195: 0 | Y195: 4 | AA195: I1 | AB195: Subsector B - Mu | AC195: 0 | AD195: 0.5 | AE195: 0.5 | AF195: =INDEX($BA$26:BF$44,MATCH(AE195,$AZ$26:$AZ$44,-1),MATCH(D195,$BA$25:$BF$25)) -> 0 | AG195: 1 | AH195: 1 | AI195: 1 | AJ195: 0.8 | AK195: 1 | AL195: 0.8 | AM195: 224 | AN195: 13440 | AO195: 0 | AP195: 0
A196: Orgoglio | B196: 208 | D196: X | E196: 1 | F196: 3 | G196: 0 | H196: 0 | I196: 0 | J196: 0 | K196: - | L196: 0 | O196: Ba | P196: De | Q196: Lo | R196: Ni | S196: Po | W196: 0 | X196: 0 | Y196: 1 | AA196: Ba | AB196: Subsector A - Nosso Nosso | AC196: -0.5 | AD196: 0 | AE196: -0.5 | AF196: =INDEX($BA$26:BF$44,MATCH(AE196,$AZ$26:$AZ$44,-1),MATCH(D196,$BA$25:$BF$25)) -> 0 | AG196: 1 | AH196: 1 | AI196: 1 | AJ196: 1 | AK196: 0.8 | AL196: 0.8 | AM196: 35.2 | AN196: 0 | AO196: 0 | AP196: 0
A197: Orzabal | B197: 311 | D197: B | E197: 7 | F197: 5 | G197: 5 | H197: 6 | I197: 9 | J197: 4 | K197: - | L197: 4 | O197: Ag | P197: Ni | U197: B | W197: 1 | X197: 0 | Y197: 4 | AA197: Na | AB197: Subsector E - Silent Shore | AC197: 0 | AD197: 3 | AE197: 3 | AF197: =INDEX($BA$26:BF$44,MATCH(AE197,$AZ$26:$AZ$44,-1),MATCH(D197,$BA$25:$BF$25)) -> 0.5 | AG197: 1 | AH197: 1 | AI197: 1 | AJ197: 1 | AK197: 0.8 | AL197: 0.8 | AM197: 224 | AN197: 224000000 | AO197: 100 | AP197: 100
A198: Outerlimits | B198: 2532 | D198: X | E198: 4 | F198: 0 | G198: 0 | H198: 0 | I198: 0 | J198: 0 | K198: - | L198: 0 | O198: Ba | P198: Lo | Q198: Ni | R198: Va | W198: 0 | X198: 0 | Y198: 0 | AA198: Ba | AB198: Subsector P - Chamber | AC198: -0.5 | AD198: 0 | AE198: -0.5 | AF198: =INDEX($BA$26:BF$44,MATCH(AE198,$AZ$26:$AZ$44,-1),MATCH(D198,$BA$25:$BF$25)) -> 0 | AG198: 1 | AH198: 1 | AI198: 1 | AJ198: 1 | AK198: 0.8 | AL198: 0.8 | AM198: 35.2 | AN198: 0 | AO198: 0 | AP198: 0
A199: Oye Como | B199: 605 | D199: E | E199: 3 | F199: 2 | G199: 5 | H199: 2 | I199: 6 | J199: 5 | K199: - | L199: 1 | O199: Lo | P199: Ni | W199: 3 | X199: 0 | Y199: 4 | AA199: I1 | AB199: Subsector A - Nosso Nosso | AC199: -0.5 | AD199: 1 | AE199: 0.5 | AF199: =INDEX($BA$26:BF$44,MATCH(AE199,$AZ$26:$AZ$44,-1),MATCH(D199,$BA$25:$BF$25)) -> 0.5 | AG199: 1 | AH199: 1 | AI199: 1 | AJ199: 1 | AK199: 0.8 | AL199: 0.8 | AM199: 54.4 | AN199: 16320 | AO199: 0 | AP199: 0
A200: Pacifica | B200: 2905 | D200: C | E200: 9 | F200: 8 | G200: A | H200: 4 | I200: 5 | J200: 3 | K200: - | L200: 7 | O200: Ni | P200: Wa | W200: 3 | X200: 2 | Y200: 5 | AA200: I1 | AB200: Subsector D - Yelloworld | AC200: 0.5 | AD200: 2 | AE200: 2.5 | AF200: =INDEX($BA$26:BF$44,MATCH(AE200,$AZ$26:$AZ$44,-1),MATCH(D200,$BA$25:$BF$25)) -> 0.5 | AG200: 1 | AH200: 1 | AI200: 1 | AJ200: 1 | AK200: 1 | AL200: 0.8 | AM200: 1144 | AN200: 34320000 | AO200: 1 | AP200: 3
A201: Paean | B201: 633 | D201: X | E201: 5 | F201: 7 | G201: 2 | H201: 0 | I201: 0 | J201: 0 | K201: - | L201: 0 | O201: Ba | P201: Lo | Q201: Ni | W201: 0 | X201: 0 | Y201: 4 | AA201: Ba | AB201: Subsector M - Glossalalia | AC201: -0.5 | AD201: 0 | AE201: -0.5 | AF201: =INDEX($BA$26:BF$44,MATCH(AE201,$AZ$26:$AZ$44,-1),MATCH(D201,$BA$25:$BF$25)) -> 0 | AG201: 1 | AH201: 1 | AI201: 1.2 | AJ201: 1 | AK201: 1 | AL201: 0.8 | AM201: 52.8 | AN201: 0 | AO201: 0 | AP201: 0
A202: Paean | B202: 1537 | D202: X | E202: 5 | F202: 3 | G202: 5 | H202: 0 | I202: 0 | J202: 0 | K202: - | L202: 0 | O202: Ba | P202: Lo | Q202: Ni | W202: 0 | X202: 2 | Y202: 1 | AA202: Ba | AB202: Subsector N - Sorrow | AC202: -0.5 | AD202: 0 | AE202: -0.5 | AF202: =INDEX($BA$26:BF$44,MATCH(AE202,$AZ$26:$AZ$44,-1),MATCH(D202,$BA$25:$BF$25)) -> 0 | AG202: 1 | AH202: 1 | AI202: 1 | AJ202: 1 | AK202: 1 | AL202: 0.8 | AM202: 44 | AN202: 0 | AO202: 0 | AP202: 0
A203: Paltrow | B203: 3134 | D203: X | E203: 3 | F203: 4 | G203: 0 | H203: 0 | I203: 0 | J203: 0 | K203: - | L203: 0 | O203: Ba | P203: De | Q203: Lo | R203: Ni | S203: Po | W203: 0 | X203: 0 | Y203: 4 | AA203: Ba | AB203: Subsector P - Chamber | AC203: -0.5 | AD203: 0 | AE203: -0.5 | AF203: =INDEX($BA$26:BF$44,MATCH(AE203,$AZ$26:$AZ$44,-1),MATCH(D203,$BA$25:$BF$25)) -> 0 | AG203: 1 | AH203: 1 | AI203: 1 | AJ203: 1 | AK203: 1 | AL203: 0.8 | AM203: 44 | AN203: 0 | AO203: 0 | AP203: 0
A204: Paregin | B204: 407 | D204: D | E204: 3 | F204: 3 | G204: 6 | H204: 5 | I204: 4 | J204: 4 | K204: - | L204: 6 | O204: Ni | W204: 3 | X204: 1 | Y204: 0 | AA204: I1 | AB204: Subsector A - Nosso Nosso | AC204: 0.5 | AD204: 2.5 | AE204: 3 | AF204: =INDEX($BA$26:BF$44,MATCH(AE204,$AZ$26:$AZ$44,-1),MATCH(D204,$BA$25:$BF$25)) -> 0 | AG204: 1.6 | AH204: 1 | AI204: 1 | AJ204: 1 | AK204: 1 | AL204: 1 | AM204: 1432 | AN204: 429600000 | AO204: 3 | AP204: 9
A205: Passportal | B205: 1712 | D205: X | E205: A | F205: A | G205: 2 | H205: 0 | I205: 0 | J205: 0 | K205: - | L205: 0 | O205: Ba | P205: Fl | Q205: Lo | R205: Ni | W205: 0 | X205: 0 | Y205: 1 | AA205: Ba | AB205: Subsector G - LightWaves | AC205: -0.5 | AD205: 0 | AE205: -0.5 | AF205: =INDEX($BA$26:BF$44,MATCH(AE205,$AZ$26:$AZ$44,-1),MATCH(D205,$BA$25:$BF$25)) -> 0 | AG205: 1 | AH205: 1 | AI205: 1 | AJ205: 1 | AK205: 1 | AL205: 0.8 | AM205: 44 | AN205: 0 | AO205: 0 | AP205: 0
A206: Pax Deorum | B206: 3012 | D206: B | E206: 5 | F206: 6 | G206: 3 | H206: 6 | I206: 5 | J206: 2 | K206: - | L206: 9 | N206: S | O206: Ni | P206: Ri | U206: B | W206: 1 | X206: 0 | Y206: 3 | AA206: I1 | AB206: Subsector H - Chanter | AC206: 1 | AD206: 3 | AE206: 4 | AF206: =INDEX($BA$26:BF$44,MATCH(AE206,$AZ$26:$AZ$44,-1),MATCH(D206,$BA$25:$BF$25)) -> 0 | AG206: 1 | AH206: 1 | AI206: 1 | AJ206: 1 | AK206: 1 | AL206: 0.8 | AM206: 2928 | AN206: 2928000000 | AO206: 12 | AP206: 12
... 106 more rows

Sheet 1500 Im.
A1: Name | B1: Hex | D1: Pt | E1: Si | F1: At | G1: Hy | H1: Po | I1: Go | J1: La | L1: TL | N1: Ba | O1: Remarks | U1: Z | W1: P | X1: B | Y1: G | AA1: Al | AB1: Subsector
AB14: Worlds with breathable air (Atmos 5,6,8,D,F) | AN14: Mod B PCI = Modified Base | AP14: GF - Mega = Ground Army, Megatraveller
A15: Var Kirat Campaign - Starbreak Sector | AB15: As above, plus lots of water (Hydro 6+) | AN15: Per-Capita Income
A16: I1 = Imperial Cianji • Ic = Cianji Client State • I2 = Reborn Imperial • I3 = Ziru Sirkaa • I4 = Holy Imperium | AB16: As above, plus decent gravity (Size 6+)
A17: Ba = Barren • Na = Non-aligned • Dr = Diltov Republic • Nf = Noble Federation
BK18: Modified MegaT Troop Unit Table: No. of Regiments
A19: Name | B19: Hex | D19: Pt | E19: Si | F19: At | G19: Hy | H19: Po | I19: Go | J19: La | L19: TL | N19: Ba | O19: Remarks | U19: Z | W19: P | X19: B | Y19: G | AA19: Al | AB19: Subsector | AC19: TL-Mod | AD19: P-Mod | AE19: UWTN | AF19: PortM | AG19: WTN | AH19: Rich | AI19: Ind | AJ19: Agr | AK19: Poor | AL19: Ext | AM19: Non-Ind | AN19: Mod B PCI | AO19: GWP | AP19: GF - Mega | AQ19: GF x PopM | AT19: Tables for Far Trader
A20: Cianji | B20: 1005 | D20: A | E20: 6 | F20: 6 | G20: 6 | H20: 8 | I20: 7 | J20: B | K20: - | L20: A | N20: A | O20: Ri | P20: Cp | U20: A | W20: 6 | X20: 0 | Y20: 3 | AA20: I1 | AB20: Subsector B - Mu | AC20: =VLOOKUP(L20,$AT$23:$AV$40,3) -> 1 | AD20: =VLOOKUP(H20,$AX$23:$AY$36,2) -> 4 | AE20: =AC20+AD20 -> 5 | AF20: =INDEX($BB$26:BG$44,MATCH(AE20,$BA$26:$BA$44,-1),MATCH(D20,$BB$25:$BG$25)) -> 0 | AG20: =AE20+AF20 -> 5 | AH20: 1.6 | AI20: 1 | AJ20: 1 | AK20: 1 | AL20: 1 | AM20: 1 | AN20: =(VLOOKUP(L20,$AT$23:$AW$40,4))*AH20*AI20*AJ20*AK20*AL20*AM20 -> 9376 | AO20: =AN20*((10^H20)*W20) -> 5625600000000 | AP20: =INDEX($BL$23:$BV$36,MATCH(L20,$BK$23:$BK$36),MATCH(H20,$BL$22:$BV$22)) -> 1000 | AQ20: =AP20*W20 -> 6000
A21: Sylea | B21: 2116 | D21: C | E21: 1 | F21: 6 | G21: 0 | H21: 8 | I21: E | J21: C | K21: - | L21: B | N21: A | O21: De | P21: Cp | U21: A | W21: 6 | X21: 0 | Y21: 2 | AA21: I4 | AB21: Subsector G - LightWaves | AC21: 1 | AD21: 4 | AE21: 5 | AF21: =INDEX($BB$26:BG$44,MATCH(AE21,$BA$26:$BA$44,-1),MATCH(D21,$BB$25:$BG$25)) -> -0.5 | AG21: 4.5 | AH21: 1 | AI21: 1 | AJ21: 1 | AK21: 1 | AL21: 0.8 | AM21: 1 | AN21: 7500 | AO21: 4500000000000 | AP21: 700 | AQ21: 4200 | AT21: Unmodified World Trade Number = TL Modifier + Population Modifier | BL21: Population
A22: Athens | B22: 2724 | D22: C | E22: 5 | F22: 8 | G22: 4 | H22: 8 | I22: B | J22: 9 | K22: - | L22: 8 | U22: A | W22: 2 | X22: 0 | Y22: 0 | AA22: Na | AB22: Subsector L - Dreamsong | AC22: 0.5 | AD22: 4 | AE22: 4.5 | AF22: =INDEX($BB$26:BG$44,MATCH(AE22,$BA$26:$BA$44,-1),MATCH(D22,$BB$25:$BG$25)) -> 0 | AG22: 4.5 | AH22: 1 | AI22: 1 | AJ22: 1 | AK22: 1 | AL22: 1 | AM22: 1 | AN22: 2290 | AO22: 458000000000 | AP22: 1500 | AQ22: 3000 | AT22: TL Modifier Table | BA22: Port Mod. Table | BK22: GTL | BL22: 0 | BM22: 1 | BN22: 2 | BO22: 3 | BP22: 4 | BQ22: 5 | BR22: 6 | BS22: 7 | BT22: 8 | BU22: 9 | BV22: A
A23: Enlugal | B23: 1118 | D23: A | E23: 4 | F23: 8 | G23: 6 | H23: 8 | I23: 7 | J23: B | K23: - | L23: B | N23: N | O23: Ri | P23: Cp | U23: A | W23: 3 | X23: 0 | Y23: 2 | AA23: I3 | AB23: Subsector F - NightVision | AC23: 1 | AD23: 4 | AE23: 5 | AF23: =INDEX($BB$26:BG$44,MATCH(AE23,$BA$26:$BA$44,-1),MATCH(D23,$BB$25:$BG$25)) -> 0 | AG23: 5 | AH23: 1.6 | AI23: 1 | AJ23: 1 | AK23: 1 | AL23: 1 | AM23: 1 | AN23: 15000 | AO23: 4500000000000 | AP23: 700 | AQ23: 2100 | AT23: UWP | AU23: GTL | AV23: TL Mod | AW23: Base Income | AX23: Pop | AY23: Pop Mod | BK23: 0 | BL23: 0 | BM23: 0 | BN23: 0 | BO23: 0 | BP23: 0 | BQ23: 0 | BR23: 0 | BS23: 1 | BT23: 10 | BU23: 100 | BV23: 1000
A24: Hub | B24: 2719 | D24: C | E24: 8 | F24: 8 | G24: 4 | H24: 8 | I24: A | J24: 6 | K24: - | L24: B | N24: N | U24: A | W24: 1 | X24: 0 | Y24: 3 | AA24: Na | AB24: Subsector H - Chanter | AC24: 1 | AD24: 4 | AE24: 5 | AF24: =INDEX($BB$26:BG$44,MATCH(AE24,$BA$26:$BA$44,-1),MATCH(D24,$BB$25:$BG$25)) -> -0.5 | AG24: 4.5 | AH24: 1 | AI24: 1 | AJ24: 1 | AK24: 1 | AL24: 1 | AM24: 1 | AN24: 9375 | AO24: 937500000000 | AP24: 700 | AQ24: 700 | AT24: 0 | AU24: 0 | AV24: -0.5 | AW24: 55 | AX24: 0 | AY24: 0 | BD24: Ports | BK24: 1 | BL24: 0 | BM24: 0 | BN24: 0 | BO24: 0 | BP24: 0 | BQ24: 0 | BR24: 1 | BS24: 5 | BT24: 50 | BU24: 500 | BV24: 5000
A25: Dune | B25: 1713 | D25: A | E25: 2 | F25: 6 | G25: 0 | H25: 7 | I25: 7 | J25: 7 | K25: - | L25: A | N25: N | O25: De | P25: Ri | U25: B | W25: 6 | X25: 0 | Y25: 0 | AA25: Na | AB25: Subsector G - LightWaves | AC25: 1 | AD25: 3.5 | AE25: 4.5 | AF25: =INDEX($BB$26:BG$44,MATCH(AE25,$BA$26:$BA$44,-1),MATCH(D25,$BB$25:$BG$25)) -> 0.5 | AG25: 5 | AH25: 1.6 | AI25: 1 | AJ25: 1 | AK25: 1 | AL25: 0.8 | AM25: 1 | AN25: 7500.8 | AO25: 450048000000 | AP25: 100 | AQ25: 600 | AT25: 1 | AU25: 1 | AV25: -0.5 | AW25: 85 | AX25: 1 | AY25: 0.5 | BA25: UWTN | BB25: A | BC25: B | BD25: C | BE25: D | BF25: E | BG25: X | BK25: 2 | BL25: 0 | BM25: 0 | BN25: 0 | BO25: 0 | BP25: 0 | BQ25: 1 | BR25: 5 | BS25: 50 | BT25: 500 | BU25: 5000 | BV25: 50000
A26: Wsi | B26: 2408 | D26: A | E26: 3 | F26: 8 | G26: 3 | H26: 7 | I26: 7 | J26: 7 | K26: - | L26: A | N26: N | O26: Ri | P26: Cp | U26: B | W26: 4 | X26: 1 | Y26: 0 | AA26: I2 | AB26: Subsector C - Wsi | AC26: 1 | AD26: 3.5 | AE26: 4.5 | AF26: =INDEX($BB$26:BG$44,MATCH(AE26,$BA$26:$BA$44,-1),MATCH(D26,$BB$25:$BG$25)) -> 0.5 | AG26: 5 | AH26: 1.6 | AI26: 1 | AJ26: 1 | AK26: 1 | AL26: 1 | AM26: 1 | AN26: 9376 | AO26: 375040000000 | AP26: 100 | AQ26: 400 | AT26: 2 | AU26: 2 | AV26: -0.5 | AW26: 135 | AX26: 2 | AY26: 1 | BA26: 8 | BB26: 0 | BC26: -1 | BD26: -1.5 | BE26: -2 | BF26: -2.5 | BG26: -5 | BK26: 3 | BL26: 0 | BM26: 0 | BN26: 0 | BO26: 0 | BP26: 1 | BQ26: 10 | BR26: 100 | BS26: 1000 | BT26: 10000 | BU26: 50000 | BV26: 100000
A27: Diaoran | B27: 903 | D27: B | E27: 8 | F27: 5 | G27: 7 | H27: 7 | I27: B | J27: D | K27: - | L27: 8 | O27: Ag | U27: B | W27: 2 | X27: 2 | Y27: 0 | AA27: I1 | AB27: Subsector B - Mu | AC27: 0.5 | AD27: 3.5 | AE27: 4 | AF27: =INDEX($BB$26:BG$44,MATCH(AE27,$BA$26:$BA$44,-1),MATCH(D27,$BB$25:$BG$25)) -> 0 | AG27: 4 | AH27: 1 | AI27: 1 | AJ27: 1.2 | AK27: 1 | AL27: 1 | AM27: 1 | AN27: 2748 | AO27: 54960000000 | AP27: 150 | AQ27: 300 | AT27: 3 | AU27: 3 | AV27: 0 | AW27: 220 | AX27: 3 | AY27: 1.5 | BA27: 7.5 | BB27: 0 | BC27: -1 | BD27: -1.5 | BE27: -2 | BF27: -2.5 | BG27: -5 | BK27: 4 | BL27: 0 | BM27: 0 | BN27: 0 | BO27: 0 | BP27: 1 | BQ27: 10 | BR27: 100 | BS27: 1000 | BT27: 2000 | BU27: 20000 | BV27: 200000
A28: Orzabal | B28: 311 | D28: C | E28: 7 | F28: 5 | G28: 5 | H28: 6 | I28: 9 | J28: 5 | K28: - | L28: 3 | O28: Ag | P28: Ni | U28: B | W28: 3 | X28: 0 | Y28: 4 | AA28: Na | AB28: Subsector E - Silent Shore | AC28: 0 | AD28: 3 | AE28: 3 | AF28: =INDEX($BB$26:BG$44,MATCH(AE28,$BA$26:$BA$44,-1),MATCH(D28,$BB$25:$BG$25)) -> 0 | AG28: 3 | AH28: 1 | AI28: 1 | AJ28: 1.2 | AK28: 1 | AL28: 1 | AM28: 0.8 | AN28: 211.2 | AO28: 633600000 | AP28: 100 | AQ28: 300 | AT28: 4 | AU28: 4 | AV28: 0 | AW28: 350 | AX28: 4 | AY28: 2 | BA28: 7 | BB28: 0 | BC28: -1 | BD28: -1.5 | BE28: -2 | BF28: -2.5 | BG28: -5 | BK28: 5 | BL28: 0 | BM28: 0 | BN28: 0 | BO28: 1 | BP28: 2 | BQ28: 3 | BR28: 30 | BS28: 300 | BT28: 3000 | BU28: 30000 | BV28: 300000
A29: Acroupa | B29: 401 | D29: D | E29: 5 | F29: 5 | G29: 3 | H29: 6 | I29: 8 | J29: 3 | K29: - | L29: 4 | O29: Ni | P29: Po | U29: B | W29: 2 | X29: 2 | Y29: 0 | AA29: I1 | AB29: Subsector A - Nosso Nosso | AC29: 0 | AD29: 3 | AE29: 3 | AF29: =INDEX($BB$26:BG$44,MATCH(AE29,$BA$26:$BA$44,-1),MATCH(D29,$BB$25:$BG$25)) -> 0 | AG29: 3 | AH29: 1 | AI29: 1 | AJ29: 1 | AK29: 0.8 | AL29: 1 | AM29: 0.8 | AN29: 224 | AO29: 448000000 | AP29: 100 | AQ29: 200 | AT29: 5 | AU29: 5 | AV29: 0 | AW29: 560 | AX29: 5 | AY29: 2.5 | BA29: 6.5 | BB29: 0 | BC29: -0.5 | BD29: -1 | BE29: -1.5 | BF29: -2 | BG29: -4.5 | BK29: 6 | BL29: 0 | BM29: 0 | BN29: 0 | BO29: 1 | BP29: 2 | BQ29: 3 | BR29: 30 | BS29: 300 | BT29: 3000 | BU29: 30000 | BV29: 300000
A30: Whiteheart | B30: 3107 | D30: C | E30: 8 | F30: 8 | G30: 6 | H30: 7 | I30: D | J30: 9 | K30: - | L30: 8 | O30: Ag | U30: B | W30: 1 | X30: 0 | Y30: 4 | AA30: Na | AB30: Subsector D - Yelloworld | AC30: 0.5 | AD30: 3.5 | AE30: 4 | AF30: =INDEX($BB$26:BG$44,MATCH(AE30,$BA$26:$BA$44,-1),MATCH(D30,$BB$25:$BG$25)) -> 0 | AG30: 4 | AH30: 1 | AI30: 1 | AJ30: 1.2 | AK30: 1 | AL30: 1 | AM30: 1 | AN30: 2748 | AO30: 27480000000 | AP30: 150 | AQ30: 150 | AT30: 6 | AU30: 6 | AV30: 0.5 | AW30: 895 | AX30: 6 | AY30: 3 | BA30: 6 | BB30: 0 | BC30: -0.5 | BD30: -1 | BE30: -1.5 | BF30: -2 | BG30: -4.5 | BK30: 7 | BL30: 0 | BM30: 0 | BN30: 0 | BO30: 0 | BP30: 1 | BQ30: 2 | BR30: 20 | BS30: 200 | BT30: 2000 | BU30: 20000 | BV30: 200000
A31: Flandry | B31: 2602 | D31: B | E31: 6 | F31: 9 | G31: A | H31: 7 | I31: 9 | J31: 6 | K31: - | L31: A | N31: N | O31: Wa | U31: B | W31: 1 | X31: 2 | Y31: 0 | AA31: Na | AB31: Subsector D - Yelloworld | AC31: 1 | AD31: 3.5 | AE31: 4.5 | AF31: =INDEX($BB$26:BG$44,MATCH(AE31,$BA$26:$BA$44,-1),MATCH(D31,$BB$25:$BG$25)) -> 0 | AG31: 4.5 | AH31: 1 | AI31: 1 | AJ31: 1 | AK31: 1 | AL31: 1 | AM31: 1 | AN31: 5860 | AO31: 58600000000 | AP31: 100 | AQ31: 100 | AT31: 7 | AU31: 7 | AV31: 0.5 | AW31: 1430 | AX31: 7 | AY31: 3.5 | BA31: 5.5 | BB31: 0 | BC31: 0 | BD31: -0.5 | BE31: -1 | BF31: -1.5 | BG31: -4 | BK31: 8 | BL31: 0 | BM31: 0 | BN31: 0 | BO31: 0 | BP31: 0 | BQ31: 1 | BR31: 15 | BS31: 150 | BT31: 1500 | BU31: 15000 | BV31: 150000
A32: Laoyle | B32: 1821 | D32: E | E32: 6 | F32: 6 | G32: 5 | H32: 5 | I32: 3 | J32: 1 | K32: - | L32: 4 | O32: Ag | P32: Ni | W32: 6 | X32: 0 | Y32: 3 | AA32: I4 | AB32: Subsector K - Floe | AC32: 0 | AD32: 2.5 | AE32: 2.5 | AF32: =INDEX($BB$26:BG$44,MATCH(AE32,$BA$26:$BA$44,-1),MATCH(D32,$BB$25:$BG$25)) -> 0 | AG32: 2.5 | AH32: 1 | AI32: 1 | AJ32: 1.2 | AK32: 1 | AL32: 1 | AM32: 0.8 | AN32: 336 | AO32: 201600000 | AP32: 10 | AQ32: 60 | AT32: 8 | AU32: 8 | AV32: 0.5 | AW32: 2290 | AX32: 8 | AY32: 4 | BA32: 5 | BB32: 0 | BC32: 0 | BD32: -0.5 | BE32: -1 | BF32: -1.5 | BG32: -4 | BK32: 9 | BL32: 0 | BM32: 0 | BN32: 0 | BO32: 0 | BP32: 0 | BQ32: 1 | BR32: 12 | BS32: 120 | BT32: 1200 | BU32: 12000 | BV32: 120000
A33: Comerwake | B33: 1904 | D33: B | E33: 2 | F33: 6 | G33: 5 | H33: 6 | I33: 6 | J33: 9 | K33: - | L33: A | N33: N | O33: Ag | P33: Ni | Q33: Ri | U33: B | W33: 5 | X33: 0 | Y33: 3 | AA33: I2 | AB33: Subsector C - Wsi | AC33: 1 | AD33: 3 | AE33: 4 | AF33: =INDEX($BB$26:BG$44,MATCH(AE33,$BA$26:$BA$44,-1),MATCH(D33,$BB$25:$BG$25)) -> 0 | AG33: 4 | AH33: 1.6 | AI33: 1 | AJ33: 1.2 | AK33: 1 | AL33: 1 | AM33: 0.8 | AN33: 9000.96 | AO33: 4.50048e+10 | AP33: 10 | AQ33: 50 | AT33: 9 | AU33: 9 | AV33: 1 | AW33: 3660 | AX33: 9 | AY33: 4.5 | BA33: 4.5 | BB33: 0.5 | BC33: 0 | BD33: 0 | BE33: -0.5 | BF33: -1 | BG33: -3.5 | BK33: A | BL33: 0 | BM33: 0 | BN33: 0 | BO33: 0 | BP33: 0 | BQ33: 1 | BR33: 10 | BS33: 100 | BT33: 1000 | BU33: 10000 | BV33: 100000
A34: Roma | B34: 2037 | D34: E | E34: 6 | F34: 5 | G34: 6 | H34: 5 | I34: 4 | J34: 3 | K34: - | L34: 4 | O34: Ag | P34: Ni | W34: 5 | X34: 1 | Y34: 3 | AA34: Dr | AB34: Subsector O - Painted | AC34: 0 | AD34: 2.5 | AE34: 2.5 | AF34: =INDEX($BB$26:BG$44,MATCH(AE34,$BA$26:$BA$44,-1),MATCH(D34,$BB$25:$BG$25)) -> 0 | AG34: 2.5 | AH34: 1 | AI34: 1 | AJ34: 1.2 | AK34: 1 | AL34: 1 | AM34: 0.8 | AN34: 336 | AO34: 168000000 | AP34: 10 | AQ34: 50 | AT34: A | AU34: 10 | AV34: 1 | AW34: 5860 | AX34: A | AY34: 5 | BA34: 4 | BB34: 0.5 | BC34: 0 | BD34: 0 | BE34: -0.5 | BF34: -1 | BG34: -3.5 | BK34: B | BL34: 0 | BM34: 0 | BN34: 0 | BO34: 0 | BP34: 0 | BQ34: 0 | BR34: 7 | BS34: 70 | BT34: 700 | BU34: 7000 | BV34: 70000
A35: Avalon | B35: 933 | D35: C | E35: 8 | F35: 8 | G35: 6 | H35: 6 | I35: 7 | J35: 4 | K35: - | L35: 8 | O35: Ag | P35: Ni | Q35: Ri | U35: B | W35: 3 | X35: 0 | Y35: 2 | AA35: Nf | AB35: Subsector N - Sorrow | AC35: 0.5 | AD35: 3 | AE35: 3.5 | AF35: =INDEX($BB$26:BG$44,MATCH(AE35,$BA$26:$BA$44,-1),MATCH(D35,$BB$25:$BG$25)) -> 0 | AG35: 3.5 | AH35: 1.6 | AI35: 1 | AJ35: 1.2 | AK35: 1 | AL35: 1 | AM35: 0.8 | AN35: 3517.44 | AO35: 1.055232e+10 | AP35: 15 | AQ35: 45 | AT35: B | AU35: 11 | AV35: 1 | AW35: 9375 | AX35: B | AY35: 5.5 | BA35: 3.5 | BB35: 0.5 | BC35: 0.5 | BD35: 0 | BE35: 0 | BF35: -0.5 | BG35: -3 | BK35: C | BL35: 0 | BM35: 0 | BN35: 0 | BO35: 0 | BP35: 0 | BQ35: 0 | BR35: 5 | BS35: 50 | BT35: 500 | BU35: 5000 | BV35: 50000
A36: Justince | B36: 2211 | D36: B | E36: 9 | F36: 9 | G36: A | H36: 6 | I36: 5 | J36: C | K36: - | L36: A | N36: N | O36: Ni | P36: Wa | U36: B | W36: 4 | X36: 0 | Y36: 0 | AA36: Na | AB36: Subsector G - LightWaves | AC36: 1 | AD36: 3 | AE36: 4 | AF36: =INDEX($BB$26:BG$44,MATCH(AE36,$BA$26:$BA$44,-1),MATCH(D36,$BB$25:$BG$25)) -> 0 | AG36: 4 | AH36: 1 | AI36: 1 | AJ36: 1 | AK36: 1 | AL36: 1 | AM36: 0.8 | AN36: 4688 | AO36: 18752000000 | AP36: 10 | AQ36: 40 | AT36: C | AU36: 12 | AV36: 1.5 | AW36: 15000 | AX36: C | AY36: 6 | BA36: 3 | BB36: 0.5 | BC36: 0.5 | BD36: 0 | BE36: 0 | BF36: -0.5 | BG36: -3 | BK36: D | BL36: 0 | BM36: 0 | BN36: 0 | BO36: 0 | BP36: 0 | BQ36: 0 | BR36: 5 | BS36: 50 | BT36: 500 | BU36: 5000 | BV36: 50000
A37: Lifesphere | B37: 2434 | D37: C | E37: 4 | F37: 6 | G37: 6 | H37: 6 | I37: 7 | J37: 8 | K37: - | L37: 7 | O37: Ag | P37: Ni | Q37: Ri | U37: B | W37: 2 | X37: 1 | Y37: 3 | AA37: Dr | AB37: Subsector O - Painted | AC37: 0.5 | AD37: 3 | AE37: 3.5 | AF37: =INDEX($BB$26:BG$44,MATCH(AE37,$BA$26:$BA$44,-1),MATCH(D37,$BB$25:$BG$25)) -> 0 | AG37: 3.5 | AH37: 1.6 | AI37: 1 | AJ37: 1.2 | AK37: 1 | AL37: 1 | AM37: 0.8 | AN37: 2196.48 | AO37: 4392960000 | AP37: 20 | AQ37: 40 | AT37: D | AU37: 13 | AV37: 1.5 | AW37: 24400 | BA37: 2.5 | BB37: 1 | BC37: 0.5 | BD37: 0.5 | BE37: 0 | BF37: 0 | BG37: -2.5
A38: Ceskyi | B38: 706 | D38: E | E38: A | F38: 8 | G38: A | H38: 6 | I38: 7 | J38: 6 | K38: - | L38: 5 | O38: Ni | P38: Ri | Q38: Wa | U38: B | W38: 1 | X38: 1 | Y38: 3 | AA38: I1 | AB38: Subsector A - Nosso Nosso | AC38: 0 | AD38: 3 | AE38: 3 | AF38: =INDEX($BB$26:BG$44,MATCH(AE38,$BA$26:$BA$44,-1),MATCH(D38,$BB$25:$BG$25)) -> -0.5 | AG38: 2.5 | AH38: 1.6 | AI38: 1 | AJ38: 1 | AK38: 1 | AL38: 1 | AM38: 0.8 | AN38: 716.8 | AO38: 716800000 | AP38: 30 | AQ38: 30 | BA38: 2 | BB38: 1 | BC38: 0.5 | BD38: 0.5 | BE38: 0 | BF38: 0 | BG38: -2.5
A39: Duchy | B39: 609 | D39: B | E39: 7 | F39: 9 | G39: 9 | H39: 6 | I39: 4 | J39: 2 | K39: - | L39: A | O39: Ni | U39: B | W39: 3 | X39: 2 | Y39: 4 | AA39: Na | AB39: Subsector A - Nosso Nosso | AC39: 1 | AD39: 3 | AE39: 4 | AF39: =INDEX($BB$26:BG$44,MATCH(AE39,$BA$26:$BA$44,-1),MATCH(D39,$BB$25:$BG$25)) -> 0 | AG39: 4 | AH39: 1 | AI39: 1 | AJ39: 1 | AK39: 1 | AL39: 1 | AM39: 0.8 | AN39: 4688 | AO39: 14064000000 | AP39: 10 | AQ39: 30 | BA39: 1.5 | BB39: 1 | BC39: 1 | BD39: 0.5 | BE39: 0.5 | BF39: 0 | BG39: 0
A40: Leoin | B40: 806 | D40: C | E40: 7 | F40: 5 | G40: 8 | H40: 6 | I40: 7 | J40: 4 | K40: - | L40: 9 | O40: Ag | P40: Ni | U40: B | W40: 2 | X40: 0 | Y40: 3 | AA40: I1 | AB40: Subsector A - Nosso Nosso | AC40: 1 | AD40: 3 | AE40: 4 | AF40: =INDEX($BB$26:BG$44,MATCH(AE40,$BA$26:$BA$44,-1),MATCH(D40,$BB$25:$BG$25)) -> 0 | AG40: 4 | AH40: 1 | AI40: 1 | AJ40: 1.2 | AK40: 1 | AL40: 1 | AM40: 0.8 | AN40: 3513.6 | AO40: 7027200000 | AP40: 12 | AQ40: 24 | BA40: 1 | BB40: 1 | BC40: 1 | BD40: 0.5 | BE40: 0.5 | BF40: 0 | BG40: 0
A41: Pax Deorum | B41: 3012 | D41: C | E41: 5 | F41: 6 | G41: 3 | H41: 6 | I41: 5 | J41: 3 | K41: - | L41: 7 | O41: Ni | P41: Ri | U41: B | W41: 1 | X41: 0 | Y41: 3 | AA41: Na | AB41: Subsector H - Chanter | AC41: 0.5 | AD41: 3 | AE41: 3.5 | AF41: =INDEX($BB$26:BG$44,MATCH(AE41,$BA$26:$BA$44,-1),MATCH(D41,$BB$25:$BG$25)) -> 0 | AG41: 3.5 | AH41: 1.6 | AI41: 1 | AJ41: 1 | AK41: 1 | AL41: 1 | AM41: 0.8 | AN41: 1830.4 | AO41: 1830400000 | AP41: 20 | AQ41: 20 | BA41: 0.5 | BB41: 1.5 | BC41: 1 | BD41: 1 | BE41: 0.5 | BF41: 0.5 | BG41: 0
A42: Vieunia | B42: 2207 | D42: B | E42: A | F42: 8 | G42: A | H42: 6 | I42: 7 | J42: 8 | K42: - | L42: A | N42: N | O42: Ni | P42: Ri | Q42: Wa | U42: B | W42: 2 | X42: 0 | Y42: 0 | AA42: I2 | AB42: Subsector C - Wsi | AC42: 1 | AD42: 3 | AE42: 4 | AF42: =INDEX($BB$26:BG$44,MATCH(AE42,$BA$26:$BA$44,-1),MATCH(D42,$BB$25:$BG$25)) -> 0 | AG42: 4 | AH42: 1.6 | AI42: 1 | AJ42: 1 | AK42: 1 | AL42: 1 | AM42: 0.8 | AN42: 7500.8 | AO42: 15001600000 | AP42: 10 | AQ42: 20 | BA42: 0 | BB42: 1.5 | BC42: 1 | BD42: 1 | BE42: 0.5 | BF42: 0.5 | BG42: 0
A43: Yelloworld | B43: 2607 | D43: A | E43: 8 | F43: 5 | G43: 6 | H43: 6 | I43: 7 | J43: 6 | K43: - | L43: A | N43: N | O43: Ag | P43: Ni | U43: B | W43: 2 | X43: 2 | Y43: 0 | AA43: I2 | AB43: Subsector D - Yelloworld | AC43: 1 | AD43: 3 | AE43: 4 | AF43: =INDEX($BB$26:BG$44,MATCH(AE43,$BA$26:$BA$44,-1),MATCH(D43,$BB$25:$BG$25)) -> 0.5 | AG43: 4.5 | AH43: 1 | AI43: 1 | AJ43: 1.2 | AK43: 1 | AL43: 1 | AM43: 0.8 | AN43: 5625.6 | AO43: 11251200000 | AP43: 10 | AQ43: 20 | BA43: -0.5 | BB43: 1.5 | BC43: 1 | BD43: 1 | BE43: 0.5 | BF43: 0.5 | BG43: 0
A44: Kosh | B44: 2805 | D44: C | E44: 5 | F44: 3 | G44: 1 | H44: 5 | I44: 5 | J44: 3 | K44: - | L44: 7 | O44: Ni | P44: Po | W44: 6 | X44: 0 | Y44: 2 | AA44: Na | AB44: Subsector D - Yelloworld | AC44: 0.5 | AD44: 2.5 | AE44: 3 | AF44: =INDEX($BB$26:BG$44,MATCH(AE44,$BA$26:$BA$44,-1),MATCH(D44,$BB$25:$BG$25)) -> 0 | AG44: 3 | AH44: 1 | AI44: 1 | AJ44: 1 | AK44: 0.8 | AL44: 1 | AM44: 0.8 | AN44: 915.2 | AO44: 549120000 | AP44: 2 | AQ44: 12 | BA44: -1 | BB44: 1.5 | BC44: 1 | BD44: 1 | BE44: 0.5 | BF44: 0.5 | BG44: 0
A45: Mist | B45: 2005 | D45: B | E45: 7 | F45: 9 | G45: 5 | H45: 5 | I45: 5 | J45: 1 | K45: - | L45: 7 | O45: Ag | P45: Ni | W45: 6 | X45: 0 | Y45: 4 | AA45: I2 | AB45: Subsector C - Wsi | AC45: 0.5 | AD45: 2.5 | AE45: 3 | AF45: =INDEX($BB$26:BG$44,MATCH(AE45,$BA$26:$BA$44,-1),MATCH(D45,$BB$25:$BG$25)) -> 0.5 | AG45: 3.5 | AH45: 1 | AI45: 1 | AJ45: 1.2 | AK45: 1 | AL45: 1 | AM45: 0.8 | AN45: 1372.8 | AO45: 823680000 | AP45: 2 | AQ45: 12
A46: Tianik | B46: 2107 | D46: D | E46: 5 | F46: 7 | G46: 8 | H46: 5 | I46: 6 | J46: 7 | K46: - | L46: 3 | N46: S | O46: Ag | P46: Ni | W46: 1 | X46: 0 | Y46: 3 | AA46: I2 | AB46: Subsector C - Wsi | AC46: 0 | AD46: 2.5 | AE46: 2.5 | AF46: =INDEX($BB$26:BG$44,MATCH(AE46,$BA$26:$BA$44,-1),MATCH(D46,$BB$25:$BG$25)) -> 0 | AG46: 2.5 | AH46: 1 | AI46: 1 | AJ46: 1.2 | AK46: 1 | AL46: 1 | AM46: 0.8 | AN46: 211.2 | AO46: 21120000 | AP46: 10 | AQ46: 10
A47: Bluemarble | B47: 3205 | D47: C | E47: 7 | F47: 5 | G47: A | H47: 6 | I47: 5 | J47: 5 | K47: - | L47: A | O47: Ni | P47: Wa | U47: B | W47: 1 | X47: 0 | Y47: 2 | AA47: I2 | AB47: Subsector D - Yelloworld | AC47: 1 | AD47: 3 | AE47: 4 | AF47: =INDEX($BB$26:BG$44,MATCH(AE47,$BA$26:$BA$44,-1),MATCH(D47,$BB$25:$BG$25)) -> 0 | AG47: 4 | AH47: 1 | AI47: 1 | AJ47: 1 | AK47: 1 | AL47: 1 | AM47: 0.8 | AN47: 4688 | AO47: 4688000000 | AP47: 10 | AQ47: 10
A48: Samtara | B48: 1903 | D48: C | E48: 5 | F48: 6 | G48: 5 | H48: 6 | I48: 4 | J48: 7 | K48: - | L48: A | O48: Ag | P48: Ni | Q48: Ri | U48: B | W48: 1 | X48: 0 | Y48: 2 | AA48: I2 | AB48: Subsector C - Wsi | AC48: 1 | AD48: 3 | AE48: 4 | AF48: =INDEX($BB$26:BG$44,MATCH(AE48,$BA$26:$BA$44,-1),MATCH(D48,$BB$25:$BG$25)) -> 0 | AG48: 4 | AH48: 1.6 | AI48: 1 | AJ48: 1.2 | AK48: 1 | AL48: 1 | AM48: 0.8 | AN48: 9000.96 | AO48: 9000960000 | AP48: 10 | AQ48: 10
A49: Flame | B49: 1631 | D49: C | E49: 4 | F49: 4 | G49: 2 | H49: 4 | I49: 7 | J49: 8 | K49: - | L49: 5 | N49: S | O49: Ni | P49: Po | W49: 4 | X49: 1 | Y49: 3 | AA49: Nf | AB49: Subsector N - Sorrow | AC49: 0 | AD49: 2 | AE49: 2 | AF49: =INDEX($BB$26:BG$44,MATCH(AE49,$BA$26:$BA$44,-1),MATCH(D49,$BB$25:$BG$25)) -> 0.5 | AG49: 2.5 | AH49: 1 | AI49: 1 | AJ49: 1 | AK49: 0.8 | AL49: 1 | AM49: 0.8 | AN49: 358.4 | AO49: 14336000 | AP49: 2 | AQ49: 8
A50: Justice | B50: 1537 | D50: C | E50: 5 | F50: 3 | G50: 5 | H50: 4 | I50: 7 | J50: 4 | K50: - | L50: 6 | O50: Ni | W50: 4 | X50: 2 | Y50: 1 | AA50: Nf | AB50: Subsector N - Sorrow | AC50: 0.5 | AD50: 2 | AE50: 2.5 | AF50: =INDEX($BB$26:BG$44,MATCH(AE50,$BA$26:$BA$44,-1),MATCH(D50,$BB$25:$BG$25)) -> 0.5 | AG50: 3 | AH50: 1 | AI50: 1 | AJ50: 1 | AK50: 1 | AL50: 1 | AM50: 0.8 | AN50: 716 | AO50: 28640000 | AP50: 2 | AQ50: 8
A51: Paregin | B51: 407 | D51: D | E51: 3 | F51: 3 | G51: 6 | H51: 5 | I51: 4 | J51: 4 | K51: - | L51: 7 | O51: Ni | W51: 4 | X51: 1 | Y51: 0 | AA51: I1 | AB51: Subsector A - Nosso Nosso | AC51: 0.5 | AD51: 2.5 | AE51: 3 | AF51: =INDEX($BB$26:BG$44,MATCH(AE51,$BA$26:$BA$44,-1),MATCH(D51,$BB$25:$BG$25)) -> 0 | AG51: 3 | AH51: 1 | AI51: 1 | AJ51: 1 | AK51: 1 | AL51: 1 | AM51: 0.8 | AN51: 1144 | AO51: 457600000 | AP51: 2 | AQ51: 8
A52: Quajora | B52: 2109 | D52: C | E52: 8 | F52: A | G52: 5 | H52: 6 | I52: 4 | J52: 5 | K52: - | L52: B | N52: N | O52: Fl | P52: Ni | U52: B | W52: 1 | X52: 0 | Y52: 2 | AA52: Ic | AB52: Subsector C - Wsi | AC52: 1 | AD52: 3 | AE52: 4 | AF52: =INDEX($BB$26:BG$44,MATCH(AE52,$BA$26:$BA$44,-1),MATCH(D52,$BB$25:$BG$25)) -> 0 | AG52: 4 | AH52: 1 | AI52: 1 | AJ52: 1 | AK52: 1 | AL52: 0.8 | AM52: 0.8 | AN52: 6000 | AO52: 6000000000 | AP52: 7 | AQ52: 7
A53: Dreamworld | B53: 2105 | D53: C | E53: 6 | F53: 6 | G53: 5 | H53: 3 | I53: 4 | J53: 6 | K53: - | L53: 5 | O53: Lo | P53: Ni | W53: 6 | X53: 1 | Y53: 0 | AA53: I2 | AB53: Subsector C - Wsi | AC53: 0 | AD53: 1.5 | AE53: 1.5 | AF53: =INDEX($BB$26:BG$44,MATCH(AE53,$BA$26:$BA$44,-1),MATCH(D53,$BB$25:$BG$25)) -> 0.5 | AG53: 2 | AH53: 1 | AI53: 1 | AJ53: 1 | AK53: 1 | AL53: 1 | AM53: 0.8 | AN53: 448 | AO53: 2688000 | AP53: 1 | AQ53: 6
A54: Greenfield | B54: 2605 | D54: C | E54: 7 | F54: 7 | G54: 7 | H54: 4 | I54: 6 | J54: 4 | K54: - | L54: 7 | O54: Ni | W54: 6 | X54: 0 | Y54: 4 | AA54: I2 | AB54: Subsector D - Yelloworld | AC54: 0.5 | AD54: 2 | AE54: 2.5 | AF54: =INDEX($BB$26:BG$44,MATCH(AE54,$BA$26:$BA$44,-1),MATCH(D54,$BB$25:$BG$25)) -> 0.5 | AG54: 3 | AH54: 1 | AI54: 1 | AJ54: 1 | AK54: 1 | AL54: 1 | AM54: 0.8 | AN54: 1144 | AO54: 68640000 | AP54: 1 | AQ54: 6
A55: Sarde | B55: 1808 | D55: C | E55: 5 | F55: 5 | G55: 5 | H55: 3 | I55: 6 | J55: 6 | K55: - | L55: 6 | N55: A | O55: Lo | P55: Ni | W55: 6 | X55: 0 | Y55: 5 | AA55: I2 | AB55: Subsector C - Wsi | AC55: 0.5 | AD55: 1.5 | AE55: 2 | AF55: =INDEX($BB$26:BG$44,MATCH(AE55,$BA$26:$BA$44,-1),MATCH(D55,$BB$25:$BG$25)) -> 0.5 | AG55: 2.5 | AH55: 1 | AI55: 1 | AJ55: 1 | AK55: 1 | AL55: 1 | AM55: 0.8 | AN55: 716 | AO55: 4296000 | AP55: 1 | AQ55: 6
A56: Blackball | B56: 2031 | D56: X | E56: 2 | F56: 4 | G56: 1 | H56: 5 | I56: 8 | J56: 4 | K56: - | L56: 2 | O56: Ni | P56: Po | W56: 5 | X56: 1 | Y56: 3 | AA56: Dr | AB56: Subsector O - Painted | AC56: -0.5 | AD56: 2.5 | AE56: 2 | AF56: =INDEX($BB$26:BG$44,MATCH(AE56,$BA$26:$BA$44,-1),MATCH(D56,$BB$25:$BG$25)) -> -2.5 | AG56: -0.5 | AH56: 1 | AI56: 1 | AJ56: 1 | AK56: 0.8 | AL56: 1 | AM56: 0.8 | AN56: 86.4 | AO56: 43200000 | AP56: 1 | AQ56: 5
A57: Roland | B57: 601 | D57: D | E57: 3 | F57: 6 | G57: 3 | H57: 4 | I57: 4 | J57: 1 | K57: - | L57: 3 | O57: Ni | W57: 5 | X57: 0 | Y57: 3 | AA57: I1 | AB57: Subsector A - Nosso Nosso | AC57: 0 | AD57: 2 | AE57: 2 | AF57: =INDEX($BB$26:BG$44,MATCH(AE57,$BA$26:$BA$44,-1),MATCH(D57,$BB$25:$BG$25)) -> 0 | AG57: 2 | AH57: 1 | AI57: 1 | AJ57: 1 | AK57: 1 | AL57: 1 | AM57: 0.8 | AN57: 176 | AO57: 8800000 | AP57: 1 | AQ57: 5
A58: Geneva | B58: 2138 | D58: B | E58: 2 | F58: 4 | G58: 0 | H58: 5 | I58: 2 | J58: 3 | K58: - | L58: A | O58: De | P58: Ni | Q58: Po | R58: Cp | W58: 4 | X58: 2 | Y58: 1 | AA58: Dr | AB58: Subsector O - Painted | AC58: 1 | AD58: 2.5 | AE58: 3.5 | AF58: =INDEX($BB$26:BG$44,MATCH(AE58,$BA$26:$BA$44,-1),MATCH(D58,$BB$25:$BG$25)) -> 0.5 | AG58: 4 | AH58: 1 | AI58: 1 | AJ58: 1 | AK58: 0.8 | AL58: 0.8 | AM58: 0.8 | AN58: 3000.32 | AO58: 1200128000 | AP58: 1 | AQ58: 4
A59: Bitterend | B59: 1802 | D59: C | E59: 4 | F59: 2 | G59: 3 | H59: 3 | I59: 3 | J59: 5 | K59: - | L59: 6 | O59: Lo | P59: Ni | Q59: Po | W59: 3 | X59: 1 | Y59: 4 | AA59: I2 | AB59: Subsector C - Wsi | AC59: 0.5 | AD59: 1.5 | AE59: 2 | AF59: =INDEX($BB$26:BG$44,MATCH(AE59,$BA$26:$BA$44,-1),MATCH(D59,$BB$25:$BG$25)) -> 0.5 | AG59: 2.5 | AH59: 1 | AI59: 1 | AJ59: 1 | AK59: 0.8 | AL59: 1 | AM59: 0.8 | AN59: 572.8 | AO59: 1718400 | AP59: 1 | AQ59: 3
A60: Bubbles | B60: 701 | D60: C | E60: 5 | F60: 6 | G60: 3 | H60: 3 | I60: 5 | J60: 3 | K60: - | L60: 5 | N60: S | O60: Lo | P60: Ni | W60: 3 | X60: 2 | Y60: 2 | AA60: I1 | AB60: Subsector A - Nosso Nosso | AC60: 0 | AD60: 1.5 | AE60: 1.5 | AF60: =INDEX($BB$26:BG$44,MATCH(AE60,$BA$26:$BA$44,-1),MATCH(D60,$BB$25:$BG$25)) -> 0.5 | AG60: 2 | AH60: 1 | AI60: 1 | AJ60: 1 | AK60: 1 | AL60: 1 | AM60: 0.8 | AN60: 448 | AO60: 1344000 | AP60: 1 | AQ60: 3
A61: Curiosity | B61: 1112 | D61: C | E61: 5 | F61: 7 | G61: 7 | H61: 3 | I61: 8 | J61: A | K61: - | L61: 5 | O61: Lo | P61: Ni | W61: 3 | X61: 2 | Y61: 3 | AA61: I1 | AB61: Subsector F - NightVision | AC61: 0 | AD61: 1.5 | AE61: 1.5 | AF61: =INDEX($BB$26:BG$44,MATCH(AE61,$BA$26:$BA$44,-1),MATCH(D61,$BB$25:$BG$25)) -> 0.5 | AG61: 2 | AH61: 1 | AI61: 1 | AJ61: 1 | AK61: 1 | AL61: 1 | AM61: 0.8 | AN61: 448 | AO61: 1344000 | AP61: 1 | AQ61: 3
A62: Daskomo | B62: 2804 | D62: B | E62: 5 | F62: 3 | G62: 7 | H62: 5 | I62: 5 | J62: A | K62: - | L62: A | O62: Ni | W62: 3 | X62: 2 | Y62: 4 | AA62: Na | AB62: Subsector D - Yelloworld | AC62: 1 | AD62: 2.5 | AE62: 3.5 | AF62: =INDEX($BB$26:BG$44,MATCH(AE62,$BA$26:$BA$44,-1),MATCH(D62,$BB$25:$BG$25)) -> 0.5 | AG62: 4 | AH62: 1 | AI62: 1 | AJ62: 1 | AK62: 1 | AL62: 1 | AM62: 0.8 | AN62: 4688 | AO62: 1406400000 | AP62: 1 | AQ62: 3
A63: Imperator | B63: 3105 | D63: C | E63: 6 | F63: 5 | G63: 9 | H63: 5 | I63: 5 | J63: 4 | K63: - | L63: 2 | O63: Ni | W63: 3 | X63: 1 | Y63: 2 | AA63: I2 | AB63: Subsector D - Yelloworld | AC63: -0.5 | AD63: 2.5 | AE63: 2 | AF63: =INDEX($BB$26:BG$44,MATCH(AE63,$BA$26:$BA$44,-1),MATCH(D63,$BB$25:$BG$25)) -> 0.5 | AG63: 2.5 | AH63: 1 | AI63: 1 | AJ63: 1 | AK63: 1 | AL63: 1 | AM63: 0.8 | AN63: 108 | AO63: 32400000 | AP63: 1 | AQ63: 3
A64: Moscow | B64: 1937 | D64: A | E64: 2 | F64: 5 | G64: 4 | H64: 5 | I64: 7 | J64: 5 | K64: - | L64: A | O64: Ag | P64: Ni | W64: 3 | X64: 0 | Y64: 3 | AA64: Dr | AB64: Subsector O - Painted | AC64: 1 | AD64: 2.5 | AE64: 3.5 | AF64: =INDEX($BB$26:BG$44,MATCH(AE64,$BA$26:$BA$44,-1),MATCH(D64,$BB$25:$BG$25)) -> 0.5 | AG64: 4 | AH64: 1 | AI64: 1 | AJ64: 1.2 | AK64: 1 | AL64: 1 | AM64: 0.8 | AN64: 5625.6 | AO64: 1687680000 | AP64: 1 | AQ64: 3
A65: Cloudscape | B65: 2325 | D65: E | E65: 8 | F65: 8 | G65: 8 | H65: 4 | I65: 5 | J65: 2 | K65: - | L65: 3 | O65: Ni | W65: 2 | X65: 0 | Y65: 2 | AA65: Na | AB65: Subsector K - Floe | AC65: 0 | AD65: 2 | AE65: 2 | AF65: =INDEX($BB$26:BG$44,MATCH(AE65,$BA$26:$BA$44,-1),MATCH(D65,$BB$25:$BG$25)) -> 0 | AG65: 2 | AH65: 1 | AI65: 1 | AJ65: 1 | AK65: 1 | AL65: 1 | AM65: 0.8 | AN65: 176 | AO65: 3520000 | AP65: 1 | AQ65: 2
A66: Dusk | B66: 1706 | D66: E | E66: 2 | F66: 1 | G66: 0 | H66: 3 | I66: 7 | J66: 9 | K66: - | L66: 6 | O66: Lo | P66: Ni | W66: 2 | X66: 0 | Y66: 4 | AA66: I2 | AB66: Subsector C - Wsi | AC66: 0.5 | AD66: 1.5 | AE66: 2 | AF66: =INDEX($BB$26:BG$44,MATCH(AE66,$BA$26:$BA$44,-1),MATCH(D66,$BB$25:$BG$25)) -> 0 | AG66: 2 | AH66: 1 | AI66: 1 | AJ66: 1 | AK66: 1 | AL66: 0.8 | AM66: 0.8 | AN66: 572.8 | AO66: 1145600 | AP66: 1 | AQ66: 2
A67: Noble | B67: 1637 | D67: D | E67: 5 | F67: 1 | G67: 0 | H67: 3 | I67: 3 | J67: 4 | K67: - | L67: 5 | N67: S | O67: Lo | P67: Ni | W67: 2 | X67: 2 | Y67: 0 | AA67: Dr | AB67: Subsector N - Sorrow | AC67: 0 | AD67: 1.5 | AE67: 1.5 | AF67: =INDEX($BB$26:BG$44,MATCH(AE67,$BA$26:$BA$44,-1),MATCH(D67,$BB$25:$BG$25)) -> 0.5 | AG67: 2 | AH67: 1 | AI67: 1 | AJ67: 1 | AK67: 1 | AL67: 0.8 | AM67: 0.8 | AN67: 358.4 | AO67: 716800 | AP67: 1 | AQ67: 2
A68: Pacifica | B68: 2905 | D68: C | E68: 9 | F68: 8 | G68: A | H68: 5 | I68: 5 | J68: 4 | K68: - | L68: 9 | O68: Ni | P68: Wa | W68: 2 | X68: 2 | Y68: 5 | AA68: Na | AB68: Subsector D - Yelloworld | AC68: 1 | AD68: 2.5 | AE68: 3.5 | AF68: =INDEX($BB$26:BG$44,MATCH(AE68,$BA$26:$BA$44,-1),MATCH(D68,$BB$25:$BG$25)) -> 0 | AG68: 3.5 | AH68: 1 | AI68: 1 | AJ68: 1 | AK68: 1 | AL68: 1 | AM68: 0.8 | AN68: 2928 | AO68: 585600000 | AP68: 1 | AQ68: 2
A69: Sceptre | B69: 1430 | D69: C | E69: 2 | F69: 5 | G69: 1 | H69: 4 | I69: 1 | J69: 2 | K69: - | L69: 5 | N69: S | O69: Ni | P69: Po | W69: 1 | X69: 1 | Y69: 4 | AA69: Nf | AB69: Subsector J - Spirare | AC69: 0 | AD69: 2 | AE69: 2 | AF69: =INDEX($BB$26:BG$44,MATCH(AE69,$BA$26:$BA$44,-1),MATCH(D69,$BB$25:$BG$25)) -> 0.5 | AG69: 2.5 | AH69: 1 | AI69: 1 | AJ69: 1 | AK69: 0.8 | AL69: 1 | AM69: 0.8 | AN69: 358.4 | AO69: 3584000 | AP69: 2 | AQ69: 2
A70: Shadow | B70: 303 | D70: E | E70: 6 | F70: 7 | G70: 8 | H70: 4 | I70: 3 | J70: 1 | K70: - | L70: 4 | O70: Ni | W70: 2 | X70: 0 | Y70: 4 | AA70: I1 | AB70: Subsector A - Nosso Nosso | AC70: 0 | AD70: 2 | AE70: 2 | AF70: =INDEX($BB$26:BG$44,MATCH(AE70,$BA$26:$BA$44,-1),MATCH(D70,$BB$25:$BG$25)) -> 0 | AG70: 2 | AH70: 1 | AI70: 1 | AJ70: 1 | AK70: 1 | AL70: 1 | AM70: 0.8 | AN70: 280 | AO70: 5600000 | AP70: 1 | AQ70: 2
A71: Tokitre | B71: 2124 | D71: B | E71: 1 | F71: 5 | G71: 0 | H71: 5 | I71: 8 | J71: A | K71: - | L71: A | N71: S | O71: De | P71: Ni | Q71: Po | W71: 2 | X71: 0 | Y71: 5 | AA71: Na | AB71: Subsector K - Floe | AC71: 1 | AD71: 2.5 | AE71: 3.5 | AF71: =INDEX($BB$26:BG$44,MATCH(AE71,$BA$26:$BA$44,-1),MATCH(D71,$BB$25:$BG$25)) -> 0.5 | AG71: 4 | AH71: 1 | AI71: 1 | AJ71: 1 | AK71: 0.8 | AL71: 0.8 | AM71: 0.8 | AN71: 3000.32 | AO71: 600064000 | AP71: 1 | AQ71: 2
A72: Fastball | B72: 804 | D72: C | E72: 2 | F72: 0 | G72: 0 | H72: 5 | I72: 5 | J72: 1 | K72: - | L72: A | O72: Ni | P72: Va | W72: 1 | X72: 2 | Y72: 1 | AA72: I1 | AB72: Subsector A - Nosso Nosso | AC72: 1 | AD72: 2.5 | AE72: 3.5 | AF72: =INDEX($BB$26:BG$44,MATCH(AE72,$BA$26:$BA$44,-1),MATCH(D72,$BB$25:$BG$25)) -> 0 | AG72: 3.5 | AH72: 1 | AI72: 1 | AJ72: 1 | AK72: 1 | AL72: 0.8 | AM72: 0.8 | AN72: 3750.4 | AO72: 375040000 | AP72: 1 | AQ72: 1
A73: Icecap | B73: 1912 | D73: E | E73: 2 | F73: 0 | G73: 1 | H73: 4 | I73: 6 | J73: 6 | K73: - | L73: 4 | O73: Ic | P73: Ni | Q73: Va | W73: 1 | X73: 0 | Y73: 4 | AA73: I2 | AB73: Subsector G - LightWaves | AC73: 0 | AD73: 2 | AE73: 2 | AF73: =INDEX($BB$26:BG$44,MATCH(AE73,$BA$26:$BA$44,-1),MATCH(D73,$BB$25:$BG$25)) -> 0 | AG73: 2 | AH73: 1 | AI73: 1 | AJ73: 1 | AK73: 1 | AL73: 0.8 | AM73: 0.8 | AN73: 224 | AO73: 2240000 | AP73: 1 | AQ73: 1
A74: Ipinnae | B74: 1704 | D74: A | E74: 7 | F74: 3 | G74: A | H74: 5 | I74: 8 | J74: 7 | K74: - | L74: A | O74: Ni | P74: Wa | W74: 1 | X74: 0 | Y74: 4 | AA74: I2 | AB74: Subsector C - Wsi | AC74: 1 | AD74: 2.5 | AE74: 3.5 | AF74: =INDEX($BB$26:BG$44,MATCH(AE74,$BA$26:$BA$44,-1),MATCH(D74,$BB$25:$BG$25)) -> 0.5 | AG74: 4 | AH74: 1 | AI74: 1 | AJ74: 1 | AK74: 1 | AL74: 1 | AM74: 0.8 | AN74: 4688 | AO74: 468800000 | AP74: 1 | AQ74: 1
A75: Khii Eshkhima | B75: 1021 | D75: C | E75: 5 | F75: 2 | G75: 4 | H75: 3 | I75: 4 | J75: 5 | K75: - | L75: 5 | O75: Lo | P75: Ni | W75: 1 | X75: 2 | Y75: 4 | AA75: I3 | AB75: Subsector J - Spirare | AC75: 0 | AD75: 1.5 | AE75: 1.5 | AF75: =INDEX($BB$26:BG$44,MATCH(AE75,$BA$26:$BA$44,-1),MATCH(D75,$BB$25:$BG$25)) -> 0.5 | AG75: 2 | AH75: 1 | AI75: 1 | AJ75: 1 | AK75: 1 | AL75: 1 | AM75: 0.8 | AN75: 448 | AO75: 448000 | AP75: 1 | AQ75: 1
A76: Ranin | B76: 1708 | D76: D | E76: 7 | F76: 5 | G76: 5 | H76: 4 | I76: 7 | J76: 7 | K76: - | L76: 4 | O76: Ni | W76: 1 | X76: 0 | Y76: 4 | AA76: I1 | AB76: Subsector C - Wsi | AC76: 0 | AD76: 2 | AE76: 2 | AF76: =INDEX($BB$26:BG$44,MATCH(AE76,$BA$26:$BA$44,-1),MATCH(D76,$BB$25:$BG$25)) -> 0 | AG76: 2 | AH76: 1 | AI76: 1 | AJ76: 1 | AK76: 1 | AL76: 1 | AM76: 0.8 | AN76: 280 | AO76: 2800000 | AP76: 1 | AQ76: 1
A77: Risen | B77: 2808 | D77: D | E77: 5 | F77: 7 | G77: 4 | H77: 4 | I77: 4 | J77: 1 | K77: - | L77: 4 | O77: Ni | W77: 1 | X77: 1 | Y77: 4 | AA77: I2 | AB77: Subsector D - Yelloworld | AC77: 0 | AD77: 2 | AE77: 2 | AF77: =INDEX($BB$26:BG$44,MATCH(AE77,$BA$26:$BA$44,-1),MATCH(D77,$BB$25:$BG$25)) -> 0 | AG77: 2 | AH77: 1 | AI77: 1 | AJ77: 1 | AK77: 1 | AL77: 1 | AM77: 0.8 | AN77: 280 | AO77: 2800000 | AP77: 1 | AQ77: 1
A78: Waves | B78: 2603 | D78: D | E78: A | F78: 7 | G78: A | H78: 4 | I78: 2 | J78: 0 | K78: - | L78: 7 | N78: S | O78: Ni | P78: Wa | W78: 1 | X78: 1 | Y78: 3 | AA78: I2 | AB78: Subsector D - Yelloworld | AC78: 0.5 | AD78: 2 | AE78: 2.5 | AF78: =INDEX($BB$26:BG$44,MATCH(AE78,$BA$26:$BA$44,-1),MATCH(D78,$BB$25:$BG$25)) -> 0 | AG78: 2.5 | AH78: 1 | AI78: 1 | AJ78: 1 | AK78: 1 | AL78: 1 | AM78: 0.8 | AN78: 1144 | AO78: 11440000 | AP78: 1 | AQ78: 1
A79: Abe-ku | B79: 2438 | D79: X | E79: 6 | F79: 6 | G79: 8 | H79: 0 | I79: 0 | J79: 0 | K79: - | L79: 0 | O79: Ba | P79: Lo | Q79: Ni | W79: 0 | X79: 1 | Y79: 2 | AA79: Ba | AB79: Subsector O - Painted | AC79: -0.5 | AD79: 0 | AE79: -0.5 | AF79: =INDEX($BB$26:BG$44,MATCH(AE79,$BA$26:$BA$44,-1),MATCH(D79,$BB$25:$BG$25)) -> 0 | AG79: -0.5 | AH79: 1 | AI79: 1 | AJ79: 1 | AK79: 1 | AL79: 1 | AM79: 0.8 | AN79: 44 | AO79: 0 | AP79: 0 | AQ79: 0
A80: Adama | B80: 1936 | D80: C | E80: 8 | F80: A | G80: 3 | H80: 3 | I80: 3 | J80: 2 | K80: - | L80: A | O80: Fl | P80: Lo | Q80: Ni | W80: 4 | X80: 0 | Y80: 4 | AA80: Dr | AB80: Subsector O - Painted | AC80: 1 | AD80: 1.5 | AE80: 2.5 | AF80: =INDEX($BB$26:BG$44,MATCH(AE80,$BA$26:$BA$44,-1),MATCH(D80,$BB$25:$BG$25)) -> 0.5 | AG80: 3 | AH80: 1 | AI80: 1 | AJ80: 1 | AK80: 1 | AL80: 0.8 | AM80: 0.8 | AN80: 3750.4 | AO80: 15001600 | AP80: 0 | AQ80: 0
A81: Adoria | B81: 2633 | D81: X | E81: 6 | F81: 5 | G81: 7 | H81: 0 | I81: 0 | J81: 0 | K81: - | L81: 0 | O81: Ba | P81: Lo | Q81: Ni | W81: 0 | X81: 1 | Y81: 0 | AA81: Ba | AB81: Subsector P - Chamber | AC81: -0.5 | AD81: 0 | AE81: -0.5 | AF81: =INDEX($BB$26:BG$44,MATCH(AE81,$BA$26:$BA$44,-1),MATCH(D81,$BB$25:$BG$25)) -> 0 | AG81: -0.5 | AH81: 1 | AI81: 1 | AJ81: 1 | AK81: 1 | AL81: 1 | AM81: 0.8 | AN81: 44 | AO81: 0 | AP81: 0 | AQ81: 0
A82: Akcja | B82: 2635 | D82: X | E82: 4 | F82: 0 | G82: 1 | H82: 0 | I82: 0 | J82: 0 | K82: - | L82: 0 | O82: Ba | P82: Ic | Q82: Lo | R82: Ni | S82: Va | W82: 0 | X82: 0 | Y82: 3 | AA82: Ba | AB82: Subsector P - Chamber | AC82: -0.5 | AD82: 0 | AE82: -0.5 | AF82: =INDEX($BB$26:BG$44,MATCH(AE82,$BA$26:$BA$44,-1),MATCH(D82,$BB$25:$BG$25)) -> 0 | AG82: -0.5 | AH82: 1 | AI82: 1 | AJ82: 1 | AK82: 1 | AL82: 0.8 | AM82: 0.8 | AN82: 35.2 | AO82: 0 | AP82: 0 | AQ82: 0
A83: Alkhalikoi | B83: 2407 | D83: E | E83: 2 | F83: 0 | G83: 0 | H83: 2 | I83: 4 | J83: 6 | K83: - | L83: 5 | O83: Lo | P83: Ni | Q83: Va | W83: 6 | X83: 0 | Y83: 2 | AA83: I2 | AB83: Subsector C - Wsi | AC83: 0 | AD83: 1 | AE83: 1 | AF83: =INDEX($BB$26:BG$44,MATCH(AE83,$BA$26:$BA$44,-1),MATCH(D83,$BB$25:$BG$25)) -> 0 | AG83: 1 | AH83: 1 | AI83: 1 | AJ83: 1 | AK83: 1 | AL83: 0.8 | AM83: 0.8 | AN83: 358.4 | AO83: 215040 | AP83: 0 | AQ83: 0
A84: Alluvia | B84: 532 | D84: X | E84: 6 | F84: 7 | G84: 4 | H84: 0 | I84: 0 | J84: 0 | K84: - | L84: 0 | O84: Ba | P84: Lo | Q84: Ni | W84: 0 | X84: 1 | Y84: 3 | AA84: Ba | AB84: Subsector M - Glossalalia | AC84: =VLOOKUP(L84,$AT$23:$AV$40,3) -> -0.5 | AD84: =VLOOKUP(H84,$AX$23:$AY$36,2) -> 0 | AE84: =AC84+AD84 -> -0.5 | AF84: =INDEX($BB$26:BG$44,MATCH(AE84,$BA$26:$BA$44,-1),MATCH(D84,$BB$25:$BG$25)) -> 0 | AG84: =AE84+AF84 -> -0.5 | AH84: 1 | AI84: 1 | AJ84: 1 | AK84: 1 | AL84: 1 | AM84: 0.8 | AN84: =(VLOOKUP(L84,$AT$23:$AW$40,4))*AH84*AI84*AJ84*AK84*AL84*AM84 -> 44 | AO84: =AN84*((10^H84)*W84) -> 0 | AP84: =INDEX($BL$23:$BV$36,MATCH(L84,$BK$23:$BK$36),MATCH(H84,$BL$22:$BV$22)) -> 0 | AQ84: =AP84*W84 -> 0
A85: Amber | B85: 2735 | D85: X | E85: 7 | F85: 6 | G85: 7 | H85: 0 | I85: 0 | J85: 0 | K85: - | L85: 0 | O85: Ba | P85: Lo | Q85: Ni | W85: 0 | X85: 1 | Y85: 4 | AA85: Ba | AB85: Subsector P - Chamber | AC85: -0.5 | AD85: 0 | AE85: -0.5 | AF85: =INDEX($BB$26:BG$44,MATCH(AE85,$BA$26:$BA$44,-1),MATCH(D85,$BB$25:$BG$25)) -> 0 | AG85: -0.5 | AH85: 1 | AI85: 1 | AJ85: 1 | AK85: 1 | AL85: 1 | AM85: 0.8 | AN85: 44 | AO85: 0 | AP85: 0 | AQ85: 0
A86: Amethystium | B86: 1425 | D86: E | E86: R | F86: 0 | G86: 4 | H86: 4 | I86: B | J86: C | K86: - | L86: 8 | O86: Ic | P86: Ni | Q86: Va | W86: 3 | X86: 1 | Y86: 3 | AA86: Na | AB86: Subsector J - Spirare | AC86: 0.5 | AD86: 2 | AE86: 2.5 | AF86: =INDEX($BB$26:BG$44,MATCH(AE86,$BA$26:$BA$44,-1),MATCH(D86,$BB$25:$BG$25)) -> 0 | AG86: 2.5 | AH86: 1 | AI86: 1 | AJ86: 1 | AK86: 1 | AL86: 0.8 | AM86: 0.8 | AN86: 1465.6 | AO86: 43968000 | AP86: 0 | AQ86: 0
A87: Anasazi | B87: 506 | D87: D | E87: 5 | F87: 3 | G87: 1 | H87: 4 | I87: 7 | J87: 7 | K87: - | L87: B | O87: Ni | P87: Po | W87: 4 | X87: 0 | Y87: 0 | AA87: I1 | AB87: Subsector A - Nosso Nosso | AC87: 1 | AD87: 2 | AE87: 3 | AF87: =INDEX($BB$26:BG$44,MATCH(AE87,$BA$26:$BA$44,-1),MATCH(D87,$BB$25:$BG$25)) -> 0 | AG87: 3 | AH87: 1 | AI87: 1 | AJ87: 1 | AK87: 0.8 | AL87: 1 | AM87: 0.8 | AN87: 6000 | AO87: 240000000 | AP87: 0 | AQ87: 0
A88: Andecy | B88: 138 | D88: X | E88: 7 | F88: 4 | G88: A | H88: 0 | I88: 0 | J88: 0 | K88: - | L88: 0 | O88: Ba | P88: Lo | Q88: Ni | R88: Wa | W88: 0 | X88: 2 | Y88: 4 | AA88: Ba | AB88: Subsector M - Glossalalia | AC88: -0.5 | AD88: 0 | AE88: -0.5 | AF88: =INDEX($BB$26:BG$44,MATCH(AE88,$BA$26:$BA$44,-1),MATCH(D88,$BB$25:$BG$25)) -> 0 | AG88: -0.5 | AH88: 1 | AI88: 1 | AJ88: 1 | AK88: 1 | AL88: 1 | AM88: 0.8 | AN88: 44 | AO88: 0 | AP88: 0 | AQ88: 0
A89: Angelicus | B89: 1502 | D89: D | E89: 4 | F89: 0 | G89: 4 | H89: 1 | I89: 4 | J89: 2 | K89: - | L89: 7 | N89: S | O89: Ic | P89: Lo | Q89: Ni | R89: Va | W89: 3 | X89: 0 | Y89: 5 | AA89: I2 | AB89: Subsector B - Mu | AC89: 0.5 | AD89: 0.5 | AE89: 1 | AF89: =INDEX($BB$26:BG$44,MATCH(AE89,$BA$26:$BA$44,-1),MATCH(D89,$BB$25:$BG$25)) -> 0.5 | AG89: 1.5 | AH89: 1 | AI89: 1 | AJ89: 1 | AK89: 1 | AL89: 0.8 | AM89: 0.8 | AN89: 915.2 | AO89: 27456 | AP89: 0 | AQ89: 0
A90: Anointed | B90: 1332 | D90: E | E90: 7 | F90: 6 | G90: A | H90: 0 | I90: 1 | J90: 2 | K90: - | L90: 5 | O90: Lo | P90: Ni | Q90: Wa | W90: 5 | X90: 0 | Y90: 4 | AA90: Nf | AB90: Subsector N - Sorrow | AC90: 0 | AD90: 0 | AE90: 0 | AF90: =INDEX($BB$26:BG$44,MATCH(AE90,$BA$26:$BA$44,-1),MATCH(D90,$BB$25:$BG$25)) -> 0.5 | AG90: 0.5 | AH90: 1 | AI90: 1 | AJ90: 1 | AK90: 1 | AL90: 1 | AM90: 0.8 | AN90: 448 | AO90: 2240 | AP90: 0 | AQ90: 0
A91: Anton | B91: 1717 | D91: D | E91: 6 | F91: 4 | G91: 8 | H91: 3 | I91: 1 | J91: 2 | K91: - | L91: 2 | O91: Lo | P91: Ni | W91: 6 | X91: 0 | Y91: 4 | AA91: I4 | AB91: Subsector G - LightWaves | AC91: -0.5 | AD91: 1.5 | AE91: 1 | AF91: =INDEX($BB$26:BG$44,MATCH(AE91,$BA$26:$BA$44,-1),MATCH(D91,$BB$25:$BG$25)) -> 0.5 | AG91: 1.5 | AH91: 1 | AI91: 1 | AJ91: 1 | AK91: 1 | AL91: 1 | AM91: 0.8 | AN91: 108 | AO91: 648000 | AP91: 0 | AQ91: 0
A92: Aqualine | B92: 1004 | D92: E | E92: 9 | F92: A | G92: 6 | H92: 0 | I92: 0 | J92: 2 | K92: - | L92: A | O92: Fl | P92: Lo | Q92: Ni | W92: 7 | X92: 2 | Y92: 4 | AA92: I1 | AB92: Subsector B - Mu | AC92: 1 | AD92: 0 | AE92: 1 | AF92: =INDEX($BB$26:BG$44,MATCH(AE92,$BA$26:$BA$44,-1),MATCH(D92,$BB$25:$BG$25)) -> 0 | AG92: 1 | AH92: 1 | AI92: 1 | AJ92: 1 | AK92: 1 | AL92: 0.8 | AM92: 0.8 | AN92: 3750.4 | AO92: 26252.8 | AP92: 0 | AQ92: 0
A93: Arcoyali | B93: 938 | D93: X | E93: 5 | F93: 4 | G93: 8 | H93: 0 | I93: 0 | J93: 0 | K93: - | L93: 0 | O93: Ba | P93: Lo | Q93: Ni | W93: 0 | X93: 1 | Y93: 4 | AA93: Ba | AB93: Subsector N - Sorrow | AC93: -0.5 | AD93: 0 | AE93: -0.5 | AF93: =INDEX($BB$26:BG$44,MATCH(AE93,$BA$26:$BA$44,-1),MATCH(D93,$BB$25:$BG$25)) -> 0 | AG93: -0.5 | AH93: 1 | AI93: 1 | AJ93: 1 | AK93: 1 | AL93: 1 | AM93: 0.8 | AN93: 44 | AO93: 0 | AP93: 0 | AQ93: 0
A94: Arikeshmundin | B94: 918 | D94: D | E94: 5 | F94: A | G94: 4 | H94: 2 | I94: 6 | J94: 3 | K94: - | L94: 6 | N94: S | O94: Fl | P94: Lo | Q94: Ni | W94: 7 | X94: 0 | Y94: 3 | AA94: I3 | AB94: Subsector F - NightVision | AC94: 0.5 | AD94: 1 | AE94: 1.5 | AF94: =INDEX($BB$26:BG$44,MATCH(AE94,$BA$26:$BA$44,-1),MATCH(D94,$BB$25:$BG$25)) -> 0.5 | AG94: 2 | AH94: 1 | AI94: 1 | AJ94: 1 | AK94: 1 | AL94: 0.8 | AM94: 0.8 | AN94: 572.8 | AO94: 400960 | AP94: 0 | AQ94: 0
A95: Ashkige | B95: 1018 | D95: D | E95: 4 | F95: 3 | G95: 3 | H95: 2 | I95: 1 | J95: 3 | K95: - | L95: 6 | O95: Lo | P95: Ni | Q95: Po | W95: 1 | X95: 1 | Y95: 3 | AA95: I3 | AB95: Subsector F - NightVision | AC95: 0.5 | AD95: 1 | AE95: 1.5 | AF95: =INDEX($BB$26:BG$44,MATCH(AE95,$BA$26:$BA$44,-1),MATCH(D95,$BB$25:$BG$25)) -> 0.5 | AG95: 2 | AH95: 1 | AI95: 1 | AJ95: 1 | AK95: 0.8 | AL95: 1 | AM95: 0.8 | AN95: 572.8 | AO95: 57280 | AP95: 0 | AQ95: 0
A96: Atlanta | B96: 235 | D96: X | E96: 6 | F96: 4 | G96: A | H96: 0 | I96: 0 | J96: 0 | K96: - | L96: 0 | O96: Ba | P96: Lo | Q96: Ni | R96: Wa | W96: 0 | X96: 2 | Y96: 4 | AA96: Ba | AB96: Subsector M - Glossalalia | AC96: -0.5 | AD96: 0 | AE96: -0.5 | AF96: =INDEX($BB$26:BG$44,MATCH(AE96,$BA$26:$BA$44,-1),MATCH(D96,$BB$25:$BG$25)) -> 0 | AG96: -0.5 | AH96: 1 | AI96: 1 | AJ96: 1 | AK96: 1 | AL96: 1 | AM96: 0.8 | AN96: 44 | AO96: 0 | AP96: 0 | AQ96: 0
A97: Auxil | B97: 3208 | D97: X | E97: 2 | F97: 2 | G97: 0 | H97: 0 | I97: 0 | J97: 0 | K97: - | L97: 0 | O97: Ba | P97: De | Q97: Lo | R97: Ni | S97: Po | W97: 0 | X97: 1 | Y97: 4 | AA97: Ba | AB97: Subsector D - Yelloworld | AC97: -0.5 | AD97: 0 | AE97: -0.5 | AF97: =INDEX($BB$26:BG$44,MATCH(AE97,$BA$26:$BA$44,-1),MATCH(D97,$BB$25:$BG$25)) -> 0 | AG97: -0.5 | AH97: 1 | AI97: 1 | AJ97: 1 | AK97: 0.8 | AL97: 0.8 | AM97: 0.8 | AN97: 28.16 | AO97: 0 | AP97: 0 | AQ97: 0
A98: Bakedcrust | B98: 2731 | D98: X | E98: 5 | F98: 5 | G98: 8 | H98: 0 | I98: 0 | J98: 0 | K98: - | L98: 0 | O98: Ba | P98: Lo | Q98: Ni | W98: 0 | X98: 0 | Y98: 4 | AA98: Ba | AB98: Subsector P - Chamber | AC98: -0.5 | AD98: 0 | AE98: -0.5 | AF98: =INDEX($BB$26:BG$44,MATCH(AE98,$BA$26:$BA$44,-1),MATCH(D98,$BB$25:$BG$25)) -> 0 | AG98: -0.5 | AH98: 1 | AI98: 1 | AJ98: 1 | AK98: 1 | AL98: 1 | AM98: 0.8 | AN98: 44 | AO98: 0 | AP98: 0 | AQ98: 0
A99: Basia | B99: 2733 | D99: X | E99: 6 | F99: 4 | G99: 2 | H99: 0 | I99: 0 | J99: 0 | K99: - | L99: 0 | O99: Ba | P99: Lo | Q99: Ni | R99: Po | W99: 0 | X99: 1 | Y99: 4 | AA99: Ba | AB99: Subsector P - Chamber | AC99: -0.5 | AD99: 0 | AE99: -0.5 | AF99: =INDEX($BB$26:BG$44,MATCH(AE99,$BA$26:$BA$44,-1),MATCH(D99,$BB$25:$BG$25)) -> 0 | AG99: -0.5 | AH99: 1 | AI99: 1 | AJ99: 1 | AK99: 1 | AL99: 1 | AM99: 0.8 | AN99: 44 | AO99: 0 | AP99: 0 | AQ99: 0
A100: Bensusan | B100: 333 | D100: X | E100: 3 | F100: 2 | G100: 3 | H100: 0 | I100: 0 | J100: 0 | K100: - | L100: 0 | O100: Ba | P100: Lo | Q100: Ni | R100: Po | W100: 0 | X100: 1 | Y100: 2 | AA100: Ba | AB100: Subsector M - Glossalalia | AC100: -0.5 | AD100: 0 | AE100: -0.5 | AF100: =INDEX($BB$26:BG$44,MATCH(AE100,$BA$26:$BA$44,-1),MATCH(D100,$BB$25:$BG$25)) -> 0 | AG100: -0.5 | AH100: 1 | AI100: 1 | AJ100: 1 | AK100: 1 | AL100: 1 | AM100: 0.8 | AN100: 44 | AO100: 0 | AP100: 0 | AQ100: 0
A101: Blackbone | B101: 2601 | D101: X | E101: 9 | F101: A | G101: 6 | H101: 0 | I101: 0 | J101: 0 | K101: - | L101: 0 | O101: Ba | P101: Fl | Q101: Lo | R101: Ni | W101: 0 | X101: 2 | Y101: 0 | AA101: Ba | AB101: Subsector D - Yelloworld | AC101: -0.5 | AD101: 0 | AE101: -0.5 | AF101: =INDEX($BB$26:BG$44,MATCH(AE101,$BA$26:$BA$44,-1),MATCH(D101,$BB$25:$BG$25)) -> 0 | AG101: -0.5 | AH101: 1 | AI101: 1 | AJ101: 1 | AK101: 1 | AL101: 0.8 | AM101: 0.8 | AN101: 35.2 | AO101: 0 | AP101: 0 | AQ101: 0
A102: Blight | B102: 2608 | D102: X | E102: 1 | F102: 1 | G102: 0 | H102: 1 | I102: 1 | J102: 1 | K102: - | L102: 9 | O102: Lo | P102: Ni | W102: 1 | X102: 1 | Y102: 4 | AA102: I2 | AB102: Subsector D - Yelloworld | AC102: 1 | AD102: 0.5 | AE102: 1.5 | AF102: =INDEX($BB$26:BG$44,MATCH(AE102,$BA$26:$BA$44,-1),MATCH(D102,$BB$25:$BG$25)) -> 0 | AG102: 1.5 | AH102: 1 | AI102: 1 | AJ102: 1 | AK102: 1 | AL102: 0.8 | AM102: 0.8 | AN102: 2342.4 | AO102: 23424 | AP102: 0 | AQ102: 0
A103: Bluenote | B103: 3235 | D103: X | E103: 4 | F103: 2 | G103: 8 | H103: 0 | I103: 0 | J103: 0 | K103: - | L103: 0 | O103: Ba | P103: Lo | Q103: Ni | W103: 0 | X103: 1 | Y103: 3 | AA103: Ba | AB103: Subsector P - Chamber | AC103: -0.5 | AD103: 0 | AE103: -0.5 | AF103: =INDEX($BB$26:BG$44,MATCH(AE103,$BA$26:$BA$44,-1),MATCH(D103,$BB$25:$BG$25)) -> 0 | AG103: -0.5 | AH103: 1 | AI103: 1 | AJ103: 1 | AK103: 1 | AL103: 1 | AM103: 0.8 | AN103: 44 | AO103: 0 | AP103: 0 | AQ103: 0
A104: Bombay | B104: 1602 | D104: D | E104: 7 | F104: B | G104: 0 | H104: 0 | I104: 1 | J104: 2 | K104: - | L104: 4 | O104: De | P104: Lo | Q104: Ni | W104: 5 | X104: 1 | Y104: 3 | AA104: I1 | AB104: Subsector B - Mu | AC104: 0 | AD104: 0 | AE104: 0 | AF104: =INDEX($BB$26:BG$44,MATCH(AE104,$BA$26:$BA$44,-1),MATCH(D104,$BB$25:$BG$25)) -> 0.5 | AG104: 0.5 | AH104: 1 | AI104: 1 | AJ104: 1 | AK104: 1 | AL104: 0.8 | AM104: 0.8 | AN104: 224 | AO104: 1120 | AP104: 0 | AQ104: 0
A105: Bond | B105: 1824 | D105: C | E105: 3 | F105: 2 | G105: 5 | H105: 4 | I105: 9 | J105: B | K105: - | L105: A | O105: Ni | W105: 7 | X105: 0 | Y105: 3 | AA105: Na | AB105: Subsector K - Floe | AC105: 1 | AD105: 2 | AE105: 3 | AF105: =INDEX($BB$26:BG$44,MATCH(AE105,$BA$26:$BA$44,-1),MATCH(D105,$BB$25:$BG$25)) -> 0 | AG105: 3 | AH105: 1 | AI105: 1 | AJ105: 1 | AK105: 1 | AL105: 1 | AM105: 0.8 | AN105: 4688 | AO105: 328160000 | AP105: 0 | AQ105: 0
A106: Brownfield | B106: 3209 | D106: X | E106: 6 | F106: 4 | G106: 6 | H106: 0 | I106: 0 | J106: 0 | K106: - | L106: 0 | O106: Ba | P106: Lo | Q106: Ni | W106: 0 | X106: 1 | Y106: 0 | AA106: Ba | AB106: Subsector D - Yelloworld | AC106: -0.5 | AD106: 0 | AE106: -0.5 | AF106: =INDEX($BB$26:BG$44,MATCH(AE106,$BA$26:$BA$44,-1),MATCH(D106,$BB$25:$BG$25)) -> 0 | AG106: -0.5 | AH106: 1 | AI106: 1 | AJ106: 1 | AK106: 1 | AL106: 1 | AM106: 0.8 | AN106: 44 | AO106: 0 | AP106: 0 | AQ106: 0
A107: Bubbles | B107: 3032 | D107: X | E107: A | F107: 7 | G107: A | H107: 0 | I107: 0 | J107: 0 | K107: - | L107: 0 | O107: Ba | P107: Lo | Q107: Ni | R107: Wa | W107: 0 | X107: 0 | Y107: 0 | AA107: Ba | AB107: Subsector P - Chamber | AC107: -0.5 | AD107: 0 | AE107: -0.5 | AF107: =INDEX($BB$26:BG$44,MATCH(AE107,$BA$26:$BA$44,-1),MATCH(D107,$BB$25:$BG$25)) -> 0 | AG107: -0.5 | AH107: 1 | AI107: 1 | AJ107: 1 | AK107: 1 | AL107: 1 | AM107: 0.8 | AN107: 44 | AO107: 0 | AP107: 0 | AQ107: 0
A108: Caccia | B108: 2540 | D108: X | E108: 4 | F108: 0 | G108: 0 | H108: 0 | I108: 0 | J108: 0 | K108: - | L108: 0 | O108: Ba | P108: Lo | Q108: Ni | R108: Va | W108: 0 | X108: 0 | Y108: 4 | AA108: Ba | AB108: Subsector P - Chamber | AC108: -0.5 | AD108: 0 | AE108: -0.5 | AF108: =INDEX($BB$26:BG$44,MATCH(AE108,$BA$26:$BA$44,-1),MATCH(D108,$BB$25:$BG$25)) -> 0 | AG108: -0.5 | AH108: 1 | AI108: 1 | AJ108: 1 | AK108: 1 | AL108: 0.8 | AM108: 0.8 | AN108: 35.2 | AO108: 0 | AP108: 0 | AQ108: 0
A109: Calantha | B109: 538 | D109: X | E109: 2 | F109: 5 | G109: 2 | H109: 0 | I109: 0 | J109: 0 | K109: - | L109: 0 | O109: Ba | P109: Lo | Q109: Ni | R109: Po | W109: 0 | X109: 0 | Y109: 2 | AA109: Ba | AB109: Subsector M - Glossalalia | AC109: -0.5 | AD109: 0 | AE109: -0.5 | AF109: =INDEX($BB$26:BG$44,MATCH(AE109,$BA$26:$BA$44,-1),MATCH(D109,$BB$25:$BG$25)) -> 0 | AG109: -0.5 | AH109: 1 | AI109: 1 | AJ109: 1 | AK109: 1 | AL109: 1 | AM109: 0.8 | AN109: 44 | AO109: 0 | AP109: 0 | AQ109: 0
A110: Captivity | B110: 2210 | D110: X | E110: 7 | F110: 6 | G110: 7 | H110: 4 | I110: 4 | J110: 4 | K110: - | L110: 2 | O110: Ni | W110: 2 | X110: 0 | Y110: 3 | AA110: I2 | AB110: Subsector C - Wsi | AC110: -0.5 | AD110: 2 | AE110: 1.5 | AF110: =INDEX($BB$26:BG$44,MATCH(AE110,$BA$26:$BA$44,-1),MATCH(D110,$BB$25:$BG$25)) -> 0 | AG110: 1.5 | AH110: 1 | AI110: 1 | AJ110: 1 | AK110: 1 | AL110: 1 | AM110: 0.8 | AN110: 108 | AO110: 2160000 | AP110: 0 | AQ110: 0
A111: Castor | B111: 1237 | D111: X | E111: 5 | F111: 9 | G111: 5 | H111: 0 | I111: 0 | J111: 0 | K111: - | L111: 0 | O111: Ba | P111: Lo | Q111: Ni | W111: 0 | X111: 0 | Y111: 3 | AA111: Ba | AB111: Subsector N - Sorrow | AC111: -0.5 | AD111: 0 | AE111: -0.5 | AF111: =INDEX($BB$26:BG$44,MATCH(AE111,$BA$26:$BA$44,-1),MATCH(D111,$BB$25:$BG$25)) -> 0 | AG111: -0.5 | AH111: 1 | AI111: 1 | AJ111: 1 | AK111: 1 | AL111: 1 | AM111: 0.8 | AN111: 44 | AO111: 0 | AP111: 0 | AQ111: 0
A112: Chalcedon | B112: 1738 | D112: B | E112: 4 | F112: 3 | G112: 7 | H112: 4 | I112: 8 | J112: 7 | K112: - | L112: 9 | O112: Ni | W112: 3 | X112: 0 | Y112: 0 | AA112: Dr | AB112: Subsector O - Painted | AC112: 1 | AD112: 2 | AE112: 3 | AF112: =INDEX($BB$26:BG$44,MATCH(AE112,$BA$26:$BA$44,-1),MATCH(D112,$BB$25:$BG$25)) -> 0.5 | AG112: 3.5 | AH112: 1 | AI112: 1 | AJ112: 1 | AK112: 1 | AL112: 1 | AM112: 0.8 | AN112: 2928 | AO112: 87840000 | AP112: 0 | AQ112: 0
A113: Channelight | B113: 836 | D113: X | E113: 6 | F113: 3 | G113: 7 | H113: 0 | I113: 0 | J113: 0 | K113: - | L113: 0 | O113: Ba | P113: Lo | Q113: Ni | W113: 0 | X113: 2 | Y113: 4 | AA113: Ba | AB113: Subsector M - Glossalalia | AC113: -0.5 | AD113: 0 | AE113: -0.5 | AF113: =INDEX($BB$26:BG$44,MATCH(AE113,$BA$26:$BA$44,-1),MATCH(D113,$BB$25:$BG$25)) -> 0 | AG113: -0.5 | AH113: 1 | AI113: 1 | AJ113: 1 | AK113: 1 | AL113: 1 | AM113: 0.8 | AN113: 44 | AO113: 0 | AP113: 0 | AQ113: 0
A114: Chime | B114: 304 | D114: E | E114: 5 | F114: 6 | G114: 5 | H114: 3 | I114: 5 | J114: 4 | K114: - | L114: 3 | O114: Lo | P114: Ni | W114: 2 | X114: 0 | Y114: 3 | AA114: I1 | AB114: Subsector A - Nosso Nosso | AC114: 0 | AD114: 1.5 | AE114: 1.5 | AF114: =INDEX($BB$26:BG$44,MATCH(AE114,$BA$26:$BA$44,-1),MATCH(D114,$BB$25:$BG$25)) -> 0 | AG114: 1.5 | AH114: 1 | AI114: 1 | AJ114: 1 | AK114: 1 | AL114: 1 | AM114: 0.8 | AN114: 176 | AO114: 352000 | AP114: 0 | AQ114: 0
A115: Chin | B115: 533 | D115: X | E115: 2 | F115: 0 | G115: 0 | H115: 0 | I115: 0 | J115: 0 | K115: - | L115: 0 | O115: Ba | P115: Lo | Q115: Ni | R115: Va | W115: 0 | X115: 1 | Y115: 4 | AA115: Ba | AB115: Subsector M - Glossalalia | AC115: -0.5 | AD115: 0 | AE115: -0.5 | AF115: =INDEX($BB$26:BG$44,MATCH(AE115,$BA$26:$BA$44,-1),MATCH(D115,$BB$25:$BG$25)) -> 0 | AG115: -0.5 | AH115: 1 | AI115: 1 | AJ115: 1 | AK115: 1 | AL115: 0.8 | AM115: 0.8 | AN115: 35.2 | AO115: 0 | AP115: 0 | AQ115: 0
A116: Chubu | B116: 438 | D116: X | E116: 3 | F116: 4 | G116: 1 | H116: 0 | I116: 0 | J116: 0 | K116: - | L116: 0 | O116: Ba | P116: Lo | Q116: Ni | R116: Po | W116: 0 | X116: 0 | Y116: 2 | AA116: Ba | AB116: Subsector M - Glossalalia | AC116: -0.5 | AD116: 0 | AE116: -0.5 | AF116: =INDEX($BB$26:BG$44,MATCH(AE116,$BA$26:$BA$44,-1),MATCH(D116,$BB$25:$BG$25)) -> 0 | AG116: -0.5 | AH116: 1 | AI116: 1 | AJ116: 1 | AK116: 1 | AL116: 1 | AM116: 0.8 | AN116: 44 | AO116: 0 | AP116: 0 | AQ116: 0
A117: Clemens | B117: 2734 | D117: X | E117: 3 | F117: 2 | G117: 4 | H117: 0 | I117: 0 | J117: 0 | K117: - | L117: 0 | O117: Ba | P117: Lo | Q117: Ni | W117: 0 | X117: 2 | Y117: 3 | AA117: Ba | AB117: Subsector P - Chamber | AC117: -0.5 | AD117: 0 | AE117: -0.5 | AF117: =INDEX($BB$26:BG$44,MATCH(AE117,$BA$26:$BA$44,-1),MATCH(D117,$BB$25:$BG$25)) -> 0 | AG117: -0.5 | AH117: 1 | AI117: 1 | AJ117: 1 | AK117: 1 | AL117: 1 | AM117: 0.8 | AN117: 44 | AO117: 0 | AP117: 0 | AQ117: 0
A118: Constantinople | B118: 1705 | D118: E | E118: 3 | F118: 6 | G118: 1 | H118: 0 | I118: 0 | J118: 0 | K118: - | L118: 7 | O118: Ba | P118: Lo | Q118: Ni | W118: 3 | X118: 0 | Y118: 5 | AA118: I2 | AB118: Subsector C - Wsi | AC118: 0.5 | AD118: 0 | AE118: 0.5 | AF118: =INDEX($BB$26:BG$44,MATCH(AE118,$BA$26:$BA$44,-1),MATCH(D118,$BB$25:$BG$25)) -> 0.5 | AG118: 1 | AH118: 1 | AI118: 1 | AJ118: 1 | AK118: 1 | AL118: 1 | AM118: 0.8 | AN118: 1144 | AO118: 3432 | AP118: 0 | AQ118: 0
A119: Cortana | B119: 839 | D119: X | E119: 2 | F119: 2 | G119: 2 | H119: 0 | I119: 0 | J119: 0 | K119: - | L119: 0 | O119: Ba | P119: Lo | Q119: Ni | R119: Po | W119: 0 | X119: 1 | Y119: 5 | AA119: Ba | AB119: Subsector M - Glossalalia | AC119: -0.5 | AD119: 0 | AE119: -0.5 | AF119: =INDEX($BB$26:BG$44,MATCH(AE119,$BA$26:$BA$44,-1),MATCH(D119,$BB$25:$BG$25)) -> 0 | AG119: -0.5 | AH119: 1 | AI119: 1 | AJ119: 1 | AK119: 1 | AL119: 1 | AM119: 0.8 | AN119: 44 | AO119: 0 | AP119: 0 | AQ119: 0
A120: Crash | B120: 3238 | D120: X | E120: 7 | F120: 9 | G120: 4 | H120: 0 | I120: 0 | J120: 0 | K120: - | L120: 0 | O120: Ba | P120: Lo | Q120: Ni | W120: 0 | X120: 2 | Y120: 4 | AA120: Ba | AB120: Subsector P - Chamber | AC120: -0.5 | AD120: 0 | AE120: -0.5 | AF120: =INDEX($BB$26:BG$44,MATCH(AE120,$BA$26:$BA$44,-1),MATCH(D120,$BB$25:$BG$25)) -> 0 | AG120: -0.5 | AH120: 1 | AI120: 1 | AJ120: 1 | AK120: 1 | AL120: 1 | AM120: 0.8 | AN120: 44 | AO120: 0 | AP120: 0 | AQ120: 0
A121: Crova | B121: 3003 | D121: X | E121: 6 | F121: 4 | G121: 5 | H121: 0 | I121: 0 | J121: 0 | K121: - | L121: 0 | O121: Ba | P121: Lo | Q121: Ni | W121: 0 | X121: 1 | Y121: 4 | AA121: Ba | AB121: Subsector D - Yelloworld | AC121: -0.5 | AD121: 0 | AE121: -0.5 | AF121: =INDEX($BB$26:BG$44,MATCH(AE121,$BA$26:$BA$44,-1),MATCH(D121,$BB$25:$BG$25)) -> 0 | AG121: -0.5 | AH121: 1 | AI121: 1 | AJ121: 1 | AK121: 1 | AL121: 1 | AM121: 0.8 | AN121: 44 | AO121: 0 | AP121: 0 | AQ121: 0
A122: Crown | B122: 1033 | D122: C | E122: 4 | F122: 2 | G122: 2 | H122: 1 | I122: 0 | J122: 1 | K122: - | L122: 8 | O122: Lo | P122: Ni | Q122: Po | W122: 2 | X122: 2 | Y122: 3 | AA122: Nf | AB122: Subsector N - Sorrow | AC122: 0.5 | AD122: 0.5 | AE122: 1 | AF122: =INDEX($BB$26:BG$44,MATCH(AE122,$BA$26:$BA$44,-1),MATCH(D122,$BB$25:$BG$25)) -> 0.5 | AG122: 1.5 | AH122: 1 | AI122: 1 | AJ122: 1 | AK122: 0.8 | AL122: 1 | AM122: 0.8 | AN122: 1465.6 | AO122: 29312 | AP122: 0 | AQ122: 0
A123: Darren | B123: 2702 | D123: E | E123: 4 | F123: 7 | G123: 6 | H123: 3 | I123: 7 | J123: 9 | K123: - | L123: 4 | O123: Lo | P123: Ni | W123: 5 | X123: 0 | Y123: 2 | AA123: I2 | AB123: Subsector D - Yelloworld | AC123: 0 | AD123: 1.5 | AE123: 1.5 | AF123: =INDEX($BB$26:BG$44,MATCH(AE123,$BA$26:$BA$44,-1),MATCH(D123,$BB$25:$BG$25)) -> 0 | AG123: 1.5 | AH123: 1 | AI123: 1 | AJ123: 1 | AK123: 1 | AL123: 1 | AM123: 0.8 | AN123: 280 | AO123: 1400000 | AP123: 0 | AQ123: 0
A124: Deadstar | B124: 1205 | D124: C | E124: 7 | F124: 9 | G124: 6 | H124: 2 | I124: 2 | J124: 1 | K124: - | L124: 9 | O124: Lo | P124: Ni | W124: 5 | X124: 0 | Y124: 0 | AA124: I1 | AB124: Subsector B - Mu | AC124: 1 | AD124: 1 | AE124: 2 | AF124: =INDEX($BB$26:BG$44,MATCH(AE124,$BA$26:$BA$44,-1),MATCH(D124,$BB$25:$BG$25)) -> 0.5 | AG124: 2.5 | AH124: 1 | AI124: 1 | AJ124: 1 | AK124: 1 | AL124: 1 | AM124: 0.8 | AN124: 2928 | AO124: 1464000 | AP124: 0 | AQ124: 0
A125: Deceit | B125: 2736 | D125: X | E125: 2 | F125: 0 | G125: 0 | H125: 0 | I125: 0 | J125: 0 | K125: - | L125: 0 | O125: Ba | P125: Lo | Q125: Ni | R125: Va | W125: 0 | X125: 3 | Y125: 3 | AA125: Ba | AB125: Subsector P - Chamber | AC125: -0.5 | AD125: 0 | AE125: -0.5 | AF125: =INDEX($BB$26:BG$44,MATCH(AE125,$BA$26:$BA$44,-1),MATCH(D125,$BB$25:$BG$25)) -> 0 | AG125: -0.5 | AH125: 1 | AI125: 1 | AJ125: 1 | AK125: 1 | AL125: 0.8 | AM125: 0.8 | AN125: 35.2 | AO125: 0 | AP125: 0 | AQ125: 0
A126: Degar | B126: 920 | D126: C | E126: A | F126: F | G126: 3 | H126: 1 | I126: 3 | J126: 6 | K126: - | L126: B | N126: N | O126: Fl | P126: Lo | Q126: Ni | W126: 3 | X126: 1 | Y126: 4 | AA126: I3 | AB126: Subsector F - NightVision | AC126: 1 | AD126: 0.5 | AE126: 1.5 | AF126: =INDEX($BB$26:BG$44,MATCH(AE126,$BA$26:$BA$44,-1),MATCH(D126,$BB$25:$BG$25)) -> 0.5 | AG126: 2 | AH126: 1 | AI126: 1 | AJ126: 1 | AK126: 1 | AL126: 0.8 | AM126: 0.8 | AN126: 6000 | AO126: 180000 | AP126: 0 | AQ126: 0
A127: Dejanews | B127: 2831 | D127: X | E127: 5 | F127: 5 | G127: 3 | H127: 0 | I127: 0 | J127: 0 | K127: - | L127: 0 | O127: Ba | P127: Lo | Q127: Ni | R127: Po | W127: 0 | X127: 0 | Y127: 4 | AA127: Ba | AB127: Subsector P - Chamber | AC127: -0.5 | AD127: 0 | AE127: -0.5 | AF127: =INDEX($BB$26:BG$44,MATCH(AE127,$BA$26:$BA$44,-1),MATCH(D127,$BB$25:$BG$25)) -> 0 | AG127: -0.5 | AH127: 1 | AI127: 1 | AJ127: 1 | AK127: 1 | AL127: 1 | AM127: 0.8 | AN127: 44 | AO127: 0 | AP127: 0 | AQ127: 0
A128: Detesina | B128: 2014 | D128: E | E128: 5 | F128: A | G128: 0 | H128: 0 | I128: 4 | J128: 1 | K128: - | L128: 4 | O128: De | P128: Lo | Q128: Ni | W128: 3 | X128: 1 | Y128: 3 | AA128: I4 | AB128: Subsector G - LightWaves | AC128: 0 | AD128: 0 | AE128: 0 | AF128: =INDEX($BB$26:BG$44,MATCH(AE128,$BA$26:$BA$44,-1),MATCH(D128,$BB$25:$BG$25)) -> 0.5 | AG128: 0.5 | AH128: 1 | AI128: 1 | AJ128: 1 | AK128: 1 | AL128: 0.8 | AM128: 0.8 | AN128: 224 | AO128: 672 | AP128: 0 | AQ128: 0
A129: Detour | B129: 2202 | D129: D | E129: 2 | F129: 3 | G129: 5 | H129: 3 | I129: 5 | J129: 7 | K129: - | L129: B | N129: S | O129: Lo | P129: Ni | W129: 2 | X129: 0 | Y129: 3 | AA129: I2 | AB129: Subsector C - Wsi | AC129: 1 | AD129: 1.5 | AE129: 2.5 | AF129: =INDEX($BB$26:BG$44,MATCH(AE129,$BA$26:$BA$44,-1),MATCH(D129,$BB$25:$BG$25)) -> 0 | AG129: 2.5 | AH129: 1 | AI129: 1 | AJ129: 1 | AK129: 1 | AL129: 1 | AM129: 0.8 | AN129: 7500 | AO129: 15000000 | AP129: 0 | AQ129: 0
A130: Dieinplace | B130: 1114 | D130: D | E130: 4 | F130: 4 | G130: 5 | H130: 3 | I130: 4 | J130: 6 | K130: - | L130: A | O130: Lo | P130: Ni | W130: 1 | X130: 1 | Y130: 1 | AA130: I1 | AB130: Subsector F - NightVision | AC130: 1 | AD130: 1.5 | AE130: 2.5 | AF130: =INDEX($BB$26:BG$44,MATCH(AE130,$BA$26:$BA$44,-1),MATCH(D130,$BB$25:$BG$25)) -> 0 | AG130: 2.5 | AH130: 1 | AI130: 1 | AJ130: 1 | AK130: 1 | AL130: 1 | AM130: 0.8 | AN130: 4688 | AO130: 4688000 | AP130: 0 | AQ130: 0
A131: Dikaai | B131: 1617 | D131: E | E131: 4 | F131: 4 | G131: 0 | H131: 2 | I131: 3 | J131: 2 | K131: - | L131: 8 | O131: De | P131: Lo | Q131: Ni | R131: Po | W131: 2 | X131: 1 | Y131: 0 | AA131: I4 | AB131: Subsector F - NightVision | AC131: 0.5 | AD131: 1 | AE131: 1.5 | AF131: =INDEX($BB$26:BG$44,MATCH(AE131,$BA$26:$BA$44,-1),MATCH(D131,$BB$25:$BG$25)) -> 0 | AG131: 1.5 | AH131: 1 | AI131: 1 | AJ131: 1 | AK131: 1 | AL131: 0.8 | AM131: 0.8 | AN131: 1465.6 | AO131: 293120 | AP131: 0 | AQ131: 0
A132: Donovan | B132: 1302 | D132: D | E132: 6 | F132: 6 | G132: 3 | H132: 3 | I132: 6 | J132: A | K132: - | L132: 7 | O132: Lo | P132: Ni | W132: 3 | X132: 0 | Y132: 4 | AA132: I1 | AB132: Subsector B - Mu | AC132: 0.5 | AD132: 1.5 | AE132: 2 | AF132: =INDEX($BB$26:BG$44,MATCH(AE132,$BA$26:$BA$44,-1),MATCH(D132,$BB$25:$BG$25)) -> 0 | AG132: 2 | AH132: 1 | AI132: 1 | AJ132: 1 | AK132: 1 | AL132: 1 | AM132: 0.8 | AN132: 1144 | AO132: 3432000 | AP132: 0 | AQ132: 0
A133: Doumbek | B133: 2622 | D133: D | E133: 7 | F133: 6 | G133: 9 | H133: 0 | I133: 0 | J133: 7 | K133: - | L133: 7 | O133: Ba | P133: Lo | Q133: Ni | W133: 5 | X133: 2 | Y133: 2 | AA133: Na | AB133: Subsector L - Dreamsong | AC133: 0.5 | AD133: 0 | AE133: 0.5 | AF133: =INDEX($BB$26:BG$44,MATCH(AE133,$BA$26:$BA$44,-1),MATCH(D133,$BB$25:$BG$25)) -> 0.5 | AG133: 1 | AH133: 1 | AI133: 1 | AJ133: 1 | AK133: 1 | AL133: 1 | AM133: 0.8 | AN133: 1144 | AO133: 5720 | AP133: 0 | AQ133: 0
A134: Dowry | B134: 3004 | D134: D | E134: 4 | F134: 5 | G134: 3 | H134: 2 | I134: 5 | J134: 8 | K134: - | L134: 0 | N134: S | O134: Lo | P134: Ni | Q134: Po | W134: 2 | X134: 0 | Y134: 3 | AA134: I2 | AB134: Subsector D - Yelloworld | AC134: -0.5 | AD134: 1 | AE134: 0.5 | AF134: =INDEX($BB$26:BG$44,MATCH(AE134,$BA$26:$BA$44,-1),MATCH(D134,$BB$25:$BG$25)) -> 0.5 | AG134: 1 | AH134: 1 | AI134: 1 | AJ134: 1 | AK134: 0.8 | AL134: 1 | AM134: 0.8 | AN134: 35.2 | AO134: 7040 | AP134: 0 | AQ134: 0
A135: Dusty | B135: 610 | D135: E | E135: 5 | F135: 7 | G135: 6 | H135: 1 | I135: 3 | J135: 4 | K135: - | L135: 4 | O135: Lo | P135: Ni | W135: 6 | X135: 0 | Y135: 4 | AA135: Na | AB135: Subsector A - Nosso Nosso | AC135: 0 | AD135: 0.5 | AE135: 0.5 | AF135: =INDEX($BB$26:BG$44,MATCH(AE135,$BA$26:$BA$44,-1),MATCH(D135,$BB$25:$BG$25)) -> 0.5 | AG135: 1 | AH135: 1 | AI135: 1 | AJ135: 1 | AK135: 1 | AL135: 1 | AM135: 0.8 | AN135: 280 | AO135: 16800 | AP135: 0 | AQ135: 0
A136: Earthsea | B136: 2939 | D136: X | E136: 5 | F136: 4 | G136: A | H136: 0 | I136: 0 | J136: 0 | K136: - | L136: 0 | O136: Ba | P136: Lo | Q136: Ni | R136: Wa | W136: 0 | X136: 0 | Y136: 0 | AA136: Ba | AB136: Subsector P - Chamber | AC136: -0.5 | AD136: 0 | AE136: -0.5 | AF136: =INDEX($BB$26:BG$44,MATCH(AE136,$BA$26:$BA$44,-1),MATCH(D136,$BB$25:$BG$25)) -> 0 | AG136: -0.5 | AH136: 1 | AI136: 1 | AJ136: 1 | AK136: 1 | AL136: 1 | AM136: 0.8 | AN136: 44 | AO136: 0 | AP136: 0 | AQ136: 0
A137: Edamar | B137: 717 | D137: C | E137: 6 | F137: 6 | G137: A | H137: 4 | I137: 9 | J137: 9 | K137: - | L137: A | O137: Ni | P137: Wa | W137: 1 | X137: 1 | Y137: 4 | AA137: I3 | AB137: Subsector E - Silent Shore | AC137: 1 | AD137: 2 | AE137: 3 | AF137: =INDEX($BB$26:BG$44,MATCH(AE137,$BA$26:$BA$44,-1),MATCH(D137,$BB$25:$BG$25)) -> 0 | AG137: 3 | AH137: 1 | AI137: 1 | AJ137: 1 | AK137: 1 | AL137: 1 | AM137: 0.8 | AN137: 4688 | AO137: 46880000 | AP137: 0 | AQ137: 0
A138: Eessith | B138: 2121 | D138: C | E138: 7 | F138: C | G138: 4 | H138: 2 | I138: 5 | J138: 2 | K138: - | L138: B | O138: Fl | P138: Lo | Q138: Ni | W138: 6 | X138: 1 | Y138: 4 | AA138: I4 | AB138: Subsector K - Floe | AC138: 1 | AD138: 1 | AE138: 2 | AF138: =INDEX($BB$26:BG$44,MATCH(AE138,$BA$26:$BA$44,-1),MATCH(D138,$BB$25:$BG$25)) -> 0.5 | AG138: 2.5 | AH138: 1 | AI138: 1 | AJ138: 1 | AK138: 1 | AL138: 0.8 | AM138: 0.8 | AN138: 6000 | AO138: 3600000 | AP138: 0 | AQ138: 0
A139: Enigma | B139: 2510 | D139: C | E139: 3 | F139: 1 | G139: 0 | H139: 3 | I139: 7 | J139: A | K139: - | L139: 9 | N139: S | O139: Lo | P139: Ni | W139: 2 | X139: 0 | Y139: 3 | AA139: I2 | AB139: Subsector D - Yelloworld | AC139: 1 | AD139: 1.5 | AE139: 2.5 | AF139: =INDEX($BB$26:BG$44,MATCH(AE139,$BA$26:$BA$44,-1),MATCH(D139,$BB$25:$BG$25)) -> 0.5 | AG139: 3 | AH139: 1 | AI139: 1 | AJ139: 1 | AK139: 1 | AL139: 0.8 | AM139: 0.8 | AN139: 2342.4 | AO139: 4684800 | AP139: 0 | AQ139: 0
A140: Exile | B140: 1836 | D140: C | E140: 0 | F140: 0 | G140: 0 | H140: 2 | I140: 3 | J140: 1 | K140: - | L140: A | O140: As | P140: Lo | Q140: Ni | W140: 2 | X140: 1 | Y140: 2 | AA140: Dr | AB140: Subsector O - Painted | AC140: 1 | AD140: 1 | AE140: 2 | AF140: =INDEX($BB$26:BG$44,MATCH(AE140,$BA$26:$BA$44,-1),MATCH(D140,$BB$25:$BG$25)) -> 0.5 | AG140: 2.5 | AH140: 1 | AI140: 1 | AJ140: 1 | AK140: 1 | AL140: 0.8 | AM140: 0.8 | AN140: 3750.4 | AO140: 750080 | AP140: 0 | AQ140: 0
A141: Faunia | B141: 3026 | D141: E | E141: 6 | F141: 3 | G141: 9 | H141: 3 | I141: 4 | J141: 3 | K141: - | L141: 9 | N141: S | O141: Lo | P141: Ni | W141: 8 | X141: 0 | Y141: 3 | AA141: Na | AB141: Subsector L - Dreamsong | AC141: 1 | AD141: 1.5 | AE141: 2.5 | AF141: =INDEX($BB$26:BG$44,MATCH(AE141,$BA$26:$BA$44,-1),MATCH(D141,$BB$25:$BG$25)) -> 0 | AG141: 2.5 | AH141: 1 | AI141: 1 | AJ141: 1 | AK141: 1 | AL141: 1 | AM141: 0.8 | AN141: 2928 | AO141: 23424000 | AP141: 0 | AQ141: 0
A142: Fenmou | B142: 1918 | D142: D | E142: 5 | F142: 6 | G142: 5 | H142: 2 | I142: 2 | J142: 0 | K142: - | L142: 7 | O142: Lo | P142: Ni | W142: 6 | X142: 2 | Y142: 3 | AA142: I4 | AB142: Subsector G - LightWaves | AC142: 0.5 | AD142: 1 | AE142: 1.5 | AF142: =INDEX($BB$26:BG$44,MATCH(AE142,$BA$26:$BA$44,-1),MATCH(D142,$BB$25:$BG$25)) -> 0.5 | AG142: 2 | AH142: 1 | AI142: 1 | AJ142: 1 | AK142: 1 | AL142: 1 | AM142: 0.8 | AN142: 1144 | AO142: 686400 | AP142: 0 | AQ142: 0
A143: Firefly | B143: 2840 | D143: X | E143: 7 | F143: 5 | G143: 7 | H143: 0 | I143: 0 | J143: 0 | K143: - | L143: 0 | O143: Ba | P143: Lo | Q143: Ni | W143: 0 | X143: 0 | Y143: 2 | AA143: Ba | AB143: Subsector P - Chamber | AC143: -0.5 | AD143: 0 | AE143: -0.5 | AF143: =INDEX($BB$26:BG$44,MATCH(AE143,$BA$26:$BA$44,-1),MATCH(D143,$BB$25:$BG$25)) -> 0 | AG143: -0.5 | AH143: 1 | AI143: 1 | AJ143: 1 | AK143: 1 | AL143: 1 | AM143: 0.8 | AN143: 44 | AO143: 0 | AP143: 0 | AQ143: 0
A144: Fleethome | B144: 3029 | D144: E | E144: 5 | F144: 3 | G144: 5 | H144: 3 | I144: 3 | J144: 5 | K144: - | L144: 8 | O144: Lo | P144: Ni | W144: 3 | X144: 0 | Y144: 4 | AA144: Na | AB144: Subsector L - Dreamsong | AC144: 0.5 | AD144: 1.5 | AE144: 2 | AF144: =INDEX($BB$26:BG$44,MATCH(AE144,$BA$26:$BA$44,-1),MATCH(D144,$BB$25:$BG$25)) -> 0 | AG144: 2 | AH144: 1 | AI144: 1 | AJ144: 1 | AK144: 1 | AL144: 1 | AM144: 0.8 | AN144: 1832 | AO144: 5496000 | AP144: 0 | AQ144: 0
A145: Floaters | B145: 1404 | D145: C | E145: 2 | F145: 4 | G145: 0 | H145: 3 | I145: 3 | J145: 4 | K145: - | L145: A | N145: S | O145: De | P145: Lo | Q145: Ni | R145: Po | W145: 6 | X145: 0 | Y145: 5 | AA145: I1 | AB145: Subsector B - Mu | AC145: 1 | AD145: 1.5 | AE145: 2.5 | AF145: =INDEX($BB$26:BG$44,MATCH(AE145,$BA$26:$BA$44,-1),MATCH(D145,$BB$25:$BG$25)) -> 0.5 | AG145: 3 | AH145: 1 | AI145: 1 | AJ145: 1 | AK145: 1 | AL145: 0.8 | AM145: 0.8 | AN145: 3750.4 | AO145: 22502400 | AP145: 0 | AQ145: 0
A146: Fontaine | B146: 306 | D146: D | E146: 3 | F146: 6 | G146: 3 | H146: 2 | I146: 0 | J146: 2 | K146: - | L146: A | O146: Lo | P146: Ni | W146: 6 | X146: 0 | Y146: 3 | AA146: I1 | AB146: Subsector A - Nosso Nosso | AC146: 1 | AD146: 1 | AE146: 2 | AF146: =INDEX($BB$26:BG$44,MATCH(AE146,$BA$26:$BA$44,-1),MATCH(D146,$BB$25:$BG$25)) -> 0 | AG146: 2 | AH146: 1 | AI146: 1 | AJ146: 1 | AK146: 1 | AL146: 1 | AM146: 0.8 | AN146: 4688 | AO146: 2812800 | AP146: 0 | AQ146: 0
A147: Forest | B147: 2704 | D147: E | E147: 6 | F147: 4 | G147: 6 | H147: 1 | I147: 1 | J147: 0 | K147: - | L147: 4 | O147: Lo | P147: Ni | W147: 5 | X147: 0 | Y147: 3 | AA147: I2 | AB147: Subsector D - Yelloworld | AC147: 0 | AD147: 0.5 | AE147: 0.5 | AF147: =INDEX($BB$26:BG$44,MATCH(AE147,$BA$26:$BA$44,-1),MATCH(D147,$BB$25:$BG$25)) -> 0.5 | AG147: 1 | AH147: 1 | AI147: 1 | AJ147: 1 | AK147: 1 | AL147: 1 | AM147: 0.8 | AN147: 280 | AO147: 14000 | AP147: 0 | AQ147: 0
A148: Garden | B148: 402 | D148: X | E148: 7 | F148: 7 | G148: 5 | H148: 0 | I148: 0 | J148: 0 | K148: - | L148: 0 | O148: Ba | P148: Lo | Q148: Ni | W148: 0 | X148: 0 | Y148: 3 | AA148: Ba | AB148: Subsector A - Nosso Nosso | AC148: =VLOOKUP(L148,$AT$23:$AV$40,3) -> -0.5 | AD148: =VLOOKUP(H148,$AX$23:$AY$36,2) -> 0 | AE148: =AC148+AD148 -> -0.5 | AF148: =INDEX($BB$26:BG$44,MATCH(AE148,$BA$26:$BA$44,-1),MATCH(D148,$BB$25:$BG$25)) -> 0 | AG148: =AE148+AF148 -> -0.5 | AH148: 1 | AI148: 1 | AJ148: 1 | AK148: 1 | AL148: 1 | AM148: 0.8 | AN148: =(VLOOKUP(L148,$AT$23:$AW$40,4))*AH148*AI148*AJ148*AK148*AL148*AM148 -> 44 | AO148: =AN148*((10^H148)*W148) -> 0 | AP148: =INDEX($BL$23:$BV$36,MATCH(L148,$BK$23:$BK$36),MATCH(H148,$BL$22:$BV$22)) -> 0 | AQ148: =AP148*W148 -> 0
A149: Geronimo | B149: 2508 | D149: X | E149: 5 | F149: 2 | G149: A | H149: 0 | I149: 1 | J149: 5 | K149: - | L149: A | O149: Lo | P149: Ni | Q149: Wa | W149: 4 | X149: 0 | Y149: 2 | AA149: I2 | AB149: Subsector D - Yelloworld | AC149: 1 | AD149: 0 | AE149: 1 | AF149: =INDEX($BB$26:BG$44,MATCH(AE149,$BA$26:$BA$44,-1),MATCH(D149,$BB$25:$BG$25)) -> 0 | AG149: 1 | AH149: 1 | AI149: 1 | AJ149: 1 | AK149: 1 | AL149: 1 | AM149: 0.8 | AN149: 4688 | AO149: 18752 | AP149: 0 | AQ149: 0
A150: Gloria | B150: 2802 | D150: E | E150: 5 | F150: 3 | G150: 7 | H150: 2 | I150: 6 | J150: 5 | K150: - | L150: 3 | O150: Lo | P150: Ni | W150: 1 | X150: 0 | Y150: 2 | AA150: I2 | AB150: Subsector D - Yelloworld | AC150: 0 | AD150: 1 | AE150: 1 | AF150: =INDEX($BB$26:BG$44,MATCH(AE150,$BA$26:$BA$44,-1),MATCH(D150,$BB$25:$BG$25)) -> 0 | AG150: 1 | AH150: 1 | AI150: 1 | AJ150: 1 | AK150: 1 | AL150: 1 | AM150: 0.8 | AN150: 176 | AO150: 17600 | AP150: 0 | AQ150: 0
A151: Glory | B151: 1731 | D151: D | E151: 9 | F151: 6 | G151: 6 | H151: 2 | I151: 0 | J151: 0 | K151: - | L151: 3 | O151: Lo | P151: Ni | W151: 3 | X151: 0 | Y151: 3 | AA151: Nf | AB151: Subsector O - Painted | AC151: 0 | AD151: 1 | AE151: 1 | AF151: =INDEX($BB$26:BG$44,MATCH(AE151,$BA$26:$BA$44,-1),MATCH(D151,$BB$25:$BG$25)) -> 0.5 | AG151: 1.5 | AH151: 1 | AI151: 1 | AJ151: 1 | AK151: 1 | AL151: 1 | AM151: 0.8 | AN151: 176 | AO151: 52800 | AP151: 0 | AQ151: 0
A152: Gluirge | B152: 3111 | D152: X | E152: 4 | F152: 0 | G152: 0 | H152: 0 | I152: 0 | J152: 0 | K152: - | L152: 0 | O152: Ba | P152: Lo | Q152: Ni | R152: Va | W152: 0 | X152: 0 | Y152: 3 | AA152: Ba | AB152: Subsector H - Chanter | AC152: -0.5 | AD152: 0 | AE152: -0.5 | AF152: =INDEX($BB$26:BG$44,MATCH(AE152,$BA$26:$BA$44,-1),MATCH(D152,$BB$25:$BG$25)) -> 0 | AG152: -0.5 | AH152: 1 | AI152: 1 | AJ152: 1 | AK152: 1 | AL152: 0.8 | AM152: 0.8 | AN152: 35.2 | AO152: 0 | AP152: 0 | AQ152: 0
A153: Gold | B153: 1634 | D153: B | E153: 4 | F153: 2 | G153: 7 | H153: 3 | I153: 7 | J153: 4 | K153: - | L153: A | O153: Lo | P153: Ni | W153: 3 | X153: 0 | Y153: 3 | AA153: Nf | AB153: Subsector N - Sorrow | AC153: 1 | AD153: 1.5 | AE153: 2.5 | AF153: =INDEX($BB$26:BG$44,MATCH(AE153,$BA$26:$BA$44,-1),MATCH(D153,$BB$25:$BG$25)) -> 0.5 | AG153: 3 | AH153: 1 | AI153: 1 | AJ153: 1 | AK153: 1 | AL153: 1 | AM153: 0.8 | AN153: 4688 | AO153: 14064000 | AP153: 0 | AQ153: 0
A154: Grace | B154: 1707 | D154: X | E154: 0 | F154: 0 | G154: 0 | H154: 2 | I154: 6 | J154: 5 | K154: - | L154: A | O154: As | P154: Lo | Q154: Ni | W154: 6 | X154: 2 | Y154: 4 | AA154: I1 | AB154: Subsector C - Wsi | AC154: 1 | AD154: 1 | AE154: 2 | AF154: =INDEX($BB$26:BG$44,MATCH(AE154,$BA$26:$BA$44,-1),MATCH(D154,$BB$25:$BG$25)) -> -2.5 | AG154: -0.5 | AH154: 1 | AI154: 1 | AJ154: 1 | AK154: 1 | AL154: 0.8 | AM154: 0.8 | AN154: 3750.4 | AO154: 2250240 | AP154: 0 | AQ154: 0
A155: Graves | B155: 2809 | D155: B | E155: 4 | F155: 4 | G155: 2 | H155: 3 | I155: 4 | J155: 8 | K155: - | L155: A | N155: S | O155: Lo | P155: Ni | Q155: Po | W155: 7 | X155: 0 | Y155: 2 | AA155: I2 | AB155: Subsector D - Yelloworld | AC155: 1 | AD155: 1.5 | AE155: 2.5 | AF155: =INDEX($BB$26:BG$44,MATCH(AE155,$BA$26:$BA$44,-1),MATCH(D155,$BB$25:$BG$25)) -> 0.5 | AG155: 3 | AH155: 1 | AI155: 1 | AJ155: 1 | AK155: 0.8 | AL155: 1 | AM155: 0.8 | AN155: 3750.4 | AO155: 26252800 | AP155: 0 | AQ155: 0
A156: Hermit | B156: 1006 | D156: A | E156: 0 | F156: 0 | G156: 0 | H156: 4 | I156: 6 | J156: 9 | K156: - | L156: A | N156: S | O156: As | P156: Ni | W156: 2 | X156: 0 | Y156: 0 | AA156: I1 | AB156: Subsector B - Mu | AC156: 1 | AD156: 2 | AE156: 3 | AF156: =INDEX($BB$26:BG$44,MATCH(AE156,$BA$26:$BA$44,-1),MATCH(D156,$BB$25:$BG$25)) -> 0.5 | AG156: 3.5 | AH156: 1 | AI156: 1 | AJ156: 1 | AK156: 1 | AL156: 0.8 | AM156: 0.8 | AN156: 3750.4 | AO156: 75008000 | AP156: 0 | AQ156: 0
A157: Hobbit | B157: 3119 | D157: X | E157: 2 | F157: 1 | G157: 0 | H157: 0 | I157: 0 | J157: 0 | K157: - | L157: 0 | O157: Ba | P157: Lo | Q157: Ni | W157: 0 | X157: 1 | Y157: 4 | AA157: Ba | AB157: Subsector H - Chanter | AC157: -0.5 | AD157: 0 | AE157: -0.5 | AF157: =INDEX($BB$26:BG$44,MATCH(AE157,$BA$26:$BA$44,-1),MATCH(D157,$BB$25:$BG$25)) -> 0 | AG157: -0.5 | AH157: 1 | AI157: 1 | AJ157: 1 | AK157: 1 | AL157: 0.8 | AM157: 0.8 | AN157: 35.2 | AO157: 0 | AP157: 0 | AQ157: 0
A158: Hoi Profa | B158: 2026 | D158: C | E158: 8 | F158: B | G158: 5 | H158: 0 | I158: 1 | J158: 0 | K158: - | L158: B | O158: Fl | P158: Lo | Q158: Ni | W158: 2 | X158: 0 | Y158: 4 | AA158: Na | AB158: Subsector K - Floe | AC158: 1 | AD158: 0 | AE158: 1 | AF158: =INDEX($BB$26:BG$44,MATCH(AE158,$BA$26:$BA$44,-1),MATCH(D158,$BB$25:$BG$25)) -> 0.5 | AG158: 1.5 | AH158: 1 | AI158: 1 | AJ158: 1 | AK158: 1 | AL158: 0.8 | AM158: 0.8 | AN158: 6000 | AO158: 12000 | AP158: 0 | AQ158: 0
A159: Honour | B159: 1533 | D159: B | E159: 5 | F159: 4 | G159: 1 | H159: 3 | I159: 3 | J159: 1 | K159: - | L159: A | O159: Lo | P159: Ni | Q159: Po | W159: 6 | X159: 1 | Y159: 5 | AA159: Nf | AB159: Subsector N - Sorrow | AC159: 1 | AD159: 1.5 | AE159: 2.5 | AF159: =INDEX($BB$26:BG$44,MATCH(AE159,$BA$26:$BA$44,-1),MATCH(D159,$BB$25:$BG$25)) -> 0.5 | AG159: 3 | AH159: 1 | AI159: 1 | AJ159: 1 | AK159: 0.8 | AL159: 1 | AM159: 0.8 | AN159: 3750.4 | AO159: 22502400 | AP159: 0 | AQ159: 0
A160: Hot | B160: 2514 | D160: D | E160: 4 | F160: 4 | G160: 9 | H160: 2 | I160: 7 | J160: 5 | K160: - | L160: 6 | O160: Lo | P160: Ni | W160: 2 | X160: 0 | Y160: 3 | AA160: Na | AB160: Subsector H - Chanter | AC160: 0.5 | AD160: 1 | AE160: 1.5 | AF160: =INDEX($BB$26:BG$44,MATCH(AE160,$BA$26:$BA$44,-1),MATCH(D160,$BB$25:$BG$25)) -> 0.5 | AG160: 2 | AH160: 1 | AI160: 1 | AJ160: 1 | AK160: 1 | AL160: 1 | AM160: 0.8 | AN160: 716 | AO160: 143200 | AP160: 0 | AQ160: 0
A161: Ifield | B161: 1002 | D161: X | E161: 0 | F161: 0 | G161: 0 | H161: 0 | I161: 0 | J161: 0 | K161: - | L161: B | O161: As | P161: Ba | Q161: Lo | R161: Ni | W161: 3 | X161: 0 | Y161: 1 | AA161: I1 | AB161: Subsector B - Mu | AC161: 1 | AD161: 0 | AE161: 1 | AF161: =INDEX($BB$26:BG$44,MATCH(AE161,$BA$26:$BA$44,-1),MATCH(D161,$BB$25:$BG$25)) -> 0 | AG161: 1 | AH161: 1 | AI161: 1 | AJ161: 1 | AK161: 1 | AL161: 0.8 | AM161: 0.8 | AN161: 6000 | AO161: 18000 | AP161: 0 | AQ161: 0
A162: Immanuel | B162: 534 | D162: X | E162: 3 | F162: 5 | G162: 3 | H162: 0 | I162: 0 | J162: 0 | K162: - | L162: 0 | O162: Ba | P162: Lo | Q162: Ni | R162: Po | W162: 0 | X162: 0 | Y162: 2 | AA162: Ba | AB162: Subsector M - Glossalalia | AC162: -0.5 | AD162: 0 | AE162: -0.5 | AF162: =INDEX($BB$26:BG$44,MATCH(AE162,$BA$26:$BA$44,-1),MATCH(D162,$BB$25:$BG$25)) -> 0 | AG162: -0.5 | AH162: 1 | AI162: 1 | AJ162: 1 | AK162: 1 | AL162: 1 | AM162: 0.8 | AN162: 44 | AO162: 0 | AP162: 0 | AQ162: 0
A163: Inaosat | B163: 1401 | D163: D | E163: S | F163: 0 | G163: 0 | H163: 0 | I163: 5 | J163: 5 | K163: - | L163: B | O163: Lo | P163: Ni | Q163: Va | W163: 6 | X163: 0 | Y163: 4 | AA163: I1 | AB163: Subsector B - Mu | AC163: 1 | AD163: 0 | AE163: 1 | AF163: =INDEX($BB$26:BG$44,MATCH(AE163,$BA$26:$BA$44,-1),MATCH(D163,$BB$25:$BG$25)) -> 0.5 | AG163: 1.5 | AH163: 1 | AI163: 1 | AJ163: 1 | AK163: 1 | AL163: 0.8 | AM163: 0.8 | AN163: 6000 | AO163: 36000 | AP163: 0 | AQ163: 0
A164: Infected | B164: 1102 | D164: D | E164: 7 | F164: 2 | G164: 9 | H164: 4 | I164: A | J164: A | K164: - | L164: 9 | N164: S | O164: Ni | W164: 5 | X164: 0 | Y164: 2 | AA164: I1 | AB164: Subsector B - Mu | AC164: 1 | AD164: 2 | AE164: 3 | AF164: =INDEX($BB$26:BG$44,MATCH(AE164,$BA$26:$BA$44,-1),MATCH(D164,$BB$25:$BG$25)) -> 0 | AG164: 3 | AH164: 1 | AI164: 1 | AJ164: 1 | AK164: 1 | AL164: 1 | AM164: 0.8 | AN164: 2928 | AO164: 146400000 | AP164: 0 | AQ164: 0
A165: Innocentia | B165: 3036 | D165: X | E165: 7 | F165: 7 | G165: 9 | H165: 0 | I165: 0 | J165: 0 | K165: - | L165: 0 | O165: Ba | P165: Lo | Q165: Ni | W165: 0 | X165: 2 | Y165: 3 | AA165: Ba | AB165: Subsector P - Chamber | AC165: -0.5 | AD165: 0 | AE165: -0.5 | AF165: =INDEX($BB$26:BG$44,MATCH(AE165,$BA$26:$BA$44,-1),MATCH(D165,$BB$25:$BG$25)) -> 0 | AG165: -0.5 | AH165: 1 | AI165: 1 | AJ165: 1 | AK165: 1 | AL165: 1 | AM165: 0.8 | AN165: 44 | AO165: 0 | AP165: 0 | AQ165: 0
A166: Irka Ir | B166: 1218 | D166: D | E166: 5 | F166: 7 | G166: 3 | H166: 3 | I166: 4 | J166: 5 | K166: - | L166: 4 | O166: Lo | P166: Ni | W166: 4 | X166: 0 | Y166: 3 | AA166: I3 | AB166: Subsector F - NightVision | AC166: 0 | AD166: 1.5 | AE166: 1.5 | AF166: =INDEX($BB$26:BG$44,MATCH(AE166,$BA$26:$BA$44,-1),MATCH(D166,$BB$25:$BG$25)) -> 0.5 | AG166: 2 | AH166: 1 | AI166: 1 | AJ166: 1 | AK166: 1 | AL166: 1 | AM166: 0.8 | AN166: 280 | AO166: 1120000 | AP166: 0 | AQ166: 0
A167: Ishimaga | B167: 1320 | D167: E | E167: 7 | F167: A | G167: 7 | H167: 0 | I167: 0 | J167: 0 | K167: - | L167: 2 | O167: Ba | P167: Fl | Q167: Lo | R167: Ni | W167: 3 | X167: 0 | Y167: 3 | AA167: I3 | AB167: Subsector F - NightVision | AC167: -0.5 | AD167: 0 | AE167: -0.5 | AF167: =INDEX($BB$26:BG$44,MATCH(AE167,$BA$26:$BA$44,-1),MATCH(D167,$BB$25:$BG$25)) -> 0.5 | AG167: 0 | AH167: 1 | AI167: 1 | AJ167: 1 | AK167: 1 | AL167: 0.8 | AM167: 0.8 | AN167: 86.4 | AO167: 259.2 | AP167: 0 | AQ167: 0
A168: Jericho | B168: 1840 | D168: X | E168: 5 | F168: 2 | G168: 5 | H168: 0 | I168: 0 | J168: 0 | K168: - | L168: 0 | O168: Ba | P168: Lo | Q168: Ni | W168: 0 | X168: 0 | Y168: 3 | AA168: Ba | AB168: Subsector O - Painted | AC168: -0.5 | AD168: 0 | AE168: -0.5 | AF168: =INDEX($BB$26:BG$44,MATCH(AE168,$BA$26:$BA$44,-1),MATCH(D168,$BB$25:$BG$25)) -> 0 | AG168: -0.5 | AH168: 1 | AI168: 1 | AJ168: 1 | AK168: 1 | AL168: 1 | AM168: 0.8 | AN168: 44 | AO168: 0 | AP168: 0 | AQ168: 0
A169: Jerusalem | B169: 1939 | D169: B | E169: 2 | F169: 0 | G169: 0 | H169: 0 | I169: 0 | J169: 1 | K169: - | L169: A | O169: Lo | P169: Ni | Q169: Va | W169: 8 | X169: 0 | Y169: 1 | AA169: Dr | AB169: Subsector O - Painted | AC169: 1 | AD169: 0 | AE169: 1 | AF169: =INDEX($BB$26:BG$44,MATCH(AE169,$BA$26:$BA$44,-1),MATCH(D169,$BB$25:$BG$25)) -> 1 | AG169: 2 | AH169: 1 | AI169: 1 | AJ169: 1 | AK169: 1 | AL169: 0.8 | AM169: 0.8 | AN169: 3750.4 | AO169: 30003.2 | AP169: 0 | AQ169: 0
A170: Kaakhiskiki | B170: 118 | D170: X | E170: 2 | F170: 3 | G170: 0 | H170: 0 | I170: 0 | J170: 0 | K170: - | L170: 0 | O170: Ba | P170: De | Q170: Lo | R170: Ni | S170: Po | W170: 0 | X170: 0 | Y170: 2 | AA170: Ba | AB170: Subsector E - Silent Shore | AC170: -0.5 | AD170: 0 | AE170: -0.5 | AF170: =INDEX($BB$26:BG$44,MATCH(AE170,$BA$26:$BA$44,-1),MATCH(D170,$BB$25:$BG$25)) -> 0 | AG170: -0.5 | AH170: 1 | AI170: 1 | AJ170: 1 | AK170: 0.8 | AL170: 0.8 | AM170: 0.8 | AN170: 28.16 | AO170: 0 | AP170: 0 | AQ170: 0
A171: Kanno | B171: 2010 | D171: B | E171: 5 | F171: 5 | G171: 4 | H171: 4 | I171: 3 | J171: 4 | K171: - | L171: 9 | O171: Ni | W171: 3 | X171: 0 | Y171: 2 | AA171: I2 | AB171: Subsector C - Wsi | AC171: 1 | AD171: 2 | AE171: 3 | AF171: =INDEX($BB$26:BG$44,MATCH(AE171,$BA$26:$BA$44,-1),MATCH(D171,$BB$25:$BG$25)) -> 0.5 | AG171: 3.5 | AH171: 1 | AI171: 1 | AJ171: 1 | AK171: 1 | AL171: 1 | AM171: 0.8 | AN171: 2928 | AO171: 87840000 | AP171: 0 | AQ171: 0
A172: Kenya | B172: 1926 | D172: E | E172: 7 | F172: 7 | G172: 9 | H172: 3 | I172: 1 | J172: 0 | K172: - | L172: 7 | O172: Lo | P172: Ni | W172: 1 | X172: 0 | Y172: 3 | AA172: Na | AB172: Subsector K - Floe | AC172: 0.5 | AD172: 1.5 | AE172: 2 | AF172: =INDEX($BB$26:BG$44,MATCH(AE172,$BA$26:$BA$44,-1),MATCH(D172,$BB$25:$BG$25)) -> 0 | AG172: 2 | AH172: 1 | AI172: 1 | AJ172: 1 | AK172: 1 | AL172: 1 | AM172: 0.8 | AN172: 1144 | AO172: 1144000 | AP172: 0 | AQ172: 0
A173: Kikujiro | B173: 1424 | D173: D | E173: 8 | F173: A | G173: 2 | H173: 1 | I173: 0 | J173: 0 | K173: - | L173: B | O173: Fl | P173: Lo | Q173: Ni | W173: 2 | X173: 2 | Y173: 4 | AA173: Na | AB173: Subsector J - Spirare | AC173: 1 | AD173: 0.5 | AE173: 1.5 | AF173: =INDEX($BB$26:BG$44,MATCH(AE173,$BA$26:$BA$44,-1),MATCH(D173,$BB$25:$BG$25)) -> 0.5 | AG173: 2 | AH173: 1 | AI173: 1 | AJ173: 1 | AK173: 1 | AL173: 0.8 | AM173: 0.8 | AN173: 6000 | AO173: 120000 | AP173: 0 | AQ173: 0
A174: Klendathu | B174: 2925 | D174: X | E174: 8 | F174: C | G174: 3 | H174: 0 | I174: 0 | J174: 0 | K174: - | L174: 0 | O174: Ba | P174: Fl | Q174: Lo | R174: Ni | W174: 0 | X174: 0 | Y174: 3 | AA174: Ba | AB174: Subsector L - Dreamsong | AC174: -0.5 | AD174: 0 | AE174: -0.5 | AF174: =INDEX($BB$26:BG$44,MATCH(AE174,$BA$26:$BA$44,-1),MATCH(D174,$BB$25:$BG$25)) -> 0 | AG174: -0.5 | AH174: 1 | AI174: 1 | AJ174: 1 | AK174: 1 | AL174: 0.8 | AM174: 0.8 | AN174: 35.2 | AO174: 0 | AP174: 0 | AQ174: 0
A175: Koyaanisqatsi | B175: 3038 | D175: X | E175: 3 | F175: 3 | G175: 1 | H175: 0 | I175: 0 | J175: 0 | K175: - | L175: 0 | O175: Ba | P175: Lo | Q175: Ni | R175: Po | W175: 0 | X175: 2 | Y175: 3 | AA175: Ba | AB175: Subsector P - Chamber | AC175: -0.5 | AD175: 0 | AE175: -0.5 | AF175: =INDEX($BB$26:BG$44,MATCH(AE175,$BA$26:$BA$44,-1),MATCH(D175,$BB$25:$BG$25)) -> 0 | AG175: -0.5 | AH175: 1 | AI175: 1 | AJ175: 1 | AK175: 1 | AL175: 1 | AM175: 0.8 | AN175: 44 | AO175: 0 | AP175: 0 | AQ175: 0
A176: Kryminalni | B176: 3022 | D176: X | E176: 1 | F176: 0 | G176: 0 | H176: 0 | I176: 0 | J176: 0 | K176: - | L176: 0 | O176: Ba | P176: Lo | Q176: Ni | R176: Va | W176: 0 | X176: 0 | Y176: 4 | AA176: Ba | AB176: Subsector L - Dreamsong | AC176: -0.5 | AD176: 0 | AE176: -0.5 | AF176: =INDEX($BB$26:BG$44,MATCH(AE176,$BA$26:$BA$44,-1),MATCH(D176,$BB$25:$BG$25)) -> 0 | AG176: -0.5 | AH176: 1 | AI176: 1 | AJ176: 1 | AK176: 1 | AL176: 0.8 | AM176: 0.8 | AN176: 35.2 | AO176: 0 | AP176: 0 | AQ176: 0
A177: Kyu Sakamoto | B177: 907 | D177: E | E177: 7 | F177: A | G177: 1 | H177: 2 | I177: 5 | J177: 0 | K177: - | L177: 4 | O177: Fl | P177: Lo | Q177: Ni | W177: 2 | X177: 0 | Y177: 3 | AA177: I1 | AB177: Subsector B - Mu | AC177: 0 | AD177: 1 | AE177: 1 | AF177: =INDEX($BB$26:BG$44,MATCH(AE177,$BA$26:$BA$44,-1),MATCH(D177,$BB$25:$BG$25)) -> 0 | AG177: 1 | AH177: 1 | AI177: 1 | AJ177: 1 | AK177: 1 | AL177: 0.8 | AM177: 0.8 | AN177: 224 | AO177: 44800 | AP177: 0 | AQ177: 0
A178: Liege | B178: 1932 | D178: A | E178: 5 | F178: 9 | G178: 3 | H178: 4 | I178: 5 | J178: 1 | K178: - | L178: A | N178: A | O178: Ni | W178: 1 | X178: 0 | Y178: 3 | AA178: Dr | AB178: Subsector O - Painted | AC178: 1 | AD178: 2 | AE178: 3 | AF178: =INDEX($BB$26:BG$44,MATCH(AE178,$BA$26:$BA$44,-1),MATCH(D178,$BB$25:$BG$25)) -> 0.5 | AG178: 3.5 | AH178: 1 | AI178: 1 | AJ178: 1 | AK178: 1 | AL178: 1 | AM178: 0.8 | AN178: 4688 | AO178: 46880000 | AP178: 0 | AQ178: 0
A179: Liquid | B179: 3037 | D179: X | E179: A | F179: E | G179: 8 | H179: 0 | I179: 0 | J179: 0 | K179: - | L179: 0 | O179: Ba | P179: Fl | Q179: Lo | R179: Ni | W179: 0 | X179: 1 | Y179: 0 | AA179: Ba | AB179: Subsector P - Chamber | AC179: -0.5 | AD179: 0 | AE179: -0.5 | AF179: =INDEX($BB$26:BG$44,MATCH(AE179,$BA$26:$BA$44,-1),MATCH(D179,$BB$25:$BG$25)) -> 0 | AG179: -0.5 | AH179: 1 | AI179: 1 | AJ179: 1 | AK179: 1 | AL179: 0.8 | AM179: 0.8 | AN179: 35.2 | AO179: 0 | AP179: 0 | AQ179: 0
A180: Logan's Run | B180: 2610 | D180: C | E180: 7 | F180: 4 | G180: 4 | H180: 3 | I180: 2 | J180: 2 | K180: - | L180: 4 | O180: Lo | P180: Ni | W180: 3 | X180: 0 | Y180: 4 | AA180: I2 | AB180: Subsector D - Yelloworld | AC180: 0 | AD180: 1.5 | AE180: 1.5 | AF180: =INDEX($BB$26:BG$44,MATCH(AE180,$BA$26:$BA$44,-1),MATCH(D180,$BB$25:$BG$25)) -> 0.5 | AG180: 2 | AH180: 1 | AI180: 1 | AJ180: 1 | AK180: 1 | AL180: 1 | AM180: 0.8 | AN180: 280 | AO180: 840000 | AP180: 0 | AQ180: 0
A181: Lonely | B181: 2639 | D181: X | E181: S | F181: 0 | G181: 1 | H181: 0 | I181: 0 | J181: 0 | K181: - | L181: 0 | O181: Ba | P181: Ic | Q181: Lo | R181: Ni | S181: Va | W181: 0 | X181: 2 | Y181: 4 | AA181: Ba | AB181: Subsector P - Chamber | AC181: -0.5 | AD181: 0 | AE181: -0.5 | AF181: =INDEX($BB$26:BG$44,MATCH(AE181,$BA$26:$BA$44,-1),MATCH(D181,$BB$25:$BG$25)) -> 0 | AG181: -0.5 | AH181: 1 | AI181: 1 | AJ181: 1 | AK181: 1 | AL181: 0.8 | AM181: 0.8 | AN181: 35.2 | AO181: 0 | AP181: 0 | AQ181: 0
A182: Lost | B182: 2230 | D182: C | E182: 1 | F182: 0 | G182: 0 | H182: 2 | I182: 5 | J182: 9 | K182: - | L182: 8 | N182: S | O182: Lo | P182: Ni | Q182: Va | W182: 1 | X182: 2 | Y182: 3 | AA182: Dr | AB182: Subsector K - Floe | AC182: 0.5 | AD182: 1 | AE182: 1.5 | AF182: =INDEX($BB$26:BG$44,MATCH(AE182,$BA$26:$BA$44,-1),MATCH(D182,$BB$25:$BG$25)) -> 0.5 | AG182: 2 | AH182: 1 | AI182: 1 | AJ182: 1 | AK182: 1 | AL182: 0.8 | AM182: 0.8 | AN182: 1465.6 | AO182: 146560 | AP182: 0 | AQ182: 0
A183: Lugikad | B183: 722 | D183: D | E183: 5 | F183: 5 | G183: 3 | H183: 3 | I183: 6 | J183: 2 | K183: - | L183: 7 | N183: S | O183: Lo | P183: Ni | Q183: Po | W183: 1 | X183: 3 | Y183: 5 | AA183: I3 | AB183: Subsector I - Outback | AC183: 0.5 | AD183: 1.5 | AE183: 2 | AF183: =INDEX($BB$26:BG$44,MATCH(AE183,$BA$26:$BA$44,-1),MATCH(D183,$BB$25:$BG$25)) -> 0 | AG183: 2 | AH183: 1 | AI183: 1 | AJ183: 1 | AK183: 0.8 | AL183: 1 | AM183: 0.8 | AN183: 915.2 | AO183: 915200 | AP183: 0 | AQ183: 0
A184: Mainetti | B184: 2517 | D184: X | E184: 8 | F184: C | G184: 3 | H184: 0 | I184: 0 | J184: 0 | K184: - | L184: 0 | O184: Ba | P184: Fl | Q184: Lo | R184: Ni | W184: 0 | X184: 0 | Y184: 0 | AA184: Ba | AB184: Subsector H - Chanter | AC184: -0.5 | AD184: 0 | AE184: -0.5 | AF184: =INDEX($BB$26:BG$44,MATCH(AE184,$BA$26:$BA$44,-1),MATCH(D184,$BB$25:$BG$25)) -> 0 | AG184: -0.5 | AH184: 1 | AI184: 1 | AJ184: 1 | AK184: 1 | AL184: 0.8 | AM184: 0.8 | AN184: 35.2 | AO184: 0 | AP184: 0 | AQ184: 0
A185: Melusina | B185: 3231 | D185: X | E185: 2 | F185: 4 | G185: 5 | H185: 0 | I185: 0 | J185: 0 | K185: - | L185: 0 | O185: Ba | P185: Lo | Q185: Ni | W185: 0 | X185: 0 | Y185: 0 | AA185: Ba | AB185: Subsector P - Chamber | AC185: -0.5 | AD185: 0 | AE185: -0.5 | AF185: =INDEX($BB$26:BG$44,MATCH(AE185,$BA$26:$BA$44,-1),MATCH(D185,$BB$25:$BG$25)) -> 0 | AG185: -0.5 | AH185: 1 | AI185: 1 | AJ185: 1 | AK185: 1 | AL185: 1 | AM185: 0.8 | AN185: 44 | AO185: 0 | AP185: 0 | AQ185: 0
A186: Memento | B186: 3010 | D186: X | E186: 3 | F186: 4 | G186: 1 | H186: 0 | I186: 0 | J186: 0 | K186: - | L186: 0 | O186: Ba | P186: Lo | Q186: Ni | R186: Po | W186: 0 | X186: 1 | Y186: 5 | AA186: Ba | AB186: Subsector D - Yelloworld | AC186: -0.5 | AD186: 0 | AE186: -0.5 | AF186: =INDEX($BB$26:BG$44,MATCH(AE186,$BA$26:$BA$44,-1),MATCH(D186,$BB$25:$BG$25)) -> 0 | AG186: -0.5 | AH186: 1 | AI186: 1 | AJ186: 1 | AK186: 1 | AL186: 1 | AM186: 0.8 | AN186: 44 | AO186: 0 | AP186: 0 | AQ186: 0
A187: Metheny | B187: 2538 | D187: X | E187: 3 | F187: 3 | G187: 3 | H187: 0 | I187: 0 | J187: 0 | K187: - | L187: 0 | O187: Ba | P187: Lo | Q187: Ni | R187: Po | W187: 0 | X187: 0 | Y187: 0 | AA187: Ba | AB187: Subsector P - Chamber | AC187: -0.5 | AD187: 0 | AE187: -0.5 | AF187: =INDEX($BB$26:BG$44,MATCH(AE187,$BA$26:$BA$44,-1),MATCH(D187,$BB$25:$BG$25)) -> 0 | AG187: -0.5 | AH187: 1 | AI187: 1 | AJ187: 1 | AK187: 1 | AL187: 1 | AM187: 0.8 | AN187: 44 | AO187: 0 | AP187: 0 | AQ187: 0
A188: Mia | B188: 1810 | D188: C | E188: 7 | F188: 2 | G188: 8 | H188: 3 | I188: 1 | J188: 0 | K188: - | L188: 7 | O188: Lo | P188: Ni | W188: 2 | X188: 2 | Y188: 2 | AA188: I2 | AB188: Subsector C - Wsi | AC188: 0.5 | AD188: 1.5 | AE188: 2 | AF188: =INDEX($BB$26:BG$44,MATCH(AE188,$BA$26:$BA$44,-1),MATCH(D188,$BB$25:$BG$25)) -> 0.5 | AG188: 2.5 | AH188: 1 | AI188: 1 | AJ188: 1 | AK188: 1 | AL188: 1 | AM188: 0.8 | AN188: 1144 | AO188: 2288000 | AP188: 0 | AQ188: 0
A189: Mondo | B189: 2826 | D189: X | E189: 5 | F189: 2 | G189: 5 | H189: 0 | I189: 0 | J189: 0 | K189: - | L189: 0 | O189: Ba | P189: Lo | Q189: Ni | W189: 0 | X189: 1 | Y189: 1 | AA189: Ba | AB189: Subsector L - Dreamsong | AC189: -0.5 | AD189: 0 | AE189: -0.5 | AF189: =INDEX($BB$26:BG$44,MATCH(AE189,$BA$26:$BA$44,-1),MATCH(D189,$BB$25:$BG$25)) -> 0 | AG189: -0.5 | AH189: 1 | AI189: 1 | AJ189: 1 | AK189: 1 | AL189: 1 | AM189: 0.8 | AN189: 44 | AO189: 0 | AP189: 0 | AQ189: 0
A190: Mons Argent | B190: 2507 | D190: C | E190: 2 | F190: 5 | G190: 4 | H190: 4 | I190: 8 | J190: 6 | K190: - | L190: 9 | N190: S | O190: Ni | W190: 4 | X190: 2 | Y190: 0 | AA190: I2 | AB190: Subsector D - Yelloworld | AC190: 1 | AD190: 2 | AE190: 3 | AF190: =INDEX($BB$26:BG$44,MATCH(AE190,$BA$26:$BA$44,-1),MATCH(D190,$BB$25:$BG$25)) -> 0 | AG190: 3 | AH190: 1 | AI190: 1 | AJ190: 1 | AK190: 1 | AL190: 1 | AM190: 0.8 | AN190: 2928 | AO190: 117120000 | AP190: 0 | AQ190: 0
A191: Montrose | B191: 505 | D191: C | E191: 1 | F191: 5 | G191: 0 | H191: 4 | I191: 3 | J191: 4 | K191: - | L191: A | N191: S | O191: De | P191: Ni | Q191: Po | W191: 2 | X191: 0 | Y191: 5 | AA191: I1 | AB191: Subsector A - Nosso Nosso | AC191: 1 | AD191: 2 | AE191: 3 | AF191: =INDEX($BB$26:BG$44,MATCH(AE191,$BA$26:$BA$44,-1),MATCH(D191,$BB$25:$BG$25)) -> 0 | AG191: 3 | AH191: 1 | AI191: 1 | AJ191: 1 | AK191: 0.8 | AL191: 0.8 | AM191: 0.8 | AN191: 3000.32 | AO191: 60006400 | AP191: 0 | AQ191: 0
A192: Moonrise | B192: 435 | D192: X | E192: 5 | F192: 2 | G192: 7 | H192: 0 | I192: 0 | J192: 0 | K192: - | L192: 0 | O192: Ba | P192: Lo | Q192: Ni | W192: 0 | X192: 0 | Y192: 0 | AA192: Ba | AB192: Subsector M - Glossalalia | AC192: -0.5 | AD192: 0 | AE192: -0.5 | AF192: =INDEX($BB$26:BG$44,MATCH(AE192,$BA$26:$BA$44,-1),MATCH(D192,$BB$25:$BG$25)) -> 0 | AG192: -0.5 | AH192: 1 | AI192: 1 | AJ192: 1 | AK192: 1 | AL192: 1 | AM192: 0.8 | AN192: 44 | AO192: 0 | AP192: 0 | AQ192: 0
A193: Moons | B193: 3006 | D193: B | E193: 4 | F193: 4 | G193: 5 | H193: 4 | I193: 7 | J193: 5 | K193: - | L193: A | O193: Ni | W193: 2 | X193: 0 | Y193: 3 | AA193: I2 | AB193: Subsector D - Yelloworld | AC193: 1 | AD193: 2 | AE193: 3 | AF193: =INDEX($BB$26:BG$44,MATCH(AE193,$BA$26:$BA$44,-1),MATCH(D193,$BB$25:$BG$25)) -> 0.5 | AG193: 3.5 | AH193: 1 | AI193: 1 | AJ193: 1 | AK193: 1 | AL193: 1 | AM193: 0.8 | AN193: 4688 | AO193: 93760000 | AP193: 0 | AQ193: 0
A194: Mu | B194: 905 | D194: E | E194: 8 | F194: 8 | G194: 6 | H194: 0 | I194: 0 | J194: 1 | K194: - | L194: A | O194: Lo | P194: Ni | W194: 5 | X194: 0 | Y194: 4 | AA194: I1 | AB194: Subsector B - Mu | AC194: 1 | AD194: 0 | AE194: 1 | AF194: =INDEX($BB$26:BG$44,MATCH(AE194,$BA$26:$BA$44,-1),MATCH(D194,$BB$25:$BG$25)) -> 0 | AG194: 1 | AH194: 1 | AI194: 1 | AJ194: 1 | AK194: 1 | AL194: 1 | AM194: 0.8 | AN194: 4688 | AO194: 23440 | AP194: 0 | AQ194: 0
A195: Musashiden | B195: 3136 | D195: X | E195: 7 | F195: 5 | G195: 9 | H195: 0 | I195: 0 | J195: 0 | K195: - | L195: 0 | O195: Ba | P195: Lo | Q195: Ni | W195: 0 | X195: 0 | Y195: 3 | AA195: Ba | AB195: Subsector P - Chamber | AC195: -0.5 | AD195: 0 | AE195: -0.5 | AF195: =INDEX($BB$26:BG$44,MATCH(AE195,$BA$26:$BA$44,-1),MATCH(D195,$BB$25:$BG$25)) -> 0 | AG195: -0.5 | AH195: 1 | AI195: 1 | AJ195: 1 | AK195: 1 | AL195: 1 | AM195: 0.8 | AN195: 44 | AO195: 0 | AP195: 0 | AQ195: 0
A196: Nadia | B196: 2002 | D196: C | E196: 4 | F196: 6 | G196: 3 | H196: 2 | I196: 3 | J196: 0 | K196: - | L196: 9 | N196: S | O196: Lo | P196: Ni | W196: 1 | X196: 0 | Y196: 3 | AA196: I2 | AB196: Subsector C - Wsi | AC196: 1 | AD196: 1 | AE196: 2 | AF196: =INDEX($BB$26:BG$44,MATCH(AE196,$BA$26:$BA$44,-1),MATCH(D196,$BB$25:$BG$25)) -> 0.5 | AG196: 2.5 | AH196: 1 | AI196: 1 | AJ196: 1 | AK196: 1 | AL196: 1 | AM196: 0.8 | AN196: 2928 | AO196: 292800 | AP196: 0 | AQ196: 0
A197: Nara | B197: 2725 | D197: X | E197: 4 | F197: 7 | G197: 4 | H197: 0 | I197: 0 | J197: 0 | K197: - | L197: 0 | O197: Ba | P197: Lo | Q197: Ni | W197: 0 | X197: 2 | Y197: 4 | AA197: Ba | AB197: Subsector L - Dreamsong | AC197: -0.5 | AD197: 0 | AE197: -0.5 | AF197: =INDEX($BB$26:BG$44,MATCH(AE197,$BA$26:$BA$44,-1),MATCH(D197,$BB$25:$BG$25)) -> 0 | AG197: -0.5 | AH197: 1 | AI197: 1 | AJ197: 1 | AK197: 1 | AL197: 1 | AM197: 0.8 | AN197: 44 | AO197: 0 | AP197: 0 | AQ197: 0
A198: Nevicava | B198: 1601 | D198: E | E198: 8 | F198: B | G198: 5 | H198: 0 | I198: 0 | J198: 0 | K198: - | L198: 8 | O198: Ba | P198: Fl | Q198: Lo | R198: Ni | W198: 6 | X198: 0 | Y198: 0 | AA198: I2 | AB198: Subsector B - Mu | AC198: 0.5 | AD198: 0 | AE198: 0.5 | AF198: =INDEX($BB$26:BG$44,MATCH(AE198,$BA$26:$BA$44,-1),MATCH(D198,$BB$25:$BG$25)) -> 0.5 | AG198: 1 | AH198: 1 | AI198: 1 | AJ198: 1 | AK198: 1 | AL198: 0.8 | AM198: 0.8 | AN198: 1465.6 | AO198: 8793.6 | AP198: 0 | AQ198: 0
A199: Newsight | B199: 730 | D199: X | E199: 3 | F199: 4 | G199: 3 | H199: 0 | I199: 0 | J199: 0 | K199: - | L199: 0 | O199: Ba | P199: Lo | Q199: Ni | R199: Po | W199: 0 | X199: 0 | Y199: 3 | AA199: Ba | AB199: Subsector I - Outback | AC199: -0.5 | AD199: 0 | AE199: -0.5 | AF199: =INDEX($BB$26:BG$44,MATCH(AE199,$BA$26:$BA$44,-1),MATCH(D199,$BB$25:$BG$25)) -> 0 | AG199: -0.5 | AH199: 1 | AI199: 1 | AJ199: 1 | AK199: 1 | AL199: 1 | AM199: 0.8 | AN199: 44 | AO199: 0 | AP199: 0 | AQ199: 0
A200: North | B200: 2234 | D200: E | E200: 4 | F200: 4 | G200: 2 | H200: 4 | I200: 6 | J200: 8 | K200: - | L200: 8 | O200: Ni | P200: Po | W200: 7 | X200: 0 | Y200: 3 | AA200: Dr | AB200: Subsector O - Painted | AC200: 0.5 | AD200: 2 | AE200: 2.5 | AF200: =INDEX($BB$26:BG$44,MATCH(AE200,$BA$26:$BA$44,-1),MATCH(D200,$BB$25:$BG$25)) -> 0 | AG200: 2.5 | AH200: 1 | AI200: 1 | AJ200: 1 | AK200: 0.8 | AL200: 1 | AM200: 0.8 | AN200: 1465.6 | AO200: 102592000 | AP200: 0 | AQ200: 0
A201: Nosso Nosso | B201: 807 | D201: A | E201: 6 | F201: 6 | G201: A | H201: 2 | I201: 4 | J201: 5 | K201: - | L201: A | O201: Lo | P201: Ni | Q201: Wa | W201: 6 | X201: 1 | Y201: 4 | AA201: I1 | AB201: Subsector A - Nosso Nosso | AC201: 1 | AD201: 1 | AE201: 2 | AF201: =INDEX($BB$26:BG$44,MATCH(AE201,$BA$26:$BA$44,-1),MATCH(D201,$BB$25:$BG$25)) -> 1 | AG201: 3 | AH201: 1 | AI201: 1 | AJ201: 1 | AK201: 1 | AL201: 1 | AM201: 0.8 | AN201: 4688 | AO201: 2812800 | AP201: 0 | AQ201: 0
A202: Nyman | B202: 2305 | D202: D | E202: 5 | F202: 3 | G202: 8 | H202: 2 | I202: 0 | J202: 2 | K202: - | L202: A | O202: Lo | P202: Ni | W202: 1 | X202: 1 | Y202: 2 | AA202: I2 | AB202: Subsector O - Painted | AC202: 1 | AD202: 1 | AE202: 2 | AF202: =INDEX($BB$26:BG$44,MATCH(AE202,$BA$26:$BA$44,-1),MATCH(D202,$BB$25:$BG$25)) -> 0 | AG202: 2 | AH202: 1 | AI202: 1 | AJ202: 1 | AK202: 1 | AL202: 1 | AM202: 0.8 | AN202: 4688 | AO202: 468800 | AP202: 0 | AQ202: 0
A203: Obelisk | B203: 2833 | D203: X | E203: 7 | F203: 6 | G203: 5 | H203: 0 | I203: 0 | J203: 0 | K203: - | L203: 0 | O203: Ba | P203: Lo | Q203: Ni | W203: 0 | X203: 1 | Y203: 3 | AA203: Ba | AB203: Subsector P - Chamber | AC203: -0.5 | AD203: 0 | AE203: -0.5 | AF203: =INDEX($BB$26:BG$44,MATCH(AE203,$BA$26:$BA$44,-1),MATCH(D203,$BB$25:$BG$25)) -> 0 | AG203: -0.5 | AH203: 1 | AI203: 1 | AJ203: 1 | AK203: 1 | AL203: 1 | AM203: 0.8 | AN203: 44 | AO203: 0 | AP203: 0 | AQ203: 0
A204: Oktane | B204: 1606 | D204: C | E204: 4 | F204: 3 | G204: 7 | H204: 3 | I204: 7 | J204: 6 | K204: - | L204: 8 | N204: S | O204: Lo | P204: Ni | W204: 2 | X204: 1 | Y204: 3 | AA204: I1 | AB204: Subsector B - Mu | AC204: 0.5 | AD204: 1.5 | AE204: 2 | AF204: =INDEX($BB$26:BG$44,MATCH(AE204,$BA$26:$BA$44,-1),MATCH(D204,$BB$25:$BG$25)) -> 0.5 | AG204: 2.5 | AH204: 1 | AI204: 1 | AJ204: 1 | AK204: 1 | AL204: 1 | AM204: 0.8 | AN204: 1832 | AO204: 3664000 | AP204: 0 | AQ204: 0
A205: Olio | B205: 1310 | D205: D | E205: 5 | F205: 1 | G205: 1 | H205: 3 | I205: 3 | J205: 3 | K205: - | L205: A | N205: S | O205: Ic | P205: Lo | Q205: Ni | W205: 2 | X205: 0 | Y205: 3 | AA205: I1 | AB205: Subsector B - Mu | AC205: 1 | AD205: 1.5 | AE205: 2.5 | AF205: =INDEX($BB$26:BG$44,MATCH(AE205,$BA$26:$BA$44,-1),MATCH(D205,$BB$25:$BG$25)) -> 0 | AG205: 2.5 | AH205: 1 | AI205: 1 | AJ205: 1 | AK205: 1 | AL205: 0.8 | AM205: 0.8 | AN205: 3750.4 | AO205: 7500800 | AP205: 0 | AQ205: 0
A206: Olympic | B206: 2728 | D206: X | E206: 5 | F206: 2 | G206: 5 | H206: 0 | I206: 0 | J206: 0 | K206: - | L206: 0 | O206: Ba | P206: Lo | Q206: Ni | W206: 0 | X206: 0 | Y206: 0 | AA206: Ba | AB206: Subsector L - Dreamsong | AC206: -0.5 | AD206: 0 | AE206: -0.5 | AF206: =INDEX($BB$26:BG$44,MATCH(AE206,$BA$26:$BA$44,-1),MATCH(D206,$BB$25:$BG$25)) -> 0 | AG206: -0.5 | AH206: 1 | AI206: 1 | AJ206: 1 | AK206: 1 | AL206: 1 | AM206: 0.8 | AN206: 44 | AO206: 0 | AP206: 0 | AQ206: 0
A207: Omni | B207: 630 | D207: X | E207: 8 | F207: A | G207: 4 | H207: 0 | I207: 0 | J207: 0 | K207: - | L207: 0 | O207: Ba | P207: Fl | Q207: Lo | R207: Ni | W207: 0 | X207: 0 | Y207: 5 | AA207: Ba | AB207: Subsector I - Outback | AC207: -0.5 | AD207: 0 | AE207: -0.5 | AF207: =INDEX($BB$26:BG$44,MATCH(AE207,$BA$26:$BA$44,-1),MATCH(D207,$BB$25:$BG$25)) -> 0 | AG207: -0.5 | AH207: 1 | AI207: 1 | AJ207: 1 | AK207: 1 | AL207: 0.8 | AM207: 0.8 | AN207: 35.2 | AO207: 0 | AP207: 0 | AQ207: 0
A208: Opaque | B208: 840 | D208: X | E208: 7 | F208: C | G208: 1 | H208: 0 | I208: 0 | J208: 0 | K208: - | L208: 0 | O208: Ba | P208: Fl | Q208: Lo | R208: Ni | W208: 0 | X208: 0 | Y208: 3 | AA208: Ba | AB208: Subsector M - Glossalalia | AC208: -0.5 | AD208: 0 | AE208: -0.5 | AF208: =INDEX($BB$26:BG$44,MATCH(AE208,$BA$26:$BA$44,-1),MATCH(D208,$BB$25:$BG$25)) -> 0 | AG208: -0.5 | AH208: 1 | AI208: 1 | AJ208: 1 | AK208: 1 | AL208: 0.8 | AM208: 0.8 | AN208: 35.2 | AO208: 0 | AP208: 0 | AQ208: 0
A209: Orb | B209: 1231 | D209: B | E209: 3 | F209: 5 | G209: 0 | H209: 4 | I209: 5 | J209: 5 | K209: - | L209: 8 | O209: De | P209: Ni | Q209: Po | W209: 4 | X209: 1 | Y209: 4 | AA209: Nf | AB209: Subsector N - Sorrow | AC209: 0.5 | AD209: 2 | AE209: 2.5 | AF209: =INDEX($BB$26:BG$44,MATCH(AE209,$BA$26:$BA$44,-1),MATCH(D209,$BB$25:$BG$25)) -> 0.5 | AG209: 3 | AH209: 1 | AI209: 1 | AJ209: 1 | AK209: 0.8 | AL209: 0.8 | AM209: 0.8 | AN209: 1172.48 | AO209: 46899200 | AP209: 0 | AQ209: 0
A210: Orcana | B210: 1303 | D210: X | E210: 6 | F210: 4 | G210: A | H210: 0 | I210: 0 | J210: 0 | K210: - | L210: 0 | O210: Ba | P210: Lo | Q210: Ni | R210: Wa | W210: 0 | X210: 0 | Y210: 4 | AA210: Ba | AB210: Subsector B - Mu | AC210: -0.5 | AD210: 0 | AE210: -0.5 | AF210: =INDEX($BB$26:BG$44,MATCH(AE210,$BA$26:$BA$44,-1),MATCH(D210,$BB$25:$BG$25)) -> 0 | AG210: -0.5 | AH210: 1 | AI210: 1 | AJ210: 1 | AK210: 1 | AL210: 1 | AM210: 0.8 | AN210: 44 | AO210: 0 | AP210: 0 | AQ210: 0
A211: Orgoglio | B211: 208 | D211: E | E211: 1 | F211: 3 | G211: 0 | H211: 3 | I211: 3 | J211: 5 | K211: - | L211: 8 | O211: De | P211: Lo | Q211: Ni | R211: Po | W211: 2 | X211: 0 | Y211: 1 | AA211: I1 | AB211: Subsector A - Nosso Nosso | AC211: 0.5 | AD211: 1.5 | AE211: 2 | AF211: =INDEX($BB$26:BG$44,MATCH(AE211,$BA$26:$BA$44,-1),MATCH(D211,$BB$25:$BG$25)) -> 0 | AG211: 2 | AH211: 1 | AI211: 1 | AJ211: 1 | AK211: 1 | AL211: 0.8 | AM211: 0.8 | AN211: 1465.6 | AO211: 2931200 | AP211: 0 | AQ211: 0
A212: Outerlimits | B212: 2532 | D212: X | E212: 4 | F212: 0 | G212: 0 | H212: 0 | I212: 0 | J212: 0 | K212: - | L212: 0 | O212: Ba | P212: Lo | Q212: Ni | R212: Va | W212: 0 | X212: 0 | Y212: 0 | AA212: Ba | AB212: Subsector P - Chamber | AC212: =VLOOKUP(L212,$AT$23:$AV$40,3) -> -0.5 | AD212: =VLOOKUP(H212,$AX$23:$AY$36,2) -> 0 | AE212: =AC212+AD212 -> -0.5 | AF212: =INDEX($BB$26:BG$44,MATCH(AE212,$BA$26:$BA$44,-1),MATCH(D212,$BB$25:$BG$25)) -> 0 | AG212: =AE212+AF212 -> -0.5 | AH212: 1 | AI212: 1 | AJ212: 1 | AK212: 1 | AL212: 0.8 | AM212: 0.8 | AN212: =(VLOOKUP(L212,$AT$23:$AW$40,4))*AH212*AI212*AJ212*AK212*AL212*AM212 -> 35.2 | AO212: =AN212*((10^H212)*W212) -> 0 | AP212: =INDEX($BL$23:$BV$36,MATCH(L212,$BK$23:$BK$36),MATCH(H212,$BL$22:$BV$22)) -> 0 | AQ212: =AP212*W212 -> 0
... 98 more rows

Sheet 1540 Im.
A1: Name | B1: Hex | D1: Pt | E1: Si | F1: At | G1: Hy | H1: Po | I1: Go | J1: La | L1: TL | N1: Ba | O1: Remarks | U1: Z | W1: P | X1: B | Y1: G | AA1: Al | AB1: Subsector
A9: Between 1500 and 1540:
B10: Flandry & Justince shifted their atmos from 9 to 8. | S10: Hex 1002: mainworld shift.
S11: Hex 0904: mainworld shift.
AB12: Worlds with breathable air (Atmos 5,6,8,D,F)
AB13: As above, plus lots of water (Hydro 6+)
AB14: As above, plus decent gravity (Size 6+) | AM14: Mod B PCI = Modified Base | AO14: GF - Mega = Ground Army, Megatraveller
A15: Var Kirat Campaign - Starbreak Sector, 1540 Imperial | AM15: Per-Capita Income
A16: I1 = Imperial Cianji • Ic = CIanji Client State • I3 = Ziru Sirkaa • I4 = Holy Imperium • Ks = Kirati Stars • Wc = Wsi Cluster • Dw = Dune Worlds •
A17: Ao = Aerno Organ • Dr = Diltov Republic • Nf = Noble Federation • Kj = Kingdom of Justince • Marquessate of Vieunia • Na = Non-aligned • Ba = Barren
BJ18: Modified MegaT Troop Unit Table: No. of Regiments
A19: Name | B19: Hex | D19: Pt | E19: Si | F19: At | G19: Hy | H19: Po | I19: Go | J19: La | L19: TL | N19: Ba | O19: Remarks | U19: Z | W19: P | X19: B | Y19: G | AA19: Al | AB19: Subsector | AC19: TL-Mod | AD19: P-Mod | AE19: UWTN | AF19: WTN | AG19: Rich | AH19: Ind | AI19: Agr | AJ19: Poor | AK19: Ext | AL19: Non-Ind | AM19: Mod B PCI | AN19: GWP | AO19: GF - Mega | AP19: GF x PopM | AS19: Tables for Far Trader
A20: Cianji | B20: 1005 | D20: A | E20: 6 | F20: 6 | G20: 6 | H20: 9 | I20: 7 | J20: A | K20: - | L20: A | N20: A | O20: Hi | P20: Cp | U20: R | W20: 1 | X20: 0 | Y20: 3 | AA20: I1 | AB20: Subsector B - Mu | AC20: =VLOOKUP(L20,$AS$23:$AU$40,3) -> 1 | AD20: =VLOOKUP(H20,$AW$23:$AX$36,2) -> 4.5 | AE20: =AC20+AD20 -> 5.5 | AF20: =INDEX($BA$26:BF$44,MATCH(AE20,$AZ$26:$AZ$44,-1),MATCH(D20,$BA$25:$BF$25)) -> 0 | AG20: 1 | AH20: 1 | AI20: 1 | AJ20: 1 | AK20: 0.8 | AL20: 0.8 | AM20: =(VLOOKUP(L20,$AS$23:$AV$40,4))*AG20*AH20*AI20*AJ20*AK20*AL20 -> 3750.4 | AN20: =AM20*((10^H20)*W20) -> 3750400000000 | AO20: =INDEX($BK$23:$BU$36,MATCH(L20,$BJ$23:$BJ$36),MATCH(H20,$BK$22:$BU$22)) -> 10000 | AP20: =AO20*W20 -> 10000
A21: Enlugal | B21: 1118 | D21: A | E21: 4 | F21: 8 | G21: 6 | H21: 8 | I21: 9 | J21: 9 | K21: - | L21: B | N21: N | O21: Ri | P21: Cp | U21: A | W21: 7 | X21: 0 | Y21: 2 | AA21: I3 | AB21: Subsector F - NightVision | AC21: 1 | AD21: 4 | AE21: 5 | AF21: =INDEX($BA$26:BF$44,MATCH(AE21,$AZ$26:$AZ$44,-1),MATCH(D21,$BA$25:$BF$25)) -> 0 | AG21: 1 | AH21: 1 | AI21: 1 | AJ21: 1 | AK21: 0.8 | AL21: 0.8 | AM21: 6000 | AN21: 4200000000000 | AO21: 700 | AP21: 4900 | AS21: Unmodified World Trade Number = TL Modifier + Population Modifier | BK21: Population
A22: Athens | B22: 2724 | D22: C | E22: 5 | F22: 8 | G22: 4 | H22: 8 | I22: 7 | J22: 7 | K22: - | L22: 8 | O22: Ri | U22: A | W22: 6 | X22: 0 | Y22: 0 | AA22: Ks | AB22: Subsector L - Dreamsong | AC22: 0.5 | AD22: 4 | AE22: 4.5 | AF22: =INDEX($BA$26:BF$44,MATCH(AE22,$AZ$26:$AZ$44,-1),MATCH(D22,$BA$25:$BF$25)) -> 0 | AG22: 1 | AH22: 1 | AI22: 1 | AJ22: 1 | AK22: 1 | AL22: 0.8 | AM22: 1832 | AN22: 1099200000000 | AO22: 1500 | AP22: 9000 | AS22: TL Modifier Table | AZ22: Port Mod. Table | BJ22: GTL | BK22: 0 | BL22: 1 | BM22: 2 | BN22: 3 | BO22: 4 | BP22: 5 | BQ22: 6 | BR22: 7 | BS22: 8 | BT22: 9 | BU22: A
A23: Sylea | B23: 2116 | D23: C | E23: 1 | F23: 6 | G23: 0 | H23: 8 | I23: E | J23: C | K23: - | L23: B | N23: A | O23: De | P23: Cp | U23: A | W23: 6 | X23: 0 | Y23: 2 | AA23: I4 | AB23: Subsector G - LightWaves | AC23: 1 | AD23: 4 | AE23: 5 | AF23: =INDEX($BA$26:BF$44,MATCH(AE23,$AZ$26:$AZ$44,-1),MATCH(D23,$BA$25:$BF$25)) -> -0.5 | AG23: 1 | AH23: 1 | AI23: 1 | AJ23: 1 | AK23: 1 | AL23: 0.8 | AM23: 7500 | AN23: 4500000000000 | AO23: 700 | AP23: 4200 | AS23: UWP | AT23: GTL | AU23: TL Mod | AV23: Base Income | AW23: Pop | AX23: Pop Mod | BJ23: 0 | BK23: 0 | BL23: 0 | BM23: 0 | BN23: 0 | BO23: 0 | BP23: 0 | BQ23: 0 | BR23: 1 | BS23: 10 | BT23: 100 | BU23: 1000
A24: Hub | B24: 2719 | D24: A | E24: 8 | F24: 8 | G24: 4 | H24: 8 | I24: 5 | J24: 6 | K24: - | L24: B | N24: N | O24: Ri | P24: Cp | U24: A | W24: 2 | X24: 0 | Y24: 3 | AA24: Ks | AB24: Subsector H - Chanter | AC24: 1 | AD24: 4 | AE24: 5 | AF24: =INDEX($BA$26:BF$44,MATCH(AE24,$AZ$26:$AZ$44,-1),MATCH(D24,$BA$25:$BF$25)) -> 0 | AG24: 1 | AH24: 1 | AI24: 1 | AJ24: 1 | AK24: 0.8 | AL24: 0.8 | AM24: 6000 | AN24: 1200000000000 | AO24: 700 | AP24: 1400 | AS24: 0 | AT24: 0 | AU24: -0.5 | AV24: 55 | AW24: 0 | AX24: 0 | BC24: Ports | BJ24: 1 | BK24: 0 | BL24: 0 | BM24: 0 | BN24: 0 | BO24: 0 | BP24: 0 | BQ24: 1 | BR24: 5 | BS24: 50 | BT24: 500 | BU24: 5000
A25: Dune | B25: 1713 | D25: A | E25: 2 | F25: 6 | G25: 0 | H25: 8 | I25: 7 | J25: 7 | K25: - | L25: A | N25: N | O25: De | P25: Ri | U25: A | W25: 1 | X25: 0 | Y25: 0 | AA25: Dw | AB25: Subsector G - LightWaves | AC25: 1 | AD25: 4 | AE25: 5 | AF25: =INDEX($BA$26:BF$44,MATCH(AE25,$AZ$26:$AZ$44,-1),MATCH(D25,$BA$25:$BF$25)) -> 0 | AG25: 1 | AH25: 1 | AI25: 1 | AJ25: 1 | AK25: 1 | AL25: 0.8 | AM25: 4688 | AN25: 468800000000 | AO25: 1000 | AP25: 1000 | AS25: 1 | AT25: 1 | AU25: -0.5 | AV25: 85 | AW25: 1 | AX25: 0.5 | AZ25: UWTN | BA25: A | BB25: B | BC25: C | BD25: D | BE25: E | BF25: X | BJ25: 2 | BK25: 0 | BL25: 0 | BM25: 0 | BN25: 0 | BO25: 0 | BP25: 1 | BQ25: 5 | BR25: 50 | BS25: 500 | BT25: 5000 | BU25: 50000
A26: Wsi | B26: 2408 | D26: A | E26: 3 | F26: 8 | G26: 3 | H26: 7 | I26: 4 | J26: 8 | K26: - | L26: A | N26: N | O26: Ri | P26: Cp | U26: B | W26: 4 | X26: 1 | Y26: 0 | AA26: Wc | AB26: Subsector C - Wsi | AC26: 1 | AD26: 3.5 | AE26: 4.5 | AF26: =INDEX($BA$26:BF$44,MATCH(AE26,$AZ$26:$AZ$44,-1),MATCH(D26,$BA$25:$BF$25)) -> 0.5 | AG26: 1 | AH26: 1 | AI26: 1 | AJ26: 1 | AK26: 1 | AL26: 0.8 | AM26: 4688 | AN26: 187520000000 | AO26: 100 | AP26: 400 | AS26: 2 | AT26: 2 | AU26: -0.5 | AV26: 135 | AW26: 2 | AX26: 1 | AZ26: 8 | BA26: 0 | BB26: -1 | BC26: -1.5 | BD26: -2 | BE26: -2.5 | BF26: -5 | BJ26: 3 | BK26: 0 | BL26: 0 | BM26: 0 | BN26: 0 | BO26: 1 | BP26: 10 | BQ26: 100 | BR26: 1000 | BS26: 10000 | BT26: 50000 | BU26: 100000
A27: Flandry | B27: 2602 | D27: A | E27: 6 | F27: 8 | G27: A | H27: 7 | I27: 9 | J27: 6 | K27: - | L27: A | N27: N | O27: Ri | P27: Wa | U27: B | W27: 3 | X27: 2 | Y27: 0 | AA27: Na | AB27: Subsector D - Yelloworld | AC27: 1 | AD27: 3.5 | AE27: 4.5 | AF27: =INDEX($BA$26:BF$44,MATCH(AE27,$AZ$26:$AZ$44,-1),MATCH(D27,$BA$25:$BF$25)) -> 0.5 | AG27: 1 | AH27: 1 | AI27: 1 | AJ27: 1 | AK27: 1 | AL27: 0.8 | AM27: 4688 | AN27: 140640000000 | AO27: 100 | AP27: 300 | AS27: 3 | AT27: 3 | AU27: 0 | AV27: 220 | AW27: 3 | AX27: 1.5 | AZ27: 7.5 | BA27: 0 | BB27: -1 | BC27: -1.5 | BD27: -2 | BE27: -2.5 | BF27: -5 | BJ27: 4 | BK27: 0 | BL27: 0 | BM27: 0 | BN27: 0 | BO27: 1 | BP27: 10 | BQ27: 100 | BR27: 1000 | BS27: 2000 | BT27: 20000 | BU27: 200000
A28: Diaoran | B28: 903 | D28: B | E28: 8 | F28: 5 | G28: 7 | H28: 7 | I28: B | J28: D | K28: - | L28: 7 | O28: Ag | U28: B | W28: 2 | X28: 2 | Y28: 0 | AA28: I1 | AB28: Subsector B - Mu | AC28: 0.5 | AD28: 3.5 | AE28: 4 | AF28: =INDEX($BA$26:BF$44,MATCH(AE28,$AZ$26:$AZ$44,-1),MATCH(D28,$BA$25:$BF$25)) -> 0 | AG28: 1 | AH28: 1 | AI28: 1 | AJ28: 1 | AK28: 1 | AL28: 0.8 | AM28: 1144 | AN28: 22880000000 | AO28: 200 | AP28: 400 | AS28: 4 | AT28: 4 | AU28: 0 | AV28: 350 | AW28: 4 | AX28: 2 | AZ28: 7 | BA28: 0 | BB28: -1 | BC28: -1.5 | BD28: -2 | BE28: -2.5 | BF28: -5 | BJ28: 5 | BK28: 0 | BL28: 0 | BM28: 0 | BN28: 1 | BO28: 2 | BP28: 3 | BQ28: 30 | BR28: 300 | BS28: 3000 | BT28: 30000 | BU28: 300000
A29: Whiteheart | B29: 3107 | D29: C | E29: 8 | F29: 8 | G29: 6 | H29: 7 | I29: D | J29: 9 | K29: - | L29: 9 | O29: Ag | U29: B | W29: 2 | X29: 0 | Y29: 4 | AA29: Na | AB29: Subsector D - Yelloworld | AC29: 1 | AD29: 3.5 | AE29: 4.5 | AF29: =INDEX($BA$26:BF$44,MATCH(AE29,$AZ$26:$AZ$44,-1),MATCH(D29,$BA$25:$BF$25)) -> 0 | AG29: 1 | AH29: 1 | AI29: 1 | AJ29: 1 | AK29: 1 | AL29: 0.8 | AM29: 2928 | AN29: 58560000000 | AO29: 120 | AP29: 240 | AS29: 5 | AT29: 5 | AU29: 0 | AV29: 560 | AW29: 5 | AX29: 2.5 | AZ29: 6.5 | BA29: 0 | BB29: -0.5 | BC29: -1 | BD29: -1.5 | BE29: -2 | BF29: -4.5 | BJ29: 6 | BK29: 0 | BL29: 0 | BM29: 0 | BN29: 1 | BO29: 2 | BP29: 3 | BQ29: 30 | BR29: 300 | BS29: 3000 | BT29: 30000 | BU29: 300000
A30: Acroupa | B30: 401 | D30: D | E30: 5 | F30: 5 | G30: 3 | H30: 7 | I30: 7 | J30: 2 | K30: - | L30: 5 | O30: Ni | P30: Po | U30: B | W30: 1 | X30: 2 | Y30: 0 | AA30: Na | AB30: Subsector A - Nosso Nosso | AC30: 0 | AD30: 3.5 | AE30: 3.5 | AF30: =INDEX($BA$26:BF$44,MATCH(AE30,$AZ$26:$AZ$44,-1),MATCH(D30,$BA$25:$BF$25)) -> 0 | AG30: 1 | AH30: 1 | AI30: 1 | AJ30: 1 | AK30: 1 | AL30: 0.8 | AM30: 448 | AN30: 4480000000 | AO30: 300 | AP30: 300 | AS30: 6 | AT30: 6 | AU30: 0.5 | AV30: 895 | AW30: 6 | AX30: 3 | AZ30: 6 | BA30: 0 | BB30: -0.5 | BC30: -1 | BD30: -1.5 | BE30: -2 | BF30: -4.5 | BJ30: 7 | BK30: 0 | BL30: 0 | BM30: 0 | BN30: 0 | BO30: 1 | BP30: 2 | BQ30: 20 | BR30: 200 | BS30: 2000 | BT30: 20000 | BU30: 200000
A31: Avalon | B31: 933 | D31: B | E31: 8 | F31: 8 | G31: 6 | H31: 7 | I31: 7 | J31: 4 | K31: - | L31: 9 | O31: Ag | P31: Ri | U31: B | W31: 1 | X31: 0 | Y31: 2 | AA31: Nf | AB31: Subsector N - Sorrow | AC31: 1 | AD31: 3.5 | AE31: 4.5 | AF31: =INDEX($BA$26:BF$44,MATCH(AE31,$AZ$26:$AZ$44,-1),MATCH(D31,$BA$25:$BF$25)) -> 0 | AG31: 1 | AH31: 1 | AI31: 1 | AJ31: 1 | AK31: 1 | AL31: 0.8 | AM31: 2928 | AN31: 29280000000 | AO31: 120 | AP31: 120 | AS31: 7 | AT31: 7 | AU31: 0.5 | AV31: 1430 | AW31: 7 | AX31: 3.5 | AZ31: 5.5 | BA31: 0 | BB31: 0 | BC31: -0.5 | BD31: -1 | BE31: -1.5 | BF31: -4 | BJ31: 8 | BK31: 0 | BL31: 0 | BM31: 0 | BN31: 0 | BO31: 0 | BP31: 1 | BQ31: 15 | BR31: 150 | BS31: 1500 | BT31: 15000 | BU31: 150000
A32: Comerwake | B32: 1904 | D32: A | E32: 2 | F32: 6 | G32: 5 | H32: 7 | I32: A | J32: A | K32: - | L32: A | N32: N | O32: Ag | P32: Cp | U32: B | W32: 1 | X32: 0 | Y32: 3 | AA32: Ao | AB32: Subsector C - Wsi | AC32: 1 | AD32: 3.5 | AE32: 4.5 | AF32: =INDEX($BA$26:BF$44,MATCH(AE32,$AZ$26:$AZ$44,-1),MATCH(D32,$BA$25:$BF$25)) -> 0.5 | AG32: 1 | AH32: 1 | AI32: 1 | AJ32: 1 | AK32: 1 | AL32: 0.8 | AM32: 4688 | AN32: 46880000000 | AO32: 100 | AP32: 100 | AS32: 8 | AT32: 8 | AU32: 0.5 | AV32: 2290 | AW32: 8 | AX32: 4 | AZ32: 5 | BA32: 0 | BB32: 0 | BC32: -0.5 | BD32: -1 | BE32: -1.5 | BF32: -4 | BJ32: 9 | BK32: 0 | BL32: 0 | BM32: 0 | BN32: 0 | BO32: 0 | BP32: 1 | BQ32: 12 | BR32: 120 | BS32: 1200 | BT32: 12000 | BU32: 120000
A33: Justince | B33: 2211 | D33: A | E33: 9 | F33: 8 | G33: A | H33: 6 | I33: 5 | J33: A | K33: - | L33: A | N33: N | O33: Ni | P33: Ri | Q33: Wa | R33: Cp | U33: B | W33: 7 | X33: 0 | Y33: 0 | AA33: Kj | AB33: Subsector G - LightWaves | AC33: 1 | AD33: 3 | AE33: 4 | AF33: =INDEX($BA$26:BF$44,MATCH(AE33,$AZ$26:$AZ$44,-1),MATCH(D33,$BA$25:$BF$25)) -> 0.5 | AG33: 1 | AH33: 1 | AI33: 1 | AJ33: 1 | AK33: 1 | AL33: 0.8 | AM33: 4688 | AN33: 32816000000 | AO33: 10 | AP33: 70 | AS33: 9 | AT33: 9 | AU33: 1 | AV33: 3660 | AW33: 9 | AX33: 4.5 | AZ33: 4.5 | BA33: 0.5 | BB33: 0 | BC33: 0 | BD33: -0.5 | BE33: -1 | BF33: -3.5 | BJ33: A | BK33: 0 | BL33: 0 | BM33: 0 | BN33: 0 | BO33: 0 | BP33: 1 | BQ33: 10 | BR33: 100 | BS33: 1000 | BT33: 10000 | BU33: 100000
A34: Kosh | B34: 2805 | D34: D | E34: 5 | F34: 3 | G34: 1 | H34: 6 | I34: 5 | J34: 6 | K34: - | L34: 6 | O34: Na | P34: Ni | Q34: Po | U34: B | W34: 6 | X34: 0 | Y34: 2 | AA34: Na | AB34: Subsector D - Yelloworld | AC34: 0.5 | AD34: 3 | AE34: 3.5 | AF34: =INDEX($BA$26:BF$44,MATCH(AE34,$AZ$26:$AZ$44,-1),MATCH(D34,$BA$25:$BF$25)) -> 0 | AG34: 1 | AH34: 1 | AI34: 1 | AJ34: 1 | AK34: 1 | AL34: 0.8 | AM34: 716 | AN34: 4296000000 | AO34: 30 | AP34: 180 | AS34: A | AT34: 10 | AU34: 1 | AV34: 5860 | AW34: A | AX34: 5 | AZ34: 4 | BA34: 0.5 | BB34: 0 | BC34: 0 | BD34: -0.5 | BE34: -1 | BF34: -3.5 | BJ34: B | BK34: 0 | BL34: 0 | BM34: 0 | BN34: 0 | BO34: 0 | BP34: 0 | BQ34: 7 | BR34: 70 | BS34: 700 | BT34: 7000 | BU34: 70000
A35: Lifesphere | B35: 2434 | D35: C | E35: 4 | F35: 6 | G35: 6 | H35: 6 | I35: 7 | J35: 7 | K35: - | L35: 8 | O35: Ag | P35: Ni | Q35: Ri | R35: Cp | U35: B | W35: 6 | X35: 1 | Y35: 3 | AA35: Dr | AB35: Subsector O - Painted | AC35: 0.5 | AD35: 3 | AE35: 3.5 | AF35: =INDEX($BA$26:BF$44,MATCH(AE35,$AZ$26:$AZ$44,-1),MATCH(D35,$BA$25:$BF$25)) -> 0 | AG35: 1 | AH35: 1 | AI35: 1 | AJ35: 0.8 | AK35: 0.8 | AL35: 0.8 | AM35: 1172.48 | AN35: 7034880000 | AO35: 15 | AP35: 90 | AS35: B | AT35: 11 | AU35: 1 | AV35: 9375 | AW35: B | AX35: 5.5 | AZ35: 3.5 | BA35: 0.5 | BB35: 0.5 | BC35: 0 | BD35: 0 | BE35: -0.5 | BF35: -3 | BJ35: C | BK35: 0 | BL35: 0 | BM35: 0 | BN35: 0 | BO35: 0 | BP35: 0 | BQ35: 5 | BR35: 50 | BS35: 500 | BT35: 5000 | BU35: 50000
A36: Vieunia | B36: 2207 | D36: A | E36: A | F36: 8 | G36: A | H36: 6 | I36: 7 | J36: 8 | K36: - | L36: A | N36: N | O36: Ni | P36: Ri | Q36: Wa | R36: Cp | U36: B | W36: 5 | X36: 0 | Y36: 0 | AA36: Mv | AB36: Subsector C - Wsi | AC36: 1 | AD36: 3 | AE36: 4 | AF36: =INDEX($BA$26:BF$44,MATCH(AE36,$AZ$26:$AZ$44,-1),MATCH(D36,$BA$25:$BF$25)) -> 0.5 | AG36: 1 | AH36: 1 | AI36: 1 | AJ36: 1 | AK36: 1 | AL36: 0.8 | AM36: 4688 | AN36: 23440000000 | AO36: 10 | AP36: 50 | AS36: C | AT36: 12 | AU36: 1.5 | AV36: 15000 | AW36: C | AX36: 6 | AZ36: 3 | BA36: 0.5 | BB36: 0.5 | BC36: 0 | BD36: 0 | BE36: -0.5 | BF36: -3 | BJ36: D | BK36: 0 | BL36: 0 | BM36: 0 | BN36: 0 | BO36: 0 | BP36: 0 | BQ36: 5 | BR36: 50 | BS36: 500 | BT36: 5000 | BU36: 50000
A37: Duchy | B37: 609 | D37: A | E37: 7 | F37: 9 | G37: 9 | H37: 6 | I37: 5 | J37: 0 | K37: - | L37: A | O37: Ni | U37: B | W37: 4 | X37: 2 | Y37: 4 | AA37: Na | AB37: Subsector A - Nosso Nosso | AC37: 1 | AD37: 3 | AE37: 4 | AF37: =INDEX($BA$26:BF$44,MATCH(AE37,$AZ$26:$AZ$44,-1),MATCH(D37,$BA$25:$BF$25)) -> 0.5 | AG37: 1 | AH37: 1 | AI37: 1 | AJ37: 0.8 | AK37: 1 | AL37: 0.8 | AM37: 3750.4 | AN37: 15001600000 | AO37: 10 | AP37: 40 | AS37: D | AT37: 13 | AU37: 1.5 | AV37: 24400 | AZ37: 2.5 | BA37: 1 | BB37: 0.5 | BC37: 0.5 | BD37: 0 | BE37: 0 | BF37: -2.5 | BJ37: E | BK37: 0 | BL37: 0 | BM37: 0 | BN37: 0 | BO37: 0 | BP37: 0 | BQ37: 7 | BR37: 70 | BS37: 700 | BT37: 7000 | BU37: 70000
A38: Orzabal | B38: 311 | D38: C | E38: 7 | F38: 5 | G38: 5 | H38: 6 | I38: 9 | J38: 5 | K38: - | L38: 3 | O38: Ag | P38: Ni | U38: B | W38: 4 | X38: 0 | Y38: 4 | AA38: Na | AB38: Subsector E - Silent Shore | AC38: 0 | AD38: 3 | AE38: 3 | AF38: =INDEX($BA$26:BF$44,MATCH(AE38,$AZ$26:$AZ$44,-1),MATCH(D38,$BA$25:$BF$25)) -> 0 | AG38: 1 | AH38: 1 | AI38: 1 | AJ38: 1 | AK38: 0.8 | AL38: 0.8 | AM38: 140.8 | AN38: 563200000 | AO38: 100 | AP38: 400 | AZ38: 2 | BA38: 1 | BB38: 0.5 | BC38: 0.5 | BD38: 0 | BE38: 0 | BF38: -2.5 | BJ38: F | BK38: 0 | BL38: 0 | BM38: 0 | BN38: 0 | BO38: 0 | BP38: 0 | BQ38: 5 | BR38: 50 | BS38: 500 | BT38: 5000 | BU38: 50000
A39: Ceskyi | B39: 706 | D39: D | E39: A | F39: 8 | G39: A | H39: 6 | I39: 7 | J39: 6 | K39: - | L39: 6 | O39: Ni | P39: Ri | Q39: Wa | U39: B | W39: 2 | X39: 1 | Y39: 3 | AA39: I1 | AB39: Subsector A - Nosso Nosso | AC39: 0.5 | AD39: 3 | AE39: 3.5 | AF39: =INDEX($BA$26:BF$44,MATCH(AE39,$AZ$26:$AZ$44,-1),MATCH(D39,$BA$25:$BF$25)) -> 0 | AG39: 1 | AH39: 1 | AI39: 1.2 | AJ39: 1 | AK39: 1 | AL39: 0.8 | AM39: 859.2 | AN39: 1718400000 | AO39: 30 | AP39: 60 | AZ39: 1.5 | BA39: 1 | BB39: 1 | BC39: 0.5 | BD39: 0.5 | BE39: 0 | BF39: 0 | BJ39: G | BK39: 0 | BL39: 0 | BM39: 0 | BN39: 0 | BO39: 0 | BP39: 0 | BQ39: 5 | BR39: 50 | BS39: 500 | BT39: 5000 | BU39: 50000
A40: Leoin | B40: 806 | D40: C | E40: 7 | F40: 5 | G40: 8 | H40: 6 | I40: 7 | J40: 4 | K40: - | L40: A | O40: Ag | P40: Ni | U40: B | W40: 2 | X40: 0 | Y40: 3 | AA40: I1 | AB40: Subsector A - Nosso Nosso | AC40: 1 | AD40: 3 | AE40: 4 | AF40: =INDEX($BA$26:BF$44,MATCH(AE40,$AZ$26:$AZ$44,-1),MATCH(D40,$BA$25:$BF$25)) -> 0 | AG40: 1 | AH40: 1 | AI40: 1 | AJ40: 1 | AK40: 0.8 | AL40: 0.8 | AM40: 3750.4 | AN40: 7500800000 | AO40: 10 | AP40: 20 | AZ40: 1 | BA40: 1 | BB40: 1 | BC40: 0.5 | BD40: 0.5 | BE40: 0 | BF40: 0
A41: Pax Deorum | B41: 3012 | D41: D | E41: 5 | F41: 6 | G41: 3 | H41: 6 | I41: 5 | J41: 2 | K41: - | L41: 8 | O41: Ni | P41: Ri | U41: B | W41: 2 | X41: 0 | Y41: 3 | AA41: Na | AB41: Subsector H - Chanter | AC41: 0.5 | AD41: 3 | AE41: 3.5 | AF41: =INDEX($BA$26:BF$44,MATCH(AE41,$AZ$26:$AZ$44,-1),MATCH(D41,$BA$25:$BF$25)) -> 0 | AG41: 1 | AH41: 1 | AI41: 1 | AJ41: 1 | AK41: 1 | AL41: 0.8 | AM41: 1832 | AN41: 3664000000 | AO41: 15 | AP41: 30 | AZ41: 0.5 | BA41: 1.5 | BB41: 1 | BC41: 1 | BD41: 0.5 | BE41: 0.5 | BF41: 0
A42: Quajora | B42: 2109 | D42: C | E42: 8 | F42: A | G42: 5 | H42: 6 | I42: 4 | J42: 5 | K42: - | L42: B | N42: N | O42: Fl | P42: Ni | U42: B | W42: 2 | X42: 0 | Y42: 2 | AA42: Ic | AB42: Subsector C - Wsi | AC42: 1 | AD42: 3 | AE42: 4 | AF42: =INDEX($BA$26:BF$44,MATCH(AE42,$AZ$26:$AZ$44,-1),MATCH(D42,$BA$25:$BF$25)) -> 0 | AG42: 1 | AH42: 1 | AI42: 1 | AJ42: 1 | AK42: 1 | AL42: 0.8 | AM42: 7500 | AN42: 15000000000 | AO42: 7 | AP42: 14 | AZ42: 0 | BA42: 1.5 | BB42: 1 | BC42: 1 | BD42: 0.5 | BE42: 0.5 | BF42: 0
A43: Samtara | B43: 1903 | D43: C | E43: 5 | F43: 6 | G43: 5 | H43: 6 | I43: 4 | J43: 7 | K43: - | L43: A | O43: Ag | P43: Ni | Q43: Ri | U43: B | W43: 2 | X43: 0 | Y43: 2 | AA43: Ao | AB43: Subsector C - Wsi | AC43: 1 | AD43: 3 | AE43: 4 | AF43: =INDEX($BA$26:BF$44,MATCH(AE43,$AZ$26:$AZ$44,-1),MATCH(D43,$BA$25:$BF$25)) -> 0 | AG43: 1.6 | AH43: 1 | AI43: 1 | AJ43: 1 | AK43: 1 | AL43: 0.8 | AM43: 7500.8 | AN43: 15001600000 | AO43: 10 | AP43: 20 | AZ43: -0.5 | BA43: 1.5 | BB43: 1 | BC43: 1 | BD43: 0.5 | BE43: 0.5 | BF43: 0
A44: Yelloworld | B44: 2607 | D44: A | E44: 8 | F44: 5 | G44: 6 | H44: 6 | I44: A | J44: 8 | K44: - | L44: A | N44: A | O44: Ag | P44: Ni | U44: B | W44: 2 | X44: 2 | Y44: 0 | AA44: Wc | AB44: Subsector D - Yelloworld | AC44: 1 | AD44: 3 | AE44: 4 | AF44: =INDEX($BA$26:BF$44,MATCH(AE44,$AZ$26:$AZ$44,-1),MATCH(D44,$BA$25:$BF$25)) -> 0.5 | AG44: 1 | AH44: 1 | AI44: 1 | AJ44: 1 | AK44: 1 | AL44: 0.8 | AM44: 4688 | AN44: 9376000000 | AO44: 10 | AP44: 20 | AZ44: -1 | BA44: 1.5 | BB44: 1 | BC44: 1 | BD44: 0.5 | BE44: 0.5 | BF44: 0
A45: Bluemarble | B45: 3205 | D45: C | E45: 7 | F45: 5 | G45: A | H45: 6 | I45: 4 | J45: 3 | K45: - | L45: A | O45: Ni | P45: Wa | U45: B | W45: 1 | X45: 0 | Y45: 2 | AA45: Na | AB45: Subsector D - Yelloworld | AC45: 1 | AD45: 3 | AE45: 4 | AF45: =INDEX($BA$26:BF$44,MATCH(AE45,$AZ$26:$AZ$44,-1),MATCH(D45,$BA$25:$BF$25)) -> 0 | AG45: 1 | AH45: 1 | AI45: 1 | AJ45: 1 | AK45: 0.8 | AL45: 0.8 | AM45: 3750.4 | AN45: 3750400000 | AO45: 10 | AP45: 10
A46: Geneva | B46: 2138 | D46: A | E46: 2 | F46: 4 | G46: 0 | H46: 6 | I46: 2 | J46: 3 | K46: - | L46: A | N46: N | O46: De | P46: Ni | Q46: Po | U46: B | W46: 1 | X46: 2 | Y46: 1 | AA46: Dr | AB46: Subsector O - Painted | AC46: 1 | AD46: 3 | AE46: 4 | AF46: =INDEX($BA$26:BF$44,MATCH(AE46,$AZ$26:$AZ$44,-1),MATCH(D46,$BA$25:$BF$25)) -> 0.5 | AG46: 1 | AH46: 1 | AI46: 1.2 | AJ46: 1 | AK46: 1 | AL46: 0.8 | AM46: 5625.6 | AN46: 5625600000 | AO46: 10 | AP46: 10
A47: Laoyle | B47: 1821 | D47: D | E47: 6 | F47: 6 | G47: 5 | H47: 6 | I47: 6 | J47: 8 | K47: - | L47: 4 | N47: A | O47: Ag | P47: Ni | U47: B | W47: 1 | X47: 0 | Y47: 3 | AA47: I4 | AB47: Subsector K - Floe | AC47: 0 | AD47: 3 | AE47: 3 | AF47: =INDEX($BA$26:BF$44,MATCH(AE47,$AZ$26:$AZ$44,-1),MATCH(D47,$BA$25:$BF$25)) -> 0 | AG47: 1 | AH47: 1 | AI47: 1 | AJ47: 1 | AK47: 1 | AL47: 0.8 | AM47: 280 | AN47: 280000000 | AO47: 100 | AP47: 100
A48: Mist | B48: 2005 | D48: B | E48: 7 | F48: 9 | G48: 5 | H48: 6 | I48: 5 | J48: 1 | K48: - | L48: 8 | O48: Ag | P48: Ni | U48: B | W48: 1 | X48: 0 | Y48: 4 | AA48: Ao | AB48: Subsector C - Wsi | AC48: 0.5 | AD48: 3 | AE48: 3.5 | AF48: =INDEX($BA$26:BF$44,MATCH(AE48,$AZ$26:$AZ$44,-1),MATCH(D48,$BA$25:$BF$25)) -> 0.5 | AG48: 1 | AH48: 1 | AI48: 1 | AJ48: 1 | AK48: 0.8 | AL48: 0.8 | AM48: 1465.6 | AN48: 1465600000 | AO48: 15 | AP48: 15
A49: Roma | B49: 2037 | D49: E | E49: 6 | F49: 5 | G49: 6 | H49: 6 | I49: 4 | J49: 3 | K49: - | L49: 5 | O49: Ag | P49: Ni | U49: B | W49: 1 | X49: 1 | Y49: 3 | AA49: Dr | AB49: Subsector O - Painted | AC49: 0 | AD49: 3 | AE49: 3 | AF49: =INDEX($BA$26:BF$44,MATCH(AE49,$AZ$26:$AZ$44,-1),MATCH(D49,$BA$25:$BF$25)) -> -0.5 | AG49: 1 | AH49: 1 | AI49: 1 | AJ49: 1 | AK49: 1 | AL49: 0.8 | AM49: 448 | AN49: 448000000 | AO49: 30 | AP49: 30
A50: Daskomo | B50: 2804 | D50: B | E50: 5 | F50: 3 | G50: 7 | H50: 5 | I50: 5 | J50: B | K50: - | L50: A | O50: Ni | W50: 8 | X50: 2 | Y50: 4 | AA50: Na | AB50: Subsector D - Yelloworld | AC50: 1 | AD50: 2.5 | AE50: 3.5 | AF50: =INDEX($BA$26:BF$44,MATCH(AE50,$AZ$26:$AZ$44,-1),MATCH(D50,$BA$25:$BF$25)) -> 0.5 | AG50: 1 | AH50: 1 | AI50: 1 | AJ50: 1 | AK50: 1 | AL50: 0.8 | AM50: 4688 | AN50: 3750400000 | AO50: 1 | AP50: 8
A51: Imperator | B51: 3105 | D51: C | E51: 6 | F51: 5 | G51: 9 | H51: 5 | I51: 5 | J51: 7 | K51: - | L51: A | O51: Ni | W51: 7 | X51: 1 | Y51: 2 | AA51: Na | AB51: Subsector D - Yelloworld | AC51: 1 | AD51: 2.5 | AE51: 3.5 | AF51: =INDEX($BA$26:BF$44,MATCH(AE51,$AZ$26:$AZ$44,-1),MATCH(D51,$BA$25:$BF$25)) -> 0 | AG51: 1 | AH51: 1 | AI51: 1 | AJ51: 1 | AK51: 1 | AL51: 0.8 | AM51: 4688 | AN51: 3281600000 | AO51: 1 | AP51: 7
A52: Moscow | B52: 1937 | D52: A | E52: 2 | F52: 5 | G52: 4 | H52: 5 | I52: 7 | J52: 5 | K52: - | L52: A | O52: Ag | P52: Ni | W52: 7 | X52: 0 | Y52: 3 | AA52: Dr | AB52: Subsector O - Painted | AC52: 1 | AD52: 2.5 | AE52: 3.5 | AF52: =INDEX($BA$26:BF$44,MATCH(AE52,$AZ$26:$AZ$44,-1),MATCH(D52,$BA$25:$BF$25)) -> 0.5 | AG52: 1 | AH52: 1 | AI52: 1 | AJ52: 1 | AK52: 0.8 | AL52: 0.8 | AM52: 3750.4 | AN52: 2625280000 | AO52: 1 | AP52: 7
A53: Pacifica | B53: 2905 | D53: C | E53: 9 | F53: 8 | G53: A | H53: 5 | I53: 5 | J53: 4 | K53: - | L53: 9 | O53: Ni | P53: Wa | W53: 6 | X53: 2 | Y53: 5 | AA53: Na | AB53: Subsector D - Yelloworld | AC53: 1 | AD53: 2.5 | AE53: 3.5 | AF53: =INDEX($BA$26:BF$44,MATCH(AE53,$AZ$26:$AZ$44,-1),MATCH(D53,$BA$25:$BF$25)) -> 0 | AG53: 1 | AH53: 1 | AI53: 1 | AJ53: 1 | AK53: 1 | AL53: 0.8 | AM53: 2928 | AN53: 1756800000 | AO53: 1 | AP53: 6
A54: Paregin | B54: 407 | D54: D | E54: 3 | F54: 3 | G54: 6 | H54: 5 | I54: 4 | J54: 4 | K54: - | L54: 7 | O54: Ni | W54: 6 | X54: 1 | Y54: 0 | AA54: I1 | AB54: Subsector A - Nosso Nosso | AC54: 0.5 | AD54: 2.5 | AE54: 3 | AF54: =INDEX($BA$26:BF$44,MATCH(AE54,$AZ$26:$AZ$44,-1),MATCH(D54,$BA$25:$BF$25)) -> 0 | AG54: 1.6 | AH54: 1 | AI54: 1 | AJ54: 1 | AK54: 1 | AL54: 1 | AM54: 2288 | AN54: 1372800000 | AO54: 2 | AP54: 12
A55: Doumbek | B55: 2622 | D55: A | E55: 7 | F55: 6 | G55: 9 | H55: 5 | I55: 5 | J55: B | K55: - | L55: B | N55: N | O55: Ni | W55: 5 | X55: 2 | Y55: 2 | AA55: Ks | AB55: Subsector L - Dreamsong | AC55: 1 | AD55: 2.5 | AE55: 3.5 | AF55: =INDEX($BA$26:BF$44,MATCH(AE55,$AZ$26:$AZ$44,-1),MATCH(D55,$BA$25:$BF$25)) -> 0.5 | AG55: 1 | AH55: 1 | AI55: 1 | AJ55: 0.8 | AK55: 1 | AL55: 0.8 | AM55: 6000 | AN55: 3000000000 | AO55: 0 | AP55: 0
A56: Tianik | B56: 2107 | D56: D | E56: 5 | F56: 7 | G56: 8 | H56: 5 | I56: 5 | J56: 7 | K56: - | L56: 3 | O56: Ag | P56: Ni | W56: 4 | X56: 0 | Y56: 3 | AA56: Mv | AB56: Subsector C - Wsi | AC56: 0 | AD56: 2.5 | AE56: 2.5 | AF56: =INDEX($BA$26:BF$44,MATCH(AE56,$AZ$26:$AZ$44,-1),MATCH(D56,$BA$25:$BF$25)) -> 0 | AG56: 1 | AH56: 1 | AI56: 1 | AJ56: 1 | AK56: 1 | AL56: 0.8 | AM56: 176 | AN56: 70400000 | AO56: 10 | AP56: 40
A57: Trantor | B57: 510 | D57: A | E57: 4 | F57: 4 | G57: 4 | H57: 5 | I57: 7 | J57: 4 | K57: - | L57: B | O57: Ag | P57: Ni | W57: 4 | X57: 1 | Y57: 0 | AA57: Na | AB57: Subsector A - Nosso Nosso | AC57: 1 | AD57: 2.5 | AE57: 3.5 | AF57: =INDEX($BA$26:BF$44,MATCH(AE57,$AZ$26:$AZ$44,-1),MATCH(D57,$BA$25:$BF$25)) -> 0.5 | AG57: 1 | AH57: 1 | AI57: 1 | AJ57: 1 | AK57: 1 | AL57: 1 | AM57: 9375 | AN57: 3750000000 | AO57: 0 | AP57: 0
A58: Tokitre | B58: 2124 | D58: B | E58: 1 | F58: 5 | G58: 0 | H58: 5 | I58: 9 | J58: A | K58: - | L58: A | N58: S | O58: De | P58: Ni | Q58: Po | W58: 3 | X58: 0 | Y58: 5 | AA58: Ks | AB58: Subsector K - Floe | AC58: 1 | AD58: 2.5 | AE58: 3.5 | AF58: =INDEX($BA$26:BF$44,MATCH(AE58,$AZ$26:$AZ$44,-1),MATCH(D58,$BA$25:$BF$25)) -> 0.5 | AG58: 1 | AH58: 1 | AI58: 1 | AJ58: 1 | AK58: 1 | AL58: 0.8 | AM58: 4688 | AN58: 1406400000 | AO58: 1 | AP58: 3
A59: Ipinnae | B59: 1704 | D59: A | E59: 7 | F59: 3 | G59: A | H59: 5 | I59: 8 | J59: 7 | K59: - | L59: A | O59: Ni | P59: Wa | W59: 2 | X59: 0 | Y59: 4 | AA59: Na | AB59: Subsector C - Wsi | AC59: 1 | AD59: 2.5 | AE59: 3.5 | AF59: =INDEX($BA$26:BF$44,MATCH(AE59,$AZ$26:$AZ$44,-1),MATCH(D59,$BA$25:$BF$25)) -> 0.5 | AG59: 1 | AH59: 1 | AI59: 1 | AJ59: 1 | AK59: 1 | AL59: 0.8 | AM59: 4688 | AN59: 937600000 | AO59: 1 | AP59: 2
A60: Pauline | B60: 2132 | D60: C | E60: 6 | F60: 5 | G60: 4 | H60: 5 | I60: 7 | J60: 6 | K60: - | L60: A | N60: S | O60: Ni | W60: 2 | X60: 0 | Y60: 3 | AA60: Dr | AB60: Subsector O - Painted | AC60: 1 | AD60: 2.5 | AE60: 3.5 | AF60: =INDEX($BA$26:BF$44,MATCH(AE60,$AZ$26:$AZ$44,-1),MATCH(D60,$BA$25:$BF$25)) -> 0 | AG60: 1 | AH60: 1 | AI60: 1 | AJ60: 1 | AK60: 1 | AL60: 0.8 | AM60: 4688 | AN60: 937600000 | AO60: 1 | AP60: 2
A61: Roland | B61: 601 | D61: D | E61: 3 | F61: 6 | G61: 3 | H61: 5 | I61: 4 | J61: 0 | K61: - | L61: 5 | O61: Ni | W61: 2 | X61: 0 | Y61: 3 | AA61: Na | AB61: Subsector A - Nosso Nosso | AC61: 0 | AD61: 2.5 | AE61: 2.5 | AF61: =INDEX($BA$26:BF$44,MATCH(AE61,$AZ$26:$AZ$44,-1),MATCH(D61,$BA$25:$BF$25)) -> 0 | AG61: 1 | AH61: 1 | AI61: 1 | AJ61: 0.8 | AK61: 1 | AL61: 0.8 | AM61: 358.4 | AN61: 71680000 | AO61: 3 | AP61: 6
A62: Bubbles | B62: 701 | D62: B | E62: 5 | F62: 6 | G62: 3 | H62: 5 | I62: 5 | J62: 6 | K62: - | L62: 9 | O62: Ni | W62: 1 | X62: 2 | Y62: 2 | AA62: Na | AB62: Subsector A - Nosso Nosso | AC62: 1 | AD62: 2.5 | AE62: 3.5 | AF62: =INDEX($BA$26:BF$44,MATCH(AE62,$AZ$26:$AZ$44,-1),MATCH(D62,$BA$25:$BF$25)) -> 0.5 | AG62: 1 | AH62: 1 | AI62: 1 | AJ62: 1 | AK62: 1 | AL62: 0.8 | AM62: 2928 | AN62: 292800000 | AO62: 1 | AP62: 1
A63: Fontaine | B63: 306 | D63: C | E63: 3 | F63: 6 | G63: 3 | H63: 5 | I63: 6 | J63: 3 | K63: - | L63: A | O63: Ni | W63: 1 | X63: 0 | Y63: 3 | AA63: I1 | AB63: Subsector A - Nosso Nosso | AC63: 1 | AD63: 2.5 | AE63: 3.5 | AF63: =INDEX($BA$26:BF$44,MATCH(AE63,$AZ$26:$AZ$44,-1),MATCH(D63,$BA$25:$BF$25)) -> 0 | AG63: 1 | AH63: 1 | AI63: 1 | AJ63: 1 | AK63: 1 | AL63: 0.8 | AM63: 4688 | AN63: 468800000 | AO63: 1 | AP63: 1
A64: Greenfield | B64: 2605 | D64: C | E64: 7 | F64: 7 | G64: 7 | H64: 5 | I64: 6 | J64: 5 | K64: - | L64: 8 | O64: Ag | P64: Ni | W64: 1 | X64: 0 | Y64: 4 | AA64: Wc | AB64: Subsector D - Yelloworld | AC64: 0.5 | AD64: 2.5 | AE64: 3 | AF64: =INDEX($BA$26:BF$44,MATCH(AE64,$AZ$26:$AZ$44,-1),MATCH(D64,$BA$25:$BF$25)) -> 0 | AG64: 1 | AH64: 1 | AI64: 1 | AJ64: 1 | AK64: 1 | AL64: 0.8 | AM64: 1832 | AN64: 183200000 | AO64: 1 | AP64: 1
A65: Montrose | B65: 505 | D65: B | E65: 1 | F65: 5 | G65: 0 | H65: 5 | I65: 3 | J65: 4 | K65: - | L65: A | N65: N | O65: De | P65: Ni | Q65: Po | W65: 1 | X65: 0 | Y65: 5 | AA65: I1 | AB65: Subsector A - Nosso Nosso | AC65: 1 | AD65: 2.5 | AE65: 3.5 | AF65: =INDEX($BA$26:BF$44,MATCH(AE65,$AZ$26:$AZ$44,-1),MATCH(D65,$BA$25:$BF$25)) -> 0.5 | AG65: 1 | AH65: 1 | AI65: 1 | AJ65: 1 | AK65: 1 | AL65: 0.8 | AM65: 4688 | AN65: 468800000 | AO65: 1 | AP65: 1
A66: Nadia | B66: 2002 | D66: C | E66: 4 | F66: 6 | G66: 3 | H66: 5 | I66: 3 | J66: 6 | K66: - | L66: 6 | O66: Ni | W66: 1 | X66: 0 | Y66: 3 | AA66: Ao | AB66: Subsector C - Wsi | AC66: 0.5 | AD66: 2.5 | AE66: 3 | AF66: =INDEX($BA$26:BF$44,MATCH(AE66,$AZ$26:$AZ$44,-1),MATCH(D66,$BA$25:$BF$25)) -> 0 | AG66: 1 | AH66: 1 | AI66: 1 | AJ66: 1 | AK66: 0.8 | AL66: 0.8 | AM66: 572.8 | AN66: 57280000 | AO66: 3 | AP66: 3
A67: Questions | B67: 611 | D67: A | E67: 4 | F67: 3 | G67: 2 | H67: 5 | I67: 4 | J67: 5 | K67: - | L67: C | O67: Ni | P67: Po | W67: 1 | X67: 2 | Y67: 3 | AA67: Na | AB67: Subsector E - Silent Shore | AC67: 1.5 | AD67: 2.5 | AE67: 4 | AF67: =INDEX($BA$26:BF$44,MATCH(AE67,$AZ$26:$AZ$44,-1),MATCH(D67,$BA$25:$BF$25)) -> 0.5 | AG67: 1 | AH67: 1 | AI67: 1 | AJ67: 1 | AK67: 0.8 | AL67: 0.8 | AM67: 9600 | AN67: 960000000 | AO67: 0 | AP67: 0
A68: Tikal | B68: 2524 | D68: D | E68: 4 | F68: 6 | G68: 1 | H68: 5 | I68: 7 | J68: 5 | K68: - | L68: 7 | O68: Ni | W68: 1 | X68: 0 | Y68: 4 | AA68: Ks | AB68: Subsector L - Dreamsong | AC68: 0.5 | AD68: 2.5 | AE68: 3 | AF68: =INDEX($BA$26:BF$44,MATCH(AE68,$AZ$26:$AZ$44,-1),MATCH(D68,$BA$25:$BF$25)) -> 0 | AG68: 1 | AH68: 1 | AI68: 1 | AJ68: 1 | AK68: 1 | AL68: 0.8 | AM68: 1144 | AN68: 114400000 | AO68: 2 | AP68: 2
A69: Kanno | B69: 2010 | D69: B | E69: 5 | F69: 5 | G69: 4 | H69: 4 | I69: 3 | J69: 4 | K69: - | L69: 9 | O69: Ni | W69: 9 | X69: 0 | Y69: 2 | AA69: Dw | AB69: Subsector C - Wsi | AC69: 1 | AD69: 2 | AE69: 3 | AF69: =INDEX($BA$26:BF$44,MATCH(AE69,$AZ$26:$AZ$44,-1),MATCH(D69,$BA$25:$BF$25)) -> 0.5 | AG69: 1 | AH69: 1 | AI69: 1 | AJ69: 1 | AK69: 1 | AL69: 0.8 | AM69: 2928 | AN69: 263520000 | AO69: 0 | AP69: 0
A70: Orb | B70: 1231 | D70: B | E70: 3 | F70: 5 | G70: 0 | H70: 4 | I70: 5 | J70: 4 | K70: - | L70: A | O70: De | P70: Ni | Q70: Po | W70: 9 | X70: 1 | Y70: 4 | AA70: Nf | AB70: Subsector N - Sorrow | AC70: 1 | AD70: 2 | AE70: 3 | AF70: =INDEX($BA$26:BF$44,MATCH(AE70,$AZ$26:$AZ$44,-1),MATCH(D70,$BA$25:$BF$25)) -> 0.5 | AG70: 1 | AH70: 1 | AI70: 1 | AJ70: 1 | AK70: 0.8 | AL70: 0.8 | AM70: 3750.4 | AN70: 337536000 | AO70: 0 | AP70: 0
A71: Skyliner | B71: 205 | D71: C | E71: 5 | F71: 9 | G71: A | H71: 4 | I71: 6 | J71: A | K71: - | L71: A | O71: Ni | P71: Wa | W71: 9 | X71: 0 | Y71: 2 | AA71: I1 | AB71: Subsector A - Nosso Nosso | AC71: 1 | AD71: 2 | AE71: 3 | AF71: =INDEX($BA$26:BF$44,MATCH(AE71,$AZ$26:$AZ$44,-1),MATCH(D71,$BA$25:$BF$25)) -> 0 | AG71: 1 | AH71: 1 | AI71: 1 | AJ71: 1 | AK71: 0.8 | AL71: 0.8 | AM71: 3750.4 | AN71: 337536000 | AO71: 0 | AP71: 0
A72: Inish Ro | B72: 1002 | D72: C | E72: 5 | F72: 2 | G72: 9 | H72: 4 | I72: 8 | J72: 5 | K72: - | L72: B | O72: Ni | W72: 8 | X72: 0 | Y72: 1 | AA72: I1 | AB72: Subsector B - Mu | AC72: 1 | AD72: 2 | AE72: 3 | AF72: =INDEX($BA$26:BF$44,MATCH(AE72,$AZ$26:$AZ$44,-1),MATCH(D72,$BA$25:$BF$25)) -> 0 | AG72: 1 | AH72: 1 | AI72: 1 | AJ72: 1 | AK72: 1 | AL72: 0.8 | AM72: 7500 | AN72: 600000000 | AO72: 0 | AP72: 0
A73: Mons Argent | B73: 2507 | D73: C | E73: 2 | F73: 5 | G73: 4 | H73: 4 | I73: 8 | J73: 6 | K73: - | L73: A | O73: Ni | W73: 8 | X73: 2 | Y73: 0 | AA73: Wc | AB73: Subsector D - Yelloworld | AC73: 1 | AD73: 2 | AE73: 3 | AF73: =INDEX($BA$26:BF$44,MATCH(AE73,$AZ$26:$AZ$44,-1),MATCH(D73,$BA$25:$BF$25)) -> 0 | AG73: 1 | AH73: 1 | AI73: 1 | AJ73: 1 | AK73: 1 | AL73: 0.8 | AM73: 4688 | AN73: 375040000 | AO73: 0 | AP73: 0
A74: North | B74: 2234 | D74: E | E74: 4 | F74: 4 | G74: 2 | H74: 4 | I74: 6 | J74: 8 | K74: - | L74: 9 | O74: Ni | P74: Po | W74: 8 | X74: 0 | Y74: 3 | AA74: Dr | AB74: Subsector O - Painted | AC74: 1 | AD74: 2 | AE74: 3 | AF74: =INDEX($BA$26:BF$44,MATCH(AE74,$AZ$26:$AZ$44,-1),MATCH(D74,$BA$25:$BF$25)) -> -0.5 | AG74: 1 | AH74: 1 | AI74: 1 | AJ74: 1 | AK74: 0.8 | AL74: 0.8 | AM74: 2342.4 | AN74: 187392000 | AO74: 0 | AP74: 0
A75: Chalcedon | B75: 1738 | D75: C | E75: 4 | F75: 3 | G75: 7 | H75: 4 | I75: 7 | J75: 7 | K75: - | L75: 9 | O75: Ni | W75: 7 | X75: 0 | Y75: 0 | AA75: Dr | AB75: Subsector O - Painted | AC75: 1 | AD75: 2 | AE75: 3 | AF75: =INDEX($BA$26:BF$44,MATCH(AE75,$AZ$26:$AZ$44,-1),MATCH(D75,$BA$25:$BF$25)) -> 0 | AG75: 1 | AH75: 1 | AI75: 1 | AJ75: 1 | AK75: 0.8 | AL75: 0.8 | AM75: 2342.4 | AN75: 163968000 | AO75: 0 | AP75: 0
A76: Slainte | B76: 705 | D76: B | E76: 6 | F76: 5 | G76: 6 | H76: 4 | I76: 4 | J76: 0 | K76: - | L76: A | O76: Ni | W76: 7 | X76: 2 | Y76: 3 | AA76: I1 | AB76: Subsector A - Nosso Nosso | AC76: 1 | AD76: 2 | AE76: 3 | AF76: =INDEX($BA$26:BF$44,MATCH(AE76,$AZ$26:$AZ$44,-1),MATCH(D76,$BA$25:$BF$25)) -> 0.5 | AG76: 1 | AH76: 1 | AI76: 1 | AJ76: 1 | AK76: 1 | AL76: 0.8 | AM76: 4688 | AN76: 328160000 | AO76: 0 | AP76: 0
A77: Captivity | B77: 2210 | D77: D | E77: 7 | F77: 6 | G77: 7 | H77: 4 | I77: 4 | J77: 4 | K77: - | L77: 3 | O77: Ni | W77: 6 | X77: 0 | Y77: 3 | AA77: Kj | AB77: Subsector C - Wsi | AC77: 0 | AD77: 2 | AE77: 2 | AF77: =INDEX($BA$26:BF$44,MATCH(AE77,$AZ$26:$AZ$44,-1),MATCH(D77,$BA$25:$BF$25)) -> 0 | AG77: 1 | AH77: 1 | AI77: 1 | AJ77: 0.8 | AK77: 1 | AL77: 0.8 | AM77: 140.8 | AN77: 8448000 | AO77: 1 | AP77: 6
A78: Cloudscape | B78: 2325 | D78: D | E78: 8 | F78: 8 | G78: 8 | H78: 4 | I78: 5 | J78: 2 | K78: - | L78: 7 | O78: Ni | W78: 6 | X78: 0 | Y78: 2 | AA78: Ks | AB78: Subsector K - Floe | AC78: 0.5 | AD78: 2 | AE78: 2.5 | AF78: =INDEX($BA$26:BF$44,MATCH(AE78,$AZ$26:$AZ$44,-1),MATCH(D78,$BA$25:$BF$25)) -> 0 | AG78: 1 | AH78: 1 | AI78: 1 | AJ78: 1 | AK78: 1 | AL78: 0.8 | AM78: 1144 | AN78: 68640000 | AO78: 1 | AP78: 6
A79: Nosso Nosso | B79: 807 | D79: A | E79: 6 | F79: 6 | G79: A | H79: 4 | I79: 5 | J79: 6 | K79: - | L79: B | O79: Ni | P79: Wa | W79: 6 | X79: 1 | Y79: 4 | AA79: I1 | AB79: Subsector A - Nosso Nosso | AC79: 1 | AD79: 2 | AE79: 3 | AF79: =INDEX($BA$26:BF$44,MATCH(AE79,$AZ$26:$AZ$44,-1),MATCH(D79,$BA$25:$BF$25)) -> 0.5 | AG79: 1.6 | AH79: 1 | AI79: 1.2 | AJ79: 1 | AK79: 1 | AL79: 0.8 | AM79: 14400 | AN79: 864000000 | AO79: 0 | AP79: 0
A80: Amethystium | B80: 1425 | D80: D | E80: R | F80: 0 | G80: 4 | H80: 4 | I80: B | J80: C | K80: - | L80: 9 | O80: Ic | P80: Ni | Q80: Va | W80: 5 | X80: 1 | Y80: 3 | AA80: Ks | AB80: Subsector J - Spirare | AC80: 1 | AD80: 2 | AE80: 3 | AF80: =INDEX($BA$26:BF$44,MATCH(AE80,$AZ$26:$AZ$44,-1),MATCH(D80,$BA$25:$BF$25)) -> 0 | AG80: 1 | AH80: 1 | AI80: 1 | AJ80: 1 | AK80: 0.8 | AL80: 0.8 | AM80: 2342.4 | AN80: 117120000 | AO80: 0 | AP80: 0
A81: Anasazi | B81: 506 | D81: C | E81: 5 | F81: 3 | G81: 1 | H81: 4 | I81: 9 | J81: A | K81: - | L81: A | O81: Ni | P81: Po | W81: 5 | X81: 0 | Y81: 0 | AA81: I1 | AB81: Subsector A - Nosso Nosso | AC81: 1 | AD81: 2 | AE81: 3 | AF81: =INDEX($BA$26:BF$44,MATCH(AE81,$AZ$26:$AZ$44,-1),MATCH(D81,$BA$25:$BF$25)) -> 0 | AG81: 1 | AH81: 1 | AI81: 1 | AJ81: 1 | AK81: 0.8 | AL81: 0.8 | AM81: 3750.4 | AN81: 187520000 | AO81: 0 | AP81: 0
A82: Tuscany | B82: 1506 | D82: D | E82: 4 | F82: 5 | G82: 2 | H82: 4 | I82: 6 | J82: 6 | K82: - | L82: 9 | O82: Ni | P82: Po | W82: 5 | X82: 0 | Y82: 3 | AA82: I1 | AB82: Subsector B - Mu | AC82: 1 | AD82: 2 | AE82: 3 | AF82: =INDEX($BA$26:BF$44,MATCH(AE82,$AZ$26:$AZ$44,-1),MATCH(D82,$BA$25:$BF$25)) -> 0 | AG82: 1 | AH82: 1 | AI82: 1.2 | AJ82: 1 | AK82: 1 | AL82: 1 | AM82: 4392 | AN82: 219600000 | AO82: 0 | AP82: 0
A83: Bond | B83: 1824 | D83: D | E83: 3 | F83: 2 | G83: 5 | H83: 4 | I83: B | J83: C | K83: - | L83: A | O83: Ni | W83: 4 | X83: 0 | Y83: 3 | AA83: Ks | AB83: Subsector K - Floe | AC83: 1 | AD83: 2 | AE83: 3 | AF83: =INDEX($BA$26:BF$44,MATCH(AE83,$AZ$26:$AZ$44,-1),MATCH(D83,$BA$25:$BF$25)) -> 0 | AG83: 1 | AH83: 1 | AI83: 1 | AJ83: 1 | AK83: 0.8 | AL83: 0.8 | AM83: 3750.4 | AN83: 150016000 | AO83: 0 | AP83: 0
A84: Fastball | B84: 804 | D84: D | E84: 2 | F84: 0 | G84: 0 | H84: 4 | I84: 5 | J84: 1 | K84: - | L84: A | O84: Ni | P84: Va | W84: 4 | X84: 2 | Y84: 1 | AA84: I1 | AB84: Subsector A - Nosso Nosso | AC84: =VLOOKUP(L84,$AS$23:$AU$40,3) -> 1 | AD84: =VLOOKUP(H84,$AW$23:$AX$36,2) -> 2 | AE84: =AC84+AD84 -> 3 | AF84: =INDEX($BA$26:BF$44,MATCH(AE84,$AZ$26:$AZ$44,-1),MATCH(D84,$BA$25:$BF$25)) -> 0 | AG84: 1 | AH84: 1 | AI84: 1 | AJ84: 1 | AK84: 0.8 | AL84: 0.8 | AM84: =(VLOOKUP(L84,$AS$23:$AV$40,4))*AG84*AH84*AI84*AJ84*AK84*AL84 -> 3750.4 | AN84: =AM84*((10^H84)*W84) -> 150016000 | AO84: =INDEX($BK$23:$BU$36,MATCH(L84,$BJ$23:$BJ$36),MATCH(H84,$BK$22:$BU$22)) -> 0 | AP84: =AO84*W84 -> 0
A85: Infected | B85: 1102 | D85: D | E85: 7 | F85: 2 | G85: 9 | H85: 4 | I85: B | J85: B | K85: - | L85: 9 | O85: Ni | W85: 4 | X85: 0 | Y85: 2 | AA85: I1 | AB85: Subsector B - Mu | AC85: 1 | AD85: 2 | AE85: 3 | AF85: =INDEX($BA$26:BF$44,MATCH(AE85,$AZ$26:$AZ$44,-1),MATCH(D85,$BA$25:$BF$25)) -> 0 | AG85: 1 | AH85: 1 | AI85: 1 | AJ85: 1 | AK85: 1 | AL85: 0.8 | AM85: 2928 | AN85: 117120000 | AO85: 0 | AP85: 0
A86: Shirelles | B86: 206 | D86: E | E86: 3 | F86: 5 | G86: 5 | H86: 4 | I86: 7 | J86: 5 | K86: - | L86: 7 | O86: Ni | W86: 4 | X86: 0 | Y86: 4 | AA86: I1 | AB86: Subsector A - Nosso Nosso | AC86: 0.5 | AD86: 2 | AE86: 2.5 | AF86: =INDEX($BA$26:BF$44,MATCH(AE86,$AZ$26:$AZ$44,-1),MATCH(D86,$BA$25:$BF$25)) -> 0 | AG86: 1 | AH86: 1 | AI86: 1 | AJ86: 1 | AK86: 0.8 | AL86: 0.8 | AM86: 915.2 | AN86: 36608000 | AO86: 1 | AP86: 4
A87: Sinai | B87: 2134 | D87: D | E87: 6 | F87: 5 | G87: 9 | H87: 4 | I87: A | J87: 4 | K87: - | L87: 8 | O87: Ni | W87: 4 | X87: 0 | Y87: 2 | AA87: Dr | AB87: Subsector O - Painted | AC87: 0.5 | AD87: 2 | AE87: 2.5 | AF87: =INDEX($BA$26:BF$44,MATCH(AE87,$AZ$26:$AZ$44,-1),MATCH(D87,$BA$25:$BF$25)) -> 0 | AG87: 1 | AH87: 1 | AI87: 1 | AJ87: 1 | AK87: 1 | AL87: 0.8 | AM87: 1832 | AN87: 73280000 | AO87: 0 | AP87: 0
A88: Worms | B88: 2818 | D88: X | E88: 2 | F88: 0 | G88: 0 | H88: 4 | I88: 1 | J88: 4 | K88: - | L88: 9 | O88: Ni | P88: Va | W88: 4 | X88: 0 | Y88: 4 | AA88: Ks | AB88: Subsector H - Chanter | AC88: 1 | AD88: 2 | AE88: 3 | AF88: =INDEX($BA$26:BF$44,MATCH(AE88,$AZ$26:$AZ$44,-1),MATCH(D88,$BA$25:$BF$25)) -> -3 | AG88: 1 | AH88: 1 | AI88: 1 | AJ88: 1 | AK88: 0.8 | AL88: 0.8 | AM88: 2342.4 | AN88: 93696000 | AO88: 0 | AP88: 0
A89: Blackball | B89: 2031 | D89: X | E89: 2 | F89: 4 | G89: 1 | H89: 4 | I89: 8 | J89: 4 | K89: - | L89: 2 | O89: Ni | P89: Po | W89: 3 | X89: 1 | Y89: 3 | AA89: Dr | AB89: Subsector O - Painted | AC89: -0.5 | AD89: 2 | AE89: 1.5 | AF89: =INDEX($BA$26:BF$44,MATCH(AE89,$AZ$26:$AZ$44,-1),MATCH(D89,$BA$25:$BF$25)) -> 0 | AG89: 1 | AH89: 1 | AI89: 1 | AJ89: 1 | AK89: 1 | AL89: 0.8 | AM89: 108 | AN89: 3240000 | AO89: 0 | AP89: 0
A90: Flame | B90: 1631 | D90: D | E90: 4 | F90: 4 | G90: 2 | H90: 4 | I90: 7 | J90: 6 | K90: - | L90: 4 | O90: Ni | P90: Po | W90: 3 | X90: 1 | Y90: 3 | AA90: Nf | AB90: Subsector N - Sorrow | AC90: 0 | AD90: 2 | AE90: 2 | AF90: =INDEX($BA$26:BF$44,MATCH(AE90,$AZ$26:$AZ$44,-1),MATCH(D90,$BA$25:$BF$25)) -> 0 | AG90: 1 | AH90: 1 | AI90: 1 | AJ90: 0.8 | AK90: 1 | AL90: 0.8 | AM90: 224 | AN90: 6720000 | AO90: 1 | AP90: 3
A91: Hermit | B91: 1006 | D91: A | E91: 0 | F91: 0 | G91: 0 | H91: 4 | I91: 6 | J91: 9 | K91: - | L91: A | N91: S | O91: As | P91: Ni | W91: 3 | X91: 0 | Y91: 0 | AA91: I1 | AB91: Subsector B - Mu | AC91: 1 | AD91: 2 | AE91: 3 | AF91: =INDEX($BA$26:BF$44,MATCH(AE91,$AZ$26:$AZ$44,-1),MATCH(D91,$BA$25:$BF$25)) -> 0.5 | AG91: 1 | AH91: 1 | AI91: 1 | AJ91: 1 | AK91: 1 | AL91: 0.8 | AM91: 4688 | AN91: 140640000 | AO91: 0 | AP91: 0
A92: Ranin | B92: 1708 | D92: D | E92: 7 | F92: 5 | G92: 5 | H92: 4 | I92: 7 | J92: 7 | K92: - | L92: 5 | O92: Ni | W92: 3 | X92: 0 | Y92: 4 | AA92: I1 | AB92: Subsector C - Wsi | AC92: 0 | AD92: 2 | AE92: 2 | AF92: =INDEX($BA$26:BF$44,MATCH(AE92,$AZ$26:$AZ$44,-1),MATCH(D92,$BA$25:$BF$25)) -> 0 | AG92: 1 | AH92: 1 | AI92: 1 | AJ92: 1 | AK92: 1 | AL92: 0.8 | AM92: 448 | AN92: 13440000 | AO92: 2 | AP92: 6
A93: Sword | B93: 1233 | D93: B | E93: 6 | F93: 9 | G93: 9 | H93: 4 | I93: 7 | J93: 3 | K93: - | L93: A | O93: Ni | W93: 3 | X93: 1 | Y93: 4 | AA93: Nf | AB93: Subsector N - Sorrow | AC93: 1 | AD93: 2 | AE93: 3 | AF93: =INDEX($BA$26:BF$44,MATCH(AE93,$AZ$26:$AZ$44,-1),MATCH(D93,$BA$25:$BF$25)) -> 0.5 | AG93: 1 | AH93: 1 | AI93: 1 | AJ93: 1 | AK93: 1 | AL93: 0.8 | AM93: 4688 | AN93: 140640000 | AO93: 0 | AP93: 0
A94: Temperance | B94: 2336 | D94: C | E94: 8 | F94: 3 | G94: 8 | H94: 4 | I94: 8 | J94: 6 | K94: - | L94: 9 | N94: S | O94: Ni | W94: 3 | X94: 0 | Y94: 3 | AA94: Dr | AB94: Subsector O - Painted | AC94: 1 | AD94: 2 | AE94: 3 | AF94: =INDEX($BA$26:BF$44,MATCH(AE94,$AZ$26:$AZ$44,-1),MATCH(D94,$BA$25:$BF$25)) -> 0 | AG94: 1 | AH94: 1 | AI94: 1 | AJ94: 1 | AK94: 1 | AL94: 0.8 | AM94: 2928 | AN94: 87840000 | AO94: 0 | AP94: 0
A95: Tranquility | B95: 1733 | D95: B | E95: 5 | F95: 3 | G95: 4 | H95: 4 | I95: 3 | J95: 3 | K95: - | L95: A | N95: S | O95: Ni | W95: 3 | X95: 1 | Y95: 0 | AA95: Nf | AB95: Subsector O - Painted | AC95: 1 | AD95: 2 | AE95: 3 | AF95: =INDEX($BA$26:BF$44,MATCH(AE95,$AZ$26:$AZ$44,-1),MATCH(D95,$BA$25:$BF$25)) -> 0.5 | AG95: 1 | AH95: 1 | AI95: 1 | AJ95: 0.8 | AK95: 1 | AL95: 0.8 | AM95: 3750.4 | AN95: 112512000 | AO95: 0 | AP95: 0
A96: Waves | B96: 2603 | D96: C | E96: A | F96: 7 | G96: A | H96: 4 | I96: 2 | J96: 1 | K96: - | L96: 8 | O96: Ni | P96: Wa | W96: 3 | X96: 1 | Y96: 3 | AA96: Na | AB96: Subsector D - Yelloworld | AC96: 0.5 | AD96: 2 | AE96: 2.5 | AF96: =INDEX($BA$26:BF$44,MATCH(AE96,$AZ$26:$AZ$44,-1),MATCH(D96,$BA$25:$BF$25)) -> 0.5 | AG96: 1 | AH96: 1 | AI96: 1 | AJ96: 1 | AK96: 1 | AL96: 0.8 | AM96: 1832 | AN96: 54960000 | AO96: 0 | AP96: 0
A97: Xaeyal | B97: 2419 | D97: C | E97: 6 | F97: 3 | G97: 8 | H97: 4 | I97: 6 | J97: 6 | K97: - | L97: A | N97: S | O97: Ni | W97: 3 | X97: 0 | Y97: 5 | AA97: I4 | AB97: Subsector G - LightWaves | AC97: 1 | AD97: 2 | AE97: 3 | AF97: =INDEX($BA$26:BF$44,MATCH(AE97,$AZ$26:$AZ$44,-1),MATCH(D97,$BA$25:$BF$25)) -> 0 | AG97: 1 | AH97: 1 | AI97: 1 | AJ97: 1 | AK97: 1 | AL97: 0.8 | AM97: 4688 | AN97: 140640000 | AO97: 0 | AP97: 0
A98: Edamar | B98: 717 | D98: C | E98: 6 | F98: 6 | G98: A | H98: 4 | I98: 9 | J98: 9 | K98: - | L98: A | O98: Ni | P98: Wa | W98: 2 | X98: 1 | Y98: 4 | AA98: I3 | AB98: Subsector E - Silent Shore | AC98: 1 | AD98: 2 | AE98: 3 | AF98: =INDEX($BA$26:BF$44,MATCH(AE98,$AZ$26:$AZ$44,-1),MATCH(D98,$BA$25:$BF$25)) -> 0 | AG98: 1 | AH98: 1 | AI98: 1 | AJ98: 1 | AK98: 1 | AL98: 0.8 | AM98: 4688 | AN98: 93760000 | AO98: 0 | AP98: 0
A99: Faunia | B99: 3026 | D99: E | E99: 6 | F99: 3 | G99: 9 | H99: 4 | I99: 4 | J99: 3 | K99: - | L99: 9 | N99: S | O99: Ni | W99: 2 | X99: 0 | Y99: 3 | AA99: Ks | AB99: Subsector L - Dreamsong | AC99: 1 | AD99: 2 | AE99: 3 | AF99: =INDEX($BA$26:BF$44,MATCH(AE99,$AZ$26:$AZ$44,-1),MATCH(D99,$BA$25:$BF$25)) -> -0.5 | AG99: 1 | AH99: 1 | AI99: 1 | AJ99: 1 | AK99: 0.8 | AL99: 0.8 | AM99: 2342.4 | AN99: 46848000 | AO99: 0 | AP99: 0
A100: Nedadip | B100: 1025 | D100: C | E100: 4 | F100: 8 | G100: 5 | H100: 4 | I100: 5 | J100: 9 | K100: - | L100: 9 | O100: Ni | W100: 2 | X100: 0 | Y100: 2 | AA100: I3 | AB100: Subsector J - Spirare | AC100: 1 | AD100: 2 | AE100: 3 | AF100: =INDEX($BA$26:BF$44,MATCH(AE100,$AZ$26:$AZ$44,-1),MATCH(D100,$BA$25:$BF$25)) -> 0 | AG100: 1 | AH100: 1 | AI100: 1 | AJ100: 1 | AK100: 1 | AL100: 0.8 | AM100: 2928 | AN100: 58560000 | AO100: 0 | AP100: 0
A101: Red Route | B101: 1105 | D101: B | E101: 5 | F101: 9 | G101: 5 | H101: 4 | I101: 8 | J101: 6 | K101: - | L101: 9 | O101: Ni | W101: 2 | X101: 1 | Y101: 2 | AA101: I1 | AB101: Subsector B - Mu | AC101: 1 | AD101: 2 | AE101: 3 | AF101: =INDEX($BA$26:BF$44,MATCH(AE101,$AZ$26:$AZ$44,-1),MATCH(D101,$BA$25:$BF$25)) -> 0.5 | AG101: 1 | AH101: 1 | AI101: 1 | AJ101: 1 | AK101: 1 | AL101: 0.8 | AM101: 2928 | AN101: 58560000 | AO101: 0 | AP101: 0
A102: Sceptre | B102: 1430 | D102: D | E102: 2 | F102: 5 | G102: 1 | H102: 4 | I102: 1 | J102: 2 | K102: - | L102: 5 | N102: S | O102: Ni | P102: Po | W102: 2 | X102: 1 | Y102: 4 | AA102: Nf | AB102: Subsector J - Spirare | AC102: 0 | AD102: 2 | AE102: 2 | AF102: =INDEX($BA$26:BF$44,MATCH(AE102,$AZ$26:$AZ$44,-1),MATCH(D102,$BA$25:$BF$25)) -> 0 | AG102: 1 | AH102: 1 | AI102: 1 | AJ102: 1 | AK102: 0.8 | AL102: 0.8 | AM102: 358.4 | AN102: 7168000 | AO102: 2 | AP102: 4
A103: Tariri | B103: 1919 | D103: C | E103: A | F103: 5 | G103: A | H103: 4 | I103: 5 | J103: 7 | K103: - | L103: B | N103: N | O103: Ni | P103: Wa | W103: 2 | X103: 1 | Y103: 3 | AA103: I4 | AB103: Subsector G - LightWaves | AC103: 1 | AD103: 2 | AE103: 3 | AF103: =INDEX($BA$26:BF$44,MATCH(AE103,$AZ$26:$AZ$44,-1),MATCH(D103,$BA$25:$BF$25)) -> 0 | AG103: 1 | AH103: 1 | AI103: 1 | AJ103: 1 | AK103: 0.8 | AL103: 0.8 | AM103: 6000 | AN103: 120000000 | AO103: 0 | AP103: 0
A104: Donovan | B104: 1302 | D104: D | E104: 6 | F104: 6 | G104: 3 | H104: 4 | I104: 3 | J104: 5 | K104: - | L104: 7 | O104: Ni | W104: 1 | X104: 0 | Y104: 4 | AA104: I1 | AB104: Subsector B - Mu | AC104: 0.5 | AD104: 2 | AE104: 2.5 | AF104: =INDEX($BA$26:BF$44,MATCH(AE104,$AZ$26:$AZ$44,-1),MATCH(D104,$BA$25:$BF$25)) -> 0 | AG104: 1.6 | AH104: 1 | AI104: 1.2 | AJ104: 1 | AK104: 1 | AL104: 0.8 | AM104: 2196.48 | AN104: 21964800 | AO104: 1 | AP104: 1
A105: Dreamworld | B105: 2105 | D105: C | E105: 6 | F105: 6 | G105: 5 | H105: 4 | I105: 5 | J105: 5 | K105: - | L105: 6 | O105: Ni | W105: 1 | X105: 1 | Y105: 0 | AA105: Ao | AB105: Subsector C - Wsi | AC105: 0.5 | AD105: 2 | AE105: 2.5 | AF105: =INDEX($BA$26:BF$44,MATCH(AE105,$AZ$26:$AZ$44,-1),MATCH(D105,$BA$25:$BF$25)) -> 0.5 | AG105: 1 | AH105: 1 | AI105: 1 | AJ105: 1 | AK105: 1 | AL105: 0.8 | AM105: 716 | AN105: 7160000 | AO105: 2 | AP105: 2
A106: Grace | B106: 1707 | D106: C | E106: 0 | F106: 0 | G106: 0 | H106: 4 | I106: 8 | J106: 6 | K106: - | L106: B | O106: As | P106: Ni | W106: 1 | X106: 2 | Y106: 4 | AA106: I1 | AB106: Subsector C - Wsi | AC106: 1 | AD106: 2 | AE106: 3 | AF106: =INDEX($BA$26:BF$44,MATCH(AE106,$AZ$26:$AZ$44,-1),MATCH(D106,$BA$25:$BF$25)) -> 0 | AG106: 1 | AH106: 1 | AI106: 1 | AJ106: 1 | AK106: 1 | AL106: 0.8 | AM106: 7500 | AN106: 75000000 | AO106: 0 | AP106: 0
A107: Icecap | B107: 1912 | D107: D | E107: 2 | F107: 0 | G107: 1 | H107: 4 | I107: 6 | J107: 6 | K107: - | L107: 4 | O107: Ic | P107: Ni | Q107: Va | W107: 1 | X107: 0 | Y107: 4 | AA107: Dw | AB107: Subsector G - LightWaves | AC107: 0 | AD107: 2 | AE107: 2 | AF107: =INDEX($BA$26:BF$44,MATCH(AE107,$AZ$26:$AZ$44,-1),MATCH(D107,$BA$25:$BF$25)) -> 0 | AG107: 1 | AH107: 1 | AI107: 1 | AJ107: 0.8 | AK107: 1 | AL107: 0.8 | AM107: 224 | AN107: 2240000 | AO107: 1 | AP107: 1
A108: Liege | B108: 1932 | D108: A | E108: 5 | F108: 9 | G108: 3 | H108: 4 | I108: 5 | J108: 1 | K108: - | L108: A | N108: A | O108: Ni | W108: 1 | X108: 0 | Y108: 3 | AA108: Dr | AB108: Subsector O - Painted | AC108: 1 | AD108: 2 | AE108: 3 | AF108: =INDEX($BA$26:BF$44,MATCH(AE108,$AZ$26:$AZ$44,-1),MATCH(D108,$BA$25:$BF$25)) -> 0.5 | AG108: 1 | AH108: 1 | AI108: 1 | AJ108: 1 | AK108: 0.8 | AL108: 0.8 | AM108: 3750.4 | AN108: 37504000 | AO108: 0 | AP108: 0
A109: Lost | B109: 2230 | D109: C | E109: 1 | F109: 0 | G109: 0 | H109: 4 | I109: 4 | J109: 6 | K109: - | L109: A | N109: S | O109: Ni | P109: Va | W109: 1 | X109: 2 | Y109: 3 | AA109: Dr | AB109: Subsector K - Floe | AC109: 1 | AD109: 2 | AE109: 3 | AF109: =INDEX($BA$26:BF$44,MATCH(AE109,$AZ$26:$AZ$44,-1),MATCH(D109,$BA$25:$BF$25)) -> 0 | AG109: 1 | AH109: 1 | AI109: 1 | AJ109: 1 | AK109: 1 | AL109: 0.8 | AM109: 4688 | AN109: 46880000 | AO109: 0 | AP109: 0
A110: Risen | B110: 2808 | D110: D | E110: 5 | F110: 7 | G110: 4 | H110: 4 | I110: 4 | J110: 1 | K110: - | L110: 6 | O110: Ni | W110: 1 | X110: 1 | Y110: 4 | AA110: Na | AB110: Subsector D - Yelloworld | AC110: 0.5 | AD110: 2 | AE110: 2.5 | AF110: =INDEX($BA$26:BF$44,MATCH(AE110,$AZ$26:$AZ$44,-1),MATCH(D110,$BA$25:$BF$25)) -> 0 | AG110: 1 | AH110: 1 | AI110: 1 | AJ110: 1 | AK110: 1 | AL110: 0.8 | AM110: 716 | AN110: 7160000 | AO110: 2 | AP110: 2
A111: Sarde | B111: 1808 | D111: C | E111: 5 | F111: 5 | G111: 5 | H111: 4 | I111: 6 | J111: 6 | K111: - | L111: A | N111: A | O111: Ni | W111: 1 | X111: 0 | Y111: 5 | AA111: I1 | AB111: Subsector C - Wsi | AC111: 1 | AD111: 2 | AE111: 3 | AF111: =INDEX($BA$26:BF$44,MATCH(AE111,$AZ$26:$AZ$44,-1),MATCH(D111,$BA$25:$BF$25)) -> 0 | AG111: 1 | AH111: 1 | AI111: 1 | AJ111: 1 | AK111: 0.8 | AL111: 0.8 | AM111: 3750.4 | AN111: 37504000 | AO111: 0 | AP111: 0
A112: Scotland | B112: 2438 | D112: E | E112: 6 | F112: 6 | G112: 8 | H112: 4 | I112: 2 | J112: 1 | K112: - | L112: A | O112: Ni | W112: 1 | X112: 1 | Y112: 2 | AA112: Dr | AB112: Subsector O - Painted | AC112: 1 | AD112: 2 | AE112: 3 | AF112: =INDEX($BA$26:BF$44,MATCH(AE112,$AZ$26:$AZ$44,-1),MATCH(D112,$BA$25:$BF$25)) -> -0.5 | AG112: 1 | AH112: 1 | AI112: 1 | AJ112: 1 | AK112: 1 | AL112: 0.8 | AM112: 4688 | AN112: 46880000 | AO112: 0 | AP112: 0
A113: Threshold | B113: 2004 | D113: D | E113: 3 | F113: 7 | G113: 1 | H113: 4 | I113: 2 | J113: 3 | K113: - | L113: 9 | O113: Ni | W113: 1 | X113: 2 | Y113: 4 | AA113: Ao | AB113: Subsector C - Wsi | AC113: 1 | AD113: 2 | AE113: 3 | AF113: =INDEX($BA$26:BF$44,MATCH(AE113,$AZ$26:$AZ$44,-1),MATCH(D113,$BA$25:$BF$25)) -> 0 | AG113: 1 | AH113: 1 | AI113: 1 | AJ113: 1 | AK113: 1 | AL113: 0.8 | AM113: 2928 | AN113: 29280000 | AO113: 0 | AP113: 0
A114: Truth | B114: 1134 | D114: B | E114: S | F114: 0 | G114: 0 | H114: 4 | I114: 4 | J114: 5 | K114: - | L114: A | N114: A | O114: Ni | P114: Va | W114: 1 | X114: 0 | Y114: 5 | AA114: Nf | AB114: Subsector N - Sorrow | AC114: 1 | AD114: 2 | AE114: 3 | AF114: =INDEX($BA$26:BF$44,MATCH(AE114,$AZ$26:$AZ$44,-1),MATCH(D114,$BA$25:$BF$25)) -> 0.5 | AG114: 1 | AH114: 1 | AI114: 1 | AJ114: 1 | AK114: 1 | AL114: 0.8 | AM114: 4688 | AN114: 46880000 | AO114: 0 | AP114: 0
A115: Workfield | B115: 409 | D115: A | E115: 7 | F115: 7 | G115: 8 | H115: 4 | I115: 7 | J115: 7 | K115: - | L115: A | O115: Ni | W115: 1 | X115: 2 | Y115: 2 | AA115: Na | AB115: Subsector A - Nosso Nosso | AC115: 1 | AD115: 2 | AE115: 3 | AF115: =INDEX($BA$26:BF$44,MATCH(AE115,$AZ$26:$AZ$44,-1),MATCH(D115,$BA$25:$BF$25)) -> 0.5 | AG115: 1.6 | AH115: 1 | AI115: 1.2 | AJ115: 1 | AK115: 1 | AL115: 0.8 | AM115: 9000.96 | AN115: 90009600 | AO115: 0 | AP115: 0
A116: Curiosity | B116: 1112 | D116: C | E116: 5 | F116: 7 | G116: 7 | H116: 3 | I116: 8 | J116: 9 | K116: - | L116: 7 | N116: S | O116: Lo | P116: Ni | W116: 9 | X116: 2 | Y116: 3 | AA116: I1 | AB116: Subsector F - NightVision | AC116: 0.5 | AD116: 1.5 | AE116: 2 | AF116: =INDEX($BA$26:BF$44,MATCH(AE116,$AZ$26:$AZ$44,-1),MATCH(D116,$BA$25:$BF$25)) -> 0.5 | AG116: 1 | AH116: 1 | AI116: 1 | AJ116: 1 | AK116: 1 | AL116: 0.8 | AM116: 1144 | AN116: 10296000 | AO116: 0 | AP116: 0
A117: Graves | B117: 2809 | D117: D | E117: 4 | F117: 4 | G117: 2 | H117: 3 | I117: 3 | J117: B | K117: - | L117: A | O117: Lo | P117: Ni | Q117: Po | W117: 9 | X117: 0 | Y117: 2 | AA117: Na | AB117: Subsector D - Yelloworld | AC117: 1 | AD117: 1.5 | AE117: 2.5 | AF117: =INDEX($BA$26:BF$44,MATCH(AE117,$AZ$26:$AZ$44,-1),MATCH(D117,$BA$25:$BF$25)) -> 0 | AG117: 1 | AH117: 1 | AI117: 1 | AJ117: 1 | AK117: 0.8 | AL117: 0.8 | AM117: 3750.4 | AN117: 33753600 | AO117: 0 | AP117: 0
A118: Anton | B118: 1717 | D118: D | E118: 6 | F118: 4 | G118: 8 | H118: 3 | I118: 1 | J118: 2 | K118: - | L118: 2 | O118: Lo | P118: Ni | W118: 6 | X118: 0 | Y118: 4 | AA118: I4 | AB118: Subsector G - LightWaves | AC118: -0.5 | AD118: 1.5 | AE118: 1 | AF118: =INDEX($BA$26:BF$44,MATCH(AE118,$AZ$26:$AZ$44,-1),MATCH(D118,$BA$25:$BF$25)) -> 0.5 | AG118: 1 | AH118: 1 | AI118: 1 | AJ118: 1 | AK118: 0.8 | AL118: 0.8 | AM118: 86.4 | AN118: 518400 | AO118: 0 | AP118: 0
A119: Honour | B119: 1533 | D119: B | E119: 5 | F119: 4 | G119: 1 | H119: 3 | I119: 3 | J119: 1 | K119: - | L119: A | O119: Lo | P119: Ni | Q119: Po | W119: 6 | X119: 1 | Y119: 5 | AA119: Nf | AB119: Subsector N - Sorrow | AC119: 1 | AD119: 1.5 | AE119: 2.5 | AF119: =INDEX($BA$26:BF$44,MATCH(AE119,$AZ$26:$AZ$44,-1),MATCH(D119,$BA$25:$BF$25)) -> 0.5 | AG119: 1 | AH119: 1 | AI119: 1 | AJ119: 1 | AK119: 1 | AL119: 0.8 | AM119: 4688 | AN119: 28128000 | AO119: 0 | AP119: 0
A120: Robes | B120: 1535 | D120: D | E120: 2 | F120: 2 | G120: 4 | H120: 3 | I120: 3 | J120: 2 | K120: - | L120: 5 | O120: Lo | P120: Ni | W120: 6 | X120: 0 | Y120: 0 | AA120: Nf | AB120: Subsector N - Sorrow | AC120: 0 | AD120: 1.5 | AE120: 1.5 | AF120: =INDEX($BA$26:BF$44,MATCH(AE120,$AZ$26:$AZ$44,-1),MATCH(D120,$BA$25:$BF$25)) -> 0.5 | AG120: 1 | AH120: 1 | AI120: 1 | AJ120: 1 | AK120: 1 | AL120: 0.8 | AM120: 448 | AN120: 2688000 | AO120: 1 | AP120: 6
A121: Chime | B121: 304 | D121: E | E121: 5 | F121: 6 | G121: 5 | H121: 3 | I121: 4 | J121: 4 | K121: - | L121: 5 | O121: Lo | P121: Ni | W121: 5 | X121: 0 | Y121: 3 | AA121: Na | AB121: Subsector A - Nosso Nosso | AC121: 0 | AD121: 1.5 | AE121: 1.5 | AF121: =INDEX($BA$26:BF$44,MATCH(AE121,$AZ$26:$AZ$44,-1),MATCH(D121,$BA$25:$BF$25)) -> 0 | AG121: 1 | AH121: 1 | AI121: 1 | AJ121: 1 | AK121: 0.8 | AL121: 1 | AM121: 448 | AN121: 2240000 | AO121: 1 | AP121: 5
A122: Gold | B122: 1634 | D122: D | E122: 4 | F122: 2 | G122: 7 | H122: 3 | I122: 6 | J122: 4 | K122: - | L122: 9 | O122: Lo | P122: Ni | W122: 5 | X122: 0 | Y122: 3 | AA122: Nf | AB122: Subsector N - Sorrow | AC122: 1 | AD122: 1.5 | AE122: 2.5 | AF122: =INDEX($BA$26:BF$44,MATCH(AE122,$AZ$26:$AZ$44,-1),MATCH(D122,$BA$25:$BF$25)) -> 0 | AG122: 1 | AH122: 1 | AI122: 1 | AJ122: 1 | AK122: 1 | AL122: 0.8 | AM122: 2928 | AN122: 14640000 | AO122: 0 | AP122: 0
A123: Oktane | B123: 1606 | D123: C | E123: 4 | F123: 3 | G123: 7 | H123: 3 | I123: 5 | J123: 6 | K123: - | L123: 8 | N123: S | O123: Lo | P123: Ni | W123: 5 | X123: 1 | Y123: 3 | AA123: I1 | AB123: Subsector B - Mu | AC123: 0.5 | AD123: 1.5 | AE123: 2 | AF123: =INDEX($BA$26:BF$44,MATCH(AE123,$AZ$26:$AZ$44,-1),MATCH(D123,$BA$25:$BF$25)) -> 0.5 | AG123: 1 | AH123: 1 | AI123: 1 | AJ123: 0.8 | AK123: 1 | AL123: 0.8 | AM123: 1465.6 | AN123: 7328000 | AO123: 0 | AP123: 0
A124: Zihuat | B124: 2406 | D124: D | E124: 7 | F124: 7 | G124: 4 | H124: 3 | I124: 1 | J124: 2 | K124: - | L124: A | O124: Lo | P124: Ni | W124: 5 | X124: 0 | Y124: 4 | AA124: Wc | AB124: Subsector C - Wsi | AC124: 1 | AD124: 1.5 | AE124: 2.5 | AF124: =INDEX($BA$26:BF$44,MATCH(AE124,$AZ$26:$AZ$44,-1),MATCH(D124,$BA$25:$BF$25)) -> 0 | AG124: 1 | AH124: 1 | AI124: 1 | AJ124: 1 | AK124: 1 | AL124: 0.8 | AM124: 4688 | AN124: 23440000 | AO124: 0 | AP124: 0
A125: Adama | B125: 1936 | D125: C | E125: 8 | F125: A | G125: 3 | H125: 3 | I125: 3 | J125: 2 | K125: - | L125: A | O125: Fl | P125: Lo | Q125: Ni | W125: 4 | X125: 0 | Y125: 4 | AA125: Dr | AB125: Subsector O - Painted | AC125: 1 | AD125: 1.5 | AE125: 2.5 | AF125: =INDEX($BA$26:BF$44,MATCH(AE125,$AZ$26:$AZ$44,-1),MATCH(D125,$BA$25:$BF$25)) -> 0.5 | AG125: 1 | AH125: 1 | AI125: 1 | AJ125: 0.8 | AK125: 1 | AL125: 0.8 | AM125: 3750.4 | AN125: 15001600 | AO125: 0 | AP125: 0
A126: Detour | B126: 2202 | D126: C | E126: 2 | F126: 3 | G126: 5 | H126: 3 | I126: 5 | J126: 8 | K126: - | L126: 9 | O126: Lo | P126: Ni | W126: 4 | X126: 0 | Y126: 3 | AA126: Na | AB126: Subsector C - Wsi | AC126: 1 | AD126: 1.5 | AE126: 2.5 | AF126: =INDEX($BA$26:BF$44,MATCH(AE126,$AZ$26:$AZ$44,-1),MATCH(D126,$BA$25:$BF$25)) -> 0.5 | AG126: 1 | AH126: 1 | AI126: 1 | AJ126: 1 | AK126: 0.8 | AL126: 0.8 | AM126: 2342.4 | AN126: 9369600 | AO126: 0 | AP126: 0
A127: Floaters | B127: 1404 | D127: C | E127: 2 | F127: 4 | G127: 0 | H127: 3 | I127: 3 | J127: 4 | K127: - | L127: A | N127: S | O127: De | P127: Lo | Q127: Ni | R127: Po | W127: 4 | X127: 0 | Y127: 5 | AA127: I1 | AB127: Subsector B - Mu | AC127: 1 | AD127: 1.5 | AE127: 2.5 | AF127: =INDEX($BA$26:BF$44,MATCH(AE127,$AZ$26:$AZ$44,-1),MATCH(D127,$BA$25:$BF$25)) -> 0.5 | AG127: 1 | AH127: 1 | AI127: 1 | AJ127: 1 | AK127: 0.8 | AL127: 0.8 | AM127: 3750.4 | AN127: 15001600 | AO127: 0 | AP127: 0
A128: Irka Ir | B128: 1218 | D128: D | E128: 5 | F128: 7 | G128: 3 | H128: 3 | I128: 3 | J128: 6 | K128: - | L128: 3 | O128: Lo | P128: Ni | W128: 4 | X128: 0 | Y128: 3 | AA128: I3 | AB128: Subsector F - NightVision | AC128: 0 | AD128: 1.5 | AE128: 1.5 | AF128: =INDEX($BA$26:BF$44,MATCH(AE128,$AZ$26:$AZ$44,-1),MATCH(D128,$BA$25:$BF$25)) -> 0.5 | AG128: 1 | AH128: 1 | AI128: 1 | AJ128: 1 | AK128: 0.8 | AL128: 0.8 | AM128: 140.8 | AN128: 563200 | AO128: 0 | AP128: 0
A129: Jerusalem | B129: 1939 | D129: B | E129: 2 | F129: 0 | G129: 0 | H129: 3 | I129: 1 | J129: 1 | K129: - | L129: A | O129: Lo | P129: Ni | Q129: Va | W129: 4 | X129: 0 | Y129: 1 | AA129: Dr | AB129: Subsector O - Painted | AC129: 1 | AD129: 1.5 | AE129: 2.5 | AF129: =INDEX($BA$26:BF$44,MATCH(AE129,$AZ$26:$AZ$44,-1),MATCH(D129,$BA$25:$BF$25)) -> 0.5 | AG129: 1 | AH129: 1 | AI129: 1 | AJ129: 1 | AK129: 1 | AL129: 0.8 | AM129: 4688 | AN129: 18752000 | AO129: 0 | AP129: 0
A130: Bitterend | B130: 1802 | D130: C | E130: 4 | F130: 2 | G130: 3 | H130: 3 | I130: 3 | J130: 4 | K130: - | L130: 6 | O130: Lo | P130: Ni | Q130: Po | W130: 3 | X130: 1 | Y130: 4 | AA130: Ao | AB130: Subsector C - Wsi | AC130: 0.5 | AD130: 1.5 | AE130: 2 | AF130: =INDEX($BA$26:BF$44,MATCH(AE130,$AZ$26:$AZ$44,-1),MATCH(D130,$BA$25:$BF$25)) -> 0.5 | AG130: 1 | AH130: 1 | AI130: 1 | AJ130: 1 | AK130: 1 | AL130: 0.8 | AM130: 716 | AN130: 2148000 | AO130: 1 | AP130: 3
A131: Dusk | B131: 1706 | D131: E | E131: 2 | F131: 1 | G131: 0 | H131: 3 | I131: 6 | J131: A | K131: - | L131: 8 | O131: Lo | P131: Ni | W131: 3 | X131: 0 | Y131: 4 | AA131: I1 | AB131: Subsector C - Wsi | AC131: 0.5 | AD131: 1.5 | AE131: 2 | AF131: =INDEX($BA$26:BF$44,MATCH(AE131,$AZ$26:$AZ$44,-1),MATCH(D131,$BA$25:$BF$25)) -> 0 | AG131: 1 | AH131: 1 | AI131: 1 | AJ131: 1 | AK131: 1 | AL131: 0.8 | AM131: 1832 | AN131: 5496000 | AO131: 0 | AP131: 0
A132: Fleethome | B132: 3029 | D132: E | E132: 5 | F132: 3 | G132: 5 | H132: 3 | I132: 3 | J132: 5 | K132: - | L132: 8 | O132: Lo | P132: Ni | W132: 3 | X132: 0 | Y132: 4 | AA132: Ks | AB132: Subsector L - Dreamsong | AC132: 0.5 | AD132: 1.5 | AE132: 2 | AF132: =INDEX($BA$26:BF$44,MATCH(AE132,$AZ$26:$AZ$44,-1),MATCH(D132,$BA$25:$BF$25)) -> 0 | AG132: 1 | AH132: 1 | AI132: 1 | AJ132: 1 | AK132: 0.8 | AL132: 0.8 | AM132: 1465.6 | AN132: 4396800 | AO132: 0 | AP132: 0
A133: Lugikad | B133: 722 | D133: D | E133: 5 | F133: 5 | G133: 3 | H133: 3 | I133: 6 | J133: 4 | K133: - | L133: 7 | N133: S | O133: Lo | P133: Ni | Q133: Po | W133: 3 | X133: 3 | Y133: 5 | AA133: I3 | AB133: Subsector I - Outback | AC133: 0.5 | AD133: 1.5 | AE133: 2 | AF133: =INDEX($BA$26:BF$44,MATCH(AE133,$AZ$26:$AZ$44,-1),MATCH(D133,$BA$25:$BF$25)) -> 0 | AG133: 1 | AH133: 1 | AI133: 1 | AJ133: 1 | AK133: 1 | AL133: 0.8 | AM133: 1144 | AN133: 3432000 | AO133: 0 | AP133: 0
A134: Mu | B134: 905 | D134: D | E134: 8 | F134: 8 | G134: 6 | H134: 3 | I134: 3 | J134: 5 | K134: - | L134: 7 | O134: Lo | P134: Ni | W134: 3 | X134: 0 | Y134: 4 | AA134: I1 | AB134: Subsector B - Mu | AC134: 0.5 | AD134: 1.5 | AE134: 2 | AF134: =INDEX($BA$26:BF$44,MATCH(AE134,$AZ$26:$AZ$44,-1),MATCH(D134,$BA$25:$BF$25)) -> 0 | AG134: 1.6 | AH134: 1 | AI134: 1 | AJ134: 1 | AK134: 1 | AL134: 0.8 | AM134: 1830.4 | AN134: 5491200 | AO134: 0 | AP134: 0
A135: Olio | B135: 1310 | D135: X | E135: 5 | F135: 1 | G135: 1 | H135: 3 | I135: 3 | J135: 3 | K135: - | L135: A | O135: Ic | P135: Lo | Q135: Ni | W135: 3 | X135: 0 | Y135: 3 | AA135: I1 | AB135: Subsector B - Mu | AC135: 1 | AD135: 1.5 | AE135: 2.5 | AF135: =INDEX($BA$26:BF$44,MATCH(AE135,$AZ$26:$AZ$44,-1),MATCH(D135,$BA$25:$BF$25)) -> -2.5 | AG135: 1 | AH135: 1 | AI135: 1 | AJ135: 1 | AK135: 0.8 | AL135: 0.8 | AM135: 3750.4 | AN135: 11251200 | AO135: 0 | AP135: 0
A136: Pointer | B136: 1210 | D136: X | E136: 2 | F136: 0 | G136: 0 | H136: 3 | I136: 4 | J136: 6 | K136: - | L136: A | O136: Lo | P136: Ni | Q136: Va | W136: 3 | X136: 0 | Y136: 4 | AA136: I1 | AB136: Subsector B - Mu | AC136: 1 | AD136: 1.5 | AE136: 2.5 | AF136: =INDEX($BA$26:BF$44,MATCH(AE136,$AZ$26:$AZ$44,-1),MATCH(D136,$BA$25:$BF$25)) -> -2.5 | AG136: 1 | AH136: 1 | AI136: 1 | AJ136: 1 | AK136: 1 | AL136: 0.8 | AM136: 4688 | AN136: 14064000 | AO136: 0 | AP136: 0
A137: Silence | B137: 1309 | D137: D | E137: 6 | F137: A | G137: 1 | H137: 3 | I137: 1 | J137: 1 | K137: - | L137: A | O137: Fl | P137: Lo | Q137: Ni | W137: 3 | X137: 0 | Y137: 2 | AA137: I1 | AB137: Subsector B - Mu | AC137: 1 | AD137: 1.5 | AE137: 2.5 | AF137: =INDEX($BA$26:BF$44,MATCH(AE137,$AZ$26:$AZ$44,-1),MATCH(D137,$BA$25:$BF$25)) -> 0 | AG137: 1 | AH137: 1 | AI137: 1.2 | AJ137: 1 | AK137: 1 | AL137: 1 | AM137: 7032 | AN137: 21096000 | AO137: 0 | AP137: 0
A138: St Anne | B138: 2205 | D138: D | E138: 5 | F138: 6 | G138: 6 | H138: 3 | I138: 3 | J138: 2 | K138: - | L138: 5 | O138: Lo | P138: Ni | W138: 3 | X138: 1 | Y138: 3 | AA138: Na | AB138: Subsector C - Wsi | AC138: 0 | AD138: 1.5 | AE138: 1.5 | AF138: =INDEX($BA$26:BF$44,MATCH(AE138,$AZ$26:$AZ$44,-1),MATCH(D138,$BA$25:$BF$25)) -> 0.5 | AG138: 1 | AH138: 1 | AI138: 1.2 | AJ138: 1 | AK138: 1 | AL138: 0.8 | AM138: 537.6 | AN138: 1612800 | AO138: 1 | AP138: 3
A139: Glory | B139: 1731 | D139: E | E139: 9 | F139: 6 | G139: 6 | H139: 3 | I139: 0 | J139: 0 | K139: - | L139: 0 | O139: Lo | P139: Ni | W139: 2 | X139: 0 | Y139: 3 | AA139: Nf | AB139: Subsector O - Painted | AC139: -0.5 | AD139: 1.5 | AE139: 1 | AF139: =INDEX($BA$26:BF$44,MATCH(AE139,$AZ$26:$AZ$44,-1),MATCH(D139,$BA$25:$BF$25)) -> 0 | AG139: 1 | AH139: 1 | AI139: 1 | AJ139: 0.8 | AK139: 1 | AL139: 0.8 | AM139: 35.2 | AN139: 70400 | AO139: 0 | AP139: 0
A140: Iridium | B140: 904 | D140: C | E140: 0 | F140: 0 | G140: 0 | H140: 3 | I140: 1 | J140: 5 | K140: - | L140: A | O140: Fl | P140: Lo | Q140: Ni | W140: 2 | X140: 1 | Y140: 4 | AA140: I1 | AB140: Subsector B - Mu | AC140: 1 | AD140: 1.5 | AE140: 2.5 | AF140: =INDEX($BA$26:BF$44,MATCH(AE140,$AZ$26:$AZ$44,-1),MATCH(D140,$BA$25:$BF$25)) -> 0.5 | AG140: 1 | AH140: 1 | AI140: 1 | AJ140: 1 | AK140: 0.8 | AL140: 0.8 | AM140: 3750.4 | AN140: 7500800 | AO140: 0 | AP140: 0
A141: Mia | B141: 1810 | D141: D | E141: 7 | F141: 2 | G141: 8 | H141: 3 | I141: 1 | J141: 1 | K141: - | L141: 5 | O141: Lo | P141: Ni | W141: 2 | X141: 2 | Y141: 2 | AA141: Dw | AB141: Subsector C - Wsi | AC141: 0 | AD141: 1.5 | AE141: 1.5 | AF141: =INDEX($BA$26:BF$44,MATCH(AE141,$AZ$26:$AZ$44,-1),MATCH(D141,$BA$25:$BF$25)) -> 0.5 | AG141: 1 | AH141: 1 | AI141: 1 | AJ141: 1 | AK141: 1 | AL141: 0.8 | AM141: 448 | AN141: 896000 | AO141: 1 | AP141: 2
A142: Noble | B142: 1637 | D142: D | E142: 5 | F142: 1 | G142: 0 | H142: 3 | I142: 3 | J142: 4 | K142: - | L142: 5 | N142: S | O142: Lo | P142: Ni | W142: 2 | X142: 2 | Y142: 0 | AA142: Dr | AB142: Subsector N - Sorrow | AC142: 0 | AD142: 1.5 | AE142: 1.5 | AF142: =INDEX($BA$26:BF$44,MATCH(AE142,$AZ$26:$AZ$44,-1),MATCH(D142,$BA$25:$BF$25)) -> 0.5 | AG142: 1 | AH142: 1 | AI142: 1.2 | AJ142: 1 | AK142: 1 | AL142: 0.8 | AM142: 537.6 | AN142: 1075200 | AO142: 1 | AP142: 2
A143: Orgoglio | B143: 208 | D143: E | E143: 1 | F143: 3 | G143: 0 | H143: 3 | I143: 3 | J143: 5 | K143: - | L143: 8 | O143: De | P143: Lo | Q143: Ni | R143: Po | W143: 2 | X143: 0 | Y143: 1 | AA143: Na | AB143: Subsector A - Nosso Nosso | AC143: 0.5 | AD143: 1.5 | AE143: 2 | AF143: =INDEX($BA$26:BF$44,MATCH(AE143,$AZ$26:$AZ$44,-1),MATCH(D143,$BA$25:$BF$25)) -> 0 | AG143: 1 | AH143: 1 | AI143: 1 | AJ143: 1 | AK143: 0.8 | AL143: 0.8 | AM143: 1465.6 | AN143: 2931200 | AO143: 0 | AP143: 0
A144: Penombra | B144: 2310 | D144: B | E144: 5 | F144: 4 | G144: 5 | H144: 3 | I144: 2 | J144: 4 | K144: - | L144: 8 | O144: Lo | P144: Ni | W144: 2 | X144: 0 | Y144: 0 | AA144: Kj | AB144: Subsector C - Wsi | AC144: 0.5 | AD144: 1.5 | AE144: 2 | AF144: =INDEX($BA$26:BF$44,MATCH(AE144,$AZ$26:$AZ$44,-1),MATCH(D144,$BA$25:$BF$25)) -> 0.5 | AG144: 1 | AH144: 1 | AI144: 1 | AJ144: 1 | AK144: 1 | AL144: 0.8 | AM144: 1832 | AN144: 3664000 | AO144: 0 | AP144: 0
A145: Salvation | B145: 1012 | D145: E | E145: 1 | F145: 1 | G145: 0 | H145: 3 | I145: 3 | J145: 3 | K145: - | L145: A | O145: Lo | P145: Ni | W145: 2 | X145: 2 | Y145: 4 | AA145: I1 | AB145: Subsector F - NightVision | AC145: 1 | AD145: 1.5 | AE145: 2.5 | AF145: =INDEX($BA$26:BF$44,MATCH(AE145,$AZ$26:$AZ$44,-1),MATCH(D145,$BA$25:$BF$25)) -> 0 | AG145: 1 | AH145: 1 | AI145: 1 | AJ145: 1 | AK145: 1 | AL145: 0.8 | AM145: 4688 | AN145: 9376000 | AO145: 0 | AP145: 0
A146: Scouts' Rest | B146: 2907 | D146: X | E146: 2 | F146: 3 | G146: 6 | H146: 3 | I146: 3 | J146: 5 | K146: - | L146: A | O146: Lo | P146: Ni | W146: 2 | X146: 2 | Y146: 1 | AA146: Na | AB146: Subsector D - Yelloworld | AC146: 1 | AD146: 1.5 | AE146: 2.5 | AF146: =INDEX($BA$26:BF$44,MATCH(AE146,$AZ$26:$AZ$44,-1),MATCH(D146,$BA$25:$BF$25)) -> -2.5 | AG146: 1 | AH146: 1 | AI146: 1 | AJ146: 1 | AK146: 1 | AL146: 0.8 | AM146: 4688 | AN146: 9376000 | AO146: 0 | AP146: 0
A147: Fenmou | B147: 1918 | D147: C | E147: 5 | F147: 6 | G147: 5 | H147: 3 | I147: 2 | J147: 0 | K147: - | L147: A | O147: Lo | P147: Ni | W147: 1 | X147: 2 | Y147: 3 | AA147: I4 | AB147: Subsector G - LightWaves | AC147: 1 | AD147: 1.5 | AE147: 2.5 | AF147: =INDEX($BA$26:BF$44,MATCH(AE147,$AZ$26:$AZ$44,-1),MATCH(D147,$BA$25:$BF$25)) -> 0.5 | AG147: 1 | AH147: 1 | AI147: 1 | AJ147: 1 | AK147: 1 | AL147: 0.8 | AM147: 4688 | AN147: 4688000 | AO147: 0 | AP147: 0
A148: Kenya | B148: 1926 | D148: E | E148: 7 | F148: 7 | G148: 9 | H148: 3 | I148: 1 | J148: 0 | K148: - | L148: 7 | O148: Lo | P148: Ni | W148: 1 | X148: 0 | Y148: 3 | AA148: Ks | AB148: Subsector K - Floe | AC148: =VLOOKUP(L148,$AS$23:$AU$40,3) -> 0.5 | AD148: =VLOOKUP(H148,$AW$23:$AX$36,2) -> 1.5 | AE148: =AC148+AD148 -> 2 | AF148: =INDEX($BA$26:BF$44,MATCH(AE148,$AZ$26:$AZ$44,-1),MATCH(D148,$BA$25:$BF$25)) -> 0 | AG148: 1 | AH148: 1 | AI148: 1 | AJ148: 0.8 | AK148: 1 | AL148: 0.8 | AM148: =(VLOOKUP(L148,$AS$23:$AV$40,4))*AG148*AH148*AI148*AJ148*AK148*AL148 -> 915.2 | AN148: =AM148*((10^H148)*W148) -> 915200 | AO148: =INDEX($BK$23:$BU$36,MATCH(L148,$BJ$23:$BJ$36),MATCH(H148,$BK$22:$BU$22)) -> 0 | AP148: =AO148*W148 -> 0
A149: Righteousness | B149: 1433 | D149: D | E149: 7 | F149: A | G149: 1 | H149: 3 | I149: 2 | J149: 1 | K149: - | L149: 3 | N149: S | O149: Fl | P149: Lo | Q149: Ni | W149: 1 | X149: 2 | Y149: 4 | AA149: Nf | AB149: Subsector N - Sorrow | AC149: 0 | AD149: 1.5 | AE149: 1.5 | AF149: =INDEX($BA$26:BF$44,MATCH(AE149,$AZ$26:$AZ$44,-1),MATCH(D149,$BA$25:$BF$25)) -> 0.5 | AG149: 1 | AH149: 1 | AI149: 1 | AJ149: 0.8 | AK149: 1 | AL149: 0.8 | AM149: 140.8 | AN149: 140800 | AO149: 0 | AP149: 0
A150: Robbin | B150: 1508 | D150: D | E150: 7 | F150: 9 | G150: 7 | H150: 3 | I150: 1 | J150: 3 | K150: - | L150: B | O150: Lo | P150: Ni | W150: 1 | X150: 0 | Y150: 4 | AA150: I1 | AB150: Subsector B - Mu | AC150: 1 | AD150: 1.5 | AE150: 2.5 | AF150: =INDEX($BA$26:BF$44,MATCH(AE150,$AZ$26:$AZ$44,-1),MATCH(D150,$BA$25:$BF$25)) -> 0 | AG150: 1 | AH150: 1 | AI150: 1 | AJ150: 1 | AK150: 0.8 | AL150: 0.8 | AM150: 6000 | AN150: 6000000 | AO150: 0 | AP150: 0
A151: Seb | B151: 507 | D151: C | E151: 7 | F151: 9 | G151: 6 | H151: 3 | I151: 1 | J151: 2 | K151: - | L151: A | O151: Lo | P151: Ni | W151: 1 | X151: 0 | Y151: 4 | AA151: I1 | AB151: Subsector A - Nosso Nosso | AC151: 1 | AD151: 1.5 | AE151: 2.5 | AF151: =INDEX($BA$26:BF$44,MATCH(AE151,$AZ$26:$AZ$44,-1),MATCH(D151,$BA$25:$BF$25)) -> 0.5 | AG151: 1 | AH151: 1 | AI151: 1 | AJ151: 1 | AK151: 0.8 | AL151: 0.8 | AM151: 3750.4 | AN151: 3750400 | AO151: 0 | AP151: 0
A152: Silver Orb | B152: 1408 | D152: E | E152: 1 | F152: 0 | G152: 0 | H152: 3 | I152: 6 | J152: 7 | K152: - | L152: 8 | O152: Lo | P152: Ni | Q152: Va | W152: 1 | X152: 0 | Y152: 3 | AA152: I1 | AB152: Subsector B - Mu | AC152: 0.5 | AD152: 1.5 | AE152: 2 | AF152: =INDEX($BA$26:BF$44,MATCH(AE152,$AZ$26:$AZ$44,-1),MATCH(D152,$BA$25:$BF$25)) -> 0 | AG152: 1 | AH152: 1 | AI152: 1 | AJ152: 1 | AK152: 1 | AL152: 0.8 | AM152: 1832 | AN152: 1832000 | AO152: 0 | AP152: 0
A153: Sysadmin | B153: 2206 | D153: X | E153: 4 | F153: 4 | G153: 3 | H153: 3 | I153: 9 | J153: A | K153: - | L153: 8 | O153: Lo | P153: Ni | Q153: Po | W153: 1 | X153: 0 | Y153: 3 | AA153: Na | AB153: Subsector C - Wsi | AC153: 0.5 | AD153: 1.5 | AE153: 2 | AF153: =INDEX($BA$26:BF$44,MATCH(AE153,$AZ$26:$AZ$44,-1),MATCH(D153,$BA$25:$BF$25)) -> -2.5 | AG153: 1 | AH153: 1 | AI153: 1 | AJ153: 1 | AK153: 1 | AL153: 0.8 | AM153: 1832 | AN153: 1832000 | AO153: 0 | AP153: 0
A154: Tanatelul | B154: 2018 | D154: C | E154: 5 | F154: 8 | G154: 4 | H154: 3 | I154: 1 | J154: 1 | K154: - | L154: 4 | O154: Lo | P154: Ni | W154: 1 | X154: 2 | Y154: 4 | AA154: I4 | AB154: Subsector G - LightWaves | AC154: 0 | AD154: 1.5 | AE154: 1.5 | AF154: =INDEX($BA$26:BF$44,MATCH(AE154,$AZ$26:$AZ$44,-1),MATCH(D154,$BA$25:$BF$25)) -> 0.5 | AG154: 1 | AH154: 1 | AI154: 1.2 | AJ154: 1 | AK154: 1 | AL154: 0.8 | AM154: 336 | AN154: 336000 | AO154: 0 | AP154: 0
A155: Throne | B155: 1331 | D155: D | E155: 5 | F155: 8 | G155: 3 | H155: 3 | I155: 1 | J155: 4 | K155: - | L155: 7 | O155: Lo | P155: Ni | W155: 1 | X155: 0 | Y155: 3 | AA155: Nf | AB155: Subsector N - Sorrow | AC155: 0.5 | AD155: 1.5 | AE155: 2 | AF155: =INDEX($BA$26:BF$44,MATCH(AE155,$AZ$26:$AZ$44,-1),MATCH(D155,$BA$25:$BF$25)) -> 0 | AG155: 1 | AH155: 1 | AI155: 1 | AJ155: 1 | AK155: 0.8 | AL155: 0.8 | AM155: 915.2 | AN155: 915200 | AO155: 0 | AP155: 0
A156: Pling | B156: 2807 | D156: E | E156: 9 | F156: 9 | G156: 9 | H156: 2 | I156: 0 | J156: 0 | K156: - | L156: 6 | O156: Lo | P156: Ni | W156: 9 | X156: 0 | Y156: 0 | AA156: Na | AB156: Subsector D - Yelloworld | AC156: 0.5 | AD156: 1 | AE156: 1.5 | AF156: =INDEX($BA$26:BF$44,MATCH(AE156,$AZ$26:$AZ$44,-1),MATCH(D156,$BA$25:$BF$25)) -> 0 | AG156: 1 | AH156: 1 | AI156: 1 | AJ156: 1 | AK156: 1 | AL156: 0.8 | AM156: 716 | AN156: 644400 | AO156: 0 | AP156: 0
A157: Orcana | B157: 1303 | D157: E | E157: 6 | F157: 4 | G157: A | H157: 2 | I157: 5 | J157: 3 | K157: - | L157: 8 | O157: Lo | P157: Ni | Q157: Wa | W157: 8 | X157: 0 | Y157: 4 | AA157: I1 | AB157: Subsector B - Mu | AC157: 0.5 | AD157: 1 | AE157: 1.5 | AF157: =INDEX($BA$26:BF$44,MATCH(AE157,$AZ$26:$AZ$44,-1),MATCH(D157,$BA$25:$BF$25)) -> 0 | AG157: 1 | AH157: 1 | AI157: 1 | AJ157: 0.8 | AK157: 1 | AL157: 0.8 | AM157: 1465.6 | AN157: 1172480 | AO157: 0 | AP157: 0
A158: Arikeshmundin | B158: 918 | D158: D | E158: 5 | F158: A | G158: 4 | H158: 2 | I158: 6 | J158: 3 | K158: - | L158: 6 | N158: S | O158: Fl | P158: Lo | Q158: Ni | W158: 7 | X158: 0 | Y158: 3 | AA158: I3 | AB158: Subsector F - NightVision | AC158: 0.5 | AD158: 1 | AE158: 1.5 | AF158: =INDEX($BA$26:BF$44,MATCH(AE158,$AZ$26:$AZ$44,-1),MATCH(D158,$BA$25:$BF$25)) -> 0.5 | AG158: 1.6 | AH158: 1 | AI158: 1 | AJ158: 1 | AK158: 1 | AL158: 1 | AM158: 1432 | AN158: 1002400 | AO158: 0 | AP158: 0
A159: Deadstar | B159: 1205 | D159: C | E159: 7 | F159: 9 | G159: 6 | H159: 2 | I159: 2 | J159: 1 | K159: - | L159: 8 | O159: Lo | P159: Ni | W159: 7 | X159: 0 | Y159: 0 | AA159: I1 | AB159: Subsector B - Mu | AC159: 0.5 | AD159: 1 | AE159: 1.5 | AF159: =INDEX($BA$26:BF$44,MATCH(AE159,$AZ$26:$AZ$44,-1),MATCH(D159,$BA$25:$BF$25)) -> 0.5 | AG159: 1 | AH159: 1 | AI159: 1 | AJ159: 1 | AK159: 1 | AL159: 0.8 | AM159: 1832 | AN159: 1282400 | AO159: 0 | AP159: 0
A160: Constantinople | B160: 1705 | D160: D | E160: 3 | F160: 6 | G160: 1 | H160: 2 | I160: 6 | J160: 3 | K160: - | L160: 7 | O160: Lo | P160: Ni | W160: 6 | X160: 0 | Y160: 5 | AA160: I1 | AB160: Subsector C - Wsi | AC160: 0.5 | AD160: 1 | AE160: 1.5 | AF160: =INDEX($BA$26:BF$44,MATCH(AE160,$AZ$26:$AZ$44,-1),MATCH(D160,$BA$25:$BF$25)) -> 0.5 | AG160: 1.6 | AH160: 1 | AI160: 1 | AJ160: 1 | AK160: 1 | AL160: 0.8 | AM160: 1830.4 | AN160: 1098240 | AO160: 0 | AP160: 0
A161: Khii Eshkhima | B161: 1021 | D161: C | E161: 5 | F161: 2 | G161: 4 | H161: 2 | I161: 4 | J161: 4 | K161: - | L161: 5 | O161: Lo | P161: Ni | W161: 6 | X161: 2 | Y161: 4 | AA161: I3 | AB161: Subsector J - Spirare | AC161: 0 | AD161: 1 | AE161: 1 | AF161: =INDEX($BA$26:BF$44,MATCH(AE161,$AZ$26:$AZ$44,-1),MATCH(D161,$BA$25:$BF$25)) -> 0.5 | AG161: 1 | AH161: 1 | AI161: 1 | AJ161: 1 | AK161: 1 | AL161: 0.8 | AM161: 448 | AN161: 268800 | AO161: 0 | AP161: 0
A162: Wonderland | B162: 2803 | D162: E | E162: 8 | F162: 9 | G162: A | H162: 2 | I162: 3 | J162: 7 | K162: - | L162: 5 | O162: Lo | P162: Ni | Q162: Wa | W162: 6 | X162: 0 | Y162: 4 | AA162: Na | AB162: Subsector D - Yelloworld | AC162: 0 | AD162: 1 | AE162: 1 | AF162: =INDEX($BA$26:BF$44,MATCH(AE162,$AZ$26:$AZ$44,-1),MATCH(D162,$BA$25:$BF$25)) -> 0 | AG162: 1 | AH162: 1 | AI162: 1 | AJ162: 1 | AK162: 1 | AL162: 0.8 | AM162: 448 | AN162: 268800 | AO162: 0 | AP162: 0
A163: Crown | B163: 1033 | D163: C | E163: 4 | F163: 2 | G163: 2 | H163: 2 | I163: 2 | J163: 2 | K163: - | L163: 9 | O163: Lo | P163: Ni | Q163: Po | W163: 5 | X163: 2 | Y163: 3 | AA163: Nf | AB163: Subsector N - Sorrow | AC163: 1 | AD163: 1 | AE163: 2 | AF163: =INDEX($BA$26:BF$44,MATCH(AE163,$AZ$26:$AZ$44,-1),MATCH(D163,$BA$25:$BF$25)) -> 0.5 | AG163: 1 | AH163: 1 | AI163: 1 | AJ163: 1 | AK163: 1 | AL163: 0.8 | AM163: 2928 | AN163: 1464000 | AO163: 0 | AP163: 0
A164: Adoria | B164: 2633 | D164: E | E164: 6 | F164: 5 | G164: 7 | H164: 2 | I164: 6 | J164: 3 | K164: - | L164: 9 | O164: Lo | P164: Ni | W164: 3 | X164: 1 | Y164: 0 | AA164: Ks | AB164: Subsector P - Chamber | AC164: 1 | AD164: 1 | AE164: 2 | AF164: =INDEX($BA$26:BF$44,MATCH(AE164,$AZ$26:$AZ$44,-1),MATCH(D164,$BA$25:$BF$25)) -> 0 | AG164: 1 | AH164: 1 | AI164: 1 | AJ164: 1 | AK164: 1 | AL164: 0.8 | AM164: 2928 | AN164: 878400 | AO164: 0 | AP164: 0
A165: Alkhalikoi | B165: 2407 | D165: X | E165: 2 | F165: 0 | G165: 0 | H165: 2 | I165: 4 | J165: 4 | K165: - | L165: 5 | O165: Lo | P165: Ni | Q165: Va | W165: 3 | X165: 0 | Y165: 2 | AA165: Wc | AB165: Subsector C - Wsi | AC165: 0 | AD165: 1 | AE165: 1 | AF165: =INDEX($BA$26:BF$44,MATCH(AE165,$AZ$26:$AZ$44,-1),MATCH(D165,$BA$25:$BF$25)) -> 0 | AG165: 1 | AH165: 1 | AI165: 1 | AJ165: 1 | AK165: 1 | AL165: 0.8 | AM165: 448 | AN165: 134400 | AO165: 0 | AP165: 0
A166: Amber | B166: 2735 | D166: E | E166: 7 | F166: 6 | G166: 7 | H166: 2 | I166: 6 | J166: 3 | K166: - | L166: 9 | O166: Lo | P166: Ni | W166: 3 | X166: 1 | Y166: 4 | AA166: Ks | AB166: Subsector P - Chamber | AC166: 1 | AD166: 1 | AE166: 2 | AF166: =INDEX($BA$26:BF$44,MATCH(AE166,$AZ$26:$AZ$44,-1),MATCH(D166,$BA$25:$BF$25)) -> 0 | AG166: 1 | AH166: 1 | AI166: 1 | AJ166: 1 | AK166: 1 | AL166: 0.8 | AM166: 2928 | AN166: 878400 | AO166: 0 | AP166: 0
A167: Angelicus | B167: 1502 | D167: C | E167: 4 | F167: 0 | G167: 4 | H167: 2 | I167: 1 | J167: 3 | K167: - | L167: 8 | O167: Ic | P167: Lo | Q167: Ni | R167: Va | W167: 3 | X167: 0 | Y167: 5 | AA167: I1 | AB167: Subsector B - Mu | AC167: 0.5 | AD167: 1 | AE167: 1.5 | AF167: =INDEX($BA$26:BF$44,MATCH(AE167,$AZ$26:$AZ$44,-1),MATCH(D167,$BA$25:$BF$25)) -> 0.5 | AG167: 1 | AH167: 1 | AI167: 1 | AJ167: 0.8 | AK167: 1 | AL167: 0.8 | AM167: 1465.6 | AN167: 439680 | AO167: 0 | AP167: 0
A168: Bakedcrust | B168: 2731 | D168: E | E168: 5 | F168: 5 | G168: 8 | H168: 2 | I168: 6 | J168: 3 | K168: - | L168: 9 | O168: Lo | P168: Ni | W168: 3 | X168: 0 | Y168: 4 | AA168: Ks | AB168: Subsector P - Chamber | AC168: 1 | AD168: 1 | AE168: 2 | AF168: =INDEX($BA$26:BF$44,MATCH(AE168,$AZ$26:$AZ$44,-1),MATCH(D168,$BA$25:$BF$25)) -> 0 | AG168: 1 | AH168: 1 | AI168: 1 | AJ168: 1 | AK168: 0.8 | AL168: 0.8 | AM168: 2342.4 | AN168: 702720 | AO168: 0 | AP168: 0
A169: Darren | B169: 2702 | D169: X | E169: 4 | F169: 7 | G169: 6 | H169: 2 | I169: 0 | J169: 0 | K169: - | L169: 4 | O169: Lo | P169: Ni | W169: 3 | X169: 0 | Y169: 2 | AA169: Na | AB169: Subsector D - Yelloworld | AC169: 0 | AD169: 1 | AE169: 1 | AF169: =INDEX($BA$26:BF$44,MATCH(AE169,$AZ$26:$AZ$44,-1),MATCH(D169,$BA$25:$BF$25)) -> 0 | AG169: 1 | AH169: 1 | AI169: 1 | AJ169: 1 | AK169: 1 | AL169: 0.8 | AM169: 280 | AN169: 84000 | AO169: 0 | AP169: 0
A170: Dejanews | B170: 2831 | D170: E | E170: 5 | F170: 5 | G170: 3 | H170: 2 | I170: 6 | J170: 3 | K170: - | L170: 9 | O170: Lo | P170: Ni | Q170: Po | W170: 3 | X170: 0 | Y170: 4 | AA170: Ks | AB170: Subsector P - Chamber | AC170: 1 | AD170: 1 | AE170: 2 | AF170: =INDEX($BA$26:BF$44,MATCH(AE170,$AZ$26:$AZ$44,-1),MATCH(D170,$BA$25:$BF$25)) -> 0 | AG170: 1 | AH170: 1 | AI170: 1 | AJ170: 1 | AK170: 0.8 | AL170: 0.8 | AM170: 2342.4 | AN170: 702720 | AO170: 0 | AP170: 0
A171: Dikaai | B171: 1617 | D171: E | E171: 4 | F171: 4 | G171: 0 | H171: 2 | I171: 3 | J171: 3 | K171: - | L171: 7 | O171: De | P171: Lo | Q171: Ni | R171: Po | W171: 3 | X171: 1 | Y171: 0 | AA171: I4 | AB171: Subsector F - NightVision | AC171: 0.5 | AD171: 1 | AE171: 1.5 | AF171: =INDEX($BA$26:BF$44,MATCH(AE171,$AZ$26:$AZ$44,-1),MATCH(D171,$BA$25:$BF$25)) -> 0 | AG171: 1.6 | AH171: 1 | AI171: 1.2 | AJ171: 1 | AK171: 1 | AL171: 0.8 | AM171: 2196.48 | AN171: 658944 | AO171: 0 | AP171: 0
A172: Providence | B172: 2038 | D172: C | E172: 9 | F172: 5 | G172: A | H172: 2 | I172: 0 | J172: 0 | K172: - | L172: A | O172: Lo | P172: Ni | Q172: Wa | W172: 3 | X172: 0 | Y172: 3 | AA172: Dr | AB172: Subsector O - Painted | AC172: 1 | AD172: 1 | AE172: 2 | AF172: =INDEX($BA$26:BF$44,MATCH(AE172,$AZ$26:$AZ$44,-1),MATCH(D172,$BA$25:$BF$25)) -> 0.5 | AG172: 1 | AH172: 1 | AI172: 1.2 | AJ172: 1 | AK172: 1 | AL172: 0.8 | AM172: 5625.6 | AN172: 1687680 | AO172: 0 | AP172: 0
A173: Siigiizumi | B173: 517 | D173: X | E173: 5 | F173: 3 | G173: 4 | H173: 2 | I173: 2 | J173: 4 | K173: - | L173: 2 | O173: Lo | P173: Ni | W173: 3 | X173: 0 | Y173: 2 | AA173: I3 | AB173: Subsector E - Silent Shore | AC173: -0.5 | AD173: 1 | AE173: 0.5 | AF173: =INDEX($BA$26:BF$44,MATCH(AE173,$AZ$26:$AZ$44,-1),MATCH(D173,$BA$25:$BF$25)) -> 0 | AG173: 1 | AH173: 1 | AI173: 1 | AJ173: 1 | AK173: 0.8 | AL173: 0.8 | AM173: 86.4 | AN173: 25920 | AO173: 0 | AP173: 0
A174: Status Quo | B174: 2737 | D174: E | E174: 4 | F174: 5 | G174: 3 | H174: 2 | I174: 6 | J174: 3 | K174: - | L174: 9 | O174: Lo | P174: Ni | Q174: Po | W174: 3 | X174: 0 | Y174: 3 | AA174: Ks | AB174: Subsector P - Chamber | AC174: 1 | AD174: 1 | AE174: 2 | AF174: =INDEX($BA$26:BF$44,MATCH(AE174,$AZ$26:$AZ$44,-1),MATCH(D174,$BA$25:$BF$25)) -> 0 | AG174: 1 | AH174: 1 | AI174: 1 | AJ174: 1 | AK174: 1 | AL174: 0.8 | AM174: 2928 | AN174: 878400 | AO174: 0 | AP174: 0
A175: Degar | B175: 920 | D175: C | E175: A | F175: F | G175: 3 | H175: 2 | I175: 3 | J175: 6 | K175: - | L175: B | N175: N | O175: Fl | P175: Lo | Q175: Ni | W175: 2 | X175: 1 | Y175: 4 | AA175: I3 | AB175: Subsector F - NightVision | AC175: 1 | AD175: 1 | AE175: 2 | AF175: =INDEX($BA$26:BF$44,MATCH(AE175,$AZ$26:$AZ$44,-1),MATCH(D175,$BA$25:$BF$25)) -> 0.5 | AG175: 1 | AH175: 1 | AI175: 1.2 | AJ175: 1 | AK175: 1 | AL175: 0.8 | AM175: 9000 | AN175: 1800000 | AO175: 0 | AP175: 0
A176: Dieinplace | B176: 1114 | D176: E | E176: 4 | F176: 4 | G176: 5 | H176: 2 | I176: 3 | J176: 1 | K176: - | L176: 9 | O176: Lo | P176: Ni | W176: 2 | X176: 1 | Y176: 1 | AA176: I1 | AB176: Subsector F - NightVision | AC176: 1 | AD176: 1 | AE176: 2 | AF176: =INDEX($BA$26:BF$44,MATCH(AE176,$AZ$26:$AZ$44,-1),MATCH(D176,$BA$25:$BF$25)) -> 0 | AG176: 1 | AH176: 1 | AI176: 1 | AJ176: 1 | AK176: 1 | AL176: 0.8 | AM176: 2928 | AN176: 585600 | AO176: 0 | AP176: 0
A177: Exile | B177: 1836 | D177: C | E177: 0 | F177: 0 | G177: 0 | H177: 2 | I177: 3 | J177: 1 | K177: - | L177: A | O177: As | P177: Lo | Q177: Ni | W177: 2 | X177: 1 | Y177: 2 | AA177: Dr | AB177: Subsector O - Painted | AC177: 1 | AD177: 1 | AE177: 2 | AF177: =INDEX($BA$26:BF$44,MATCH(AE177,$AZ$26:$AZ$44,-1),MATCH(D177,$BA$25:$BF$25)) -> 0.5 | AG177: 1 | AH177: 1 | AI177: 1 | AJ177: 1 | AK177: 1 | AL177: 0.8 | AM177: 4688 | AN177: 937600 | AO177: 0 | AP177: 0
A178: Kyu Sakamoto | B178: 907 | D178: E | E178: 7 | F178: A | G178: 1 | H178: 2 | I178: 1 | J178: 1 | K178: - | L178: 6 | O178: Fl | P178: Lo | Q178: Ni | W178: 2 | X178: 0 | Y178: 3 | AA178: I1 | AB178: Subsector B - Mu | AC178: 0.5 | AD178: 1 | AE178: 1.5 | AF178: =INDEX($BA$26:BF$44,MATCH(AE178,$AZ$26:$AZ$44,-1),MATCH(D178,$BA$25:$BF$25)) -> 0 | AG178: 1 | AH178: 1 | AI178: 1 | AJ178: 1 | AK178: 1 | AL178: 0.8 | AM178: 716 | AN178: 143200 | AO178: 0 | AP178: 0
A179: Passportal | B179: 1712 | D179: D | E179: A | F179: A | G179: 2 | H179: 2 | I179: 6 | J179: 5 | K179: - | L179: 8 | N179: A | O179: Fl | P179: Lo | Q179: Ni | W179: 2 | X179: 0 | Y179: 1 | AA179: Dw | AB179: Subsector G - LightWaves | AC179: 0.5 | AD179: 1 | AE179: 1.5 | AF179: =INDEX($BA$26:BF$44,MATCH(AE179,$AZ$26:$AZ$44,-1),MATCH(D179,$BA$25:$BF$25)) -> 0.5 | AG179: 1 | AH179: 1 | AI179: 1 | AJ179: 1 | AK179: 1 | AL179: 0.8 | AM179: 1832 | AN179: 366400 | AO179: 0 | AP179: 0
A180: Struckdown | B180: 2606 | D180: D | E180: S | F180: 0 | G180: 0 | H180: 2 | I180: 3 | J180: 1 | K180: - | L180: A | O180: Lo | P180: Ni | Q180: Va | W180: 2 | X180: 1 | Y180: 1 | AA180: Wc | AB180: Subsector D - Yelloworld | AC180: 1 | AD180: 1 | AE180: 2 | AF180: =INDEX($BA$26:BF$44,MATCH(AE180,$AZ$26:$AZ$44,-1),MATCH(D180,$BA$25:$BF$25)) -> 0 | AG180: 1 | AH180: 1 | AI180: 1 | AJ180: 1 | AK180: 1 | AL180: 0.8 | AM180: 4688 | AN180: 937600 | AO180: 0 | AP180: 0
A181: Vintage | B181: 707 | D181: E | E181: 7 | F181: B | G181: 3 | H181: 2 | I181: 1 | J181: 4 | K181: - | L181: 9 | O181: Fl | P181: Lo | Q181: Ni | W181: 2 | X181: 1 | Y181: 3 | AA181: I1 | AB181: Subsector A - Nosso Nosso | AC181: 1 | AD181: 1 | AE181: 2 | AF181: =INDEX($BA$26:BF$44,MATCH(AE181,$AZ$26:$AZ$44,-1),MATCH(D181,$BA$25:$BF$25)) -> 0 | AG181: 1 | AH181: 1 | AI181: 1 | AJ181: 1 | AK181: 1 | AL181: 0.8 | AM181: 2928 | AN181: 585600 | AO181: 0 | AP181: 0
A182: Ashkige | B182: 1018 | D182: D | E182: 4 | F182: 3 | G182: 3 | H182: 2 | I182: 1 | J182: 3 | K182: - | L182: 6 | O182: Lo | P182: Ni | Q182: Po | W182: 1 | X182: 1 | Y182: 3 | AA182: I3 | AB182: Subsector F - NightVision | AC182: 0.5 | AD182: 1 | AE182: 1.5 | AF182: =INDEX($BA$26:BF$44,MATCH(AE182,$AZ$26:$AZ$44,-1),MATCH(D182,$BA$25:$BF$25)) -> 0.5 | AG182: 1 | AH182: 1 | AI182: 1 | AJ182: 1 | AK182: 1 | AL182: 0.8 | AM182: 716 | AN182: 71600 | AO182: 0 | AP182: 0
A183: Blight | B183: 2608 | D183: E | E183: 1 | F183: 1 | G183: 0 | H183: 2 | I183: 6 | J183: 2 | K183: - | L183: 7 | O183: Lo | P183: Ni | W183: 1 | X183: 1 | Y183: 4 | AA183: Wc | AB183: Subsector D - Yelloworld | AC183: 0.5 | AD183: 1 | AE183: 1.5 | AF183: =INDEX($BA$26:BF$44,MATCH(AE183,$AZ$26:$AZ$44,-1),MATCH(D183,$BA$25:$BF$25)) -> 0 | AG183: 1 | AH183: 1 | AI183: 1 | AJ183: 1 | AK183: 0.8 | AL183: 0.8 | AM183: 915.2 | AN183: 91520 | AO183: 0 | AP183: 0
A184: Justice | B184: 1537 | D184: D | E184: 5 | F184: 3 | G184: 5 | H184: 2 | I184: 6 | J184: 3 | K184: - | L184: 8 | O184: Lo | P184: Ni | W184: 1 | X184: 2 | Y184: 1 | AA184: Dr | AB184: Subsector N - Sorrow | AC184: 0.5 | AD184: 1 | AE184: 1.5 | AF184: =INDEX($BA$26:BF$44,MATCH(AE184,$AZ$26:$AZ$44,-1),MATCH(D184,$BA$25:$BF$25)) -> 0.5 | AG184: 1 | AH184: 1 | AI184: 1 | AJ184: 1 | AK184: 1 | AL184: 0.8 | AM184: 1832 | AN184: 183200 | AO184: 0 | AP184: 0
A185: Nyman | B185: 2305 | D185: E | E185: 5 | F185: 3 | G185: 8 | H185: 2 | I185: 0 | J185: 2 | K185: - | L185: 6 | O185: Lo | P185: Ni | W185: 1 | X185: 1 | Y185: 2 | AA185: Na | AB185: Subsector O - Painted | AC185: 0.5 | AD185: 1 | AE185: 1.5 | AF185: =INDEX($BA$26:BF$44,MATCH(AE185,$AZ$26:$AZ$44,-1),MATCH(D185,$BA$25:$BF$25)) -> 0 | AG185: 1 | AH185: 1 | AI185: 1 | AJ185: 1 | AK185: 1 | AL185: 0.8 | AM185: 716 | AN185: 71600 | AO185: 0 | AP185: 0
A186: Tension | B186: 1803 | D186: E | E186: A | F186: A | G186: A | H186: 2 | I186: 2 | J186: 5 | K186: - | L186: B | O186: Fl | P186: Lo | Q186: Ni | R186: Wa | W186: 1 | X186: 0 | Y186: 4 | AA186: Ao | AB186: Subsector C - Wsi | AC186: 1 | AD186: 1 | AE186: 2 | AF186: =INDEX($BA$26:BF$44,MATCH(AE186,$AZ$26:$AZ$44,-1),MATCH(D186,$BA$25:$BF$25)) -> 0 | AG186: 1 | AH186: 1 | AI186: 1 | AJ186: 1 | AK186: 1 | AL186: 0.8 | AM186: 7500 | AN186: 750000 | AO186: 0 | AP186: 0
A187: Ulaid | B187: 3024 | D187: E | E187: 6 | F187: 7 | G187: 8 | H187: 2 | I187: 1 | J187: 1 | K187: - | L187: 4 | O187: Lo | P187: Ni | W187: 1 | X187: 0 | Y187: 4 | AA187: Ks | AB187: Subsector L - Dreamsong | AC187: 0 | AD187: 1 | AE187: 1 | AF187: =INDEX($BA$26:BF$44,MATCH(AE187,$AZ$26:$AZ$44,-1),MATCH(D187,$BA$25:$BF$25)) -> 0 | AG187: 1 | AH187: 1 | AI187: 1 | AJ187: 1 | AK187: 0.8 | AL187: 0.8 | AM187: 224 | AN187: 22400 | AO187: 0 | AP187: 0
A188: Unity | B188: 831 | D188: E | E188: 2 | F188: 1 | G188: 0 | H188: 2 | I188: 1 | J188: 2 | K188: - | L188: 5 | O188: Lo | P188: Ni | W188: 1 | X188: 2 | Y188: 3 | AA188: Nf | AB188: Subsector M - Glossalalia | AC188: 0 | AD188: 1 | AE188: 1 | AF188: =INDEX($BA$26:BF$44,MATCH(AE188,$AZ$26:$AZ$44,-1),MATCH(D188,$BA$25:$BF$25)) -> 0 | AG188: 1 | AH188: 1 | AI188: 1 | AJ188: 1 | AK188: 0.8 | AL188: 0.8 | AM188: 358.4 | AN188: 35840 | AO188: 0 | AP188: 0
A189: Ishimaga | B189: 1320 | D189: E | E189: 7 | F189: A | G189: 7 | H189: 1 | I189: 6 | J189: 3 | K189: - | L189: 2 | O189: Fl | P189: Lo | Q189: Ni | W189: 9 | X189: 0 | Y189: 3 | AA189: I3 | AB189: Subsector F - NightVision | AC189: -0.5 | AD189: 0.5 | AE189: 0 | AF189: =INDEX($BA$26:BF$44,MATCH(AE189,$AZ$26:$AZ$44,-1),MATCH(D189,$BA$25:$BF$25)) -> 0.5 | AG189: 1 | AH189: 1 | AI189: 1 | AJ189: 1 | AK189: 1 | AL189: 0.8 | AM189: 108 | AN189: 9720 | AO189: 0 | AP189: 0
A190: Rivington | B190: 1507 | D190: E | E190: 2 | F190: 1 | G190: 0 | H190: 1 | I190: 2 | J190: 2 | K190: - | L190: 8 | O190: Lo | P190: Ni | W190: 7 | X190: 1 | Y190: 2 | AA190: I1 | AB190: Subsector B - Mu | AC190: 0.5 | AD190: 0.5 | AE190: 1 | AF190: =INDEX($BA$26:BF$44,MATCH(AE190,$AZ$26:$AZ$44,-1),MATCH(D190,$BA$25:$BF$25)) -> 0 | AG190: 1 | AH190: 1 | AI190: 1 | AJ190: 1 | AK190: 1 | AL190: 0.8 | AM190: 1832 | AN190: 128240 | AO190: 0 | AP190: 0
A191: Dusty | B191: 610 | D191: E | E191: 5 | F191: 7 | G191: 6 | H191: 1 | I191: 3 | J191: 4 | K191: - | L191: 4 | O191: Lo | P191: Ni | W191: 6 | X191: 0 | Y191: 4 | AA191: Na | AB191: Subsector A - Nosso Nosso | AC191: 0 | AD191: 0.5 | AE191: 0.5 | AF191: =INDEX($BA$26:BF$44,MATCH(AE191,$AZ$26:$AZ$44,-1),MATCH(D191,$BA$25:$BF$25)) -> 0.5 | AG191: 1 | AH191: 1 | AI191: 1 | AJ191: 1 | AK191: 1 | AL191: 0.8 | AM191: 280 | AN191: 16800 | AO191: 0 | AP191: 0
A192: Kikujiro | B192: 1424 | D192: C | E192: 8 | F192: A | G192: 2 | H192: 1 | I192: 0 | J192: 0 | K192: - | L192: 9 | N192: S | O192: Fl | P192: Lo | Q192: Ni | W192: 6 | X192: 2 | Y192: 4 | AA192: Ks | AB192: Subsector J - Spirare | AC192: 1 | AD192: 0.5 | AE192: 1.5 | AF192: =INDEX($BA$26:BF$44,MATCH(AE192,$AZ$26:$AZ$44,-1),MATCH(D192,$BA$25:$BF$25)) -> 0.5 | AG192: 1 | AH192: 1 | AI192: 1 | AJ192: 1 | AK192: 0.8 | AL192: 0.8 | AM192: 2342.4 | AN192: 140544 | AO192: 0 | AP192: 0
A193: Ciotha | B193: 2514 | D193: D | E193: 4 | F193: 4 | G193: 9 | H193: 1 | I193: 6 | J193: 7 | K193: - | L193: 9 | O193: Lo | P193: Ni | W193: 5 | X193: 0 | Y193: 3 | AA193: I4 | AB193: Subsector H - Chanter | AC193: 1 | AD193: 0.5 | AE193: 1.5 | AF193: =INDEX($BA$26:BF$44,MATCH(AE193,$AZ$26:$AZ$44,-1),MATCH(D193,$BA$25:$BF$25)) -> 0.5 | AG193: 1 | AH193: 1 | AI193: 1 | AJ193: 1 | AK193: 1 | AL193: 0.8 | AM193: 2928 | AN193: 146400 | AO193: 0 | AP193: 0
A194: Requiem | B194: 2003 | D194: D | E194: 3 | F194: 1 | G194: 0 | H194: 1 | I194: 4 | J194: 6 | K194: - | L194: 6 | O194: Lo | P194: Ni | W194: 5 | X194: 1 | Y194: 2 | AA194: Ao | AB194: Subsector C - Wsi | AC194: 0.5 | AD194: 0.5 | AE194: 1 | AF194: =INDEX($BA$26:BF$44,MATCH(AE194,$AZ$26:$AZ$44,-1),MATCH(D194,$BA$25:$BF$25)) -> 0.5 | AG194: 1 | AH194: 1 | AI194: 1 | AJ194: 1 | AK194: 1 | AL194: 0.8 | AM194: 716 | AN194: 35800 | AO194: 0 | AP194: 0
A195: Vibrasphere | B195: 1509 | D195: X | E195: 2 | F195: 7 | G195: 1 | H195: 1 | I195: 0 | J195: 0 | K195: - | L195: 0 | O195: Lo | P195: Ni | W195: 5 | X195: 0 | Y195: 1 | AA195: I1 | AB195: Subsector B - Mu | AC195: -0.5 | AD195: 0.5 | AE195: 0 | AF195: =INDEX($BA$26:BF$44,MATCH(AE195,$AZ$26:$AZ$44,-1),MATCH(D195,$BA$25:$BF$25)) -> 0 | AG195: 1 | AH195: 1 | AI195: 1 | AJ195: 1 | AK195: 1 | AL195: 0.8 | AM195: 44 | AN195: 2200 | AO195: 0 | AP195: 0
A196: Saigon | B196: 1906 | D196: E | E196: 6 | F196: 6 | G196: 3 | H196: 1 | I196: 1 | J196: 2 | K196: - | L196: A | O196: Lo | P196: Ni | W196: 4 | X196: 0 | Y196: 0 | AA196: Ao | AB196: Subsector C - Wsi | AC196: 1 | AD196: 0.5 | AE196: 1.5 | AF196: =INDEX($BA$26:BF$44,MATCH(AE196,$AZ$26:$AZ$44,-1),MATCH(D196,$BA$25:$BF$25)) -> 0 | AG196: 1 | AH196: 1 | AI196: 1 | AJ196: 1 | AK196: 1 | AL196: 0.8 | AM196: 4688 | AN196: 187520 | AO196: 0 | AP196: 0
A197: Shatterstone | B197: 2334 | D197: C | E197: A | F197: B | G197: 7 | H197: 1 | I197: 1 | J197: 2 | K197: - | L197: A | O197: Fl | P197: Lo | Q197: Ni | W197: 3 | X197: 0 | Y197: 0 | AA197: Dr | AB197: Subsector O - Painted | AC197: 1 | AD197: 0.5 | AE197: 1.5 | AF197: =INDEX($BA$26:BF$44,MATCH(AE197,$AZ$26:$AZ$44,-1),MATCH(D197,$BA$25:$BF$25)) -> 0.5 | AG197: 1 | AH197: 1 | AI197: 1 | AJ197: 1 | AK197: 0.8 | AL197: 0.8 | AM197: 3750.4 | AN197: 112512 | AO197: 0 | AP197: 0
A198: Anointed | B198: 1332 | D198: E | E198: 7 | F198: 6 | G198: A | H198: 1 | I198: 1 | J198: 0 | K198: - | L198: 4 | O198: Lo | P198: Ni | Q198: Wa | W198: 2 | X198: 0 | Y198: 4 | AA198: Nf | AB198: Subsector N - Sorrow | AC198: 0 | AD198: 0.5 | AE198: 0.5 | AF198: =INDEX($BA$26:BF$44,MATCH(AE198,$AZ$26:$AZ$44,-1),MATCH(D198,$BA$25:$BF$25)) -> 0.5 | AG198: 1 | AH198: 1 | AI198: 1 | AJ198: 1 | AK198: 0.8 | AL198: 0.8 | AM198: 224 | AN198: 4480 | AO198: 0 | AP198: 0
A199: Geronimo | B199: 2508 | D199: X | E199: 5 | F199: 2 | G199: A | H199: 1 | I199: 1 | J199: 0 | K199: - | L199: 7 | O199: Lo | P199: Ni | Q199: Wa | W199: 2 | X199: 0 | Y199: 2 | AA199: Wc | AB199: Subsector D - Yelloworld | AC199: 0.5 | AD199: 0.5 | AE199: 1 | AF199: =INDEX($BA$26:BF$44,MATCH(AE199,$AZ$26:$AZ$44,-1),MATCH(D199,$BA$25:$BF$25)) -> 0 | AG199: 1 | AH199: 1 | AI199: 1 | AJ199: 1 | AK199: 1 | AL199: 0.8 | AM199: 1144 | AN199: 22880 | AO199: 0 | AP199: 0
A200: Oye Como | B200: 605 | D200: E | E200: 3 | F200: 2 | G200: 5 | H200: 1 | I200: 6 | J200: 5 | K200: - | L200: 3 | O200: Lo | P200: Ni | W200: 2 | X200: 0 | Y200: 4 | AA200: I1 | AB200: Subsector A - Nosso Nosso | AC200: 0 | AD200: 0.5 | AE200: 0.5 | AF200: =INDEX($BA$26:BF$44,MATCH(AE200,$AZ$26:$AZ$44,-1),MATCH(D200,$BA$25:$BF$25)) -> 0.5 | AG200: 1 | AH200: 1 | AI200: 1 | AJ200: 1 | AK200: 0.8 | AL200: 0.8 | AM200: 140.8 | AN200: 2816 | AO200: 0 | AP200: 0
A201: Aqualine | B201: 1004 | D201: E | E201: 9 | F201: A | G201: 6 | H201: 1 | I201: 0 | J201: 2 | K201: - | L201: A | O201: Fl | P201: Lo | Q201: Ni | W201: 1 | X201: 2 | Y201: 4 | AA201: I1 | AB201: Subsector B - Mu | AC201: 1 | AD201: 0.5 | AE201: 1.5 | AF201: =INDEX($BA$26:BF$44,MATCH(AE201,$AZ$26:$AZ$44,-1),MATCH(D201,$BA$25:$BF$25)) -> 0 | AG201: 1 | AH201: 1 | AI201: 1 | AJ201: 1 | AK201: 1 | AL201: 0.8 | AM201: 4688 | AN201: 46880 | AO201: 0 | AP201: 0
A202: Moons | B202: 3006 | D202: D | E202: 4 | F202: 4 | G202: 5 | H202: 1 | I202: 1 | J202: 2 | K202: - | L202: 8 | O202: Lo | P202: Ni | W202: 1 | X202: 0 | Y202: 3 | AA202: Na | AB202: Subsector D - Yelloworld | AC202: 0.5 | AD202: 0.5 | AE202: 1 | AF202: =INDEX($BA$26:BF$44,MATCH(AE202,$AZ$26:$AZ$44,-1),MATCH(D202,$BA$25:$BF$25)) -> 0.5 | AG202: 1 | AH202: 1 | AI202: 1 | AJ202: 0.8 | AK202: 0.8 | AL202: 0.8 | AM202: 1172.48 | AN202: 11724.8 | AO202: 0 | AP202: 0
A203: Nevicava | B203: 1601 | D203: X | E203: 8 | F203: B | G203: 5 | H203: 0 | I203: 0 | J203: 1 | K203: - | L203: 8 | O203: Fl | P203: Lo | Q203: Ni | W203: 9 | X203: 0 | Y203: 0 | AA203: I1 | AB203: Subsector B - Mu | AC203: 0.5 | AD203: 0 | AE203: 0.5 | AF203: =INDEX($BA$26:BF$44,MATCH(AE203,$AZ$26:$AZ$44,-1),MATCH(D203,$BA$25:$BF$25)) -> 0 | AG203: 1 | AH203: 1 | AI203: 1 | AJ203: 1 | AK203: 1 | AL203: 0.8 | AM203: 1832 | AN203: 16488 | AO203: 0 | AP203: 0
A204: Eessith | B204: 2121 | D204: X | E204: 7 | F204: C | G204: 4 | H204: 0 | I204: 0 | J204: 0 | K204: - | L204: 7 | O204: Ba | P204: Fl | Q204: Lo | R204: Ni | W204: 6 | X204: 1 | Y204: 4 | AA204: I4 | AB204: Subsector K - Floe | AC204: 0.5 | AD204: 0 | AE204: 0.5 | AF204: =INDEX($BA$26:BF$44,MATCH(AE204,$AZ$26:$AZ$44,-1),MATCH(D204,$BA$25:$BF$25)) -> 0 | AG204: 1 | AH204: 1 | AI204: 1 | AJ204: 1 | AK204: 1 | AL204: 0.8 | AM204: 1144 | AN204: 6864 | AO204: 0 | AP204: 0
A205: Inaosat | B205: 1401 | D205: D | E205: S | F205: 0 | G205: 0 | H205: 0 | I205: 5 | J205: 5 | K205: - | L205: B | O205: Lo | P205: Ni | Q205: Va | W205: 6 | X205: 0 | Y205: 4 | AA205: I1 | AB205: Subsector B - Mu | AC205: 1 | AD205: 0 | AE205: 1 | AF205: =INDEX($BA$26:BF$44,MATCH(AE205,$AZ$26:$AZ$44,-1),MATCH(D205,$BA$25:$BF$25)) -> 0.5 | AG205: 1 | AH205: 1 | AI205: 1 | AJ205: 1 | AK205: 0.8 | AL205: 0.8 | AM205: 6000 | AN205: 36000 | AO205: 0 | AP205: 0
A206: Bombay | B206: 1602 | D206: D | E206: 7 | F206: B | G206: 0 | H206: 0 | I206: 1 | J206: 2 | K206: - | L206: 4 | O206: De | P206: Lo | Q206: Ni | W206: 5 | X206: 1 | Y206: 3 | AA206: I1 | AB206: Subsector B - Mu | AC206: 0 | AD206: 0 | AE206: 0 | AF206: =INDEX($BA$26:BF$44,MATCH(AE206,$AZ$26:$AZ$44,-1),MATCH(D206,$BA$25:$BF$25)) -> 0.5 | AG206: 1 | AH206: 1 | AI206: 1 | AJ206: 1 | AK206: 1 | AL206: 0.8 | AM206: 280 | AN206: 1400 | AO206: 0 | AP206: 0
A207: Detesina | B207: 2014 | D207: X | E207: 5 | F207: A | G207: 0 | H207: 0 | I207: 4 | J207: 1 | K207: - | L207: 4 | O207: De | P207: Lo | Q207: Ni | W207: 3 | X207: 1 | Y207: 3 | AA207: I4 | AB207: Subsector G - LightWaves | AC207: 0 | AD207: 0 | AE207: 0 | AF207: =INDEX($BA$26:BF$44,MATCH(AE207,$AZ$26:$AZ$44,-1),MATCH(D207,$BA$25:$BF$25)) -> 0 | AG207: 1 | AH207: 1 | AI207: 1 | AJ207: 1 | AK207: 0.8 | AL207: 0.8 | AM207: 224 | AN207: 672 | AO207: 0 | AP207: 0
... 103 more rows

Sheet 1580 Im.
A1: Name | B1: Hex | D1: Pt | E1: Si | F1: At | G1: Hy | H1: Po | I1: Go | J1: La | L1: TL | N1: Ba | O1: Remarks | U1: Z | W1: P | X1: B | Y1: G | AA1: Al | AB1: Subsector
A9: Between 1500 and 1540:
B10: Flandry & Justince shifted their atmos from 9 to 8. | S10: Hex 1002: mainworld shift.
S11: Hex 0904: mainworld shift.
AB12: Worlds with breathable air (Atmos 5,6,8,D,F)
AB13: As above, plus lots of water (Hydro 6+)
AB14: As above, plus decent gravity (Size 6+) | AM14: Mod B PCI = Modified Base | AO14: GF - Mega = Ground Army, Megatraveller
A15: Var Kirat Campaign - Starbreak Sector, 1580 Imperial | AM15: Per-Capita Income
A16: I1 = Imperial Cianji • I3 = Ziru Sirkaa • I4 = Holy Imperium • Ks = Kirati Stars • Wc = Wsi Cluster • Dw = Dune Worlds • Hc = Human Council
A17: Ao = Aerno Organ • Dr = Diltov Republic • Nf = Noble Federation • Kj = Kingdom of Justince • Ee = Enni Exchange • Na = Non-aligned • Ba = Barren
BJ18: Modified MegaT Troop Unit Table: No. of Regiments
A19: Name | B19: Hex | D19: Pt | E19: Si | F19: At | G19: Hy | H19: Po | I19: Go | J19: La | L19: TL | N19: Ba | O19: Remarks | U19: Z | W19: P | X19: B | Y19: G | AA19: Al | AB19: Subsector | AC19: TL-Mod | AD19: P-Mod | AE19: UWTN | AF19: WTN | AG19: Rich | AH19: Ind | AI19: Agr | AJ19: Poor | AK19: Ext | AL19: Non-Ind | AM19: Mod B PCI | AN19: GWP | AO19: GF - Mega | AP19: GF x PopM | AS19: Tables for Far Trader
A20: Enlugal | B20: 1118 | D20: A | E20: 4 | F20: 8 | G20: 6 | H20: 9 | I20: 9 | J20: 9 | K20: - | L20: B | N20: N | O20: Hi | P20: Cp | U20: R | W20: 1 | X20: 0 | Y20: 2 | AA20: I3 | AB20: Subsector F - NightVision | AC20: =VLOOKUP(L20,$AS$23:$AU$40,3) -> 1 | AD20: =VLOOKUP(H20,$AW$23:$AX$36,2) -> 4.5 | AE20: =AC20+AD20 -> 5.5 | AF20: =INDEX($BA$26:BF$44,MATCH(AE20,$AZ$26:$AZ$44,-1),MATCH(D20,$BA$25:$BF$25)) -> 0 | AG20: 1 | AH20: 1 | AI20: 1 | AJ20: 1 | AK20: 0.8 | AL20: 0.8 | AM20: =(VLOOKUP(L20,$AS$23:$AV$40,4))*AG20*AH20*AI20*AJ20*AK20*AL20 -> 6000 | AN20: =AM20*((10^H20)*W20) -> 6000000000000 | AO20: =INDEX($BK$23:$BU$36,MATCH(L20,$BJ$23:$BJ$36),MATCH(H20,$BK$22:$BU$22)) -> 7000 | AP20: =AO20*W20 -> 7000
A21: Sylea | B21: 2116 | D21: B | E21: 1 | F21: 6 | G21: 0 | H21: 8 | I21: 5 | J21: B | K21: - | L21: B | N21: N | O21: De | U21: A | W21: 6 | X21: 0 | Y21: 2 | AA21: Na | AB21: Subsector G - LightWaves | AC21: 1 | AD21: 4 | AE21: 5 | AF21: =INDEX($BA$26:BF$44,MATCH(AE21,$AZ$26:$AZ$44,-1),MATCH(D21,$BA$25:$BF$25)) -> 0 | AG21: 1 | AH21: 1 | AI21: 1 | AJ21: 1 | AK21: 1 | AL21: 0.8 | AM21: 7500 | AN21: 4500000000000 | AO21: 700 | AP21: 4200 | AS21: Unmodified World Trade Number = TL Modifier + Population Modifier | BK21: Population
A22: Hub | B22: 2719 | D22: A | E22: 8 | F22: 8 | G22: 4 | H22: 8 | I22: 5 | J22: 9 | K22: - | L22: B | N22: N | O22: Ri | U22: A | W22: 4 | X22: 0 | Y22: 3 | AA22: Ks | AB22: Subsector H - Chanter | AC22: 1 | AD22: 4 | AE22: 5 | AF22: =INDEX($BA$26:BF$44,MATCH(AE22,$AZ$26:$AZ$44,-1),MATCH(D22,$BA$25:$BF$25)) -> 0 | AG22: 1 | AH22: 1 | AI22: 1 | AJ22: 1 | AK22: 0.8 | AL22: 0.8 | AM22: 6000 | AN22: 2400000000000 | AO22: 700 | AP22: 2800 | AS22: TL Modifier Table | AZ22: Port Mod. Table | BJ22: GTL | BK22: 0 | BL22: 1 | BM22: 2 | BN22: 3 | BO22: 4 | BP22: 5 | BQ22: 6 | BR22: 7 | BS22: 8 | BT22: 9 | BU22: A
A23: Athens | B23: 2724 | D23: B | E23: 5 | F23: 8 | G23: 4 | H23: 8 | I23: C | J23: 5 | K23: - | L23: 9 | U23: A | W23: 4 | X23: 0 | Y23: 0 | AA23: Ks | AB23: Subsector L - Dreamsong | AC23: 1 | AD23: 4 | AE23: 5 | AF23: =INDEX($BA$26:BF$44,MATCH(AE23,$AZ$26:$AZ$44,-1),MATCH(D23,$BA$25:$BF$25)) -> 0 | AG23: 1 | AH23: 1 | AI23: 1 | AJ23: 1 | AK23: 1 | AL23: 0.8 | AM23: 2928 | AN23: 1171200000000 | AO23: 1200 | AP23: 4800 | AS23: UWP | AT23: GTL | AU23: TL Mod | AV23: Base Income | AW23: Pop | AX23: Pop Mod | BJ23: 0 | BK23: 0 | BL23: 0 | BM23: 0 | BN23: 0 | BO23: 0 | BP23: 0 | BQ23: 0 | BR23: 1 | BS23: 10 | BT23: 100 | BU23: 1000
A24: Dune | B24: 1713 | D24: A | E24: 2 | F24: 6 | G24: 0 | H24: 8 | I24: 7 | J24: 7 | K24: - | L24: A | N24: N | O24: De | P24: Ri | Q24: Cp | U24: A | W24: 2 | X24: 0 | Y24: 0 | AA24: Dw | AB24: Subsector G - LightWaves | AC24: 1 | AD24: 4 | AE24: 5 | AF24: =INDEX($BA$26:BF$44,MATCH(AE24,$AZ$26:$AZ$44,-1),MATCH(D24,$BA$25:$BF$25)) -> 0 | AG24: 1 | AH24: 1 | AI24: 1 | AJ24: 1 | AK24: 1 | AL24: 0.8 | AM24: 4688 | AN24: 937600000000 | AO24: 1000 | AP24: 2000 | AS24: 0 | AT24: 0 | AU24: -0.5 | AV24: 55 | AW24: 0 | AX24: 0 | BC24: Ports | BJ24: 1 | BK24: 0 | BL24: 0 | BM24: 0 | BN24: 0 | BO24: 0 | BP24: 0 | BQ24: 1 | BR24: 5 | BS24: 50 | BT24: 500 | BU24: 5000
A25: Flandry | B25: 2602 | D25: A | E25: 6 | F25: 8 | G25: A | H25: 7 | I25: 9 | J25: 5 | K25: - | L25: A | N25: N | O25: Ri | P25: Wa | U25: B | W25: 8 | X25: 2 | Y25: 0 | AA25: Na | AB25: Subsector D - Yelloworld | AC25: 1 | AD25: 3.5 | AE25: 4.5 | AF25: =INDEX($BA$26:BF$44,MATCH(AE25,$AZ$26:$AZ$44,-1),MATCH(D25,$BA$25:$BF$25)) -> 0.5 | AG25: 1 | AH25: 1 | AI25: 1 | AJ25: 1 | AK25: 1 | AL25: 0.8 | AM25: 4688 | AN25: 375040000000 | AO25: 100 | AP25: 800 | AS25: 1 | AT25: 1 | AU25: -0.5 | AV25: 85 | AW25: 1 | AX25: 0.5 | AZ25: UWTN | BA25: A | BB25: B | BC25: C | BD25: D | BE25: E | BF25: X | BJ25: 2 | BK25: 0 | BL25: 0 | BM25: 0 | BN25: 0 | BO25: 0 | BP25: 1 | BQ25: 5 | BR25: 50 | BS25: 500 | BT25: 5000 | BU25: 50000
A26: Whiteheart | B26: 3107 | D26: A | E26: 8 | F26: 8 | G26: 6 | H26: 7 | I26: D | J26: 9 | K26: - | L26: A | N26: N | O26: Ag | U26: B | W26: 6 | X26: 0 | Y26: 4 | AA26: Na | AB26: Subsector D - Yelloworld | AC26: 1 | AD26: 3.5 | AE26: 4.5 | AF26: =INDEX($BA$26:BF$44,MATCH(AE26,$AZ$26:$AZ$44,-1),MATCH(D26,$BA$25:$BF$25)) -> 0.5 | AG26: 1 | AH26: 1 | AI26: 1 | AJ26: 1 | AK26: 1 | AL26: 0.8 | AM26: 4688 | AN26: 281280000000 | AO26: 100 | AP26: 600 | AS26: 2 | AT26: 2 | AU26: -0.5 | AV26: 135 | AW26: 2 | AX26: 1 | AZ26: 8 | BA26: 0 | BB26: -1 | BC26: -1.5 | BD26: -2 | BE26: -2.5 | BF26: -5 | BJ26: 3 | BK26: 0 | BL26: 0 | BM26: 0 | BN26: 0 | BO26: 1 | BP26: 10 | BQ26: 100 | BR26: 1000 | BS26: 10000 | BT26: 50000 | BU26: 100000
A27: Diaoran | B27: 903 | D27: C | E27: 8 | F27: 5 | G27: 7 | H27: 7 | I27: 8 | J27: 8 | K27: - | L27: 7 | O27: Ag | U27: B | W27: 5 | X27: 2 | Y27: 0 | AA27: I1 | AB27: Subsector B - Mu | AC27: 0.5 | AD27: 3.5 | AE27: 4 | AF27: =INDEX($BA$26:BF$44,MATCH(AE27,$AZ$26:$AZ$44,-1),MATCH(D27,$BA$25:$BF$25)) -> 0 | AG27: 1 | AH27: 1 | AI27: 1 | AJ27: 1 | AK27: 1 | AL27: 0.8 | AM27: 1144 | AN27: 57200000000 | AO27: 200 | AP27: 1000 | AS27: 3 | AT27: 3 | AU27: 0 | AV27: 220 | AW27: 3 | AX27: 1.5 | AZ27: 7.5 | BA27: 0 | BB27: -1 | BC27: -1.5 | BD27: -2 | BE27: -2.5 | BF27: -5 | BJ27: 4 | BK27: 0 | BL27: 0 | BM27: 0 | BN27: 0 | BO27: 1 | BP27: 10 | BQ27: 100 | BR27: 1000 | BS27: 2000 | BT27: 20000 | BU27: 200000
A28: Cianji | B28: 1005 | D28: D | E28: 6 | F28: 6 | G28: 6 | H28: 7 | I28: 6 | J28: 0 | K28: - | L28: 6 | N28: A | O28: Ag | U28: B | W28: 4 | X28: 0 | Y28: 3 | AA28: I1 | AB28: Subsector B - Mu | AC28: 0.5 | AD28: 3.5 | AE28: 4 | AF28: =INDEX($BA$26:BF$44,MATCH(AE28,$AZ$26:$AZ$44,-1),MATCH(D28,$BA$25:$BF$25)) -> -0.5 | AG28: 1 | AH28: 1 | AI28: 1 | AJ28: 1 | AK28: 0.8 | AL28: 0.8 | AM28: 572.8 | AN28: 2.2912e+10 | AO28: 300 | AP28: 1200 | AS28: 4 | AT28: 4 | AU28: 0 | AV28: 350 | AW28: 4 | AX28: 2 | AZ28: 7 | BA28: 0 | BB28: -1 | BC28: -1.5 | BD28: -2 | BE28: -2.5 | BF28: -5 | BJ28: 5 | BK28: 0 | BL28: 0 | BM28: 0 | BN28: 1 | BO28: 2 | BP28: 3 | BQ28: 30 | BR28: 300 | BS28: 3000 | BT28: 30000 | BU28: 300000
A29: Acroupa | B29: 401 | D29: C | E29: 5 | F29: 5 | G29: 3 | H29: 7 | I29: 7 | J29: 0 | K29: - | L29: 7 | O29: Po | U29: B | W29: 3 | X29: 2 | Y29: 0 | AA29: Ee | AB29: Subsector A - Nosso Nosso | AC29: 0.5 | AD29: 3.5 | AE29: 4 | AF29: =INDEX($BA$26:BF$44,MATCH(AE29,$AZ$26:$AZ$44,-1),MATCH(D29,$BA$25:$BF$25)) -> 0 | AG29: 1 | AH29: 1 | AI29: 1 | AJ29: 1 | AK29: 1 | AL29: 0.8 | AM29: 1144 | AN29: 34320000000 | AO29: 200 | AP29: 600 | AS29: 5 | AT29: 5 | AU29: 0 | AV29: 560 | AW29: 5 | AX29: 2.5 | AZ29: 6.5 | BA29: 0 | BB29: -0.5 | BC29: -1 | BD29: -1.5 | BE29: -2 | BF29: -4.5 | BJ29: 6 | BK29: 0 | BL29: 0 | BM29: 0 | BN29: 1 | BO29: 2 | BP29: 3 | BQ29: 30 | BR29: 300 | BS29: 3000 | BT29: 30000 | BU29: 300000
A30: Avalon | B30: 933 | D30: A | E30: 8 | F30: 8 | G30: 6 | H30: 7 | I30: 7 | J30: 5 | K30: - | L30: A | N30: A | O30: Ag | U30: B | W30: 2 | X30: 0 | Y30: 2 | AA30: Nf | AB30: Subsector N - Sorrow | AC30: 1 | AD30: 3.5 | AE30: 4.5 | AF30: =INDEX($BA$26:BF$44,MATCH(AE30,$AZ$26:$AZ$44,-1),MATCH(D30,$BA$25:$BF$25)) -> 0.5 | AG30: 1 | AH30: 1 | AI30: 1 | AJ30: 1 | AK30: 1 | AL30: 0.8 | AM30: 4688 | AN30: 93760000000 | AO30: 100 | AP30: 200 | AS30: 6 | AT30: 6 | AU30: 0.5 | AV30: 895 | AW30: 6 | AX30: 3 | AZ30: 6 | BA30: 0 | BB30: -0.5 | BC30: -1 | BD30: -1.5 | BE30: -2 | BF30: -4.5 | BJ30: 7 | BK30: 0 | BL30: 0 | BM30: 0 | BN30: 0 | BO30: 1 | BP30: 2 | BQ30: 20 | BR30: 200 | BS30: 2000 | BT30: 20000 | BU30: 200000
A31: Lifesphere | B31: 2434 | D31: A | E31: 4 | F31: 6 | G31: 6 | H31: 7 | I31: 7 | J31: 6 | K31: - | L31: A | O31: Ag | P31: Cp | U31: B | W31: 2 | X31: 1 | Y31: 3 | AA31: Dr | AB31: Subsector O - Painted | AC31: 1 | AD31: 3.5 | AE31: 4.5 | AF31: =INDEX($BA$26:BF$44,MATCH(AE31,$AZ$26:$AZ$44,-1),MATCH(D31,$BA$25:$BF$25)) -> 0.5 | AG31: 1 | AH31: 1 | AI31: 1 | AJ31: 0.8 | AK31: 0.8 | AL31: 0.8 | AM31: 3000.32 | AN31: 60006400000 | AO31: 100 | AP31: 200 | AS31: 7 | AT31: 7 | AU31: 0.5 | AV31: 1430 | AW31: 7 | AX31: 3.5 | AZ31: 5.5 | BA31: 0 | BB31: 0 | BC31: -0.5 | BD31: -1 | BE31: -1.5 | BF31: -4 | BJ31: 8 | BK31: 0 | BL31: 0 | BM31: 0 | BN31: 0 | BO31: 0 | BP31: 1 | BQ31: 15 | BR31: 150 | BS31: 1500 | BT31: 15000 | BU31: 150000
A32: Kosh | B32: 2805 | D32: X | E32: 5 | F32: 3 | G32: 1 | H32: 7 | I32: 5 | J32: 6 | K32: - | L32: 6 | U32: B | W32: 2 | X32: 0 | Y32: 2 | AA32: Na | AB32: Subsector D - Yelloworld | AC32: 0.5 | AD32: 3.5 | AE32: 4 | AF32: =INDEX($BA$26:BF$44,MATCH(AE32,$AZ$26:$AZ$44,-1),MATCH(D32,$BA$25:$BF$25)) -> -3.5 | AG32: 1 | AH32: 1 | AI32: 1 | AJ32: 1 | AK32: 1 | AL32: 0.8 | AM32: 716 | AN32: 14320000000 | AO32: 300 | AP32: 600 | AS32: 8 | AT32: 8 | AU32: 0.5 | AV32: 2290 | AW32: 8 | AX32: 4 | AZ32: 5 | BA32: 0 | BB32: 0 | BC32: -0.5 | BD32: -1 | BE32: -1.5 | BF32: -4 | BJ32: 9 | BK32: 0 | BL32: 0 | BM32: 0 | BN32: 0 | BO32: 0 | BP32: 1 | BQ32: 12 | BR32: 120 | BS32: 1200 | BT32: 12000 | BU32: 120000
A33: Orzabal | B33: 311 | D33: C | E33: 7 | F33: 5 | G33: 5 | H33: 7 | I33: 8 | J33: 5 | K33: - | L33: 4 | O33: Ag | U33: B | W33: 1 | X33: 0 | Y33: 4 | AA33: Ee | AB33: Subsector E - Silent Shore | AC33: 0 | AD33: 3.5 | AE33: 3.5 | AF33: =INDEX($BA$26:BF$44,MATCH(AE33,$AZ$26:$AZ$44,-1),MATCH(D33,$BA$25:$BF$25)) -> 0 | AG33: 1 | AH33: 1 | AI33: 1 | AJ33: 1 | AK33: 0.8 | AL33: 0.8 | AM33: 224 | AN33: 2240000000 | AO33: 1000 | AP33: 1000 | AS33: 9 | AT33: 9 | AU33: 1 | AV33: 3660 | AW33: 9 | AX33: 4.5 | AZ33: 4.5 | BA33: 0.5 | BB33: 0 | BC33: 0 | BD33: -0.5 | BE33: -1 | BF33: -3.5 | BJ33: A | BK33: 0 | BL33: 0 | BM33: 0 | BN33: 0 | BO33: 0 | BP33: 1 | BQ33: 10 | BR33: 100 | BS33: 1000 | BT33: 10000 | BU33: 100000
A34: Duchy | B34: 609 | D34: A | E34: 7 | F34: 9 | G34: 9 | H34: 7 | I34: 5 | J34: 0 | K34: - | L34: A | O34: Ag | P34: Cp | U34: B | W34: 1 | X34: 2 | Y34: 4 | AA34: Ee | AB34: Subsector A - Nosso Nosso | AC34: 1 | AD34: 3.5 | AE34: 4.5 | AF34: =INDEX($BA$26:BF$44,MATCH(AE34,$AZ$26:$AZ$44,-1),MATCH(D34,$BA$25:$BF$25)) -> 0.5 | AG34: 1 | AH34: 1 | AI34: 1 | AJ34: 0.8 | AK34: 1 | AL34: 0.8 | AM34: 3750.4 | AN34: 37504000000 | AO34: 100 | AP34: 100 | AS34: A | AT34: 10 | AU34: 1 | AV34: 5860 | AW34: A | AX34: 5 | AZ34: 4 | BA34: 0.5 | BB34: 0 | BC34: 0 | BD34: -0.5 | BE34: -1 | BF34: -3.5 | BJ34: B | BK34: 0 | BL34: 0 | BM34: 0 | BN34: 0 | BO34: 0 | BP34: 0 | BQ34: 7 | BR34: 70 | BS34: 700 | BT34: 7000 | BU34: 70000
A35: Leoin | B35: 806 | D35: A | E35: 7 | F35: 5 | G35: 8 | H35: 7 | I35: 8 | J35: 7 | K35: - | L35: A | O35: Ag | P35: Cp | U35: B | W35: 1 | X35: 0 | Y35: 3 | AA35: I1 | AB35: Subsector A - Nosso Nosso | AC35: 1 | AD35: 3.5 | AE35: 4.5 | AF35: =INDEX($BA$26:BF$44,MATCH(AE35,$AZ$26:$AZ$44,-1),MATCH(D35,$BA$25:$BF$25)) -> 0.5 | AG35: 1 | AH35: 1 | AI35: 1 | AJ35: 1 | AK35: 0.8 | AL35: 0.8 | AM35: 3750.4 | AN35: 37504000000 | AO35: 100 | AP35: 100 | AS35: B | AT35: 11 | AU35: 1 | AV35: 9375 | AW35: B | AX35: 5.5 | AZ35: 3.5 | BA35: 0.5 | BB35: 0.5 | BC35: 0 | BD35: 0 | BE35: -0.5 | BF35: -3 | BJ35: C | BK35: 0 | BL35: 0 | BM35: 0 | BN35: 0 | BO35: 0 | BP35: 0 | BQ35: 5 | BR35: 50 | BS35: 500 | BT35: 5000 | BU35: 50000
A36: Comerwake | B36: 1904 | D36: A | E36: 2 | F36: 6 | G36: 5 | H36: 7 | I36: A | J36: C | K36: - | L36: A | N36: N | O36: Ag | P36: Cp | U36: B | W36: 1 | X36: 0 | Y36: 3 | AA36: Ao | AB36: Subsector C - Wsi | AC36: 1 | AD36: 3.5 | AE36: 4.5 | AF36: =INDEX($BA$26:BF$44,MATCH(AE36,$AZ$26:$AZ$44,-1),MATCH(D36,$BA$25:$BF$25)) -> 0.5 | AG36: 1 | AH36: 1 | AI36: 1 | AJ36: 1 | AK36: 1 | AL36: 0.8 | AM36: 4688 | AN36: 46880000000 | AO36: 100 | AP36: 100 | AS36: C | AT36: 12 | AU36: 1.5 | AV36: 15000 | AW36: C | AX36: 6 | AZ36: 3 | BA36: 0.5 | BB36: 0.5 | BC36: 0 | BD36: 0 | BE36: -0.5 | BF36: -3 | BJ36: D | BK36: 0 | BL36: 0 | BM36: 0 | BN36: 0 | BO36: 0 | BP36: 0 | BQ36: 5 | BR36: 50 | BS36: 500 | BT36: 5000 | BU36: 50000
A37: Justince | B37: 2211 | D37: A | E37: 9 | F37: 8 | G37: A | H37: 7 | I37: 4 | J37: 8 | K37: - | L37: A | N37: N | O37: Ag | P37: Wa | Q37: Cp | U37: B | W37: 1 | X37: 0 | Y37: 0 | AA37: Kj | AB37: Subsector G - LightWaves | AC37: 1 | AD37: 3.5 | AE37: 4.5 | AF37: =INDEX($BA$26:BF$44,MATCH(AE37,$AZ$26:$AZ$44,-1),MATCH(D37,$BA$25:$BF$25)) -> 0.5 | AG37: 1 | AH37: 1 | AI37: 1 | AJ37: 1 | AK37: 1 | AL37: 0.8 | AM37: 4688 | AN37: 46880000000 | AO37: 100 | AP37: 100 | AS37: D | AT37: 13 | AU37: 1.5 | AV37: 24400 | AZ37: 2.5 | BA37: 1 | BB37: 0.5 | BC37: 0.5 | BD37: 0 | BE37: 0 | BF37: -2.5 | BJ37: E | BK37: 0 | BL37: 0 | BM37: 0 | BN37: 0 | BO37: 0 | BP37: 0 | BQ37: 7 | BR37: 70 | BS37: 700 | BT37: 7000 | BU37: 70000
A38: Vieunia | B38: 2207 | D38: A | E38: A | F38: 8 | G38: A | H38: 6 | I38: 7 | J38: 8 | K38: - | L38: A | N38: N | O38: Ag | P38: Wa | U38: B | W38: 8 | X38: 0 | Y38: 0 | AA38: Na | AB38: Subsector C - Wsi | AC38: 1 | AD38: 3 | AE38: 4 | AF38: =INDEX($BA$26:BF$44,MATCH(AE38,$AZ$26:$AZ$44,-1),MATCH(D38,$BA$25:$BF$25)) -> 0.5 | AG38: 1 | AH38: 1 | AI38: 1 | AJ38: 1 | AK38: 1 | AL38: 0.8 | AM38: 4688 | AN38: 37504000000 | AO38: 10 | AP38: 80 | AZ38: 2 | BA38: 1 | BB38: 0.5 | BC38: 0.5 | BD38: 0 | BE38: 0 | BF38: -2.5 | BJ38: F | BK38: 0 | BL38: 0 | BM38: 0 | BN38: 0 | BO38: 0 | BP38: 0 | BQ38: 5 | BR38: 50 | BS38: 500 | BT38: 5000 | BU38: 50000
A39: Quajora | B39: 2109 | D39: A | E39: 8 | F39: A | G39: 5 | H39: 6 | I39: 4 | J39: 5 | K39: - | L39: B | N39: N | O39: Fl | U39: B | W39: 6 | X39: 0 | Y39: 2 | AA39: Hc | AB39: Subsector C - Wsi | AC39: 1 | AD39: 3 | AE39: 4 | AF39: =INDEX($BA$26:BF$44,MATCH(AE39,$AZ$26:$AZ$44,-1),MATCH(D39,$BA$25:$BF$25)) -> 0.5 | AG39: 1 | AH39: 1 | AI39: 1 | AJ39: 1 | AK39: 1 | AL39: 0.8 | AM39: 7500 | AN39: 45000000000 | AO39: 7 | AP39: 42 | AZ39: 1.5 | BA39: 1 | BB39: 1 | BC39: 0.5 | BD39: 0.5 | BE39: 0 | BF39: 0 | BJ39: G | BK39: 0 | BL39: 0 | BM39: 0 | BN39: 0 | BO39: 0 | BP39: 0 | BQ39: 5 | BR39: 50 | BS39: 500 | BT39: 5000 | BU39: 50000
A40: Samtara | B40: 1903 | D40: B | E40: 5 | F40: 6 | G40: 5 | H40: 6 | I40: 4 | J40: 6 | K40: - | L40: A | O40: Ag | U40: B | W40: 5 | X40: 0 | Y40: 2 | AA40: Ao | AB40: Subsector C - Wsi | AC40: 1 | AD40: 3 | AE40: 4 | AF40: =INDEX($BA$26:BF$44,MATCH(AE40,$AZ$26:$AZ$44,-1),MATCH(D40,$BA$25:$BF$25)) -> 0 | AG40: 1.6 | AH40: 1 | AI40: 1 | AJ40: 1 | AK40: 1 | AL40: 0.8 | AM40: 7500.8 | AN40: 37504000000 | AO40: 10 | AP40: 50 | AZ40: 1 | BA40: 1 | BB40: 1 | BC40: 0.5 | BD40: 0.5 | BE40: 0 | BF40: 0
A41: Doumbek | B41: 2622 | D41: A | E41: 7 | F41: 6 | G41: 9 | H41: 6 | I41: 7 | J41: 9 | K41: - | L41: B | N41: A | O41: Ag | P41: Cp | U41: B | W41: 5 | X41: 2 | Y41: 2 | AA41: Ks | AB41: Subsector L - Dreamsong | AC41: 1 | AD41: 3 | AE41: 4 | AF41: =INDEX($BA$26:BF$44,MATCH(AE41,$AZ$26:$AZ$44,-1),MATCH(D41,$BA$25:$BF$25)) -> 0.5 | AG41: 1 | AH41: 1 | AI41: 1 | AJ41: 0.8 | AK41: 1 | AL41: 0.8 | AM41: 6000 | AN41: 30000000000 | AO41: 7 | AP41: 35 | AZ41: 0.5 | BA41: 1.5 | BB41: 1 | BC41: 1 | BD41: 0.5 | BE41: 0.5 | BF41: 0
A42: Ceskyi | B42: 706 | D42: D | E42: A | F42: 8 | G42: A | H42: 6 | I42: 7 | J42: 6 | K42: - | L42: 8 | O42: Ag | P42: Wa | U42: B | W42: 4 | X42: 1 | Y42: 3 | AA42: I1 | AB42: Subsector A - Nosso Nosso | AC42: 0.5 | AD42: 3 | AE42: 3.5 | AF42: =INDEX($BA$26:BF$44,MATCH(AE42,$AZ$26:$AZ$44,-1),MATCH(D42,$BA$25:$BF$25)) -> 0 | AG42: 1 | AH42: 1 | AI42: 1.2 | AJ42: 1 | AK42: 1 | AL42: 0.8 | AM42: 2198.4 | AN42: 8793600000 | AO42: 15 | AP42: 60 | AZ42: 0 | BA42: 1.5 | BB42: 1 | BC42: 1 | BD42: 0.5 | BE42: 0.5 | BF42: 0
